Workbook

Sheet Cover Page
C6: Redbridge - Practice Clinical Trends (LDP) Report
B19: General Health | C19: The number and percentage of patients on GP register aged over 16 with BMI and smoking status recorded
B20: Hypertension | C20: The number and percentage of patients on hypertension registers. The number and percentage of patients on register with blood pressure measured within last 9 months is less than 150/90
B21: CHD | C21: The number and percentage of patients on CHD register. Indicators included: cholesterol, BP ≤ 150/90
B22: Stroke/TIA | C22: The number and percentage of patients on Stroke/TIA register. Indicators included: BP recorded - BP <140/90.
B23: CVD Risk | C23: The number and percentage of patients eligible for CVD risk score (aged 25 -84). Indicators included: QRISK score, QRISK greater than 20% and proxy review
B24: Diabetes | C24: The number and percentage of patients on diabetes register. Indicators include: blood pressure; cholesterol; HbA1c; flu vaccination
B25: Mental Health | C25: The number and percentage of patients on Mental Health register. Indicators included: severe mental illness review and smoking status
B26: CKD | C26: The number and percentage of patients on CKD register. Indicators included: blood pressure and new diagnosis within 6 months
B27: COPD | C27: The number and percentage of patients on COPD register. Indicators included: severe or very severe COPD (FEV1<50) and smoking status
C30: N/A indicates either that no usable data has been returned or that calculation of a proportion is impossible

Sheet Full Explanatory Notes
A5: Worksheet | B5: Description of column contents
A6: General Health | B6: Patients aged 16 and over on the GP register
B7: Patients aged 16 and over on the GP register, with a BMI recorded in the last 12 months
B8: Patients aged 16 and over on the GP register, with a BMI ≥30 & <35
B9: Patients aged 16 and over on the GP register, with a BMI ≥ 35 & <40
B10: Patients aged 16 and over on the GP register, with a BMI ≥ 40
B11: Patients aged 16 and over on the GP register with smoking status recorded in the last 12 months
B12: Patients aged 16 and over on the GP register with smoking status recorded in the last 12 months, recorded as being a smoker.
A14: Hypertension | B14: Patients on the Hypertension register.
B15: Patients on the Hypertension register with BP recorded in the last 12 months.
B16: Patients on the Hypertension register with BP < 140/90 (Patients aged under 80) < 150/90 ( Aged 80 and over) (last 12m)
A18: CHD | B18: Patients on the CHD register
B19: Patients on the CHD register with cholesterol recorded in the last 12 months.
B20: Patients on the CHD register with last measured cholesterol < 5mmol in the last 12 months
B21: Patients on the CHD register with BP ≤ 150/90 (last 9m)
A23: Stroke/TIA | B23: Patients on the Stroke/TIA register
B24: Patients on the Stroke/TIA register with a BP recorded in last 12 months
B25: Patients on the Stroke/TIA register with BP recorded in the last 12 months with BP < 140/90
A27: CVD Risk | B27: Patients eligible for a CVD risk score (aged 25 - 84 excluding CVD)
B28: Patients with a QRISK or Framingham risk score done.
B29: Patients with a Q Risk score of 20% or higher
B30: Patients with a Q Risk score of 20% or higher and an annual review or proxy annual review
A32: Diabetes | B32: Patients on the diabetes register
B33: Patients on the diabetes register with BP recorded in the last 12 months
B34: Patients on the diabetes register with latest BP < 145/85 in the last 12 months
B35: Patients on the diabetes register with last measured cholesterol, measured within the last 15 months < 5mmol/l
B36: Patients on the diabetes register with last HbA1c < 59in the last 12 months
B37: Patients on the diabetes register with a Flu Jab within the last 12 months.
A40: Mental Health | B40: Patients on the Mental Health register
B41: Patients on the Mental Health register with a review recorded within the last 12 months.
B42: Patients on the Mental Health register with smoking status recorded within the last 12 months
B43: Patients on the Mental Health register with smoking status recorded within the last 12 months recorded as a smoker
B44: Patients on the Mental Health register with smoking status recorded within the last 12 months referred to the stop smoking clinic
B45: Patients on the Mental Health register with smoking status recorded within the last 12 months who are recorded as quitters
B46: Patients with Mental Health with blood pressure recorded in the last 12m
B47: Patients with Mental Health with QRISK recorded in the last 12m
B48: Patients with Mental Health with QRISK 20% or higher in the last 12m
A50: CKD | B50: Patients on CKD register
B51: Patients on the CKD register with blood pressure recorded
B52: Patients on the CKD register with blood pressure < 140/90
B53: Patients on the CKD register with new diagnosis of CKD in the last 6 months
A55: COPD | B55: Patients on COPD register
B56: No of patients with severe or very severe COPD (FEV1<50)
B57: No. of COPD Patients with smoking status recorded (last 12m) or never smoked
B58: No. of COPD patients recorded as a Smoker
B59: No. of COPD Patients who are current smokers & referred to the Stop Smoking Clinic (12m)
B60: No of COPD with flu vaccination (12m)
B61: No of COPD with pneumococcal vaccination ever
B62: No of COPD patients referred to pulmonary rehab ever

Sheet 2019-20 Changes (hidden)
A1: OLD (2017-2018) | C1: NEW (2018-2019) | E1: NEW (2019-20)
A2: List Size | C2: List Size | E2: List Size
A3: Age 16+ | C3: Age 16+ | E3: Age 16+
A4: % list size | C4: % list size | E4: % list size
A5: 16+ and BMI (last 15m) | C5: 16+ and BMI (last 12m) | E5: 16+ and BMI (last 12m)
A6: % 16+ | C6: % 16+ | E6: % 16+
A7: BMI 25 to 29 | C7: BMI ≥30 & <35 | E7: BMI ≥30 & <35
A8: % 16+ | C8: % 16+ | E8: % 16+
A9: BMI ≥ 30 | C9: BMI ≥ 35 & <40 | E9: BMI ≥ 35 & <40
A10: %16+ | C10: %16+ | E10: %16+
A11: BMI ≥ 40 | C11: BMI ≥ 40 | E11: BMI ≥ 40
A12: %16+ | C12: %16+ | E12: %16+
A13: Smoking status (last 15m) incl. never smoked | C13: Smoking status (last 12m) incl. never smoked | E13: Smoking status (last 12m) incl. never smoked
A14: % 16+ | C14: % 16+ | E14: % 16+
A15: Age 16+ and current smoker (last 15m) | C15: Age 16+ and current smoker (last 12m) | E15: Age 16+ and current smoker (last 12m)
A16: % 16+ | C16: % 16+ | E16: % 16+
A18: Hypertension Register | C18: Hypertension Register | E18: Hypertension Register
A19: % list size | C19: % list size | E19: % list size
A20: Hypertension and BP (last 9m) | C20: Hypertension and BP (last 12m) | E20: Hypertension and BP (last 12m)
A21: % Hypertension Register | C21: % Hypertension Register | E21: % Hypertension Register
A22: Hypertension and BP ≤ 150/90 (last 9m) | C22: Hypertension and BP < 140/90 (Patients aged under 80) < 150/90 ( Aged 80 and over) (last 12m) | E22: Hypertension and BP < 140/90 (Patients aged under 80) < 150/90 ( Aged 80 and over) (last 12m)
A23: % Hypertension Register | C23: % Hypertension Register | E23: % Hypertension Register
A25: CHD register | C25: CHD register | E25: CHD register
A26: % list size | C26: % list size | E26: % list size
A27: Cholesterol (last 15m) | C27: Cholesterol (last 12m) | E27: Cholesterol (last 12m)
A28: % CHD register | C28: % CHD register | E28: % CHD register
A29: Cholesterol ≤ 5 (last 15m) | C29: Cholesterol < 5 (last 12m) | E29: Cholesterol < 5 (last 12m)
A30: % CHD register | C30: % CHD register | E30: % CHD register
A31: BP (last 9m) | C31: BP ≤ 150/90 (last 9m) | E31: BP ≤ 150/90 (last 9m)
A32: % CHD register | C32: % CHD register | E32: % CHD register
A33: BP ≤ 150/90 (last 9m)
A34: % CHD register | E34: Stroke/TIA register
A35: CHD annual review or proxy review | E35: % list size
A36: % CHD register | E36: BP Recorded
A37: CHD diagnosed in last 6 months | E37: % Stroke/TIA register
A38: % CHD register | E38: BP <140/90 (last 12m)
E39: % Stroke/TIA register
A41: Aged 35 to 74 (exc CVD) | C41: Aged 25 to 84 (exc CVD) | E41: Aged 25 to 84 (exc CVD)
A42: CVD (QRISK or Framingham) risk score done | C42: QRISK recorded (5 years) | E42: QRISK recorded (5 years)
A43: % of patients aged 35 to 74 (exc CVD) | C43: % of patients aged 25 to 84 (exc CVD) | E43: % of patients aged 25 to 84 (exc CVD)
A44: QRISK ≥ 20% | C44: QRISK ≥ 20% | E44: QRISK ≥ 20%
A45: % QRISK Score recorded | C45: % QRISK Score recorded | E45: % QRISK Score recorded
A46: QRISK ≥ 20% and proxy review (BP and Chol last 15m) | C46: QRISK ≥ 20% and proxy review (BP and Chol last 12m) | E46: QRISK ≥ 20% and proxy review (BP and Chol last 12m)
A47: % Patients with QRISK ≥ 20% | C47: % Patients with QRISK ≥ 20% | E47: % Patients with QRISK ≥ 20%
A49: Diabetes register | C49: Diabetes register | E49: Diabetes register
A50: % List size | C50: % List size | E50: % List size
A51: BP (last 15m) | C51: BP (last 12m) | E51: BP (last 12m)
A52: % Diabetes Register | C52: % Diabetes Register | E52: % Diabetes Register
A53: BP ≤ 145/85 (last 15m) | C53: BP < 145/85 (last 12m) | E53: BP < 145/85 (last 12m)
A54: % Diabetes Register | C54: % Diabetes Register | E54: % Diabetes Register
A55: Cholesterol < 5mmols (last 15m) | C55: Cholesterol < 5mmols (last 12m) | E55: Cholesterol < 5mmols (last 12m)
A56: % Diabetes Register | C56: % Diabetes Register | E56: % Diabetes Register
A57: HbA1c ≤ 59(last 15m) | C57: HbA1c < 59 (last 12m) | E57: HbA1c < 59 (last 12m)
A58: % Diabetes register | C58: % Diabetes register | E58: % Diabetes register
A59: Flu jab (last 15m) | C59: Flu jab (last 12m) | E59: Flu jab (From August 2019)
A60: % Diabetes Register | C60: % Diabetes Register | E60: % Diabetes Register
A61: Annual review/ called or proxy (last 15m)
A62: % Diabetes register
A63: Cholesterol (last 15m)
A64: % Diabetes Register
A65: HbA1c ≤ 86 (last 15m)
A66: % Diabetes Register
A67: Diabetes retinal screening (last 15m)
A68: % Diabetes register
A69: Retinal screening (last 15m)
A70: % Diabetes register
A71: Neuropathy testing (last 15m)
A72: % Diabetes Register
A73: Microalbuminuria (last 15m)
A74: % Diabetes Register
A75: Type 1 Diabetes
A76: % Diabetes Register
A77: Type 2 Diabetes
A78: % Diabetes Register
A79: No Type Recorded
A80: % Diabetes Register
A81: Type 2 diabetes excluding insulin prescriptions (last 15 m)
A82: % Type 2 Diabetes
A83: Newly Diagnosed Diabetes (Last 1m)
A84: Newly Diagnosed Diabetes - Type 1
A85: Newly Diagnosed Diabetes - Type 2
A86: Newly Diagnosed Diabetes - Type Not Recorded
A87: Diabetics under 18 years old
A88: Diabetics Under 18 with HbA1c ≤ 59 (last 15m)
A89: % of Diabetics under 18
A90: No. of patients with diabetes diagnosed with CKD in the last 15m
A91: % Diabetes Register
A92: No. of patients with diabetes diagnosed with CHD and/or Stroke/TIA in the last 12 months
A93: % Diabetes Register
A94: No. of patients with diabetes diagnosed with Depression in the last 12 months
A95: %Diabetes Register
A96: No. of patients who have ever had gestational diabetes
A97: No. of patients who have ever had gestational diabetes who are also on diabetes register
A98: % of patients with gestational diabetes
A100: SMI register (QOF) | C100: Mental Health register | E100: Mental Health register
A101: % list size | C101: % list size | E101: % list size
A102: No. of SMI Patients with smoking status recorded (last 12m) or never smoked | C102: No. of Mental Health Patients with smoking status recorded (last 12m) or never smoked | E102: No. of Mental Health Patients with smoking status recorded (last 12m) or never smoked
A103: % SMI Register | C103: % Mental Health Register | E103: % Mental Health Register
A104: No. of SMI patients recorded as a Smoker | C104: No. of Mental Health patients recorded as a Smoker | E104: No. of Mental Health patients recorded as a Smoker
A105: % SMI Register | C105: % Mental Health Register | E105: % Mental Health Register
A106: No. of SMI Patients who are current smokers & referred to the Stop Smoking Clinic | C106: No. of Mental Health Patients who are current smokers & referred to the Stop Smoking Clinic | E106: No. of Mental Health Patients who are current smokers & referred to the Stop Smoking Clinic
A107: % SMI Register | C107: % Mental Health Register | E107: % Mental Health Register
A108: No. Of SMI Patients who are recorded as quitters | C108: No. Of Mental Health Patients who are recorded as quitters | E108: No. Of Mental Health Patients who are recorded as quitters
A109: % SMI Register | C109: % Mental Health Register | E109: % Mental Health Register
A110: Patients with SMI with QRISK recorded in the last 12m | C110: Patients with Mental Health with QRISK recorded in the last 12m | E110: Patients with Mental Health with QRISK recorded in the last 12m
A111: % SMI Register | C111: % Mental Health Register | E111: % Mental Health Register
A112: Patients with SMI with QRISK 20% or higher in the last 12m | C112: Patients with Mental Health with QRISK 20% or higher in the last 12m | E112: Patients with Mental Health with QRISK 20% or higher in the last 12m
A113: % patients with QRISK recorded 20% or higher | C113: % patients with QRISK recorded | E113: % patients with QRISK recorded
A114: Patients with SMI with BP & QRisk on the same day in the last 12m | C114: Patients with Mental Health with BP & QRisk on the same day in the last 12m | E114: Patients with Mental Health with BP & QRisk on the same day in the last 12m
A115: % Patients with SMI with BP & QRisk on the same day in the last 12m | C115: % Mental Health Register | E115: % Mental Health Register
A117: No. of patients on CKD register (QOF definition) | C117: No. of patients on CKD register | E117: No. of patients on CKD register
A118: % List Size | C118: % List Size | E118: % List Size
A119: BP Recorded (last 15m) | C119: BP Recorded (last 12m) | E119: BP Recorded (last 12m)
A120: % CKD register | C120: % CKD register | E120: % CKD register
A121: BP ≤ 140/90 | C121: BP < 140/90 | E121: BP < 140/90
A122: % CKD register | C122: % CKD register | E122: % CKD register
A123: No of patients with new diagnosis of CKD (last 6m) | C123: No of patients with new diagnosis of CKD (last 6m) | E123: No of patients with new diagnosis of CKD (last 6m)
A124: % CKD register | C124: % CKD register | E124: % CKD register
C126: No. of patients on COPD register | E126: No. of patients on COPD register
C127: % List Size | E127: % List Size
C128: No of patients with severe or very severe COPD (FEV1<50) | E128: No of patients with severe or very severe COPD (FEV1<50)
C129: % COPD register | E129: % COPD register
C130: No. of COPD Patients with smoking status recorded (last 12m) or never smoked | E130: No. of COPD Patients with smoking status recorded (last 12m) or never smoked
C131: % COPD | E131: % COPD
C132: No. of COPD patients recorded as a Smoker | E132: No. of COPD patients recorded as a Smoker
C133: % COPD | E133: % COPD
C134: No. of COPD Patients who are current smokers & referred to the Stop Smoking Clinic | E134: No. of COPD Patients who are current smokers & referred to the Stop Smoking Clinic
C135: % of current COPD smokers | E135: % of current COPD smokers
C136: No of COPD with flu vaccination (12m) | E136: No of COPD with flu vaccination (From August 2019)
C137: % of COPD register | E137: % of COPD register
C138: No of COPD with pneumococcal vaccination ever | E138: No of COPD with pneumococcal vaccination ever
C139: % of COPD register | E139: % of COPD register
C140: No of COPD patients referred to pulmonary rehab ever | E140: No of COPD patients referred to pulmonary rehab ever
C141: % of COPD register | E141: % of COPD register

Sheet Data (hidden)
A1: 2019-04-01 | C1: 01 LDP | E1: Last Run: | G1: Population Count | H1: 1456922 | K1: Search | L1: 01. Listsize | M1: LDP.04.11: Diabetes and BP in last 12 months | N1: LDP.05: CVD 25-84yrs (excl CVD) | O1: LDP.08.02 CKD Diagnosed (Last 6m) | P1: LDP.08.03 CKD and BP Recorded (last 12 m) | Q1: CSPMH. 01.03 QRisk Recorded (12m) | R1: CSPMH. 01.03.01 BP recorded on same day as QRisk (12m) | S1: CSPMH. 01.03.02 Qrisk>=20 (12m) | T1: LDP.08.01 CKD and BP less than 140/90 (last 12 m) | U1: LDP.08 CKD Register | V1: LDP.05.01: CVD QRISK greater than or equal 20% | W1: LDP.05.01.01: CVD Proxy Annual Review (last 12m) | X1: LDP.05.02: Cardiovascular Risk Score Done (5y) | Y1: LDP.04.09: Diabetes BP less than 145/85 (last 12m) | Z1: LDP.04.08: Diabetes Chol less than 5mmol (last 12m) | AA1: LDP.01.01.01: Obesity BMI more than or equal to 35 less than 40 (last 12m) | AB1: LDP.01.01.02: Obesity BMI between 30-35 (last 12m) | AC1: LDP.01.01.03: Obesity BMI equal to or over 40 (last 12m) | AD1: LDP.01.02: Smoking Status (last 12m) or Never Smoked (25yrs+) | AE1: LDP.01.03: Current Smoker (last 12m) | AF1: LDP.01.01: Obesity BMI recorded (last 12m) | AG1: LDP.01: Aged 16yrs+ | AH1: CSPMH.01 SMI Register | AI1: CSPMH.01.02 Smoking Status Recorded (12m) | AJ1: CSPMH.01.02.01 Current Smoker (12m) | AK1: CSPMH 01.02.01.01 Ref to clinic 12m | AL1: CSPMH.01.02.02 Ex-smoker Recorded (latest 12m) | AM1: LDP.02: Hypertension Register | AN1: LDP.02.01: Hypertension and BP < 140/90 (age under 80) < 150/90 (Age 80+) | AO1: LDP.04.07: Diabetes Influenza Vaccinations (From August 2018) | AP1: LDP.04.01: Diabetes HbA1c <7.5% OR <59mmol (last 12m) | AQ1: LDP.02.02: Hypertension BP recorded (last 12m) | AR1: LDP.03: CHD Register | AS1: LDP.03.01: CHD Chol less than 5mmol (last 12m) | AT1: LDP.03.04: CHD Cholesterol recorded (last 12m) | AU1: LDP.04: Diabetes Register | AV1: LDP.09 COPD Register | AW1: LDP.09.01 Patients with severe or very severe COPD (FEV1<50) | AX1: LDP.09.02 Patients with smoking status recorded (last 12m) or never smoked | AY1: LDP.09.03 COPD patients recorded as a Smoker | AZ1: LDP.09.04 COPD Patients who are current smokers & referred to the Stop Smoking C | BA1: LDP.09.05 No of COPD with flu vaccination (From August 2018) | BB1: LDP.09.06 No of COPD with pneumococcal vaccination ever | BC1: LDP.09.07 No of COPD patients referred to pulmonary rehab ever | BD1: LDP.03.02: CHD BP less than or equal 150/90 (last 9m) | BE1: LDP.10 Stroke or TIA register | BF1: LDP.10.01: Stroke/TIA BP recorded (last 12m) | BG1: LDP.10.02 Patients on Stroke/TIA register with BP <140/90 (12m)
A2: 2019-04-01 | E2: 2019-05-03T14:53:00 | G2: Males | H2: 707613 | J2: Organisation Code
A3: 2019-04-01 | E3: Relative Date: | G3: Females | H3: 749309 | J3: F84003 | L3: 13677 | M3: 786 | N3: 9215 | O3: 11 | P3: 228 | Q3: 143 | R3: 48 | S3: 20 | T3: 159 | U3: 237 | V3: 657 | W3: 432 | X3: 4526 | Y3: 701 | Z3: 530 | AA3: 318 | AB3: 631 | AC3: 156 | AD3: 7063 | AE3: 1040 | AF3: 3245 | AG3: 11049 | AH3: 257 | AI3: 185 | AJ3: 84 | AK3: 3 | AL3: 39 | AM3: 1608 | AN3: 1130 | AO3: 506 | AP3: 442 | AQ3: 1533 | AR3: 314 | AS3: 167 | AT3: 214 | AU3: 816 | AV3: 200 | AW3: 47 | AX3: 176 | AY3: 78 | AZ3: 4 | BA3: 139 | BB3: 124 | BC3: 153 | BD3: 256 | BE3: 189 | BF3: 173 | BG3: 130
A4: 2019-04-01 | E4: 2019-05-01 | J4: F84008 | L4: 12556 | M4: 552 | N4: 8927 | O4: 15 | P4: 202 | Q4: 114 | R4: 52 | S4: 13 | T4: 149 | U4: 218 | V4: 589 | W4: 371 | X4: 5248 | Y4: 459 | Z4: 392 | AA4: 178 | AB4: 422 | AC4: 114 | AD4: 6115 | AE4: 677 | AF4: 3059 | AG4: 10309 | AH4: 226 | AI4: 165 | AJ4: 67 | AK4: 2 | AL4: 43 | AM4: 1285 | AN4: 802 | AO4: 369 | AP4: 334 | AQ4: 1138 | AR4: 220 | AS4: 130 | AT4: 152 | AU4: 579 | AV4: 164 | AW4: 46 | AX4: 141 | AY4: 70 | AZ4: 1 | BA4: 118 | BB4: 112 | BC4: 116 | BD4: 153 | BE4: 139 | BF4: 130 | BG4: 96
A5: 2019-04-01 | J5: F84013 | L5: 15146 | M5: 487 | N5: 6548 | O5: 19 | P5: 175 | Q5: 61 | R5: 40 | S5: 10 | T5: 139 | U5: 185 | V5: 473 | W5: 367 | X5: 2749 | Y5: 438 | Z5: 391 | AA5: 225 | AB5: 477 | AC5: 98 | AD5: 5578 | AE5: 362 | AF5: 2341 | AG5: 9076 | AH5: 151 | AI5: 109 | AJ5: 36 | AK5: 4 | AL5: 14 | AM5: 991 | AN5: 741 | AO5: 286 | AP5: 290 | AQ5: 911 | AR5: 181 | AS5: 115 | AT5: 136 | AU5: 512 | AV5: 88 | AW5: 23 | AX5: 73 | AY5: 28 | AZ5: 3 | BA5: 57 | BB5: 62 | BC5: 57 | BD5: 136 | BE5: 90 | BF5: 84 | BG5: 70
A6: 2019-04-01 | J6: F84015 | L6: 5446 | M6: 414 | N6: 3423 | O6: 4 | P6: 156 | Q6: 54 | R6: 38 | S6: 11 | T6: 119 | U6: 165 | V6: 270 | W6: 231 | X6: 2272 | Y6: 383 | Z6: 313 | AA6: 178 | AB6: 421 | AC6: 143 | AD6: 3122 | AE6: 474 | AF6: 1945 | AG6: 4304 | AH6: 87 | AI6: 76 | AJ6: 39 | AK6: 2 | AL6: 17 | AM6: 837 | AN6: 601 | AO6: 303 | AP6: 245 | AQ6: 789 | AR6: 104 | AS6: 73 | AT6: 92 | AU6: 428 | AV6: 90 | AW6: 15 | AX6: 86 | AY6: 30 | AZ6: 7 | BA6: 70 | BB6: 51 | BC6: 45 | BD6: 90 | BE6: 66 | BF6: 64 | BG6: 46
A7: 2019-04-01 | J7: F84018 | L7: 11727 | M7: 588 | N7: 7986 | O7: 4 | P7: 186 | Q7: 94 | R7: 72 | S7: 15 | T7: 136 | U7: 189 | V7: 472 | W7: 388 | X7: 5088 | Y7: 533 | Z7: 419 | AA7: 252 | AB7: 591 | AC7: 179 | AD7: 6300 | AE7: 902 | AF7: 3599 | AG7: 9391 | AH7: 190 | AI7: 169 | AJ7: 75 | AK7: 9 | AL7: 33 | AM7: 1106 | AN7: 795 | AO7: 386 | AP7: 339 | AQ7: 1043 | AR7: 186 | AS7: 120 | AT7: 167 | AU7: 610 | AV7: 121 | AW7: 33 | AX7: 114 | AY7: 47 | AZ7: 3 | BA7: 91 | BB7: 75 | BC7: 84 | BD7: 150 | BE7: 94 | BF7: 92 | BG7: 66
A8: 2019-04-01 | J8: F84021 | L8: 10368 | M8: 432 | N8: 7679 | O8: 8 | P8: 176 | Q8: 64 | R8: 42 | S8: 9 | T8: 131 | U8: 189 | V8: 384 | W8: 299 | X8: 3578 | Y8: 378 | Z8: 331 | AA8: 168 | AB8: 376 | AC8: 92 | AD8: 5687 | AE8: 746 | AF8: 2470 | AG8: 8686 | AH8: 153 | AI8: 111 | AJ8: 54 | AK8: 5 | AL8: 23 | AM8: 870 | AN8: 584 | AO8: 311 | AP8: 282 | AQ8: 801 | AR8: 144 | AS8: 83 | AT8: 100 | AU8: 459 | AV8: 109 | AW8: 30 | AX8: 98 | AY8: 43 | AZ8: 2 | BA8: 79 | BB8: 79 | BC8: 83 | BD8: 110 | BE8: 84 | BF8: 73 | BG8: 56
A9: 2019-04-01 | J9: F84033 | L9: 12012 | M9: 583 | N9: 8593 | O9: 1 | P9: 203 | Q9: 77 | R9: 43 | S9: 9 | T9: 161 | U9: 217 | V9: 468 | W9: 345 | X9: 4733 | Y9: 535 | Z9: 443 | AA9: 253 | AB9: 644 | AC9: 164 | AD9: 6638 | AE9: 1188 | AF9: 3565 | AG9: 9999 | AH9: 166 | AI9: 139 | AJ9: 71 | AK9: 4 | AL9: 30 | AM9: 1220 | AN9: 898 | AO9: 439 | AP9: 340 | AQ9: 1123 | AR9: 199 | AS9: 135 | AT9: 173 | AU9: 601 | AV9: 131 | AW9: 36 | AX9: 127 | AY9: 63 | AZ9: 4 | BA9: 101 | BB9: 92 | BC9: 96 | BD9: 161 | BE9: 111 | BF9: 110 | BG9: 100
A10: 2019-04-01 | J10: F84035 | L10: 7864 | M10: 239 | N10: 6276 | O10: 4 | P10: 63 | Q10: 20 | R10: 16 | S10: 4 | T10: 53 | U10: 66 | V10: 186 | W10: 132 | X10: 1827 | Y10: 219 | Z10: 182 | AA10: 103 | AB10: 228 | AC10: 72 | AD10: 5413 | AE10: 595 | AF10: 2896 | AG10: 7052 | AH10: 48 | AI10: 39 | AJ10: 9 | AK10: 1 | AL10: 6 | AM10: 479 | AN10: 311 | AO10: 203 | AP10: 140 | AQ10: 448 | AR10: 69 | AS10: 30 | AT10: 41 | AU10: 258 | AV10: 66 | AW10: 11 | AX10: 66 | AY10: 29 | AZ10: 4 | BA10: 56 | BB10: 58 | BC10: 27 | BD10: 52 | BE10: 50 | BF10: 47 | BG10: 33
A11: 2019-04-01 | J11: F84036 | L11: 7140 | M11: 311 | N11: 5103 | O11: 3 | P11: 98 | Q11: 90 | R11: 57 | S11: 17 | T11: 73 | U11: 107 | V11: 314 | W11: 219 | X11: 4800 | Y11: 268 | Z11: 235 | AA11: 128 | AB11: 363 | AC11: 83 | AD11: 3983 | AE11: 500 | AF11: 2099 | AG11: 6000 | AH11: 159 | AI11: 130 | AJ11: 67 | AK11: 1 | AL11: 31 | AM11: 722 | AN11: 464 | AO11: 181 | AP11: 184 | AQ11: 639 | AR11: 123 | AS11: 81 | AT11: 93 | AU11: 346 | AV11: 91 | AW11: 19 | AX11: 80 | AY11: 28 | AZ11: 2 | BA11: 57 | BB11: 63 | BC11: 70 | BD11: 93 | BE11: 59 | BF11: 53 | BG11: 39
A12: 2019-04-01 | J12: F84038 | L12: 4050 | M12: 232 | N12: 2937 | O12: 0 | P12: 56 | Q12: 50 | R12: 38 | S12: 5 | T12: 53 | U12: 61 | V12: 191 | W12: 128 | X12: 2106 | Y12: 224 | Z12: 152 | AA12: 102 | AB12: 251 | AC12: 58 | AD12: 2493 | AE12: 442 | AF12: 1611 | AG12: 3479 | AH12: 96 | AI12: 81 | AJ12: 50 | AK12: 3 | AL12: 10 | AM12: 491 | AN12: 347 | AO12: 180 | AP12: 124 | AQ12: 402 | AR12: 89 | AS12: 38 | AT12: 53 | AU12: 262 | AV12: 71 | AW12: 8 | AX12: 59 | AY12: 23 | AZ12: 4 | BA12: 47 | BB12: 40 | BC12: 31 | BD12: 55 | BE12: 46 | BF12: 40 | BG12: 36
A13: 2019-04-01 | J13: F84041 | L13: 7744 | M13: 447 | N13: 5811 | O13: 7 | P13: 174 | Q13: 45 | R13: 32 | S13: 6 | T13: 129 | U13: 180 | V13: 384 | W13: 294 | X13: 3542 | Y13: 414 | Z13: 351 | AA13: 215 | AB13: 434 | AC13: 111 | AD13: 4601 | AE13: 534 | AF13: 2508 | AG13: 6701 | AH13: 113 | AI13: 82 | AJ13: 35 | AK13: 3 | AL13: 20 | AM13: 904 | AN13: 598 | AO13: 323 | AP13: 263 | AQ13: 817 | AR13: 139 | AS13: 93 | AT13: 103 | AU13: 476 | AV13: 87 | AW13: 27 | AX13: 81 | AY13: 25 | AZ13: 3 | BA13: 61 | BB13: 45 | BC13: 59 | BD13: 106 | BE13: 67 | BF13: 64 | BG13: 53
A14: 2019-04-01 | J14: F84043 | L14: 2896 | M14: 168 | N14: 1735 | O14: 1 | P14: 42 | Q14: 31 | R14: 7 | S14: 5 | T14: 31 | U14: 46 | V14: 119 | W14: 80 | X14: 877 | Y14: 151 | Z14: 114 | AA14: 55 | AB14: 107 | AC14: 35 | AD14: 1313 | AE14: 209 | AF14: 511 | AG14: 2250 | AH14: 62 | AI14: 40 | AJ14: 19 | AK14: 0 | AL14: 10 | AM14: 337 | AN14: 217 | AO14: 101 | AP14: 96 | AQ14: 314 | AR14: 51 | AS14: 23 | AT14: 33 | AU14: 177 | AV14: 30 | AW14: 6 | AX14: 24 | AY14: 15 | AZ14: 0 | BA14: 15 | BB14: 19 | BC14: 23 | BD14: 37 | BE14: 35 | BF14: 35 | BG14: 25
A15: 2019-04-01 | J15: F84060 | L15: 4753 | M15: 279 | N15: 3347 | O15: 2 | P15: 76 | Q15: 36 | R15: 24 | S15: 6 | T15: 54 | U15: 81 | V15: 179 | W15: 143 | X15: 1747 | Y15: 245 | Z15: 202 | AA15: 106 | AB15: 241 | AC15: 69 | AD15: 2675 | AE15: 304 | AF15: 1293 | AG15: 3953 | AH15: 68 | AI15: 56 | AJ15: 19 | AK15: 0 | AL15: 15 | AM15: 502 | AN15: 299 | AO15: 185 | AP15: 171 | AQ15: 458 | AR15: 60 | AS15: 38 | AT15: 44 | AU15: 291 | AV15: 29 | AW15: 10 | AX15: 27 | AY15: 7 | AZ15: 1 | BA15: 20 | BB15: 18 | BC15: 14 | BD15: 41 | BE15: 46 | BF15: 41 | BG15: 29
A16: 2019-04-01 | J16: F84063 | L16: 6033 | M16: 411 | N16: 4384 | O16: 4 | P16: 138 | Q16: 47 | R16: 25 | S16: 7 | T16: 116 | U16: 143 | V16: 266 | W16: 205 | X16: 2058 | Y16: 347 | Z16: 281 | AA16: 144 | AB16: 353 | AC16: 86 | AD16: 3684 | AE16: 703 | AF16: 2215 | AG16: 5174 | AH16: 84 | AI16: 69 | AJ16: 22 | AK16: 0 | AL16: 23 | AM16: 672 | AN16: 472 | AO16: 306 | AP16: 250 | AQ16: 619 | AR16: 123 | AS16: 86 | AT16: 105 | AU16: 435 | AV16: 70 | AW16: 16 | AX16: 64 | AY16: 31 | AZ16: 0 | BA16: 58 | BB16: 49 | BC16: 22 | BD16: 95 | BE16: 58 | BF16: 53 | BG16: 39
A17: 2019-04-01 | J17: F84069 | L17: 14524 | M17: 654 | N17: 10266 | O17: 3 | P17: 213 | Q17: 122 | R17: 85 | S17: 22 | T17: 166 | U17: 223 | V17: 591 | W17: 425 | X17: 4378 | Y17: 559 | Z17: 460 | AA17: 295 | AB17: 620 | AC17: 194 | AD17: 7263 | AE17: 1108 | AF17: 3575 | AG17: 11843 | AH17: 268 | AI17: 226 | AJ17: 98 | AK17: 3 | AL17: 51 | AM17: 1360 | AN17: 960 | AO17: 439 | AP17: 355 | AQ17: 1274 | AR17: 217 | AS17: 129 | AT17: 161 | AU17: 677 | AV17: 245 | AW17: 53 | AX17: 217 | AY17: 108 | AZ17: 3 | BA17: 164 | BB17: 172 | BC17: 192 | BD17: 175 | BE17: 118 | BF17: 110 | BG17: 89
A18: 2019-04-01 | J18: F84072 | L18: 10731 | M18: 241 | N18: 8619 | O18: 8 | P18: 67 | Q18: 29 | R18: 20 | S18: 5 | T18: 50 | U18: 72 | V18: 192 | W18: 131 | X18: 2392 | Y18: 212 | Z18: 164 | AA18: 92 | AB18: 227 | AC18: 64 | AD18: 5993 | AE18: 544 | AF18: 2284 | AG18: 9301 | AH18: 93 | AI18: 87 | AJ18: 31 | AK18: 1 | AL18: 19 | AM18: 490 | AN18: 279 | AO18: 144 | AP18: 140 | AQ18: 451 | AR18: 56 | AS18: 30 | AT18: 37 | AU18: 247 | AV18: 59 | AW18: 14 | AX18: 58 | AY18: 32 | AZ18: 2 | BA18: 34 | BB18: 25 | BC18: 34 | BD18: 45 | BE18: 48 | BF18: 42 | BG18: 26
A19: 2019-04-01 | J19: F84080 | L19: 4823 | M19: 322 | N19: 2898 | O19: 2 | P19: 93 | Q19: 28 | R19: 20 | S19: 6 | T19: 74 | U19: 102 | V19: 303 | W19: 233 | X19: 1439 | Y19: 293 | Z19: 240 | AA19: 99 | AB19: 267 | AC19: 68 | AD19: 2601 | AE19: 265 | AF19: 1313 | AG19: 3622 | AH19: 61 | AI19: 38 | AJ19: 18 | AK19: 1 | AL19: 2 | AM19: 687 | AN19: 467 | AO19: 204 | AP19: 189 | AQ19: 622 | AR19: 106 | AS19: 68 | AT19: 87 | AU19: 345 | AV19: 68 | AW19: 24 | AX19: 63 | AY19: 27 | AZ19: 5 | BA19: 43 | BB19: 41 | BC19: 30 | BD19: 92 | BE19: 35 | BF19: 33 | BG19: 25
A20: 2019-04-01 | J20: F84096 | L20: 13172 | M20: 628 | N20: 9134 | O20: 8 | P20: 277 | Q20: 145 | R20: 63 | S20: 29 | T20: 217 | U20: 298 | V20: 616 | W20: 429 | X20: 4388 | Y20: 565 | Z20: 455 | AA20: 233 | AB20: 579 | AC20: 161 | AD20: 7059 | AE20: 968 | AF20: 2942 | AG20: 10896 | AH20: 231 | AI20: 172 | AJ20: 81 | AK20: 5 | AL20: 38 | AM20: 1189 | AN20: 838 | AO20: 473 | AP20: 352 | AQ20: 1106 | AR20: 228 | AS20: 117 | AT20: 157 | AU20: 660 | AV20: 240 | AW20: 47 | AX20: 213 | AY20: 86 | AZ20: 9 | BA20: 174 | BB20: 193 | BC20: 173 | BD20: 179 | BE20: 128 | BF20: 113 | BG20: 92
A21: 2019-04-01 | J21: F84105 | L21: 11604 | M21: 590 | N21: 7988 | O21: 13 | P21: 158 | Q21: 55 | R21: 47 | S21: 7 | T21: 120 | U21: 167 | V21: 420 | W21: 265 | X21: 4502 | Y21: 550 | Z21: 399 | AA21: 216 | AB21: 562 | AC21: 148 | AD21: 6608 | AE21: 730 | AF21: 3267 | AG21: 9338 | AH21: 135 | AI21: 111 | AJ21: 43 | AK21: 3 | AL21: 22 | AM21: 1078 | AN21: 725 | AO21: 437 | AP21: 366 | AQ21: 1002 | AR21: 144 | AS21: 62 | AT21: 82 | AU21: 623 | AV21: 101 | AW21: 28 | AX21: 89 | AY21: 31 | AZ21: 3 | BA21: 80 | BB21: 58 | BC21: 54 | BD21: 105 | BE21: 102 | BF21: 97 | BG21: 70
A22: 2019-04-01 | J22: F84115 | L22: 8688 | M22: 284 | N22: 6398 | O22: 6 | P22: 100 | Q22: 28 | R22: 15 | S22: 7 | T22: 78 | U22: 110 | V22: 277 | W22: 176 | X22: 2647 | Y22: 244 | Z22: 201 | AA22: 76 | AB22: 187 | AC22: 70 | AD22: 4491 | AE22: 456 | AF22: 1557 | AG22: 7323 | AH22: 95 | AI22: 71 | AJ22: 28 | AK22: 1 | AL22: 26 | AM22: 614 | AN22: 413 | AO22: 188 | AP22: 162 | AQ22: 566 | AR22: 144 | AS22: 80 | AT22: 97 | AU22: 300 | AV22: 138 | AW22: 29 | AX22: 114 | AY22: 50 | AZ22: 7 | BA22: 94 | BB22: 101 | BC22: 103 | BD22: 103 | BE22: 71 | BF22: 66 | BG22: 52
A23: 2019-04-01 | J23: F84117 | L23: 10064 | M23: 438 | N23: 7331 | O23: 4 | P23: 120 | Q23: 54 | R23: 27 | S23: 11 | T23: 100 | U23: 125 | V23: 376 | W23: 262 | X23: 3001 | Y23: 377 | Z23: 330 | AA23: 131 | AB23: 338 | AC23: 87 | AD23: 5368 | AE23: 613 | AF23: 2203 | AG23: 8462 | AH23: 138 | AI23: 102 | AJ23: 40 | AK23: 1 | AL23: 36 | AM23: 866 | AN23: 626 | AO23: 303 | AP23: 272 | AQ23: 802 | AR23: 164 | AS23: 93 | AT23: 121 | AU23: 454 | AV23: 112 | AW23: 36 | AX23: 100 | AY23: 38 | AZ23: 3 | BA23: 81 | BB23: 70 | BC23: 75 | BD23: 136 | BE23: 121 | BF23: 112 | BG23: 103
A24: 2019-04-01 | J24: F84119 | L24: 12349 | M24: 541 | N24: 8961 | O24: 8 | P24: 179 | Q24: 109 | R24: 58 | S24: 18 | T24: 162 | U24: 185 | V24: 463 | W24: 388 | X24: 4856 | Y24: 498 | Z24: 385 | AA24: 242 | AB24: 607 | AC24: 152 | AD24: 7371 | AE24: 851 | AF24: 4079 | AG24: 10327 | AH24: 184 | AI24: 164 | AJ24: 79 | AK24: 12 | AL24: 41 | AM24: 1083 | AN24: 833 | AO24: 364 | AP24: 321 | AQ24: 967 | AR24: 171 | AS24: 113 | AT24: 154 | AU24: 561 | AV24: 145 | AW24: 23 | AX24: 135 | AY24: 59 | AZ24: 6 | BA24: 102 | BB24: 82 | BC24: 74 | BD24: 136 | BE24: 92 | BF24: 90 | BG24: 73
A25: 2019-04-01 | J25: F84601 | L25: 6849 | M25: 299 | N25: 4522 | O25: 5 | P25: 109 | Q25: 65 | R25: 53 | S25: 6 | T25: 91 | U25: 113 | V25: 232 | W25: 186 | X25: 3520 | Y25: 278 | Z25: 234 | AA25: 121 | AB25: 321 | AC25: 85 | AD25: 3134 | AE25: 430 | AF25: 1613 | AG25: 5525 | AH25: 113 | AI25: 93 | AJ25: 51 | AK25: 4 | AL25: 18 | AM25: 592 | AN25: 471 | AO25: 178 | AP25: 176 | AQ25: 533 | AR25: 92 | AS25: 64 | AT25: 78 | AU25: 311 | AV25: 73 | AW25: 17 | AX25: 70 | AY25: 37 | AZ25: 0 | BA25: 47 | BB25: 33 | BC25: 56 | BD25: 70 | BE25: 45 | BF25: 41 | BG25: 37
A26: 2019-04-01 | J26: F84619 | L26: 4450 | M26: 219 | N26: 2956 | O26: 0 | P26: 59 | Q26: 26 | R26: 19 | S26: 3 | T26: 41 | U26: 65 | V26: 183 | W26: 132 | X26: 1705 | Y26: 200 | Z26: 176 | AA26: 125 | AB26: 207 | AC26: 42 | AD26: 2452 | AE26: 400 | AF26: 1374 | AG26: 3513 | AH26: 56 | AI26: 43 | AJ26: 20 | AK26: 1 | AL26: 10 | AM26: 414 | AN26: 257 | AO26: 160 | AP26: 129 | AQ26: 371 | AR26: 67 | AS26: 40 | AT26: 49 | AU26: 235 | AV26: 33 | AW26: 13 | AX26: 31 | AY26: 7 | AZ26: 0 | BA26: 26 | BB26: 24 | BC26: 16 | BD26: 50 | BE26: 58 | BF26: 52 | BG26: 44
A27: 2019-04-01 | J27: F84620 | L27: 6358 | M27: 381 | N27: 4152 | O27: 4 | P27: 136 | Q27: 45 | R27: 37 | S27: 8 | T27: 108 | U27: 142 | V27: 291 | W27: 210 | X27: 2158 | Y27: 341 | Z27: 293 | AA27: 156 | AB27: 367 | AC27: 100 | AD27: 3363 | AE27: 491 | AF27: 1749 | AG27: 5127 | AH27: 109 | AI27: 90 | AJ27: 39 | AK27: 3 | AL27: 21 | AM27: 747 | AN27: 538 | AO27: 224 | AP27: 242 | AQ27: 690 | AR27: 128 | AS27: 68 | AT27: 85 | AU27: 395 | AV27: 77 | AW27: 35 | AX27: 72 | AY27: 29 | AZ27: 1 | BA27: 49 | BB27: 56 | BC27: 70 | BD27: 94 | BE27: 81 | BF27: 68 | BG27: 52
A28: 2019-04-01 | J28: F84621 | L28: 3732 | M28: 296 | N28: 2596 | O28: 4 | P28: 83 | Q28: 53 | R28: 39 | S28: 8 | T28: 64 | U28: 89 | V28: 207 | W28: 173 | X28: 1759 | Y28: 255 | Z28: 206 | AA28: 100 | AB28: 233 | AC28: 62 | AD28: 2101 | AE28: 301 | AF28: 1221 | AG28: 3109 | AH28: 86 | AI28: 68 | AJ28: 25 | AK28: 1 | AL28: 16 | AM28: 588 | AN28: 429 | AO28: 204 | AP28: 168 | AQ28: 555 | AR28: 70 | AS28: 47 | AT28: 55 | AU28: 301 | AV28: 51 | AW28: 17 | AX28: 45 | AY28: 20 | AZ28: 2 | BA28: 38 | BB28: 31 | BC28: 33 | BD28: 58 | BE28: 57 | BF28: 54 | BG28: 40
A29: 2019-04-01 | J29: F84624 | L29: 2717 | M29: 147 | N29: 2059 | O29: 1 | P29: 54 | Q29: 30 | R29: 15 | S29: 4 | T29: 43 | U29: 56 | V29: 79 | W29: 57 | X29: 994 | Y29: 131 | Z29: 105 | AA29: 42 | AB29: 89 | AC29: 24 | AD29: 1450 | AE29: 115 | AF29: 630 | AG29: 2352 | AH29: 48 | AI29: 31 | AJ29: 6 | AK29: 0 | AL29: 11 | AM29: 294 | AN29: 204 | AO29: 103 | AP29: 78 | AQ29: 261 | AR29: 70 | AS29: 39 | AT29: 48 | AU29: 156 | AV29: 46 | AW29: 25 | AX29: 41 | AY29: 11 | AZ29: 1 | BA29: 31 | BB29: 33 | BC29: 23 | BD29: 42 | BE29: 45 | BF29: 38 | BG29: 34
A30: 2019-04-01 | J30: F84632 | L30: 1065 | M30: 54 | N30: 983 | O30: 3 | P30: 14 | Q30: 39 | R30: 19 | S30: 2 | T30: 11 | U30: 15 | V30: 49 | W30: 36 | X30: 608 | Y30: 44 | Z30: 42 | AA30: 29 | AB30: 88 | AC30: 12 | AD30: 732 | AE30: 362 | AF30: 610 | AG30: 1065 | AH30: 89 | AI30: 83 | AJ30: 62 | AK30: 5 | AL30: 9 | AM30: 121 | AN30: 58 | AO30: 37 | AP30: 32 | AQ30: 103 | AR30: 23 | AS30: 14 | AT30: 18 | AU30: 59 | AV30: 38 | AW30: 14 | AX30: 36 | AY30: 23 | AZ30: 1 | BA30: 26 | BB30: 30 | BC30: 22 | BD30: 14 | BE30: 10 | BF30: 10 | BG30: 5
A31: 2019-04-01 | J31: F84635 | L31: 8849 | M31: 315 | N31: 6214 | O31: 5 | P31: 83 | Q31: 35 | R31: 21 | S31: 4 | T31: 55 | U31: 87 | V31: 276 | W31: 174 | X31: 2202 | Y31: 263 | Z31: 214 | AA31: 137 | AB31: 352 | AC31: 81 | AD31: 5214 | AE31: 747 | AF31: 2373 | AG31: 7512 | AH31: 122 | AI31: 77 | AJ31: 37 | AK31: 1 | AL31: 12 | AM31: 690 | AN31: 421 | AO31: 227 | AP31: 174 | AQ31: 631 | AR31: 100 | AS31: 58 | AT31: 67 | AU31: 330 | AV31: 98 | AW31: 19 | AX31: 78 | AY31: 31 | AZ31: 2 | BA31: 76 | BB31: 77 | BC31: 81 | BD31: 77 | BE31: 66 | BF31: 60 | BG31: 44
A32: 2019-04-01 | J32: F84636 | L32: 4929 | M32: 182 | N32: 3771 | O32: 5 | P32: 42 | Q32: 29 | R32: 17 | S32: 6 | T32: 33 | U32: 48 | V32: 140 | W32: 99 | X32: 1553 | Y32: 160 | Z32: 132 | AA32: 71 | AB32: 161 | AC32: 39 | AD32: 2880 | AE32: 402 | AF32: 1503 | AG32: 4328 | AH32: 68 | AI32: 53 | AJ32: 18 | AK32: 1 | AL32: 13 | AM32: 376 | AN32: 258 | AO32: 145 | AP32: 93 | AQ32: 337 | AR32: 43 | AS32: 23 | AT32: 28 | AU32: 197 | AV32: 22 | AW32: 8 | AX32: 20 | AY32: 4 | AZ32: 0 | BA32: 12 | BB32: 13 | BC32: 12 | BD32: 32 | BE32: 37 | BF32: 33 | BG32: 28
A33: 2019-04-01 | J33: F84640 | L33: 9272 | M33: 245 | N33: 7213 | O33: 35 | P33: 238 | Q33: 24 | R33: 9 | S33: 6 | T33: 204 | U33: 264 | V33: 412 | W33: 271 | X33: 3050 | Y33: 219 | Z33: 174 | AA33: 93 | AB33: 239 | AC33: 41 | AD33: 6143 | AE33: 325 | AF33: 2015 | AG33: 8517 | AH33: 85 | AI33: 64 | AJ33: 16 | AK33: 1 | AL33: 25 | AM33: 951 | AN33: 729 | AO33: 174 | AP33: 170 | AQ33: 882 | AR33: 181 | AS33: 92 | AT33: 117 | AU33: 255 | AV33: 65 | AW33: 9 | AX33: 64 | AY33: 19 | AZ33: 2 | BA33: 51 | BB33: 51 | BC33: 29 | BD33: 147 | BE33: 118 | BF33: 111 | BG33: 96
A34: 2019-04-01 | J34: F84668 | L34: 6589 | M34: 273 | N34: 3227 | O34: 2 | P34: 87 | Q34: 32 | R34: 29 | S34: 4 | T34: 65 | U34: 97 | V34: 217 | W34: 165 | X34: 1782 | Y34: 253 | Z34: 204 | AA34: 164 | AB34: 370 | AC34: 82 | AD34: 3139 | AE34: 278 | AF34: 1781 | AG34: 4360 | AH34: 65 | AI34: 58 | AJ34: 19 | AK34: 11 | AL34: 7 | AM34: 489 | AN34: 340 | AO34: 219 | AP34: 176 | AQ34: 454 | AR34: 56 | AS34: 36 | AT34: 41 | AU34: 297 | AV34: 27 | AW34: 7 | AX34: 24 | AY34: 9 | AZ34: 5 | BA34: 23 | BB34: 24 | BC34: 23 | BD34: 33 | BE34: 38 | BF34: 37 | BG34: 27
A35: 2019-04-01 | J35: F84685 | L35: 2965 | M35: 133 | N35: 1917 | O35: 1 | P35: 39 | Q35: 12 | R35: 10 | S35: 2 | T35: 36 | U35: 43 | V35: 138 | W35: 94 | X35: 895 | Y35: 129 | Z35: 90 | AA35: 52 | AB35: 106 | AC35: 18 | AD35: 1499 | AE35: 142 | AF35: 678 | AG35: 2270 | AH35: 38 | AI35: 24 | AJ35: 7 | AK35: 0 | AL35: 5 | AM35: 261 | AN35: 193 | AO35: 86 | AP35: 82 | AQ35: 238 | AR35: 39 | AS35: 22 | AT35: 32 | AU35: 138 | AV35: 26 | AW35: 8 | AX35: 21 | AY35: 8 | AZ35: 1 | BA35: 19 | BB35: 15 | BC35: 17 | BD35: 34 | BE35: 20 | BF35: 16 | BG35: 15
A36: 2019-04-01 | J36: F84686 | L36: 7820 | M36: 180 | N36: 2862 | O36: 0 | P36: 53 | Q36: 21 | R36: 19 | S36: 4 | T36: 46 | U36: 56 | V36: 167 | W36: 140 | X36: 1057 | Y36: 159 | Z36: 136 | AA36: 104 | AB36: 246 | AC36: 50 | AD36: 2709 | AE36: 128 | AF36: 1054 | AG36: 4258 | AH36: 50 | AI36: 39 | AJ36: 5 | AK36: 0 | AL36: 7 | AM36: 367 | AN36: 295 | AO36: 112 | AP36: 99 | AQ36: 355 | AR36: 74 | AS36: 54 | AT36: 62 | AU36: 183 | AV36: 8 | AW36: 1 | AX36: 7 | AY36: 4 | AZ36: 0 | BA36: 5 | BB36: 4 | BC36: 7 | BD36: 46 | BE36: 30 | BF36: 27 | BG36: 26
A37: 2019-04-01 | J37: F84692 | L37: 7157 | M37: 213 | N37: 4644 | O37: 3 | P37: 60 | Q37: 37 | R37: 8 | S37: 3 | T37: 47 | U37: 64 | V37: 224 | W37: 119 | X37: 1957 | Y37: 189 | Z37: 140 | AA37: 105 | AB37: 227 | AC37: 43 | AD37: 3730 | AE37: 447 | AF37: 1640 | AG37: 6215 | AH37: 69 | AI37: 50 | AJ37: 26 | AK37: 3 | AL37: 9 | AM37: 447 | AN37: 310 | AO37: 159 | AP37: 125 | AQ37: 393 | AR37: 76 | AS37: 32 | AT37: 39 | AU37: 230 | AV37: 78 | AW37: 18 | AX37: 69 | AY37: 31 | AZ37: 2 | BA37: 61 | BB37: 66 | BC37: 49 | BD37: 61 | BE37: 45 | BF37: 40 | BG37: 33
A38: 2019-04-01 | J38: F84694 | L38: 4578 | M38: 210 | N38: 3501 | O38: 1 | P38: 58 | Q38: 29 | R38: 24 | S38: 2 | T38: 45 | U38: 59 | V38: 172 | W38: 139 | X38: 1885 | Y38: 176 | Z38: 165 | AA38: 76 | AB38: 217 | AC38: 44 | AD38: 2849 | AE38: 476 | AF38: 1931 | AG38: 4042 | AH38: 50 | AI38: 41 | AJ38: 12 | AK38: 0 | AL38: 7 | AM38: 367 | AN38: 213 | AO38: 163 | AP38: 128 | AQ38: 328 | AR38: 58 | AS38: 43 | AT38: 45 | AU38: 221 | AV38: 32 | AW38: 7 | AX38: 28 | AY38: 12 | AZ38: 1 | BA38: 22 | BB38: 17 | BC38: 24 | BD38: 33 | BE38: 22 | BF38: 19 | BG38: 16
A39: 2019-04-01 | J39: F84711 | L39: 1928 | M39: 162 | N39: 1315 | O39: 1 | P39: 38 | Q39: 17 | R39: 14 | S39: 6 | T39: 29 | U39: 40 | V39: 116 | W39: 87 | X39: 757 | Y39: 141 | Z39: 121 | AA39: 56 | AB39: 116 | AC39: 37 | AD39: 1179 | AE39: 152 | AF39: 621 | AG39: 1611 | AH39: 26 | AI39: 23 | AJ39: 8 | AK39: 2 | AL39: 4 | AM39: 282 | AN39: 171 | AO39: 151 | AP39: 91 | AQ39: 269 | AR39: 31 | AS39: 13 | AT39: 18 | AU39: 166 | AV39: 27 | AW39: 8 | AX39: 26 | AY39: 13 | AZ39: 5 | BA39: 25 | BB39: 13 | BC39: 9 | BD39: 22 | BE39: 22 | BF39: 19 | BG39: 13
A40: 2019-04-01 | J40: F84716 | L40: 5608 | M40: 195 | N40: 3434 | O40: 2 | P40: 94 | Q40: 49 | R40: 22 | S40: 10 | T40: 74 | U40: 101 | V40: 191 | W40: 140 | X40: 1550 | Y40: 182 | Z40: 144 | AA40: 85 | AB40: 222 | AC40: 57 | AD40: 3022 | AE40: 276 | AF40: 1525 | AG40: 4199 | AH40: 91 | AI40: 77 | AJ40: 24 | AK40: 3 | AL40: 11 | AM40: 386 | AN40: 285 | AO40: 116 | AP40: 117 | AQ40: 364 | AR40: 70 | AS40: 41 | AT40: 50 | AU40: 202 | AV40: 43 | AW40: 10 | AX40: 42 | AY40: 14 | AZ40: 1 | BA40: 32 | BB40: 35 | BC40: 11 | BD40: 55 | BE40: 39 | BF40: 37 | BG40: 31
A41: 2019-04-01 | J41: F84719 | L41: 5170 | M41: 295 | N41: 3612 | O41: 9 | P41: 98 | Q41: 40 | R41: 31 | S41: 12 | T41: 82 | U41: 102 | V41: 222 | W41: 161 | X41: 1605 | Y41: 277 | Z41: 222 | AA41: 101 | AB41: 256 | AC41: 74 | AD41: 3348 | AE41: 352 | AF41: 1736 | AG41: 4388 | AH41: 81 | AI41: 73 | AJ41: 20 | AK41: 4 | AL41: 10 | AM41: 617 | AN41: 452 | AO41: 239 | AP41: 182 | AQ41: 563 | AR41: 138 | AS41: 86 | AT41: 103 | AU41: 313 | AV41: 83 | AW41: 25 | AX41: 77 | AY41: 25 | AZ41: 3 | BA41: 76 | BB41: 59 | BC41: 55 | BD41: 89 | BE41: 84 | BF41: 81 | BG41: 71
A42: 2019-04-01 | J42: F84720 | L42: 5475 | M42: 335 | N42: 3247 | O42: 5 | P42: 131 | Q42: 48 | R42: 36 | S42: 8 | T42: 106 | U42: 143 | V42: 313 | W42: 224 | X42: 2053 | Y42: 292 | Z42: 257 | AA42: 136 | AB42: 317 | AC42: 85 | AD42: 2826 | AE42: 390 | AF42: 1582 | AG42: 4161 | AH42: 88 | AI42: 66 | AJ42: 29 | AK42: 1 | AL42: 13 | AM42: 800 | AN42: 555 | AO42: 210 | AP42: 180 | AQ42: 743 | AR42: 152 | AS42: 97 | AT42: 125 | AU42: 370 | AV42: 81 | AW42: 15 | AX42: 75 | AY42: 21 | AZ42: 2 | BA42: 56 | BB42: 44 | BC42: 74 | BD42: 117 | BE42: 81 | BF42: 77 | BG42: 62
A43: 2019-04-01 | J43: Y00403 | L43: 6364 | M43: 188 | N43: 4712 | O43: 2 | P43: 46 | Q43: 45 | R43: 22 | S43: 8 | T43: 36 | U43: 50 | V43: 105 | W43: 69 | X43: 1521 | Y43: 176 | Z43: 149 | AA43: 95 | AB43: 193 | AC43: 63 | AD43: 3450 | AE43: 546 | AF43: 1684 | AG43: 5362 | AH43: 81 | AI43: 64 | AJ43: 27 | AK43: 2 | AL43: 13 | AM43: 400 | AN43: 276 | AO43: 143 | AP43: 116 | AQ43: 368 | AR43: 48 | AS43: 26 | AT43: 29 | AU43: 194 | AV43: 36 | AW43: 11 | AX43: 35 | AY43: 16 | AZ43: 2 | BA43: 33 | BB43: 24 | BC43: 24 | BD43: 38 | BE43: 28 | BF43: 28 | BG43: 22
A44: 2019-04-01 | J44: Y03049 | L44: 14372 | M44: 608 | N44: 8826 | O44: 7 | P44: 188 | Q44: 96 | R44: 56 | S44: 20 | T44: 132 | U44: 195 | V44: 492 | W44: 362 | X44: 4608 | Y44: 549 | Z44: 462 | AA44: 251 | AB44: 612 | AC44: 154 | AD44: 6897 | AE44: 811 | AF44: 3272 | AG44: 10559 | AH44: 190 | AI44: 160 | AJ44: 70 | AK44: 8 | AL44: 27 | AM44: 1122 | AN44: 766 | AO44: 405 | AP44: 347 | AQ44: 1076 | AR44: 179 | AS44: 103 | AT44: 123 | AU44: 620 | AV44: 96 | AW44: 22 | AX44: 87 | AY44: 44 | AZ44: 9 | BA44: 70 | BB44: 60 | BC44: 79 | BD44: 145 | BE44: 76 | BF44: 74 | BG44: 55
A45: 2019-04-01 | J45: Total | L45: 323614 | M45: 14557 | N45: 219322 | O45: 230 | P45: 4890 | Q45: 2268 | R45: 1369 | S45: 368 | T45: 3818 | U45: 5195 | V45: 12416 | W45: 8981 | X45: 109973 | Y45: 13007 | Z45: 10636 | AA45: 5908 | AB45: 13865 | AC45: 3597 | AD45: 173536 | AE45: 21782 | AF45: 85169 | AG45: 261008 | AH45: 4670 | AI45: 3699 | AJ45: 1586 | AK45: 115 | AL45: 797 | AM45: 29702 | AN45: 20621 | AO45: 10086 | AP45: 8562 | AQ45: 27339 | AR45: 4927 | AS45: 2902 | AT45: 3614 | AU45: 15290 | AV45: 3495 | AW45: 870 | AX45: 3153 | AY45: 1326 | AZ45: 116 | BA45: 2519 | BB45: 2338 | BC45: 2329 | BD45: 3763 | BE45: 2851 | BF45: 2644 | BG45: 2099

Sheet Data 17-18 (hidden)
A1: 2019-03-01 | C1: 01 LDP | E1: Last Run: | G1: Population Count | H1: 1465547 | K1: Search | L1: 01. Listsize | M1: LDP.04.15.01 Diabetes HbA1C <=7.5% OR <=59mmol (15m) *REMOVE* | N1: LDP.04.11: Diabetes and BP in last 12 months | O1: LDP.05: CVD 25-84yrs (excl CVD) | P1: LDP.08.02 CKD Diagnosed (Last 6m) | Q1: LDP.08.03 CKD and BP Recorded (last 12 m) | R1: CSPMH. 01.03 QRisk Recorded (12m) | S1: CSPMH. 01.03.01 BP recorded on same day as QRisk (12m) | T1: CSPMH. 01.03.02 Qrisk>=20 (12m) | U1: LDP.08.01 CKD and BP less than 140/90 (last 12 m) | V1: LDP.08 CKD Register | W1: LDP.05.01: CVD QRISK greater than or equal 20% | X1: LDP.05.01.01: CVD Proxy Annual Review (last 12m) | Y1: LDP.05.02: Cardiovascular Risk Score Done (5y) | Z1: LDP.04.09: Diabetes BP less than 145/85 (last 12m) | AA1: LDP.04.08: Diabetes Chol less than 5mmol (last 12m) | AB1: LDP.01.01.01: Obesity BMI more than or equal to 35 less than 40 (last 12m) | AC1: LDP.01.01.02: Obesity BMI between 30-35 (last 12m) | AD1: LDP.01.01.03: Obesity BMI equal to or over 40 (last 12m) | AE1: LDP.01.02: Smoking Status (last 12m) or Never Smoked (25yrs+) | AF1: LDP.01.03: Current Smoker (last 12m) | AG1: LDP.01.01: Obesity BMI recorded (last 12m) | AH1: LDP.01: Aged 16yrs+ | AI1: CSPMH.01 SMI Register | AJ1: CSPMH.01.02 Smoking Status Recorded (12m) | AK1: CSPMH.01.02.01 Current Smoker (15m) | AL1: CSPMH 01.02.01.01 Ref to clinic 15m | AM1: CSPMH.01.02.02 Ex-smoker Recorded (latest 15m) | AN1: LDP.02: Hypertension Register | AO1: LDP.02.01: Hypertension and BP < 140/90 (age under 80) < 150/90 (Age 80+) | AP1: LDP.04.03: Diabetes Digital retinal screening or Seen by retinal screener *REMOV | AQ1: LDP.04.07: Diabetes Influenza Vaccinations (last 12m) | AR1: LDP.04.01: Diabetes HbA1c <7.5% OR <59mmol (last 12m) | AS1: LDP.02.02: Hypertension BP recorded (last 12m) | AT1: LDP.03: CHD Register | AU1: LDP.03.01: CHD Chol less than 5mmol (last 12m) | AV1: LDP.03.04: CHD Cholesterol recorded (last 12m) | AW1: LDP.04: Diabetes Register | AX1: LDP.09 COPD Register | AY1: LDP.09.01 Patients with severe or very severe COPD (FEV1<50) | AZ1: LDP.09.02 Patients with smoking status recorded (last 12m) or never smoked | BA1: LDP.09.03 COPD patients recorded as a Smoker | BB1: LDP.09.04 COPD Patients who are current smokers & referred to the Stop Smoking C | BC1: LDP.09.05 No of COPD with flu vaccination (12m) | BD1: LDP.09.06 No of COPD with pneumococcal vaccination ever | BE1: LDP.09.07 No of COPD patients referred to pulmonary rehab ever | BF1: LDP.03.02: CHD BP less than or equal 150/90 (last 9m)
A2: 2019-03-01 | E2: 2019-04-02T10:56:00 | G2: Males | H2: 711969 | J2: Organisation Code
A3: 2019-03-01 | E3: Relative Date: | G3: Females | H3: 753578 | J3: F84003 | L3: 12716 | M3: 1 | N3: 693 | O3: 8617 | P3: 12 | Q3: 205 | R3: 125 | S3: 38 | T3: 16 | U3: 150 | V3: 215 | W3: 586 | X3: 391 | Y3: 4205 | Z3: 636 | AA3: 493 | AB3: 274 | AC3: 567 | AD3: 139 | AE3: 6594 | AF3: 1015 | AG3: 2979 | AH3: 10265 | AI3: 237 | AJ3: 174 | AK3: 86 | AL3: 2 | AM3: 35 | AN3: 1385 | AO3: 1005 | AP3: 473 | AQ3: 441 | AR3: 388 | AS3: 1317 | AT3: 274 | AU3: 156 | AV3: 192 | AW3: 711 | AX3: 171 | AY3: 39 | AZ3: 155 | BA3: 70 | BB3: 3 | BC3: 119 | BD3: 106 | BE3: 136 | BF3: 227
A4: 2019-03-01 | E4: 2019-04-01 | J4: F84008 | L4: 12659 | M4: 3 | N4: 568 | O4: 9008 | P4: 17 | Q4: 221 | R4: 123 | S4: 54 | T4: 17 | U4: 163 | V4: 229 | W4: 585 | X4: 396 | Y4: 5266 | Z4: 491 | AA4: 428 | AB4: 186 | AC4: 434 | AD4: 115 | AE4: 6227 | AF4: 702 | AG4: 3182 | AH4: 10408 | AI4: 245 | AJ4: 184 | AK4: 77 | AL4: 4 | AM4: 51 | AN4: 1286 | AO4: 863 | AP4: 355 | AQ4: 374 | AR4: 362 | AS4: 1191 | AT4: 224 | AU4: 138 | AV4: 162 | AW4: 584 | AX4: 160 | AY4: 47 | AZ4: 149 | BA4: 74 | BB4: 1 | BC4: 118 | BD4: 112 | BE4: 115 | BF4: 152
A5: 2019-03-01 | J5: F84013 | L5: 15006 | M5: 0 | N5: 496 | O5: 6496 | P5: 17 | Q5: 178 | R5: 63 | S5: 40 | T5: 10 | U5: 145 | V5: 185 | W5: 477 | X5: 366 | Y5: 2726 | Z5: 459 | AA5: 401 | AB5: 215 | AC5: 469 | AD5: 102 | AE5: 5545 | AF5: 356 | AG5: 2280 | AH5: 9000 | AI5: 162 | AJ5: 110 | AK5: 34 | AL5: 4 | AM5: 13 | AN5: 990 | AO5: 748 | AP5: 377 | AQ5: 295 | AR5: 296 | AS5: 908 | AT5: 181 | AU5: 118 | AV5: 137 | AW5: 520 | AX5: 88 | AY5: 22 | AZ5: 80 | BA5: 32 | BB5: 3 | BC5: 59 | BD5: 65 | BE5: 58 | BF5: 145
A6: 2019-03-01 | J6: F84015 | L6: 5403 | M6: 0 | N6: 413 | O6: 3387 | P6: 5 | Q6: 164 | R6: 52 | S6: 35 | T6: 10 | U6: 134 | V6: 171 | W6: 265 | X6: 238 | Y6: 2231 | Z6: 393 | AA6: 329 | AB6: 174 | AC6: 428 | AD6: 144 | AE6: 3116 | AF6: 479 | AG6: 1927 | AH6: 4269 | AI6: 87 | AJ6: 77 | AK6: 40 | AL6: 4 | AM6: 15 | AN6: 832 | AO6: 637 | AP6: 48 | AQ6: 303 | AR6: 259 | AS6: 798 | AT6: 106 | AU6: 79 | AV6: 98 | AW6: 420 | AX6: 87 | AY6: 14 | AZ6: 84 | BA6: 30 | BB6: 9 | BC6: 69 | BD6: 52 | BE6: 43 | BF6: 94
A7: 2019-03-01 | J7: F84018 | L7: 11693 | M7: 0 | N7: 606 | O7: 7954 | P7: 4 | Q7: 188 | R7: 101 | S7: 76 | T7: 17 | U7: 143 | V7: 190 | W7: 469 | X7: 394 | Y7: 5038 | Z7: 563 | AA7: 432 | AB7: 251 | AC7: 608 | AD7: 187 | AE7: 6319 | AF7: 911 | AG7: 3678 | AH7: 9368 | AI7: 200 | AJ7: 180 | AK7: 77 | AL7: 14 | AM7: 33 | AN7: 1100 | AO7: 823 | AP7: 416 | AQ7: 390 | AR7: 350 | AS7: 1051 | AT7: 188 | AU7: 123 | AV7: 174 | AW7: 619 | AX7: 119 | AY7: 34 | AZ7: 115 | BA7: 47 | BB7: 3 | BC7: 89 | BD7: 73 | BE7: 83 | BF7: 151
A8: 2019-03-01 | J8: F84021 | L8: 10392 | M8: 0 | N8: 452 | O8: 7692 | P8: 8 | Q8: 183 | R8: 70 | S8: 46 | T8: 10 | U8: 143 | V8: 192 | W8: 387 | X8: 312 | Y8: 3551 | Z8: 409 | AA8: 344 | AB8: 170 | AC8: 378 | AD8: 96 | AE8: 5717 | AF8: 757 | AG8: 2519 | AH8: 8705 | AI8: 154 | AJ8: 113 | AK8: 53 | AL8: 4 | AM8: 24 | AN8: 877 | AO8: 614 | AP8: 377 | AQ8: 315 | AR8: 284 | AS8: 826 | AT8: 146 | AU8: 88 | AV8: 108 | AW8: 467 | AX8: 110 | AY8: 32 | AZ8: 101 | BA8: 47 | BB8: 1 | BC8: 80 | BD8: 78 | BE8: 84 | BF8: 114
A9: 2019-03-01 | J9: F84033 | L9: 12046 | M9: 4 | N9: 599 | O9: 8614 | P9: 0 | Q9: 209 | R9: 79 | S9: 39 | T9: 9 | U9: 174 | V9: 219 | W9: 467 | X9: 366 | Y9: 4727 | Z9: 578 | AA9: 454 | AB9: 250 | AC9: 668 | AD9: 170 | AE9: 6711 | AF9: 1211 | AG9: 3599 | AH9: 10030 | AI9: 174 | AJ9: 152 | AK9: 76 | AL9: 3 | AM9: 36 | AN9: 1228 | AO9: 962 | AP9: 490 | AQ9: 445 | AR9: 354 | AS9: 1165 | AT9: 203 | AU9: 135 | AV9: 177 | AW9: 612 | AX9: 128 | AY9: 37 | AZ9: 125 | BA9: 65 | BB9: 1 | BC9: 99 | BD9: 91 | BE9: 94 | BF9: 162
A10: 2019-03-01 | J10: F84035 | L10: 7673 | M10: 2 | N10: 248 | O10: 6113 | P10: 3 | Q10: 64 | R10: 20 | S10: 16 | T10: 5 | U10: 55 | V10: 64 | W10: 185 | X10: 133 | Y10: 1792 | Z10: 235 | AA10: 198 | AB10: 103 | AC10: 227 | AD10: 78 | AE10: 5264 | AF10: 589 | AG10: 2819 | AH10: 6877 | AI10: 48 | AJ10: 40 | AK10: 8 | AL10: 1 | AM10: 8 | AN10: 473 | AO10: 321 | AP10: 202 | AQ10: 204 | AR10: 151 | AS10: 455 | AT10: 68 | AU10: 35 | AV10: 45 | AW10: 257 | AX10: 67 | AY10: 12 | AZ10: 66 | BA10: 31 | BB10: 3 | BC10: 57 | BD10: 59 | BE10: 28 | BF10: 51
A11: 2019-03-01 | J11: F84036 | L11: 7163 | M11: 2 | N11: 324 | O11: 5113 | P11: 1 | Q11: 103 | R11: 124 | S11: 59 | T11: 20 | U11: 76 | V11: 109 | W11: 313 | X11: 238 | Y11: 4819 | Z11: 298 | AA11: 253 | AB11: 138 | AC11: 368 | AD11: 84 | AE11: 4058 | AF11: 527 | AG11: 2176 | AH11: 6029 | AI11: 161 | AJ11: 138 | AK11: 72 | AL11: 2 | AM11: 33 | AN11: 728 | AO11: 485 | AP11: 235 | AQ11: 186 | AR11: 195 | AS11: 650 | AT11: 127 | AU11: 83 | AV11: 98 | AW11: 353 | AX11: 93 | AY11: 18 | AZ11: 87 | BA11: 32 | BB11: 2 | BC11: 58 | BD11: 62 | BE11: 72 | BF11: 101
A12: 2019-03-01 | J12: F84038 | L12: 4033 | M12: 0 | N12: 243 | O12: 2921 | P12: 0 | Q12: 62 | R12: 52 | S12: 42 | T12: 5 | U12: 57 | V12: 66 | W12: 188 | X12: 145 | Y12: 2081 | Z12: 234 | AA12: 165 | AB12: 114 | AC12: 282 | AD12: 68 | AE12: 2543 | AF12: 481 | AG12: 1717 | AH12: 3460 | AI12: 94 | AJ12: 86 | AK12: 51 | AL12: 3 | AM12: 12 | AN12: 490 | AO12: 393 | AP12: 178 | AQ12: 176 | AR12: 138 | AS12: 444 | AT12: 90 | AU12: 43 | AV12: 59 | AW12: 255 | AX12: 69 | AY12: 8 | AZ12: 66 | BA12: 29 | BB12: 5 | BC12: 47 | BD12: 39 | BE12: 32 | BF12: 50
A13: 2019-03-01 | J13: F84041 | L13: 7770 | M13: 0 | N13: 462 | O13: 5836 | P13: 6 | Q13: 176 | R13: 50 | S13: 37 | T13: 5 | U13: 132 | V13: 184 | W13: 383 | X13: 310 | Y13: 3545 | Z13: 439 | AA13: 372 | AB13: 224 | AC13: 447 | AD13: 114 | AE13: 4656 | AF13: 552 | AG13: 2592 | AH13: 6724 | AI13: 121 | AJ13: 87 | AK13: 36 | AL13: 4 | AM13: 21 | AN13: 908 | AO13: 629 | AP13: 336 | AQ13: 327 | AR13: 279 | AS13: 840 | AT13: 139 | AU13: 91 | AV13: 104 | AW13: 480 | AX13: 80 | AY13: 23 | AZ13: 76 | BA13: 25 | BB13: 2 | BC13: 57 | BD13: 41 | BE13: 59 | BF13: 119
A14: 2019-03-01 | J14: F84043 | L14: 3872 | M14: 0 | N14: 301 | O14: 2329 | P14: 2 | Q14: 80 | R14: 46 | S14: 12 | T14: 7 | U14: 57 | V14: 82 | W14: 210 | X14: 153 | Y14: 1281 | Z14: 282 | AA14: 222 | AB14: 94 | AC14: 194 | AD14: 59 | AE14: 1933 | AF14: 300 | AG14: 844 | AH14: 3032 | AI14: 91 | AJ14: 68 | AK14: 29 | AL14: 0 | AM14: 17 | AN14: 590 | AO14: 434 | AP14: 160 | AQ14: 187 | AR14: 181 | AS14: 577 | AT14: 99 | AU14: 58 | AV14: 73 | AW14: 306 | AX14: 65 | AY14: 16 | AZ14: 60 | BA14: 34 | BB14: 2 | BC14: 43 | BD14: 42 | BE14: 48 | BF14: 76
A15: 2019-03-01 | J15: F84060 | L15: 4699 | M15: 0 | N15: 284 | O15: 3311 | P15: 2 | Q15: 93 | R15: 35 | S15: 22 | T15: 5 | U15: 70 | V15: 97 | W15: 178 | X15: 144 | Y15: 1727 | Z15: 261 | AA15: 200 | AB15: 105 | AC15: 245 | AD15: 68 | AE15: 2663 | AF15: 313 | AG15: 1290 | AH15: 3910 | AI15: 65 | AJ15: 54 | AK15: 23 | AL15: 0 | AM15: 11 | AN15: 497 | AO15: 312 | AP15: 185 | AQ15: 185 | AR15: 170 | AS15: 468 | AT15: 58 | AU15: 34 | AV15: 41 | AW15: 287 | AX15: 23 | AY15: 9 | AZ15: 23 | BA15: 7 | BB15: 0 | BC15: 16 | BD15: 15 | BE15: 13 | BF15: 45
A16: 2019-03-01 | J16: F84063 | L16: 6029 | M16: 1 | N16: 423 | O16: 4376 | P16: 5 | Q16: 138 | R16: 52 | S16: 27 | T16: 8 | U16: 122 | V16: 143 | W16: 267 | X16: 228 | Y16: 2051 | Z16: 389 | AA16: 307 | AB16: 149 | AC16: 358 | AD16: 88 | AE16: 3695 | AF16: 705 | AG16: 2270 | AH16: 5166 | AI16: 86 | AJ16: 71 | AK16: 24 | AL16: 0 | AM16: 21 | AN16: 670 | AO16: 511 | AP16: 293 | AQ16: 306 | AR16: 266 | AS16: 628 | AT16: 122 | AU16: 89 | AV16: 111 | AW16: 433 | AX16: 70 | AY16: 17 | AZ16: 69 | BA16: 31 | BB16: 0 | BC16: 58 | BD16: 49 | BE16: 22 | BF16: 84
A17: 2019-03-01 | J17: F84069 | L17: 14475 | M17: 2 | N17: 664 | O17: 10226 | P17: 3 | Q17: 222 | R17: 129 | S17: 86 | T17: 23 | U17: 173 | V17: 229 | W17: 586 | X17: 434 | Y17: 4355 | Z17: 588 | AA17: 497 | AB17: 289 | AC17: 612 | AD17: 195 | AE17: 7199 | AF17: 1098 | AG17: 3525 | AH17: 11803 | AI17: 278 | AJ17: 233 | AK17: 97 | AL17: 2 | AM17: 54 | AN17: 1353 | AO17: 993 | AP17: 473 | AQ17: 445 | AR17: 396 | AS17: 1277 | AT17: 219 | AU17: 134 | AV17: 170 | AW17: 684 | AX17: 242 | AY17: 54 | AZ17: 223 | BA17: 108 | BB17: 4 | BC17: 162 | BD17: 174 | BE17: 195 | BF17: 181
A18: 2019-03-01 | J18: F84072 | L18: 10740 | M18: 3 | N18: 248 | O18: 8631 | P18: 8 | Q18: 70 | R18: 29 | S18: 20 | T18: 5 | U18: 52 | V18: 72 | W18: 193 | X18: 133 | Y18: 2401 | Z18: 235 | AA18: 168 | AB18: 87 | AC18: 224 | AD18: 69 | AE18: 6022 | AF18: 559 | AG18: 2332 | AH18: 9315 | AI18: 93 | AJ18: 84 | AK18: 31 | AL18: 1 | AM18: 19 | AN18: 505 | AO18: 299 | AP18: 33 | AQ18: 144 | AR18: 150 | AS18: 481 | AT18: 58 | AU18: 33 | AV18: 41 | AW18: 253 | AX18: 57 | AY18: 14 | AZ18: 56 | BA18: 32 | BB18: 1 | BC18: 35 | BD18: 26 | BE18: 35 | BF18: 46
A19: 2019-03-01 | J19: F84080 | L19: 4811 | M19: 1 | N19: 329 | O19: 2894 | P19: 13 | Q19: 96 | R19: 28 | S19: 20 | T19: 7 | U19: 79 | V19: 102 | W19: 303 | X19: 244 | Y19: 1437 | Z19: 308 | AA19: 244 | AB19: 98 | AC19: 264 | AD19: 67 | AE19: 2593 | AF19: 261 | AG19: 1317 | AH19: 3617 | AI19: 61 | AJ19: 39 | AK19: 17 | AL19: 2 | AM19: 3 | AN19: 687 | AO19: 477 | AP19: 244 | AQ19: 207 | AR19: 193 | AS19: 631 | AT19: 104 | AU19: 66 | AV19: 84 | AW19: 347 | AX19: 68 | AY19: 24 | AZ19: 63 | BA19: 27 | BB19: 4 | BC19: 43 | BD19: 41 | BE19: 30 | BF19: 89
A20: 2019-03-01 | J20: F84096 | L20: 13157 | M20: 4 | N20: 656 | O20: 9130 | P20: 10 | Q20: 279 | R20: 147 | S20: 59 | T20: 29 | U20: 235 | V20: 302 | W20: 609 | X20: 431 | Y20: 4366 | Z20: 614 | AA20: 480 | AB20: 228 | AC20: 583 | AD20: 157 | AE20: 7112 | AF20: 997 | AG20: 2968 | AH20: 10900 | AI20: 232 | AJ20: 180 | AK20: 84 | AL20: 6 | AM20: 40 | AN20: 1195 | AO20: 888 | AP20: 469 | AQ20: 482 | AR20: 373 | AS20: 1134 | AT20: 229 | AU20: 119 | AV20: 162 | AW20: 675 | AX20: 236 | AY20: 47 | AZ20: 222 | BA20: 95 | BB20: 10 | BC20: 174 | BD20: 191 | BE20: 174 | BF20: 188
A21: 2019-03-01 | J21: F84105 | L21: 11538 | M21: 0 | N21: 602 | O21: 7943 | P21: 12 | Q21: 158 | R21: 57 | S21: 49 | T21: 8 | U21: 126 | V21: 166 | W21: 419 | X21: 297 | Y21: 4486 | Z21: 572 | AA21: 478 | AB21: 222 | AC21: 558 | AD21: 146 | AE21: 6566 | AF21: 734 | AG21: 3287 | AH21: 9265 | AI21: 134 | AJ21: 116 | AK21: 46 | AL21: 5 | AM21: 24 | AN21: 1065 | AO21: 763 | AP21: 404 | AQ21: 435 | AR21: 386 | AS21: 1012 | AT21: 138 | AU21: 76 | AV21: 96 | AW21: 618 | AX21: 100 | AY21: 28 | AZ21: 95 | BA21: 30 | BB21: 4 | BC21: 80 | BD21: 57 | BE21: 47 | BF21: 91
A22: 2019-03-01 | J22: F84115 | L22: 8683 | M22: 0 | N22: 295 | O22: 6395 | P22: 8 | Q22: 107 | R22: 25 | S22: 14 | T22: 7 | U22: 93 | V22: 113 | W22: 278 | X22: 185 | Y22: 2657 | Z22: 269 | AA22: 213 | AB22: 70 | AC22: 187 | AD22: 68 | AE22: 4472 | AF22: 460 | AG22: 1569 | AH22: 7317 | AI22: 97 | AJ22: 74 | AK22: 30 | AL22: 2 | AM22: 28 | AN22: 624 | AO22: 449 | AP22: 165 | AQ22: 191 | AR22: 174 | AS22: 582 | AT22: 146 | AU22: 79 | AV22: 97 | AW22: 303 | AX22: 134 | AY22: 28 | AZ22: 115 | BA22: 54 | BB22: 7 | BC22: 92 | BD22: 100 | BE22: 102 | BF22: 109
A23: 2019-03-01 | J23: F84117 | L23: 10066 | M23: 2 | N23: 441 | O23: 7340 | P23: 4 | Q23: 144 | R23: 55 | S23: 26 | T23: 10 | U23: 125 | V23: 150 | W23: 376 | X23: 276 | Y23: 2984 | Z23: 400 | AA23: 338 | AB23: 136 | AC23: 332 | AD23: 86 | AE23: 5373 | AF23: 626 | AG23: 2200 | AH23: 8465 | AI23: 137 | AJ23: 106 | AK23: 39 | AL23: 2 | AM23: 39 | AN23: 864 | AO23: 666 | AP23: 346 | AQ23: 306 | AR23: 281 | AS23: 808 | AT23: 162 | AU23: 95 | AV23: 122 | AW23: 454 | AX23: 113 | AY23: 37 | AZ23: 105 | BA23: 44 | BB23: 3 | BC23: 81 | BD23: 71 | BE23: 77 | BF23: 140
A24: 2019-03-01 | J24: F84119 | L24: 12364 | M24: 0 | N24: 538 | O24: 8942 | P24: 5 | Q24: 190 | R24: 109 | S24: 62 | T24: 16 | U24: 175 | V24: 195 | W24: 465 | X24: 400 | Y24: 4862 | Z24: 507 | AA24: 407 | AB24: 243 | AC24: 606 | AD24: 152 | AE24: 7428 | AF24: 892 | AG24: 4176 | AH24: 10327 | AI24: 192 | AJ24: 168 | AK24: 78 | AL24: 16 | AM24: 43 | AN24: 1077 | AO24: 850 | AP24: 426 | AQ24: 364 | AR24: 325 | AS24: 964 | AT24: 172 | AU24: 123 | AV24: 162 | AW24: 554 | AX24: 140 | AY24: 22 | AZ24: 136 | BA24: 62 | BB24: 7 | BC24: 100 | BD24: 82 | BE24: 73 | BF24: 142
A25: 2019-03-01 | J25: F84601 | L25: 6847 | M25: 1 | N25: 298 | O25: 4508 | P25: 4 | Q25: 111 | R25: 65 | S25: 51 | T25: 6 | U25: 95 | V25: 113 | W25: 235 | X25: 190 | Y25: 3509 | Z25: 286 | AA25: 237 | AB25: 125 | AC25: 322 | AD25: 86 | AE25: 3152 | AF25: 450 | AG25: 1634 | AH25: 5509 | AI25: 115 | AJ25: 96 | AK25: 56 | AL25: 3 | AM25: 18 | AN25: 587 | AO25: 479 | AP25: 207 | AQ25: 175 | AR25: 167 | AS25: 538 | AT25: 92 | AU25: 66 | AV25: 81 | AW25: 311 | AX25: 72 | AY25: 19 | AZ25: 69 | BA25: 37 | BB25: 0 | BC25: 47 | BD25: 32 | BE25: 54 | BF25: 75
A26: 2019-03-01 | J26: F84619 | L26: 4424 | M26: 0 | N26: 226 | O26: 2941 | P26: 0 | Q26: 62 | R26: 30 | S26: 23 | T26: 6 | U26: 46 | V26: 65 | W26: 181 | X26: 133 | Y26: 1684 | Z26: 211 | AA26: 193 | AB26: 127 | AC26: 211 | AD26: 47 | AE26: 2452 | AF26: 404 | AG26: 1382 | AH26: 3492 | AI26: 55 | AJ26: 47 | AK26: 24 | AL26: 1 | AM26: 9 | AN26: 417 | AO26: 278 | AP26: 180 | AQ26: 159 | AR26: 139 | AS26: 381 | AT26: 66 | AU26: 45 | AV26: 53 | AW26: 234 | AX26: 33 | AY26: 13 | AZ26: 32 | BA26: 8 | BB26: 0 | BC26: 26 | BD26: 24 | BE26: 16 | BF26: 52
A27: 2019-03-01 | J27: F84620 | L27: 6323 | M27: 0 | N27: 388 | O27: 4122 | P27: 4 | Q27: 138 | R27: 44 | S27: 35 | T27: 9 | U27: 117 | V27: 142 | W27: 290 | X27: 209 | Y27: 2119 | Z27: 363 | AA27: 305 | AB27: 153 | AC27: 363 | AD27: 97 | AE27: 3326 | AF27: 478 | AG27: 1732 | AH27: 5093 | AI27: 110 | AJ27: 88 | AK27: 37 | AL27: 2 | AM27: 20 | AN27: 744 | AO27: 547 | AP27: 304 | AQ27: 224 | AR27: 244 | AS27: 695 | AT27: 126 | AU27: 76 | AV27: 92 | AW27: 396 | AX27: 72 | AY27: 33 | AZ27: 68 | BA27: 27 | BB27: 1 | BC27: 45 | BD27: 53 | BE27: 67 | BF27: 108
A28: 2019-03-01 | J28: F84621 | L28: 3737 | M28: 0 | N28: 300 | O28: 2592 | P28: 6 | Q28: 84 | R28: 52 | S28: 38 | T28: 7 | U28: 68 | V28: 92 | W28: 203 | X28: 174 | Y28: 1762 | Z28: 272 | AA28: 224 | AB28: 101 | AC28: 231 | AD28: 62 | AE28: 2118 | AF28: 315 | AG28: 1235 | AH28: 3111 | AI28: 85 | AJ28: 69 | AK28: 26 | AL28: 1 | AM28: 16 | AN28: 593 | AO28: 454 | AP28: 96 | AQ28: 207 | AR28: 179 | AS28: 563 | AT28: 73 | AU28: 49 | AV28: 59 | AW28: 303 | AX28: 48 | AY28: 17 | AZ28: 44 | BA28: 20 | BB28: 2 | BC28: 37 | BD28: 31 | BE28: 33 | BF28: 61
A29: 2019-03-01 | J29: F84624 | L29: 2720 | M29: 2 | N29: 155 | O29: 2061 | P29: 1 | Q29: 56 | R29: 29 | S29: 15 | T29: 4 | U29: 44 | V29: 56 | W29: 79 | X29: 55 | Y29: 992 | Z29: 145 | AA29: 114 | AB29: 47 | AC29: 101 | AD29: 23 | AE29: 1473 | AF29: 124 | AG29: 670 | AH29: 2353 | AI29: 48 | AJ29: 33 | AK29: 6 | AL29: 0 | AM29: 11 | AN29: 299 | AO29: 227 | AP29: 109 | AQ29: 102 | AR29: 88 | AS29: 276 | AT29: 69 | AU29: 40 | AV29: 50 | AW29: 160 | AX29: 44 | AY29: 24 | AZ29: 43 | BA29: 11 | BB29: 0 | BC29: 30 | BD29: 32 | BE29: 23 | BF29: 43
A30: 2019-03-01 | J30: F84632 | L30: 1051 | M30: 0 | N30: 50 | O30: 973 | P30: 3 | Q30: 14 | R30: 39 | S30: 17 | T30: 3 | U30: 11 | V30: 15 | W30: 48 | X30: 36 | Y30: 606 | Z30: 46 | AA30: 38 | AB30: 29 | AC30: 85 | AD30: 10 | AE30: 743 | AF30: 375 | AG30: 628 | AH30: 1051 | AI30: 87 | AJ30: 83 | AK30: 63 | AL30: 5 | AM30: 9 | AN30: 120 | AO30: 64 | AP30: 19 | AQ30: 36 | AR30: 29 | AS30: 106 | AT30: 22 | AU30: 14 | AV30: 18 | AW30: 53 | AX30: 38 | AY30: 14 | AZ30: 37 | BA30: 27 | BB30: 1 | BC30: 27 | BD30: 30 | BE30: 23 | BF30: 14
A31: 2019-03-01 | J31: F84635 | L31: 8830 | M31: 2 | N31: 325 | O31: 6210 | P31: 6 | Q31: 86 | R31: 36 | S31: 21 | T31: 3 | U31: 60 | V31: 88 | W31: 278 | X31: 172 | Y31: 2211 | Z31: 284 | AA31: 220 | AB31: 134 | AC31: 343 | AD31: 81 | AE31: 5301 | AF31: 797 | AG31: 2382 | AH31: 7495 | AI31: 124 | AJ31: 86 | AK31: 43 | AL31: 2 | AM31: 16 | AN31: 698 | AO31: 443 | AP31: 228 | AQ31: 230 | AR31: 178 | AS31: 651 | AT31: 103 | AU31: 61 | AV31: 69 | AW31: 337 | AX31: 99 | AY31: 19 | AZ31: 86 | BA31: 36 | BB31: 2 | BC31: 77 | BD31: 78 | BE31: 83 | BF31: 88
A32: 2019-03-01 | J32: F84636 | L32: 4847 | M32: 0 | N32: 185 | O32: 3695 | P32: 5 | Q32: 46 | R32: 29 | S32: 16 | T32: 6 | U32: 37 | V32: 48 | W32: 142 | X32: 107 | Y32: 1515 | Z32: 168 | AA32: 149 | AB32: 77 | AC32: 167 | AD32: 40 | AE32: 2852 | AF32: 409 | AG32: 1525 | AH32: 4255 | AI32: 67 | AJ32: 56 | AK32: 18 | AL32: 1 | AM32: 15 | AN32: 379 | AO32: 274 | AP32: 139 | AQ32: 145 | AR32: 105 | AS32: 344 | AT32: 45 | AU32: 30 | AV32: 36 | AW32: 197 | AX32: 22 | AY32: 9 | AZ32: 21 | BA32: 6 | BB32: 0 | BC32: 13 | BD32: 13 | BE32: 13 | BF32: 38
A33: 2019-03-01 | J33: F84640 | L33: 9312 | M33: 0 | N33: 250 | O33: 7237 | P33: 43 | Q33: 243 | R33: 23 | S33: 9 | T33: 6 | U33: 203 | V33: 266 | W33: 412 | X33: 274 | Y33: 3088 | Z33: 225 | AA33: 178 | AB33: 87 | AC33: 244 | AD33: 44 | AE33: 6188 | AF33: 343 | AG33: 2043 | AH33: 8557 | AI33: 80 | AJ33: 61 | AK33: 13 | AL33: 1 | AM33: 25 | AN33: 950 | AO33: 750 | AP33: 143 | AQ33: 173 | AR33: 175 | AS33: 896 | AT33: 178 | AU33: 95 | AV33: 120 | AW33: 255 | AX33: 65 | AY33: 10 | AZ33: 65 | BA33: 20 | BB33: 2 | BC33: 52 | BD33: 51 | BE33: 29 | BF33: 150
A34: 2019-03-01 | J34: F84668 | L34: 6565 | M34: 0 | N34: 288 | O34: 3216 | P34: 3 | Q34: 90 | R34: 36 | S34: 33 | T34: 5 | U34: 70 | V34: 98 | W34: 218 | X34: 185 | Y34: 1780 | Z34: 276 | AA34: 232 | AB34: 174 | AC34: 392 | AD34: 87 | AE34: 3183 | AF34: 298 | AG34: 1870 | AH34: 4343 | AI34: 68 | AJ34: 63 | AK34: 20 | AL34: 11 | AM34: 9 | AN34: 490 | AO34: 366 | AP34: 248 | AQ34: 221 | AR34: 196 | AS34: 474 | AT34: 57 | AU34: 42 | AV34: 48 | AW34: 300 | AX34: 25 | AY34: 7 | AZ34: 25 | BA34: 10 | BB34: 7 | BC34: 21 | BD34: 22 | BE34: 22 | BF34: 35
A35: 2019-03-01 | J35: F84685 | L35: 2972 | M35: 0 | N35: 133 | O35: 1928 | P35: 1 | Q35: 39 | R35: 11 | S35: 9 | T35: 2 | U35: 37 | V35: 43 | W35: 135 | X35: 96 | Y35: 900 | Z35: 129 | AA35: 98 | AB35: 51 | AC35: 106 | AD35: 21 | AE35: 1512 | AF35: 143 | AG35: 679 | AH35: 2274 | AI35: 38 | AJ35: 25 | AK35: 7 | AL35: 0 | AM35: 5 | AN35: 262 | AO35: 196 | AP35: 85 | AQ35: 85 | AR35: 86 | AS35: 241 | AT35: 39 | AU35: 21 | AV35: 32 | AW35: 136 | AX35: 22 | AY35: 7 | AZ35: 18 | BA35: 8 | BB35: 1 | BC35: 18 | BD35: 15 | BE35: 16 | BF35: 34
A36: 2019-03-01 | J36: F84686 | L36: 7784 | M36: 3 | N36: 184 | O36: 2845 | P36: 0 | Q36: 58 | R36: 20 | S36: 18 | T36: 4 | U36: 51 | V36: 60 | W36: 167 | X36: 138 | Y36: 1050 | Z36: 169 | AA36: 142 | AB36: 104 | AC36: 246 | AD36: 49 | AE36: 2691 | AF36: 130 | AG36: 1048 | AH36: 4241 | AI36: 48 | AJ36: 38 | AK36: 7 | AL36: 1 | AM36: 5 | AN36: 369 | AO36: 307 | AP36: 96 | AQ36: 112 | AR36: 106 | AS36: 360 | AT36: 73 | AU36: 54 | AV36: 61 | AW36: 188 | AX36: 8 | AY36: 1 | AZ36: 8 | BA36: 4 | BB36: 0 | BC36: 6 | BD36: 4 | BE36: 8 | BF36: 56
A37: 2019-03-01 | J37: F84692 | L37: 7150 | M37: 0 | N37: 223 | O37: 4629 | P37: 4 | Q37: 64 | R37: 38 | S37: 8 | T37: 3 | U37: 55 | V37: 65 | W37: 224 | X37: 134 | Y37: 1957 | Z37: 204 | AA37: 159 | AB37: 110 | AC37: 228 | AD37: 43 | AE37: 3748 | AF37: 466 | AG37: 1663 | AH37: 6215 | AI37: 69 | AJ37: 49 | AK37: 26 | AL37: 3 | AM37: 9 | AN37: 448 | AO37: 334 | AP37: 156 | AQ37: 160 | AR37: 138 | AS37: 409 | AT37: 74 | AU37: 36 | AV37: 42 | AW37: 229 | AX37: 77 | AY37: 18 | AZ37: 73 | BA37: 33 | BB37: 2 | BC37: 62 | BD37: 65 | BE37: 50 | BF37: 64
A38: 2019-03-01 | J38: F84694 | L38: 4533 | M38: 0 | N38: 209 | O38: 3455 | P38: 1 | Q38: 59 | R38: 30 | S38: 23 | T38: 3 | U38: 48 | V38: 60 | W38: 170 | X38: 141 | Y38: 1846 | Z38: 186 | AA38: 167 | AB38: 80 | AC38: 220 | AD38: 41 | AE38: 2841 | AF38: 480 | AG38: 1928 | AH38: 4001 | AI38: 51 | AJ38: 45 | AK38: 13 | AL38: 2 | AM38: 6 | AN38: 365 | AO38: 225 | AP38: 27 | AQ38: 163 | AR38: 130 | AS38: 331 | AT38: 59 | AU38: 44 | AV38: 47 | AW38: 219 | AX38: 31 | AY38: 6 | AZ38: 31 | BA38: 14 | BB38: 2 | BC38: 22 | BD38: 17 | BE38: 25 | BF38: 36
A39: 2019-03-01 | J39: F84711 | L39: 1929 | M39: 1 | N39: 169 | O39: 1316 | P39: 0 | Q39: 39 | R39: 17 | S39: 14 | T39: 6 | U39: 32 | V39: 40 | W39: 117 | X39: 98 | Y39: 751 | Z39: 153 | AA39: 137 | AB39: 62 | AC39: 115 | AD39: 38 | AE39: 1176 | AF39: 145 | AG39: 623 | AH39: 1608 | AI39: 26 | AJ39: 23 | AK39: 8 | AL39: 2 | AM39: 4 | AN39: 283 | AO39: 176 | AP39: 126 | AQ39: 153 | AR39: 103 | AS39: 274 | AT39: 31 | AU39: 20 | AV39: 23 | AW39: 169 | AX39: 26 | AY39: 8 | AZ39: 25 | BA39: 13 | BB39: 4 | BC39: 24 | BD39: 13 | BE39: 9 | BF39: 23
A40: 2019-03-01 | J40: F84716 | L40: 5586 | M40: 1 | N40: 200 | O40: 3425 | P40: 2 | Q40: 95 | R40: 52 | S40: 22 | T40: 11 | U40: 76 | V40: 99 | W40: 187 | X40: 143 | Y40: 1547 | Z40: 187 | AA40: 150 | AB40: 86 | AC40: 234 | AD40: 58 | AE40: 3049 | AF40: 303 | AG40: 1546 | AH40: 4182 | AI40: 100 | AJ40: 83 | AK40: 24 | AL40: 5 | AM40: 14 | AN40: 383 | AO40: 294 | AP40: 84 | AQ40: 119 | AR40: 118 | AS40: 367 | AT40: 69 | AU40: 41 | AV40: 51 | AW40: 204 | AX40: 41 | AY40: 11 | AZ40: 41 | BA40: 14 | BB40: 2 | BC40: 32 | BD40: 32 | BE40: 11 | BF40: 55
A41: 2019-03-01 | J41: F84719 | L41: 5144 | M41: 2 | N41: 303 | O41: 3592 | P41: 8 | Q41: 97 | R41: 43 | S41: 33 | T41: 15 | U41: 82 | V41: 98 | W41: 223 | X41: 177 | Y41: 1611 | Z41: 291 | AA41: 235 | AB41: 100 | AC41: 265 | AD41: 73 | AE41: 3353 | AF41: 370 | AG41: 1761 | AH41: 4361 | AI41: 80 | AJ41: 74 | AK41: 20 | AL41: 2 | AM41: 11 | AN41: 618 | AO41: 462 | AP41: 236 | AQ41: 243 | AR41: 185 | AS41: 585 | AT41: 136 | AU41: 91 | AV41: 106 | AW41: 313 | AX41: 81 | AY41: 26 | AZ41: 76 | BA41: 23 | BB41: 2 | BC41: 74 | BD41: 56 | BE41: 56 | BF41: 91
A42: 2019-03-01 | J42: F84720 | L42: 5443 | M42: 0 | N42: 367 | O42: 3238 | P42: 7 | Q42: 143 | R42: 56 | S42: 42 | T42: 12 | U42: 121 | V42: 148 | W42: 314 | X42: 250 | Y42: 2054 | Z42: 337 | AA42: 280 | AB42: 139 | AC42: 339 | AD42: 91 | AE42: 2885 | AF42: 424 | AG42: 1675 | AH42: 4140 | AI42: 91 | AJ42: 75 | AK42: 35 | AL42: 2 | AM42: 14 | AN42: 805 | AO42: 607 | AP42: 136 | AQ42: 213 | AR42: 204 | AS42: 773 | AT42: 152 | AU42: 102 | AV42: 127 | AW42: 372 | AX42: 80 | AY42: 14 | AZ42: 77 | BA42: 22 | BB42: 1 | BC42: 56 | BD42: 45 | BE42: 73 | BF42: 116
A43: 2019-03-01 | J43: Y00403 | L43: 6277 | M43: 0 | N43: 190 | O43: 4647 | P43: 0 | Q43: 43 | R43: 43 | S43: 19 | T43: 8 | U43: 38 | V43: 45 | W43: 105 | X43: 74 | Y43: 1527 | Z43: 182 | AA43: 161 | AB43: 98 | AC43: 194 | AD43: 59 | AE43: 3367 | AF43: 526 | AG43: 1638 | AH43: 5280 | AI43: 82 | AJ43: 62 | AK43: 28 | AL43: 1 | AM43: 12 | AN43: 392 | AO43: 287 | AP43: 56 | AQ43: 144 | AR43: 129 | AS43: 366 | AT43: 47 | AU43: 27 | AV43: 30 | AW43: 193 | AX43: 34 | AY43: 11 | AZ43: 33 | BA43: 13 | BB43: 1 | BC43: 32 | BD43: 24 | BE43: 22 | BF43: 39
A44: 2019-03-01 | J44: Y03049 | L44: 14427 | M44: 3 | N44: 618 | O44: 8866 | P44: 10 | Q44: 190 | R44: 95 | S44: 56 | T44: 20 | U44: 148 | V44: 196 | W44: 479 | X44: 339 | Y44: 4619 | Z44: 576 | AA44: 476 | AB44: 232 | AC44: 599 | AD44: 150 | AE44: 6927 | AF44: 818 | AG44: 3161 | AH44: 10610 | AI44: 194 | AJ44: 164 | AK44: 75 | AL44: 9 | AM44: 24 | AN44: 1138 | AO44: 813 | AP44: 322 | AQ44: 412 | AR44: 363 | AS44: 1104 | AT44: 179 | AU44: 106 | AV44: 126 | AW44: 624 | AX44: 97 | AY44: 23 | AZ44: 92 | BA44: 48 | BB44: 9 | BC44: 70 | BD44: 59 | BE44: 80 | BF44: 147
A45: 2019-03-01 | J45: Total | L45: 322889 | M45: 40 | N45: 14946 | O45: 218764 | P45: 253 | Q45: 5087 | R45: 2359 | S45: 1381 | T45: 388 | U45: 4118 | V45: 5312 | W45: 12396 | X45: 9339 | Y45: 109716 | Z45: 13850 | AA45: 11318 | AB45: 5936 | AC45: 14044 | AD45: 3652 | AE45: 174143 | AF45: 22323 | AG45: 86069 | AH45: 260423 | AI45: 4767 | AJ45: 3854 | AK45: 1657 | AL45: 135 | AM45: 832 | AN45: 29764 | AO45: 21705 | AP45: 9682 | AQ45: 10184 | AR45: 9013 | AS45: 27941 | AT45: 4943 | AU45: 3055 | AV45: 3784 | AW45: 15385 | AX45: 3435 | AY45: 872 | AZ45: 3235 | BA45: 1400 | BB45: 114 | BC45: 2507 | BD45: 2322 | BE45: 2333 | BF45: 3882

Sheet Month by month
C2: Redbridge | H2: Practice Clinical Trends (LDP) Report Summary 2023 / 2024
C3: ** SystmOne data was added in March 2023, no data availble before this date.**
C4: RB | D4: 2022-04-01 | E4: 2023-04-01 | F4: 2023-05-01 | G4: 2023-06-01 | H4: 2023-07-01 | I4: 2023-08-01 | J4: 2023-09-01 | K4: 2023-10-01 | L4: 2023-11-01 | M4: 2023-12-01 | N4: 2024-01-01 | O4: 2024-02-01 | P4: 2024-03-01 | Q4: 2024-04-01 | R4: 2019-05-01
C5: =VLOOKUP(C2,'Control Panel'!H62:I113,2,FALSE) -> Total | D5: 2022-03-01 | E5: 2023-03-01 | F5: 2023-04-01 | G5: 2023-05-01 | H5: 2023-06-01 | I5: 2023-07-01 | J5: 2023-08-01 | K5: 2023-09-01 | L5: 2023-10-01 | M5: 2023-11-01 | N5: 2023-12-01 | O5: 2024-01-01 | P5: 2024-02-01 | Q5: 2024-03-01 | R5: 2019-04-01
C7: ='Control Panel'!B2 -> General Health
A8: ='Control Panel'!B3 -> 01. Listsize | B8: 01. Listsize | C8: ='Control Panel'!C3 -> List Size | D8: =IF($C$5="Total",SUMIFS(OFFSET(REL_D,,MATCH($A8,IND,0)-2),REL_D,D$4,NwID,$C$4),SUMIFS(OFFSET(REL_D,,MATCH($A8,IND,0)-2),REL_D,D$4,OrgID,$C$5)) -> 300667 | E8: =IF($C$5="Total",SUMIFS(OFFSET(REL_D,,MATCH($A8,IND,0)-2),REL_D,E$4,NwID,$C$4),SUMIFS(OFFSET(REL_D,,MATCH($A8,IND,0)-2),REL_D,E$4,OrgID,$C$5)) -> 309500 | F8: =IF($C$5="Total",SUMIFS(OFFSET(REL_D,,MATCH($A8,IND,0)-2),REL_D,F$4,NwID,$C$4),SUMIFS(OFFSET(REL_D,,MATCH($A8,IND,0)-2),REL_D,F$4,OrgID,$C$5)) -> 310269 | G8: =IF($C$5="Total",SUMIFS(OFFSET(REL_D,,MATCH($A8,IND,0)-2),REL_D,G$4,NwID,$C$4),SUMIFS(OFFSET(REL_D,,MATCH($A8,IND,0)-2),REL_D,G$4,OrgID,$C$5)) -> 311444 | H8: =IF($C$5="Total",SUMIFS(OFFSET(REL_D,,MATCH($A8,IND,0)-2),REL_D,H$4,NwID,$C$4),SUMIFS(OFFSET(REL_D,,MATCH($A8,IND,0)-2),REL_D,H$4,OrgID,$C$5)) -> 312652 | I8: =IF($C$5="Total",SUMIFS(OFFSET(REL_D,,MATCH($A8,IND,0)-2),REL_D,I$4,NwID,$C$4),SUMIFS(OFFSET(REL_D,,MATCH($A8,IND,0)-2),REL_D,I$4,OrgID,$C$5)) -> 313066 | J8: =IF($C$5="Total",SUMIFS(OFFSET(REL_D,,MATCH($A8,IND,0)-2),REL_D,J$4,NwID,$C$4),SUMIFS(OFFSET(REL_D,,MATCH($A8,IND,0)-2),REL_D,J$4,OrgID,$C$5)) -> 313753 | K8: =IF($C$5="Total",SUMIFS(OFFSET(REL_D,,MATCH($A8,IND,0)-2),REL_D,K$4,NwID,$C$4),SUMIFS(OFFSET(REL_D,,MATCH($A8,IND,0)-2),REL_D,K$4,OrgID,$C$5)) -> 0 | L8: =IF($C$5="Total",SUMIFS(OFFSET(REL_D,,MATCH($A8,IND,0)-2),REL_D,L$4,NwID,$C$4),SUMIFS(OFFSET(REL_D,,MATCH($A8,IND,0)-2),REL_D,L$4,OrgID,$C$5)) -> 0 | M8: =IF($C$5="Total",SUMIFS(OFFSET(REL_D,,MATCH($A8,IND,0)-2),REL_D,M$4,NwID,$C$4),SUMIFS(OFFSET(REL_D,,MATCH($A8,IND,0)-2),REL_D,M$4,OrgID,$C$5)) -> 0 | N8: =IF($C$5="Total",SUMIFS(OFFSET(REL_D,,MATCH($A8,IND,0)-2),REL_D,N$4,NwID,$C$4),SUMIFS(OFFSET(REL_D,,MATCH($A8,IND,0)-2),REL_D,N$4,OrgID,$C$5)) -> 0 | O8: =IF($C$5="Total",SUMIFS(OFFSET(REL_D,,MATCH($A8,IND,0)-2),REL_D,O$4,NwID,$C$4),SUMIFS(OFFSET(REL_D,,MATCH($A8,IND,0)-2),REL_D,O$4,OrgID,$C$5)) -> 0 | P8: =IF($C$5="Total",SUMIFS(OFFSET(REL_D,,MATCH($A8,IND,0)-2),REL_D,P$4,NwID,$C$4),SUMIFS(OFFSET(REL_D,,MATCH($A8,IND,0)-2),REL_D,P$4,OrgID,$C$5)) -> 0 | Q8: =IF($C$5="Total",SUMIFS(OFFSET(REL_D,,MATCH($A8,IND,0)-2),REL_D,Q$4,NwID,$C$4),SUMIFS(OFFSET(REL_D,,MATCH($A8,IND,0)-2),REL_D,Q$4,OrgID,$C$5)) -> 0 | R8: =SUMIFS(OFFSET(REL_D,,MATCH($A8,IND,0)-1),REL_D,R$4,IF(LEFT($C$5,1)="N",NwID,OrgID),$C$5) -> 0
A9: ='Control Panel'!B4 -> LDP.01: Aged 16yrs+ | B9: LDP.01: Aged 16yrs+ | C9: ='Control Panel'!D4 -> Age 16+ | D9: =IF($C$5="Total",SUMIFS(OFFSET(REL_D,,MATCH($A9,IND,0)-2),REL_D,D$4,NwID,$C$4),SUMIFS(OFFSET(REL_D,,MATCH($A9,IND,0)-2),REL_D,D$4,OrgID,$C$5)) -> 238191 | E9: =IF($C$5="Total",SUMIFS(OFFSET(REL_D,,MATCH($A9,IND,0)-2),REL_D,E$4,NwID,$C$4),SUMIFS(OFFSET(REL_D,,MATCH($A9,IND,0)-2),REL_D,E$4,OrgID,$C$5)) -> 246531 | F9: =IF($C$5="Total",SUMIFS(OFFSET(REL_D,,MATCH($A9,IND,0)-2),REL_D,F$4,NwID,$C$4),SUMIFS(OFFSET(REL_D,,MATCH($A9,IND,0)-2),REL_D,F$4,OrgID,$C$5)) -> 247194 | G9: =IF($C$5="Total",SUMIFS(OFFSET(REL_D,,MATCH($A9,IND,0)-2),REL_D,G$4,NwID,$C$4),SUMIFS(OFFSET(REL_D,,MATCH($A9,IND,0)-2),REL_D,G$4,OrgID,$C$5)) -> 248283 | H9: =IF($C$5="Total",SUMIFS(OFFSET(REL_D,,MATCH($A9,IND,0)-2),REL_D,H$4,NwID,$C$4),SUMIFS(OFFSET(REL_D,,MATCH($A9,IND,0)-2),REL_D,H$4,OrgID,$C$5)) -> 249362 | I9: =IF($C$5="Total",SUMIFS(OFFSET(REL_D,,MATCH($A9,IND,0)-2),REL_D,I$4,NwID,$C$4),SUMIFS(OFFSET(REL_D,,MATCH($A9,IND,0)-2),REL_D,I$4,OrgID,$C$5)) -> 249793 | J9: =IF($C$5="Total",SUMIFS(OFFSET(REL_D,,MATCH($A9,IND,0)-2),REL_D,J$4,NwID,$C$4),SUMIFS(OFFSET(REL_D,,MATCH($A9,IND,0)-2),REL_D,J$4,OrgID,$C$5)) -> 250459 | K9: =IF($C$5="Total",SUMIFS(OFFSET(REL_D,,MATCH($A9,IND,0)-2),REL_D,K$4,NwID,$C$4),SUMIFS(OFFSET(REL_D,,MATCH($A9,IND,0)-2),REL_D,K$4,OrgID,$C$5)) -> 0 | L9: =IF($C$5="Total",SUMIFS(OFFSET(REL_D,,MATCH($A9,IND,0)-2),REL_D,L$4,NwID,$C$4),SUMIFS(OFFSET(REL_D,,MATCH($A9,IND,0)-2),REL_D,L$4,OrgID,$C$5)) -> 0 | M9: =IF($C$5="Total",SUMIFS(OFFSET(REL_D,,MATCH($A9,IND,0)-2),REL_D,M$4,NwID,$C$4),SUMIFS(OFFSET(REL_D,,MATCH($A9,IND,0)-2),REL_D,M$4,OrgID,$C$5)) -> 0 | N9: =IF($C$5="Total",SUMIFS(OFFSET(REL_D,,MATCH($A9,IND,0)-2),REL_D,N$4,NwID,$C$4),SUMIFS(OFFSET(REL_D,,MATCH($A9,IND,0)-2),REL_D,N$4,OrgID,$C$5)) -> 0 | O9: =IF($C$5="Total",SUMIFS(OFFSET(REL_D,,MATCH($A9,IND,0)-2),REL_D,O$4,NwID,$C$4),SUMIFS(OFFSET(REL_D,,MATCH($A9,IND,0)-2),REL_D,O$4,OrgID,$C$5)) -> 0 | P9: =IF($C$5="Total",SUMIFS(OFFSET(REL_D,,MATCH($A9,IND,0)-2),REL_D,P$4,NwID,$C$4),SUMIFS(OFFSET(REL_D,,MATCH($A9,IND,0)-2),REL_D,P$4,OrgID,$C$5)) -> 0 | Q9: =IF($C$5="Total",SUMIFS(OFFSET(REL_D,,MATCH($A9,IND,0)-2),REL_D,Q$4,NwID,$C$4),SUMIFS(OFFSET(REL_D,,MATCH($A9,IND,0)-2),REL_D,Q$4,OrgID,$C$5)) -> 0 | R9: =SUMIFS(OFFSET(REL_D,,MATCH($A9,IND,0)-1),REL_D,R$4,IF(LEFT($C$5,1)="N",NwID,OrgID),$C$5) -> 0
A10: ='Control Panel'!B5 -> %LDP.01: Aged 16yrs+ | B10: %LDP.01: Aged 16yrs+ | C10: ='Control Panel'!D5 -> % list size | D10: =IFERROR(D9/D8,"N/A") -> 0.792 | E10: 0.797 | F10: =IFERROR(F9/F8,"N/A") -> 0.797 | G10: =IFERROR(G9/G8,"N/A") -> 0.797 | H10: 0.798 | I10: 0.798 | J10: 0.798 | K10: N/A | L10: N/A | M10: N/A | N10: N/A | O10: N/A | P10: N/A | Q10: N/A | R10: =IFERROR(R9/R8,"N/A") -> N/A
A11: ='Control Panel'!B6 -> LDP.01.01: Obesity BMI recorded (last 12m) | B11: LDP.01.01: Obesity BMI recorded (last 12m) | C11: ='Control Panel'!D6 -> 16+ and BMI (last 12m) | D11: =IF($C$5="Total",SUMIFS(OFFSET(REL_D,,MATCH($A11,IND,0)-2),REL_D,D$4,NwID,$C$4),SUMIFS(OFFSET(REL_D,,MATCH($A11,IND,0)-2),REL_D,D$4,OrgID,$C$5)) -> 55938 | E11: =IF($C$5="Total",SUMIFS(OFFSET(REL_D,,MATCH($A11,IND,0)-2),REL_D,E$4,NwID,$C$4),SUMIFS(OFFSET(REL_D,,MATCH($A11,IND,0)-2),REL_D,E$4,OrgID,$C$5)) -> 70973 | F11: =IF($C$5="Total",SUMIFS(OFFSET(REL_D,,MATCH($A11,IND,0)-2),REL_D,F$4,NwID,$C$4),SUMIFS(OFFSET(REL_D,,MATCH($A11,IND,0)-2),REL_D,F$4,OrgID,$C$5)) -> 70938 | G11: =IF($C$5="Total",SUMIFS(OFFSET(REL_D,,MATCH($A11,IND,0)-2),REL_D,G$4,NwID,$C$4),SUMIFS(OFFSET(REL_D,,MATCH($A11,IND,0)-2),REL_D,G$4,OrgID,$C$5)) -> 70976 | H11: =IF($C$5="Total",SUMIFS(OFFSET(REL_D,,MATCH($A11,IND,0)-2),REL_D,H$4,NwID,$C$4),SUMIFS(OFFSET(REL_D,,MATCH($A11,IND,0)-2),REL_D,H$4,OrgID,$C$5)) -> 71614 | I11: =IF($C$5="Total",SUMIFS(OFFSET(REL_D,,MATCH($A11,IND,0)-2),REL_D,I$4,NwID,$C$4),SUMIFS(OFFSET(REL_D,,MATCH($A11,IND,0)-2),REL_D,I$4,OrgID,$C$5)) -> 72285 | J11: =IF($C$5="Total",SUMIFS(OFFSET(REL_D,,MATCH($A11,IND,0)-2),REL_D,J$4,NwID,$C$4),SUMIFS(OFFSET(REL_D,,MATCH($A11,IND,0)-2),REL_D,J$4,OrgID,$C$5)) -> 72916 | K11: =IF($C$5="Total",SUMIFS(OFFSET(REL_D,,MATCH($A11,IND,0)-2),REL_D,K$4,NwID,$C$4),SUMIFS(OFFSET(REL_D,,MATCH($A11,IND,0)-2),REL_D,K$4,OrgID,$C$5)) -> 0 | L11: =IF($C$5="Total",SUMIFS(OFFSET(REL_D,,MATCH($A11,IND,0)-2),REL_D,L$4,NwID,$C$4),SUMIFS(OFFSET(REL_D,,MATCH($A11,IND,0)-2),REL_D,L$4,OrgID,$C$5)) -> 0 | M11: =IF($C$5="Total",SUMIFS(OFFSET(REL_D,,MATCH($A11,IND,0)-2),REL_D,M$4,NwID,$C$4),SUMIFS(OFFSET(REL_D,,MATCH($A11,IND,0)-2),REL_D,M$4,OrgID,$C$5)) -> 0 | N11: =IF($C$5="Total",SUMIFS(OFFSET(REL_D,,MATCH($A11,IND,0)-2),REL_D,N$4,NwID,$C$4),SUMIFS(OFFSET(REL_D,,MATCH($A11,IND,0)-2),REL_D,N$4,OrgID,$C$5)) -> 0 | O11: =IF($C$5="Total",SUMIFS(OFFSET(REL_D,,MATCH($A11,IND,0)-2),REL_D,O$4,NwID,$C$4),SUMIFS(OFFSET(REL_D,,MATCH($A11,IND,0)-2),REL_D,O$4,OrgID,$C$5)) -> 0 | P11: =IF($C$5="Total",SUMIFS(OFFSET(REL_D,,MATCH($A11,IND,0)-2),REL_D,P$4,NwID,$C$4),SUMIFS(OFFSET(REL_D,,MATCH($A11,IND,0)-2),REL_D,P$4,OrgID,$C$5)) -> 0 | Q11: =IF($C$5="Total",SUMIFS(OFFSET(REL_D,,MATCH($A11,IND,0)-2),REL_D,Q$4,NwID,$C$4),SUMIFS(OFFSET(REL_D,,MATCH($A11,IND,0)-2),REL_D,Q$4,OrgID,$C$5)) -> 0 | R11: =SUMIFS(OFFSET(REL_D,,MATCH($A11,IND,0)-1),REL_D,R$4,IF(LEFT($C$5,1)="N",NwID,OrgID),$C$5) -> 0
A12: ='Control Panel'!B7 -> %LDP.01.01: Obesity BMI recorded (last 12m) | B12: %LDP.01.01: Obesity BMI recorded (last 12m) | C12: ='Control Panel'!D7 -> % 16+ | D12: =IFERROR(D11/D9,"N/A") -> 0.235 | E12: 0.288 | F12: =IFERROR(F11/F9,"N/A") -> 0.287 | G12: =IFERROR(G11/G9,"N/A") -> 0.286 | H12: 0.287 | I12: 0.289 | J12: 0.291 | K12: N/A | L12: N/A | M12: N/A | N12: N/A | O12: N/A | P12: N/A | Q12: N/A | R12: =IFERROR(R11/R9,"N/A") -> N/A
A13: ='Control Panel'!B8 -> LDP.01.01.02: Obesity BMI between 30-35 (last 12m) | B13: LDP.01.01.02: Obesity BMI between 30-35 (last 12m) | C13: ='Control Panel'!D8 -> BMI ≥30 & <35 | D13: =IF($C$5="Total",SUMIFS(OFFSET(REL_D,,MATCH($A13,IND,0)-2),REL_D,D$4,NwID,$C$4),SUMIFS(OFFSET(REL_D,,MATCH($A13,IND,0)-2),REL_D,D$4,OrgID,$C$5)) -> 10113 | E13: =IF($C$5="Total",SUMIFS(OFFSET(REL_D,,MATCH($A13,IND,0)-2),REL_D,E$4,NwID,$C$4),SUMIFS(OFFSET(REL_D,,MATCH($A13,IND,0)-2),REL_D,E$4,OrgID,$C$5)) -> 12918 | F13: =IF($C$5="Total",SUMIFS(OFFSET(REL_D,,MATCH($A13,IND,0)-2),REL_D,F$4,NwID,$C$4),SUMIFS(OFFSET(REL_D,,MATCH($A13,IND,0)-2),REL_D,F$4,OrgID,$C$5)) -> 12922 | G13: =IF($C$5="Total",SUMIFS(OFFSET(REL_D,,MATCH($A13,IND,0)-2),REL_D,G$4,NwID,$C$4),SUMIFS(OFFSET(REL_D,,MATCH($A13,IND,0)-2),REL_D,G$4,OrgID,$C$5)) -> 12870 | H13: =IF($C$5="Total",SUMIFS(OFFSET(REL_D,,MATCH($A13,IND,0)-2),REL_D,H$4,NwID,$C$4),SUMIFS(OFFSET(REL_D,,MATCH($A13,IND,0)-2),REL_D,H$4,OrgID,$C$5)) -> 12894 | I13: =IF($C$5="Total",SUMIFS(OFFSET(REL_D,,MATCH($A13,IND,0)-2),REL_D,I$4,NwID,$C$4),SUMIFS(OFFSET(REL_D,,MATCH($A13,IND,0)-2),REL_D,I$4,OrgID,$C$5)) -> 12965 | J13: =IF($C$5="Total",SUMIFS(OFFSET(REL_D,,MATCH($A13,IND,0)-2),REL_D,J$4,NwID,$C$4),SUMIFS(OFFSET(REL_D,,MATCH($A13,IND,0)-2),REL_D,J$4,OrgID,$C$5)) -> 13040 | K13: =IF($C$5="Total",SUMIFS(OFFSET(REL_D,,MATCH($A13,IND,0)-2),REL_D,K$4,NwID,$C$4),SUMIFS(OFFSET(REL_D,,MATCH($A13,IND,0)-2),REL_D,K$4,OrgID,$C$5)) -> 0 | L13: =IF($C$5="Total",SUMIFS(OFFSET(REL_D,,MATCH($A13,IND,0)-2),REL_D,L$4,NwID,$C$4),SUMIFS(OFFSET(REL_D,,MATCH($A13,IND,0)-2),REL_D,L$4,OrgID,$C$5)) -> 0 | M13: =IF($C$5="Total",SUMIFS(OFFSET(REL_D,,MATCH($A13,IND,0)-2),REL_D,M$4,NwID,$C$4),SUMIFS(OFFSET(REL_D,,MATCH($A13,IND,0)-2),REL_D,M$4,OrgID,$C$5)) -> 0 | N13: =IF($C$5="Total",SUMIFS(OFFSET(REL_D,,MATCH($A13,IND,0)-2),REL_D,N$4,NwID,$C$4),SUMIFS(OFFSET(REL_D,,MATCH($A13,IND,0)-2),REL_D,N$4,OrgID,$C$5)) -> 0 | O13: =IF($C$5="Total",SUMIFS(OFFSET(REL_D,,MATCH($A13,IND,0)-2),REL_D,O$4,NwID,$C$4),SUMIFS(OFFSET(REL_D,,MATCH($A13,IND,0)-2),REL_D,O$4,OrgID,$C$5)) -> 0 | P13: =IF($C$5="Total",SUMIFS(OFFSET(REL_D,,MATCH($A13,IND,0)-2),REL_D,P$4,NwID,$C$4),SUMIFS(OFFSET(REL_D,,MATCH($A13,IND,0)-2),REL_D,P$4,OrgID,$C$5)) -> 0 | Q13: =IF($C$5="Total",SUMIFS(OFFSET(REL_D,,MATCH($A13,IND,0)-2),REL_D,Q$4,NwID,$C$4),SUMIFS(OFFSET(REL_D,,MATCH($A13,IND,0)-2),REL_D,Q$4,OrgID,$C$5)) -> 0 | R13: =SUMIFS(OFFSET(REL_D,,MATCH($A13,IND,0)-1),REL_D,R$4,IF(LEFT($C$5,1)="N",NwID,OrgID),$C$5) -> 0
A14: ='Control Panel'!B9 -> %LDP.01.01.02: Obesity BMI between 30-35 (last 12m) | B14: %LDP.01.01.02: Obesity BMI between 30-35 (last 12m) | C14: ='Control Panel'!D9 -> % 16+ | D14: =IFERROR(D13/D9,"N/A") -> 0.042 | E14: 0.052 | F14: =IFERROR(F13/F9,"N/A") -> 0.052 | G14: =IFERROR(G13/G9,"N/A") -> 0.052 | H14: 0.052 | I14: 0.052 | J14: 0.052 | K14: N/A | L14: N/A | M14: N/A | N14: N/A | O14: N/A | P14: N/A | Q14: N/A | R14: =IFERROR(R13/R9,"N/A") -> N/A
A15: ='Control Panel'!B10 -> LDP.01.01.01: Obesity BMI more than or equal to 35 less than 40 (last 12m) | B15: LDP.01.01.01: Obesity BMI more than or equal to 35 less than 40 (last 12m) | C15: ='Control Panel'!D10 -> BMI ≥ 35 & <40 | D15: =IF($C$5="Total",SUMIFS(OFFSET(REL_D,,MATCH($A15,IND,0)-2),REL_D,D$4,NwID,$C$4),SUMIFS(OFFSET(REL_D,,MATCH($A15,IND,0)-2),REL_D,D$4,OrgID,$C$5)) -> 3787 | E15: =IF($C$5="Total",SUMIFS(OFFSET(REL_D,,MATCH($A15,IND,0)-2),REL_D,E$4,NwID,$C$4),SUMIFS(OFFSET(REL_D,,MATCH($A15,IND,0)-2),REL_D,E$4,OrgID,$C$5)) -> 4684 | F15: =IF($C$5="Total",SUMIFS(OFFSET(REL_D,,MATCH($A15,IND,0)-2),REL_D,F$4,NwID,$C$4),SUMIFS(OFFSET(REL_D,,MATCH($A15,IND,0)-2),REL_D,F$4,OrgID,$C$5)) -> 4669 | G15: =IF($C$5="Total",SUMIFS(OFFSET(REL_D,,MATCH($A15,IND,0)-2),REL_D,G$4,NwID,$C$4),SUMIFS(OFFSET(REL_D,,MATCH($A15,IND,0)-2),REL_D,G$4,OrgID,$C$5)) -> 4620 | H15: =IF($C$5="Total",SUMIFS(OFFSET(REL_D,,MATCH($A15,IND,0)-2),REL_D,H$4,NwID,$C$4),SUMIFS(OFFSET(REL_D,,MATCH($A15,IND,0)-2),REL_D,H$4,OrgID,$C$5)) -> 4681 | I15: =IF($C$5="Total",SUMIFS(OFFSET(REL_D,,MATCH($A15,IND,0)-2),REL_D,I$4,NwID,$C$4),SUMIFS(OFFSET(REL_D,,MATCH($A15,IND,0)-2),REL_D,I$4,OrgID,$C$5)) -> 4714 | J15: =IF($C$5="Total",SUMIFS(OFFSET(REL_D,,MATCH($A15,IND,0)-2),REL_D,J$4,NwID,$C$4),SUMIFS(OFFSET(REL_D,,MATCH($A15,IND,0)-2),REL_D,J$4,OrgID,$C$5)) -> 4751 | K15: =IF($C$5="Total",SUMIFS(OFFSET(REL_D,,MATCH($A15,IND,0)-2),REL_D,K$4,NwID,$C$4),SUMIFS(OFFSET(REL_D,,MATCH($A15,IND,0)-2),REL_D,K$4,OrgID,$C$5)) -> 0 | L15: =IF($C$5="Total",SUMIFS(OFFSET(REL_D,,MATCH($A15,IND,0)-2),REL_D,L$4,NwID,$C$4),SUMIFS(OFFSET(REL_D,,MATCH($A15,IND,0)-2),REL_D,L$4,OrgID,$C$5)) -> 0 | M15: =IF($C$5="Total",SUMIFS(OFFSET(REL_D,,MATCH($A15,IND,0)-2),REL_D,M$4,NwID,$C$4),SUMIFS(OFFSET(REL_D,,MATCH($A15,IND,0)-2),REL_D,M$4,OrgID,$C$5)) -> 0 | N15: =IF($C$5="Total",SUMIFS(OFFSET(REL_D,,MATCH($A15,IND,0)-2),REL_D,N$4,NwID,$C$4),SUMIFS(OFFSET(REL_D,,MATCH($A15,IND,0)-2),REL_D,N$4,OrgID,$C$5)) -> 0 | O15: =IF($C$5="Total",SUMIFS(OFFSET(REL_D,,MATCH($A15,IND,0)-2),REL_D,O$4,NwID,$C$4),SUMIFS(OFFSET(REL_D,,MATCH($A15,IND,0)-2),REL_D,O$4,OrgID,$C$5)) -> 0 | P15: =IF($C$5="Total",SUMIFS(OFFSET(REL_D,,MATCH($A15,IND,0)-2),REL_D,P$4,NwID,$C$4),SUMIFS(OFFSET(REL_D,,MATCH($A15,IND,0)-2),REL_D,P$4,OrgID,$C$5)) -> 0 | Q15: =IF($C$5="Total",SUMIFS(OFFSET(REL_D,,MATCH($A15,IND,0)-2),REL_D,Q$4,NwID,$C$4),SUMIFS(OFFSET(REL_D,,MATCH($A15,IND,0)-2),REL_D,Q$4,OrgID,$C$5)) -> 0 | R15: =SUMIFS(OFFSET(REL_D,,MATCH($A15,IND,0)-1),REL_D,R$4,IF(LEFT($C$5,1)="N",NwID,OrgID),$C$5) -> 0
A16: ='Control Panel'!B11 -> %LDP.01.01.01: Obesity BMI more than or equal to 35 less than 40 (last 12m) | B16: %LDP.01.01.01: Obesity BMI more than or equal to 35 less than 40 (last 12m) | C16: ='Control Panel'!D11 -> %16+ | D16: =IFERROR(D15/D9,"N/A") -> 0.016 | E16: 0.019 | F16: =IFERROR(F15/F9,"N/A") -> 0.019 | G16: =IFERROR(G15/G9,"N/A") -> 0.019 | H16: 0.019 | I16: 0.019 | J16: 0.019 | K16: N/A | L16: N/A | M16: N/A | N16: N/A | O16: N/A | P16: N/A | Q16: N/A | R16: =IFERROR(R15/R9,"N/A") -> N/A
A17: ='Control Panel'!B12 -> LDP.01.01.03: Obesity BMI equal to or over 40 (last 12m) | B17: LDP.01.01.03: Obesity BMI equal to or over 40 (last 12m) | C17: ='Control Panel'!D12 -> BMI ≥ 40 | D17: =IF($C$5="Total",SUMIFS(OFFSET(REL_D,,MATCH($A17,IND,0)-2),REL_D,D$4,NwID,$C$4),SUMIFS(OFFSET(REL_D,,MATCH($A17,IND,0)-2),REL_D,D$4,OrgID,$C$5)) -> 2231 | E17: =IF($C$5="Total",SUMIFS(OFFSET(REL_D,,MATCH($A17,IND,0)-2),REL_D,E$4,NwID,$C$4),SUMIFS(OFFSET(REL_D,,MATCH($A17,IND,0)-2),REL_D,E$4,OrgID,$C$5)) -> 2626 | F17: =IF($C$5="Total",SUMIFS(OFFSET(REL_D,,MATCH($A17,IND,0)-2),REL_D,F$4,NwID,$C$4),SUMIFS(OFFSET(REL_D,,MATCH($A17,IND,0)-2),REL_D,F$4,OrgID,$C$5)) -> 2631 | G17: =IF($C$5="Total",SUMIFS(OFFSET(REL_D,,MATCH($A17,IND,0)-2),REL_D,G$4,NwID,$C$4),SUMIFS(OFFSET(REL_D,,MATCH($A17,IND,0)-2),REL_D,G$4,OrgID,$C$5)) -> 2606 | H17: =IF($C$5="Total",SUMIFS(OFFSET(REL_D,,MATCH($A17,IND,0)-2),REL_D,H$4,NwID,$C$4),SUMIFS(OFFSET(REL_D,,MATCH($A17,IND,0)-2),REL_D,H$4,OrgID,$C$5)) -> 2630 | I17: =IF($C$5="Total",SUMIFS(OFFSET(REL_D,,MATCH($A17,IND,0)-2),REL_D,I$4,NwID,$C$4),SUMIFS(OFFSET(REL_D,,MATCH($A17,IND,0)-2),REL_D,I$4,OrgID,$C$5)) -> 2627 | J17: =IF($C$5="Total",SUMIFS(OFFSET(REL_D,,MATCH($A17,IND,0)-2),REL_D,J$4,NwID,$C$4),SUMIFS(OFFSET(REL_D,,MATCH($A17,IND,0)-2),REL_D,J$4,OrgID,$C$5)) -> 2638 | K17: =IF($C$5="Total",SUMIFS(OFFSET(REL_D,,MATCH($A17,IND,0)-2),REL_D,K$4,NwID,$C$4),SUMIFS(OFFSET(REL_D,,MATCH($A17,IND,0)-2),REL_D,K$4,OrgID,$C$5)) -> 0 | L17: =IF($C$5="Total",SUMIFS(OFFSET(REL_D,,MATCH($A17,IND,0)-2),REL_D,L$4,NwID,$C$4),SUMIFS(OFFSET(REL_D,,MATCH($A17,IND,0)-2),REL_D,L$4,OrgID,$C$5)) -> 0 | M17: =IF($C$5="Total",SUMIFS(OFFSET(REL_D,,MATCH($A17,IND,0)-2),REL_D,M$4,NwID,$C$4),SUMIFS(OFFSET(REL_D,,MATCH($A17,IND,0)-2),REL_D,M$4,OrgID,$C$5)) -> 0 | N17: =IF($C$5="Total",SUMIFS(OFFSET(REL_D,,MATCH($A17,IND,0)-2),REL_D,N$4,NwID,$C$4),SUMIFS(OFFSET(REL_D,,MATCH($A17,IND,0)-2),REL_D,N$4,OrgID,$C$5)) -> 0 | O17: =IF($C$5="Total",SUMIFS(OFFSET(REL_D,,MATCH($A17,IND,0)-2),REL_D,O$4,NwID,$C$4),SUMIFS(OFFSET(REL_D,,MATCH($A17,IND,0)-2),REL_D,O$4,OrgID,$C$5)) -> 0 | P17: =IF($C$5="Total",SUMIFS(OFFSET(REL_D,,MATCH($A17,IND,0)-2),REL_D,P$4,NwID,$C$4),SUMIFS(OFFSET(REL_D,,MATCH($A17,IND,0)-2),REL_D,P$4,OrgID,$C$5)) -> 0 | Q17: =IF($C$5="Total",SUMIFS(OFFSET(REL_D,,MATCH($A17,IND,0)-2),REL_D,Q$4,NwID,$C$4),SUMIFS(OFFSET(REL_D,,MATCH($A17,IND,0)-2),REL_D,Q$4,OrgID,$C$5)) -> 0 | R17: =SUMIFS(OFFSET(REL_D,,MATCH($A17,IND,0)-1),REL_D,R$4,IF(LEFT($C$5,1)="N",NwID,OrgID),$C$5) -> 0
A18: ='Control Panel'!B13 -> %LDP.01.01.03: Obesity BMI equal to or over 40 (last 12m) | B18: %LDP.01.01.03: Obesity BMI equal to or over 40 (last 12m) | C18: ='Control Panel'!D13 -> %16+ | D18: =IFERROR(D17/D9,"N/A") -> 0.009 | E18: 0.011 | F18: =IFERROR(F17/F9,"N/A") -> 0.011 | G18: =IFERROR(G17/G9,"N/A") -> 0.01 | H18: 0.011 | I18: 0.011 | J18: 0.011 | K18: N/A | L18: N/A | M18: N/A | N18: N/A | O18: N/A | P18: N/A | Q18: N/A | R18: =IFERROR(R17/R9,"N/A") -> N/A
A19: ='Control Panel'!B14 -> LDP.01.02: Smoking Status (last 12m) or Never Smoked (25yrs+) | B19: LDP.01.02: Smoking Status (last 12m) or Never Smoked (25yrs+) | C19: ='Control Panel'!D14 -> Smoking status (last 12m) incl. never smoked | D19: =IF($C$5="Total",SUMIFS(OFFSET(REL_D,,MATCH($A19,IND,0)-2),REL_D,D$4,NwID,$C$4),SUMIFS(OFFSET(REL_D,,MATCH($A19,IND,0)-2),REL_D,D$4,OrgID,$C$5)) -> 159472 | E19: =IF($C$5="Total",SUMIFS(OFFSET(REL_D,,MATCH($A19,IND,0)-2),REL_D,E$4,NwID,$C$4),SUMIFS(OFFSET(REL_D,,MATCH($A19,IND,0)-2),REL_D,E$4,OrgID,$C$5)) -> 167159 | F19: =IF($C$5="Total",SUMIFS(OFFSET(REL_D,,MATCH($A19,IND,0)-2),REL_D,F$4,NwID,$C$4),SUMIFS(OFFSET(REL_D,,MATCH($A19,IND,0)-2),REL_D,F$4,OrgID,$C$5)) -> 167270 | G19: =IF($C$5="Total",SUMIFS(OFFSET(REL_D,,MATCH($A19,IND,0)-2),REL_D,G$4,NwID,$C$4),SUMIFS(OFFSET(REL_D,,MATCH($A19,IND,0)-2),REL_D,G$4,OrgID,$C$5)) -> 167794 | H19: =IF($C$5="Total",SUMIFS(OFFSET(REL_D,,MATCH($A19,IND,0)-2),REL_D,H$4,NwID,$C$4),SUMIFS(OFFSET(REL_D,,MATCH($A19,IND,0)-2),REL_D,H$4,OrgID,$C$5)) -> 168480 | I19: =IF($C$5="Total",SUMIFS(OFFSET(REL_D,,MATCH($A19,IND,0)-2),REL_D,I$4,NwID,$C$4),SUMIFS(OFFSET(REL_D,,MATCH($A19,IND,0)-2),REL_D,I$4,OrgID,$C$5)) -> 168431 | J19: =IF($C$5="Total",SUMIFS(OFFSET(REL_D,,MATCH($A19,IND,0)-2),REL_D,J$4,NwID,$C$4),SUMIFS(OFFSET(REL_D,,MATCH($A19,IND,0)-2),REL_D,J$4,OrgID,$C$5)) -> 168267 | K19: =IF($C$5="Total",SUMIFS(OFFSET(REL_D,,MATCH($A19,IND,0)-2),REL_D,K$4,NwID,$C$4),SUMIFS(OFFSET(REL_D,,MATCH($A19,IND,0)-2),REL_D,K$4,OrgID,$C$5)) -> 0 | L19: =IF($C$5="Total",SUMIFS(OFFSET(REL_D,,MATCH($A19,IND,0)-2),REL_D,L$4,NwID,$C$4),SUMIFS(OFFSET(REL_D,,MATCH($A19,IND,0)-2),REL_D,L$4,OrgID,$C$5)) -> 0 | M19: =IF($C$5="Total",SUMIFS(OFFSET(REL_D,,MATCH($A19,IND,0)-2),REL_D,M$4,NwID,$C$4),SUMIFS(OFFSET(REL_D,,MATCH($A19,IND,0)-2),REL_D,M$4,OrgID,$C$5)) -> 0 | N19: =IF($C$5="Total",SUMIFS(OFFSET(REL_D,,MATCH($A19,IND,0)-2),REL_D,N$4,NwID,$C$4),SUMIFS(OFFSET(REL_D,,MATCH($A19,IND,0)-2),REL_D,N$4,OrgID,$C$5)) -> 0 | O19: =IF($C$5="Total",SUMIFS(OFFSET(REL_D,,MATCH($A19,IND,0)-2),REL_D,O$4,NwID,$C$4),SUMIFS(OFFSET(REL_D,,MATCH($A19,IND,0)-2),REL_D,O$4,OrgID,$C$5)) -> 0 | P19: =IF($C$5="Total",SUMIFS(OFFSET(REL_D,,MATCH($A19,IND,0)-2),REL_D,P$4,NwID,$C$4),SUMIFS(OFFSET(REL_D,,MATCH($A19,IND,0)-2),REL_D,P$4,OrgID,$C$5)) -> 0 | Q19: =IF($C$5="Total",SUMIFS(OFFSET(REL_D,,MATCH($A19,IND,0)-2),REL_D,Q$4,NwID,$C$4),SUMIFS(OFFSET(REL_D,,MATCH($A19,IND,0)-2),REL_D,Q$4,OrgID,$C$5)) -> 0 | R19: =SUMIFS(OFFSET(REL_D,,MATCH($A19,IND,0)-1),REL_D,R$4,IF(LEFT($C$5,1)="N",NwID,OrgID),$C$5) -> 0
A20: ='Control Panel'!B15 -> %LDP.01.02: Smoking Status (last 12m) or Never Smoked (25yrs+) | B20: %LDP.01.02: Smoking Status (last 12m) or Never Smoked (25yrs+) | C20: ='Control Panel'!D15 -> % 16+ | D20: =IFERROR(D19/D9,"N/A") -> 0.67 | E20: 0.678 | F20: =IFERROR(F19/F9,"N/A") -> 0.677 | G20: =IFERROR(G19/G9,"N/A") -> 0.676 | H20: 0.676 | I20: 0.674 | J20: 0.672 | K20: N/A | L20: N/A | M20: N/A | N20: N/A | O20: N/A | P20: N/A | Q20: N/A | R20: =IFERROR(R19/R9,"N/A") -> N/A
A21: ='Control Panel'!B16 -> LDP.01.03: Current Smoker (last 12m) | B21: LDP.01.03: Current Smoker (last 12m) | C21: ='Control Panel'!D16 -> Age 16+ and current smoker (last 12m) | D21: =IF($C$5="Total",SUMIFS(OFFSET(REL_D,,MATCH($A21,IND,0)-2),REL_D,D$4,NwID,$C$4),SUMIFS(OFFSET(REL_D,,MATCH($A21,IND,0)-2),REL_D,D$4,OrgID,$C$5)) -> 9162 | E21: =IF($C$5="Total",SUMIFS(OFFSET(REL_D,,MATCH($A21,IND,0)-2),REL_D,E$4,NwID,$C$4),SUMIFS(OFFSET(REL_D,,MATCH($A21,IND,0)-2),REL_D,E$4,OrgID,$C$5)) -> 10168 | F21: =IF($C$5="Total",SUMIFS(OFFSET(REL_D,,MATCH($A21,IND,0)-2),REL_D,F$4,NwID,$C$4),SUMIFS(OFFSET(REL_D,,MATCH($A21,IND,0)-2),REL_D,F$4,OrgID,$C$5)) -> 10044 | G21: =IF($C$5="Total",SUMIFS(OFFSET(REL_D,,MATCH($A21,IND,0)-2),REL_D,G$4,NwID,$C$4),SUMIFS(OFFSET(REL_D,,MATCH($A21,IND,0)-2),REL_D,G$4,OrgID,$C$5)) -> 9984 | H21: =IF($C$5="Total",SUMIFS(OFFSET(REL_D,,MATCH($A21,IND,0)-2),REL_D,H$4,NwID,$C$4),SUMIFS(OFFSET(REL_D,,MATCH($A21,IND,0)-2),REL_D,H$4,OrgID,$C$5)) -> 10039 | I21: =IF($C$5="Total",SUMIFS(OFFSET(REL_D,,MATCH($A21,IND,0)-2),REL_D,I$4,NwID,$C$4),SUMIFS(OFFSET(REL_D,,MATCH($A21,IND,0)-2),REL_D,I$4,OrgID,$C$5)) -> 9996 | J21: =IF($C$5="Total",SUMIFS(OFFSET(REL_D,,MATCH($A21,IND,0)-2),REL_D,J$4,NwID,$C$4),SUMIFS(OFFSET(REL_D,,MATCH($A21,IND,0)-2),REL_D,J$4,OrgID,$C$5)) -> 9790 | K21: =IF($C$5="Total",SUMIFS(OFFSET(REL_D,,MATCH($A21,IND,0)-2),REL_D,K$4,NwID,$C$4),SUMIFS(OFFSET(REL_D,,MATCH($A21,IND,0)-2),REL_D,K$4,OrgID,$C$5)) -> 0 | L21: =IF($C$5="Total",SUMIFS(OFFSET(REL_D,,MATCH($A21,IND,0)-2),REL_D,L$4,NwID,$C$4),SUMIFS(OFFSET(REL_D,,MATCH($A21,IND,0)-2),REL_D,L$4,OrgID,$C$5)) -> 0 | M21: =IF($C$5="Total",SUMIFS(OFFSET(REL_D,,MATCH($A21,IND,0)-2),REL_D,M$4,NwID,$C$4),SUMIFS(OFFSET(REL_D,,MATCH($A21,IND,0)-2),REL_D,M$4,OrgID,$C$5)) -> 0 | N21: =IF($C$5="Total",SUMIFS(OFFSET(REL_D,,MATCH($A21,IND,0)-2),REL_D,N$4,NwID,$C$4),SUMIFS(OFFSET(REL_D,,MATCH($A21,IND,0)-2),REL_D,N$4,OrgID,$C$5)) -> 0 | O21: =IF($C$5="Total",SUMIFS(OFFSET(REL_D,,MATCH($A21,IND,0)-2),REL_D,O$4,NwID,$C$4),SUMIFS(OFFSET(REL_D,,MATCH($A21,IND,0)-2),REL_D,O$4,OrgID,$C$5)) -> 0 | P21: =IF($C$5="Total",SUMIFS(OFFSET(REL_D,,MATCH($A21,IND,0)-2),REL_D,P$4,NwID,$C$4),SUMIFS(OFFSET(REL_D,,MATCH($A21,IND,0)-2),REL_D,P$4,OrgID,$C$5)) -> 0 | Q21: =IF($C$5="Total",SUMIFS(OFFSET(REL_D,,MATCH($A21,IND,0)-2),REL_D,Q$4,NwID,$C$4),SUMIFS(OFFSET(REL_D,,MATCH($A21,IND,0)-2),REL_D,Q$4,OrgID,$C$5)) -> 0 | R21: =SUMIFS(OFFSET(REL_D,,MATCH($A21,IND,0)-1),REL_D,R$4,IF(LEFT($C$5,1)="N",NwID,OrgID),$C$5) -> 0
A22: ='Control Panel'!B17 -> %LDP.01.03: Current Smoker (last 12m) | B22: %LDP.01.03: Current Smoker (last 12m) | C22: ='Control Panel'!D17 -> % 16+ | D22: =IFERROR(D21/D9,"N/A") -> 0.038 | E22: 0.041 | F22: =IFERROR(F21/F9,"N/A") -> 0.041 | G22: =IFERROR(G21/G9,"N/A") -> 0.04 | H22: 0.04 | I22: 0.04 | J22: 0.039 | K22: N/A | L22: N/A | M22: N/A | N22: N/A | O22: N/A | P22: N/A | Q22: N/A | R22: =IFERROR(R21/R9,"N/A") -> N/A
A23: ='Control Panel'!B18 -> Hypertension | B23: Hypertension | C23: ='Control Panel'!B18 -> Hypertension
A24: ='Control Panel'!B19 -> LDP.02: Hypertension Register | B24: LDP.02: Hypertension Register | C24: ='Control Panel'!D19 -> Hypertension Register | D24: =IF($C$5="Total",SUMIFS(OFFSET(REL_D,,MATCH($A24,IND,0)-2),REL_D,D$4,NwID,$C$4),SUMIFS(OFFSET(REL_D,,MATCH($A24,IND,0)-2),REL_D,D$4,OrgID,$C$5)) -> 35740 | E24: =IF($C$5="Total",SUMIFS(OFFSET(REL_D,,MATCH($A24,IND,0)-2),REL_D,E$4,NwID,$C$4),SUMIFS(OFFSET(REL_D,,MATCH($A24,IND,0)-2),REL_D,E$4,OrgID,$C$5)) -> 37069 | F24: =IF($C$5="Total",SUMIFS(OFFSET(REL_D,,MATCH($A24,IND,0)-2),REL_D,F$4,NwID,$C$4),SUMIFS(OFFSET(REL_D,,MATCH($A24,IND,0)-2),REL_D,F$4,OrgID,$C$5)) -> 37158 | G24: =IF($C$5="Total",SUMIFS(OFFSET(REL_D,,MATCH($A24,IND,0)-2),REL_D,G$4,NwID,$C$4),SUMIFS(OFFSET(REL_D,,MATCH($A24,IND,0)-2),REL_D,G$4,OrgID,$C$5)) -> 37316 | H24: =IF($C$5="Total",SUMIFS(OFFSET(REL_D,,MATCH($A24,IND,0)-2),REL_D,H$4,NwID,$C$4),SUMIFS(OFFSET(REL_D,,MATCH($A24,IND,0)-2),REL_D,H$4,OrgID,$C$5)) -> 37418 | I24: =IF($C$5="Total",SUMIFS(OFFSET(REL_D,,MATCH($A24,IND,0)-2),REL_D,I$4,NwID,$C$4),SUMIFS(OFFSET(REL_D,,MATCH($A24,IND,0)-2),REL_D,I$4,OrgID,$C$5)) -> 37493 | J24: =IF($C$5="Total",SUMIFS(OFFSET(REL_D,,MATCH($A24,IND,0)-2),REL_D,J$4,NwID,$C$4),SUMIFS(OFFSET(REL_D,,MATCH($A24,IND,0)-2),REL_D,J$4,OrgID,$C$5)) -> 37552 | K24: =IF($C$5="Total",SUMIFS(OFFSET(REL_D,,MATCH($A24,IND,0)-2),REL_D,K$4,NwID,$C$4),SUMIFS(OFFSET(REL_D,,MATCH($A24,IND,0)-2),REL_D,K$4,OrgID,$C$5)) -> 0 | L24: =IF($C$5="Total",SUMIFS(OFFSET(REL_D,,MATCH($A24,IND,0)-2),REL_D,L$4,NwID,$C$4),SUMIFS(OFFSET(REL_D,,MATCH($A24,IND,0)-2),REL_D,L$4,OrgID,$C$5)) -> 0 | M24: =IF($C$5="Total",SUMIFS(OFFSET(REL_D,,MATCH($A24,IND,0)-2),REL_D,M$4,NwID,$C$4),SUMIFS(OFFSET(REL_D,,MATCH($A24,IND,0)-2),REL_D,M$4,OrgID,$C$5)) -> 0 | N24: =IF($C$5="Total",SUMIFS(OFFSET(REL_D,,MATCH($A24,IND,0)-2),REL_D,N$4,NwID,$C$4),SUMIFS(OFFSET(REL_D,,MATCH($A24,IND,0)-2),REL_D,N$4,OrgID,$C$5)) -> 0 | O24: =IF($C$5="Total",SUMIFS(OFFSET(REL_D,,MATCH($A24,IND,0)-2),REL_D,O$4,NwID,$C$4),SUMIFS(OFFSET(REL_D,,MATCH($A24,IND,0)-2),REL_D,O$4,OrgID,$C$5)) -> 0 | P24: =IF($C$5="Total",SUMIFS(OFFSET(REL_D,,MATCH($A24,IND,0)-2),REL_D,P$4,NwID,$C$4),SUMIFS(OFFSET(REL_D,,MATCH($A24,IND,0)-2),REL_D,P$4,OrgID,$C$5)) -> 0 | Q24: =IF($C$5="Total",SUMIFS(OFFSET(REL_D,,MATCH($A24,IND,0)-2),REL_D,Q$4,NwID,$C$4),SUMIFS(OFFSET(REL_D,,MATCH($A24,IND,0)-2),REL_D,Q$4,OrgID,$C$5)) -> 0 | R24: =SUMIFS(OFFSET(REL_D,,MATCH($A24,IND,0)-1),REL_D,R$4,IF(LEFT($C$5,1)="N",NwID,OrgID),$C$5) -> 0
A25: ='Control Panel'!B20 -> %LDP.02: Hypertension Register | B25: %LDP.02: Hypertension Register | C25: ='Control Panel'!D20 -> % list size | D25: =IFERROR(D24/D8,"N/A") -> 0.119 | E25: 0.12 | F25: =IFERROR(F24/F8,"N/A") -> 0.12 | G25: =IFERROR(G24/G8,"N/A") -> 0.12 | H25: 0.12 | I25: 0.12 | J25: 0.12 | K25: N/A | L25: N/A | M25: N/A | N25: N/A | O25: N/A | P25: N/A | Q25: N/A | R25: =IFERROR(R24/R8,"N/A") -> N/A
A26: ='Control Panel'!B21 -> LDP.02.02: Hypertension BP recorded (last 12m) | B26: LDP.02.02: Hypertension BP recorded (last 12m) | C26: ='Control Panel'!D21 -> Hypertension and BP (last 12m) | D26: =IF($C$5="Total",SUMIFS(OFFSET(REL_D,,MATCH($A26,IND,0)-2),REL_D,D$4,NwID,$C$4),SUMIFS(OFFSET(REL_D,,MATCH($A26,IND,0)-2),REL_D,D$4,OrgID,$C$5)) -> 26058 | E26: =IF($C$5="Total",SUMIFS(OFFSET(REL_D,,MATCH($A26,IND,0)-2),REL_D,E$4,NwID,$C$4),SUMIFS(OFFSET(REL_D,,MATCH($A26,IND,0)-2),REL_D,E$4,OrgID,$C$5)) -> 31488 | F26: =IF($C$5="Total",SUMIFS(OFFSET(REL_D,,MATCH($A26,IND,0)-2),REL_D,F$4,NwID,$C$4),SUMIFS(OFFSET(REL_D,,MATCH($A26,IND,0)-2),REL_D,F$4,OrgID,$C$5)) -> 31354 | G26: =IF($C$5="Total",SUMIFS(OFFSET(REL_D,,MATCH($A26,IND,0)-2),REL_D,G$4,NwID,$C$4),SUMIFS(OFFSET(REL_D,,MATCH($A26,IND,0)-2),REL_D,G$4,OrgID,$C$5)) -> 31151 | H26: =IF($C$5="Total",SUMIFS(OFFSET(REL_D,,MATCH($A26,IND,0)-2),REL_D,H$4,NwID,$C$4),SUMIFS(OFFSET(REL_D,,MATCH($A26,IND,0)-2),REL_D,H$4,OrgID,$C$5)) -> 31038 | I26: =IF($C$5="Total",SUMIFS(OFFSET(REL_D,,MATCH($A26,IND,0)-2),REL_D,I$4,NwID,$C$4),SUMIFS(OFFSET(REL_D,,MATCH($A26,IND,0)-2),REL_D,I$4,OrgID,$C$5)) -> 31158 | J26: =IF($C$5="Total",SUMIFS(OFFSET(REL_D,,MATCH($A26,IND,0)-2),REL_D,J$4,NwID,$C$4),SUMIFS(OFFSET(REL_D,,MATCH($A26,IND,0)-2),REL_D,J$4,OrgID,$C$5)) -> 31150 | K26: =IF($C$5="Total",SUMIFS(OFFSET(REL_D,,MATCH($A26,IND,0)-2),REL_D,K$4,NwID,$C$4),SUMIFS(OFFSET(REL_D,,MATCH($A26,IND,0)-2),REL_D,K$4,OrgID,$C$5)) -> 0 | L26: =IF($C$5="Total",SUMIFS(OFFSET(REL_D,,MATCH($A26,IND,0)-2),REL_D,L$4,NwID,$C$4),SUMIFS(OFFSET(REL_D,,MATCH($A26,IND,0)-2),REL_D,L$4,OrgID,$C$5)) -> 0 | M26: =IF($C$5="Total",SUMIFS(OFFSET(REL_D,,MATCH($A26,IND,0)-2),REL_D,M$4,NwID,$C$4),SUMIFS(OFFSET(REL_D,,MATCH($A26,IND,0)-2),REL_D,M$4,OrgID,$C$5)) -> 0 | N26: =IF($C$5="Total",SUMIFS(OFFSET(REL_D,,MATCH($A26,IND,0)-2),REL_D,N$4,NwID,$C$4),SUMIFS(OFFSET(REL_D,,MATCH($A26,IND,0)-2),REL_D,N$4,OrgID,$C$5)) -> 0 | O26: =IF($C$5="Total",SUMIFS(OFFSET(REL_D,,MATCH($A26,IND,0)-2),REL_D,O$4,NwID,$C$4),SUMIFS(OFFSET(REL_D,,MATCH($A26,IND,0)-2),REL_D,O$4,OrgID,$C$5)) -> 0 | P26: =IF($C$5="Total",SUMIFS(OFFSET(REL_D,,MATCH($A26,IND,0)-2),REL_D,P$4,NwID,$C$4),SUMIFS(OFFSET(REL_D,,MATCH($A26,IND,0)-2),REL_D,P$4,OrgID,$C$5)) -> 0 | Q26: =IF($C$5="Total",SUMIFS(OFFSET(REL_D,,MATCH($A26,IND,0)-2),REL_D,Q$4,NwID,$C$4),SUMIFS(OFFSET(REL_D,,MATCH($A26,IND,0)-2),REL_D,Q$4,OrgID,$C$5)) -> 0 | R26: =SUMIFS(OFFSET(REL_D,,MATCH($A26,IND,0)-1),REL_D,R$4,IF(LEFT($C$5,1)="N",NwID,OrgID),$C$5) -> 0
A27: ='Control Panel'!B22 -> %LDP.02.02: Hypertension BP recorded (last 12m) | B27: %LDP.02.02: Hypertension BP recorded (last 12m) | C27: ='Control Panel'!D22 -> % Hypertension Register | D27: =IFERROR(D26/D24,"N/A") -> 0.729 | E27: 0.849 | F27: =IFERROR(F26/F24,"N/A") -> 0.844 | G27: =IFERROR(G26/G24,"N/A") -> 0.835 | H27: 0.829 | I27: 0.831 | J27: 0.83 | K27: N/A | L27: N/A | M27: N/A | N27: N/A | O27: N/A | P27: N/A | Q27: N/A | R27: =IFERROR(R26/R24,"N/A") -> N/A
A28: ='Control Panel'!B23 -> LDP.02.01: Hypertension and BP < 140/90 (age under 80) < 150/90 (Age 80+) | B28: LDP.02.01: Hypertension and BP < 140/90 (age under 80) < 150/90 (Age 80+) | C28: ='Control Panel'!D23 -> Hypertension and BP < 140/90 (Patients aged under 80) < 150/90 ( Aged 80 and over) (last 12m) | D28: =IF($C$5="Total",SUMIFS(OFFSET(REL_D,,MATCH($A28,IND,0)-2),REL_D,D$4,NwID,$C$4),SUMIFS(OFFSET(REL_D,,MATCH($A28,IND,0)-2),REL_D,D$4,OrgID,$C$5)) -> 16845 | E28: =IF($C$5="Total",SUMIFS(OFFSET(REL_D,,MATCH($A28,IND,0)-2),REL_D,E$4,NwID,$C$4),SUMIFS(OFFSET(REL_D,,MATCH($A28,IND,0)-2),REL_D,E$4,OrgID,$C$5)) -> 21383 | F28: =IF($C$5="Total",SUMIFS(OFFSET(REL_D,,MATCH($A28,IND,0)-2),REL_D,F$4,NwID,$C$4),SUMIFS(OFFSET(REL_D,,MATCH($A28,IND,0)-2),REL_D,F$4,OrgID,$C$5)) -> 21200 | G28: =IF($C$5="Total",SUMIFS(OFFSET(REL_D,,MATCH($A28,IND,0)-2),REL_D,G$4,NwID,$C$4),SUMIFS(OFFSET(REL_D,,MATCH($A28,IND,0)-2),REL_D,G$4,OrgID,$C$5)) -> 21062 | H28: =IF($C$5="Total",SUMIFS(OFFSET(REL_D,,MATCH($A28,IND,0)-2),REL_D,H$4,NwID,$C$4),SUMIFS(OFFSET(REL_D,,MATCH($A28,IND,0)-2),REL_D,H$4,OrgID,$C$5)) -> 21043 | I28: =IF($C$5="Total",SUMIFS(OFFSET(REL_D,,MATCH($A28,IND,0)-2),REL_D,I$4,NwID,$C$4),SUMIFS(OFFSET(REL_D,,MATCH($A28,IND,0)-2),REL_D,I$4,OrgID,$C$5)) -> 21137 | J28: =IF($C$5="Total",SUMIFS(OFFSET(REL_D,,MATCH($A28,IND,0)-2),REL_D,J$4,NwID,$C$4),SUMIFS(OFFSET(REL_D,,MATCH($A28,IND,0)-2),REL_D,J$4,OrgID,$C$5)) -> 21153 | K28: =IF($C$5="Total",SUMIFS(OFFSET(REL_D,,MATCH($A28,IND,0)-2),REL_D,K$4,NwID,$C$4),SUMIFS(OFFSET(REL_D,,MATCH($A28,IND,0)-2),REL_D,K$4,OrgID,$C$5)) -> 0 | L28: =IF($C$5="Total",SUMIFS(OFFSET(REL_D,,MATCH($A28,IND,0)-2),REL_D,L$4,NwID,$C$4),SUMIFS(OFFSET(REL_D,,MATCH($A28,IND,0)-2),REL_D,L$4,OrgID,$C$5)) -> 0 | M28: =IF($C$5="Total",SUMIFS(OFFSET(REL_D,,MATCH($A28,IND,0)-2),REL_D,M$4,NwID,$C$4),SUMIFS(OFFSET(REL_D,,MATCH($A28,IND,0)-2),REL_D,M$4,OrgID,$C$5)) -> 0 | N28: =IF($C$5="Total",SUMIFS(OFFSET(REL_D,,MATCH($A28,IND,0)-2),REL_D,N$4,NwID,$C$4),SUMIFS(OFFSET(REL_D,,MATCH($A28,IND,0)-2),REL_D,N$4,OrgID,$C$5)) -> 0 | O28: =IF($C$5="Total",SUMIFS(OFFSET(REL_D,,MATCH($A28,IND,0)-2),REL_D,O$4,NwID,$C$4),SUMIFS(OFFSET(REL_D,,MATCH($A28,IND,0)-2),REL_D,O$4,OrgID,$C$5)) -> 0 | P28: =IF($C$5="Total",SUMIFS(OFFSET(REL_D,,MATCH($A28,IND,0)-2),REL_D,P$4,NwID,$C$4),SUMIFS(OFFSET(REL_D,,MATCH($A28,IND,0)-2),REL_D,P$4,OrgID,$C$5)) -> 0 | Q28: =IF($C$5="Total",SUMIFS(OFFSET(REL_D,,MATCH($A28,IND,0)-2),REL_D,Q$4,NwID,$C$4),SUMIFS(OFFSET(REL_D,,MATCH($A28,IND,0)-2),REL_D,Q$4,OrgID,$C$5)) -> 0 | R28: =SUMIFS(OFFSET(REL_D,,MATCH($A28,IND,0)-1),REL_D,R$4,IF(LEFT($C$5,1)="N",NwID,OrgID),$C$5) -> 0
A29: ='Control Panel'!B24 -> %LDP.02.01: Hypertension and BP < 140/90 (age under 80) < 150/90 (Age 80+) | B29: %LDP.02.01: Hypertension and BP < 140/90 (age under 80) < 150/90 (Age 80+) | C29: ='Control Panel'!D24 -> % Hypertension Register | D29: =IFERROR(D28/D24,"N/A") -> 0.471 | E29: 0.577 | F29: =IFERROR(F28/F24,"N/A") -> 0.571 | G29: =IFERROR(G28/G24,"N/A") -> 0.564 | H29: 0.562 | I29: 0.564 | J29: 0.563 | K29: N/A | L29: N/A | M29: N/A | N29: N/A | O29: N/A | P29: N/A | Q29: N/A | R29: =IFERROR(R28/R24,"N/A") -> N/A
A30: ='Control Panel'!B25 -> CHD | B30: CHD | C30: ='Control Panel'!B25 -> CHD
A31: ='Control Panel'!B26 -> LDP.03: CHD Register | B31: LDP.03: CHD Register | C31: ='Control Panel'!D26 -> CHD register | D31: =IF($C$5="Total",SUMIFS(OFFSET(REL_D,,MATCH($A31,IND,0)-2),REL_D,D$4,NwID,$C$4),SUMIFS(OFFSET(REL_D,,MATCH($A31,IND,0)-2),REL_D,D$4,OrgID,$C$5)) -> 6892 | E31: =IF($C$5="Total",SUMIFS(OFFSET(REL_D,,MATCH($A31,IND,0)-2),REL_D,E$4,NwID,$C$4),SUMIFS(OFFSET(REL_D,,MATCH($A31,IND,0)-2),REL_D,E$4,OrgID,$C$5)) -> 6783 | F31: =IF($C$5="Total",SUMIFS(OFFSET(REL_D,,MATCH($A31,IND,0)-2),REL_D,F$4,NwID,$C$4),SUMIFS(OFFSET(REL_D,,MATCH($A31,IND,0)-2),REL_D,F$4,OrgID,$C$5)) -> 6794 | G31: =IF($C$5="Total",SUMIFS(OFFSET(REL_D,,MATCH($A31,IND,0)-2),REL_D,G$4,NwID,$C$4),SUMIFS(OFFSET(REL_D,,MATCH($A31,IND,0)-2),REL_D,G$4,OrgID,$C$5)) -> 6819 | H31: =IF($C$5="Total",SUMIFS(OFFSET(REL_D,,MATCH($A31,IND,0)-2),REL_D,H$4,NwID,$C$4),SUMIFS(OFFSET(REL_D,,MATCH($A31,IND,0)-2),REL_D,H$4,OrgID,$C$5)) -> 6833 | I31: =IF($C$5="Total",SUMIFS(OFFSET(REL_D,,MATCH($A31,IND,0)-2),REL_D,I$4,NwID,$C$4),SUMIFS(OFFSET(REL_D,,MATCH($A31,IND,0)-2),REL_D,I$4,OrgID,$C$5)) -> 6840 | J31: =IF($C$5="Total",SUMIFS(OFFSET(REL_D,,MATCH($A31,IND,0)-2),REL_D,J$4,NwID,$C$4),SUMIFS(OFFSET(REL_D,,MATCH($A31,IND,0)-2),REL_D,J$4,OrgID,$C$5)) -> 6831 | K31: =IF($C$5="Total",SUMIFS(OFFSET(REL_D,,MATCH($A31,IND,0)-2),REL_D,K$4,NwID,$C$4),SUMIFS(OFFSET(REL_D,,MATCH($A31,IND,0)-2),REL_D,K$4,OrgID,$C$5)) -> 0 | L31: =IF($C$5="Total",SUMIFS(OFFSET(REL_D,,MATCH($A31,IND,0)-2),REL_D,L$4,NwID,$C$4),SUMIFS(OFFSET(REL_D,,MATCH($A31,IND,0)-2),REL_D,L$4,OrgID,$C$5)) -> 0 | M31: =IF($C$5="Total",SUMIFS(OFFSET(REL_D,,MATCH($A31,IND,0)-2),REL_D,M$4,NwID,$C$4),SUMIFS(OFFSET(REL_D,,MATCH($A31,IND,0)-2),REL_D,M$4,OrgID,$C$5)) -> 0 | N31: =IF($C$5="Total",SUMIFS(OFFSET(REL_D,,MATCH($A31,IND,0)-2),REL_D,N$4,NwID,$C$4),SUMIFS(OFFSET(REL_D,,MATCH($A31,IND,0)-2),REL_D,N$4,OrgID,$C$5)) -> 0 | O31: =IF($C$5="Total",SUMIFS(OFFSET(REL_D,,MATCH($A31,IND,0)-2),REL_D,O$4,NwID,$C$4),SUMIFS(OFFSET(REL_D,,MATCH($A31,IND,0)-2),REL_D,O$4,OrgID,$C$5)) -> 0 | P31: =IF($C$5="Total",SUMIFS(OFFSET(REL_D,,MATCH($A31,IND,0)-2),REL_D,P$4,NwID,$C$4),SUMIFS(OFFSET(REL_D,,MATCH($A31,IND,0)-2),REL_D,P$4,OrgID,$C$5)) -> 0 | Q31: =IF($C$5="Total",SUMIFS(OFFSET(REL_D,,MATCH($A31,IND,0)-2),REL_D,Q$4,NwID,$C$4),SUMIFS(OFFSET(REL_D,,MATCH($A31,IND,0)-2),REL_D,Q$4,OrgID,$C$5)) -> 0 | R31: =SUMIFS(OFFSET(REL_D,,MATCH($A31,IND,0)-1),REL_D,R$4,IF(LEFT($C$5,1)="N",NwID,OrgID),$C$5) -> 0
A32: ='Control Panel'!B27 -> %LDP.03: CHD Register | B32: %LDP.03: CHD Register | C32: ='Control Panel'!D27 -> % list size | D32: =IFERROR(D31/D8,"N/A") -> 0.023 | E32: 0.022 | F32: =IFERROR(F31/F8,"N/A") -> 0.022 | G32: =IFERROR(G31/G8,"N/A") -> 0.022 | H32: 0.022 | I32: 0.022 | J32: 0.022 | K32: N/A | L32: N/A | M32: N/A | N32: N/A | O32: N/A | P32: N/A | Q32: N/A | R32: =IFERROR(R31/R8,"N/A") -> N/A
A33: ='Control Panel'!B28 -> LDP.03.04: CHD Cholesterol recorded (last 12m) | B33: LDP.03.04: CHD Cholesterol recorded (last 12m) | C33: ='Control Panel'!D28 -> Cholesterol (last 12m) | D33: =IF($C$5="Total",SUMIFS(OFFSET(REL_D,,MATCH($A33,IND,0)-2),REL_D,D$4,NwID,$C$4),SUMIFS(OFFSET(REL_D,,MATCH($A33,IND,0)-2),REL_D,D$4,OrgID,$C$5)) -> 1039 | E33: =IF($C$5="Total",SUMIFS(OFFSET(REL_D,,MATCH($A33,IND,0)-2),REL_D,E$4,NwID,$C$4),SUMIFS(OFFSET(REL_D,,MATCH($A33,IND,0)-2),REL_D,E$4,OrgID,$C$5)) -> 1187 | F33: =IF($C$5="Total",SUMIFS(OFFSET(REL_D,,MATCH($A33,IND,0)-2),REL_D,F$4,NwID,$C$4),SUMIFS(OFFSET(REL_D,,MATCH($A33,IND,0)-2),REL_D,F$4,OrgID,$C$5)) -> 1162 | G33: =IF($C$5="Total",SUMIFS(OFFSET(REL_D,,MATCH($A33,IND,0)-2),REL_D,G$4,NwID,$C$4),SUMIFS(OFFSET(REL_D,,MATCH($A33,IND,0)-2),REL_D,G$4,OrgID,$C$5)) -> 1168 | H33: =IF($C$5="Total",SUMIFS(OFFSET(REL_D,,MATCH($A33,IND,0)-2),REL_D,H$4,NwID,$C$4),SUMIFS(OFFSET(REL_D,,MATCH($A33,IND,0)-2),REL_D,H$4,OrgID,$C$5)) -> 1113 | I33: =IF($C$5="Total",SUMIFS(OFFSET(REL_D,,MATCH($A33,IND,0)-2),REL_D,I$4,NwID,$C$4),SUMIFS(OFFSET(REL_D,,MATCH($A33,IND,0)-2),REL_D,I$4,OrgID,$C$5)) -> 1124 | J33: =IF($C$5="Total",SUMIFS(OFFSET(REL_D,,MATCH($A33,IND,0)-2),REL_D,J$4,NwID,$C$4),SUMIFS(OFFSET(REL_D,,MATCH($A33,IND,0)-2),REL_D,J$4,OrgID,$C$5)) -> 1153 | K33: =IF($C$5="Total",SUMIFS(OFFSET(REL_D,,MATCH($A33,IND,0)-2),REL_D,K$4,NwID,$C$4),SUMIFS(OFFSET(REL_D,,MATCH($A33,IND,0)-2),REL_D,K$4,OrgID,$C$5)) -> 0 | L33: =IF($C$5="Total",SUMIFS(OFFSET(REL_D,,MATCH($A33,IND,0)-2),REL_D,L$4,NwID,$C$4),SUMIFS(OFFSET(REL_D,,MATCH($A33,IND,0)-2),REL_D,L$4,OrgID,$C$5)) -> 0 | M33: =IF($C$5="Total",SUMIFS(OFFSET(REL_D,,MATCH($A33,IND,0)-2),REL_D,M$4,NwID,$C$4),SUMIFS(OFFSET(REL_D,,MATCH($A33,IND,0)-2),REL_D,M$4,OrgID,$C$5)) -> 0 | N33: =IF($C$5="Total",SUMIFS(OFFSET(REL_D,,MATCH($A33,IND,0)-2),REL_D,N$4,NwID,$C$4),SUMIFS(OFFSET(REL_D,,MATCH($A33,IND,0)-2),REL_D,N$4,OrgID,$C$5)) -> 0 | O33: =IF($C$5="Total",SUMIFS(OFFSET(REL_D,,MATCH($A33,IND,0)-2),REL_D,O$4,NwID,$C$4),SUMIFS(OFFSET(REL_D,,MATCH($A33,IND,0)-2),REL_D,O$4,OrgID,$C$5)) -> 0 | P33: =IF($C$5="Total",SUMIFS(OFFSET(REL_D,,MATCH($A33,IND,0)-2),REL_D,P$4,NwID,$C$4),SUMIFS(OFFSET(REL_D,,MATCH($A33,IND,0)-2),REL_D,P$4,OrgID,$C$5)) -> 0 | Q33: =IF($C$5="Total",SUMIFS(OFFSET(REL_D,,MATCH($A33,IND,0)-2),REL_D,Q$4,NwID,$C$4),SUMIFS(OFFSET(REL_D,,MATCH($A33,IND,0)-2),REL_D,Q$4,OrgID,$C$5)) -> 0 | R33: =SUMIFS(OFFSET(REL_D,,MATCH($A33,IND,0)-1),REL_D,R$4,IF(LEFT($C$5,1)="N",NwID,OrgID),$C$5) -> 0
A34: ='Control Panel'!B29 -> %LDP.03.04: CHD Cholesterol recorded (last 12m) | B34: %LDP.03.04: CHD Cholesterol recorded (last 12m) | C34: ='Control Panel'!D29 -> % CHD register | D34: =IFERROR(D33/D31,"N/A") -> 0.151 | E34: 0.175 | F34: =IFERROR(F33/F31,"N/A") -> 0.171 | G34: =IFERROR(G33/G31,"N/A") -> 0.171 | H34: 0.163 | I34: 0.164 | J34: 0.169 | K34: N/A | L34: N/A | M34: N/A | N34: N/A | O34: N/A | P34: N/A | Q34: N/A | R34: =IFERROR(R33/R31,"N/A") -> N/A
A35: ='Control Panel'!B30 -> LDP.03.01: CHD Chol less than 5mmol (last 12m) | B35: LDP.03.01: CHD Chol less than 5mmol (last 12m) | C35: ='Control Panel'!D30 -> Cholesterol < 5 (last 12m) | D35: =IF($C$5="Total",SUMIFS(OFFSET(REL_D,,MATCH($A35,IND,0)-2),REL_D,D$4,NwID,$C$4),SUMIFS(OFFSET(REL_D,,MATCH($A35,IND,0)-2),REL_D,D$4,OrgID,$C$5)) -> 861 | E35: =IF($C$5="Total",SUMIFS(OFFSET(REL_D,,MATCH($A35,IND,0)-2),REL_D,E$4,NwID,$C$4),SUMIFS(OFFSET(REL_D,,MATCH($A35,IND,0)-2),REL_D,E$4,OrgID,$C$5)) -> 1004 | F35: =IF($C$5="Total",SUMIFS(OFFSET(REL_D,,MATCH($A35,IND,0)-2),REL_D,F$4,NwID,$C$4),SUMIFS(OFFSET(REL_D,,MATCH($A35,IND,0)-2),REL_D,F$4,OrgID,$C$5)) -> 968 | G35: =IF($C$5="Total",SUMIFS(OFFSET(REL_D,,MATCH($A35,IND,0)-2),REL_D,G$4,NwID,$C$4),SUMIFS(OFFSET(REL_D,,MATCH($A35,IND,0)-2),REL_D,G$4,OrgID,$C$5)) -> 973 | H35: =IF($C$5="Total",SUMIFS(OFFSET(REL_D,,MATCH($A35,IND,0)-2),REL_D,H$4,NwID,$C$4),SUMIFS(OFFSET(REL_D,,MATCH($A35,IND,0)-2),REL_D,H$4,OrgID,$C$5)) -> 931 | I35: =IF($C$5="Total",SUMIFS(OFFSET(REL_D,,MATCH($A35,IND,0)-2),REL_D,I$4,NwID,$C$4),SUMIFS(OFFSET(REL_D,,MATCH($A35,IND,0)-2),REL_D,I$4,OrgID,$C$5)) -> 938 | J35: =IF($C$5="Total",SUMIFS(OFFSET(REL_D,,MATCH($A35,IND,0)-2),REL_D,J$4,NwID,$C$4),SUMIFS(OFFSET(REL_D,,MATCH($A35,IND,0)-2),REL_D,J$4,OrgID,$C$5)) -> 968 | K35: =IF($C$5="Total",SUMIFS(OFFSET(REL_D,,MATCH($A35,IND,0)-2),REL_D,K$4,NwID,$C$4),SUMIFS(OFFSET(REL_D,,MATCH($A35,IND,0)-2),REL_D,K$4,OrgID,$C$5)) -> 0 | L35: =IF($C$5="Total",SUMIFS(OFFSET(REL_D,,MATCH($A35,IND,0)-2),REL_D,L$4,NwID,$C$4),SUMIFS(OFFSET(REL_D,,MATCH($A35,IND,0)-2),REL_D,L$4,OrgID,$C$5)) -> 0 | M35: =IF($C$5="Total",SUMIFS(OFFSET(REL_D,,MATCH($A35,IND,0)-2),REL_D,M$4,NwID,$C$4),SUMIFS(OFFSET(REL_D,,MATCH($A35,IND,0)-2),REL_D,M$4,OrgID,$C$5)) -> 0 | N35: =IF($C$5="Total",SUMIFS(OFFSET(REL_D,,MATCH($A35,IND,0)-2),REL_D,N$4,NwID,$C$4),SUMIFS(OFFSET(REL_D,,MATCH($A35,IND,0)-2),REL_D,N$4,OrgID,$C$5)) -> 0 | O35: =IF($C$5="Total",SUMIFS(OFFSET(REL_D,,MATCH($A35,IND,0)-2),REL_D,O$4,NwID,$C$4),SUMIFS(OFFSET(REL_D,,MATCH($A35,IND,0)-2),REL_D,O$4,OrgID,$C$5)) -> 0 | P35: =IF($C$5="Total",SUMIFS(OFFSET(REL_D,,MATCH($A35,IND,0)-2),REL_D,P$4,NwID,$C$4),SUMIFS(OFFSET(REL_D,,MATCH($A35,IND,0)-2),REL_D,P$4,OrgID,$C$5)) -> 0 | Q35: =IF($C$5="Total",SUMIFS(OFFSET(REL_D,,MATCH($A35,IND,0)-2),REL_D,Q$4,NwID,$C$4),SUMIFS(OFFSET(REL_D,,MATCH($A35,IND,0)-2),REL_D,Q$4,OrgID,$C$5)) -> 0 | R35: =SUMIFS(OFFSET(REL_D,,MATCH($A35,IND,0)-1),REL_D,R$4,IF(LEFT($C$5,1)="N",NwID,OrgID),$C$5) -> 0
A36: ='Control Panel'!B31 -> %LDP.03.01: CHD Chol less than 5mmol (last 12m) | B36: %LDP.03.01: CHD Chol less than 5mmol (last 12m) | C36: ='Control Panel'!D31 -> % CHD register | D36: =IFERROR(D35/D31,"N/A") -> 0.125 | E36: 0.148 | F36: =IFERROR(F35/F31,"N/A") -> 0.142 | G36: =IFERROR(G35/G31,"N/A") -> 0.143 | H36: 0.136 | I36: 0.137 | J36: 0.142 | K36: N/A | L36: N/A | M36: N/A | N36: N/A | O36: N/A | P36: N/A | Q36: N/A | R36: =IFERROR(R35/R31,"N/A") -> N/A
A37: ='Control Panel'!B32 -> LDP.03.02: CHD BP less than or equal 150/90 (last 9m) | B37: LDP.03.02: CHD BP less than or equal 150/90 (last 9m) | C37: ='Control Panel'!D32 -> BP ≤ 150/90 (last 12m) | D37: =IF($C$5="Total",SUMIFS(OFFSET(REL_D,,MATCH($A37,IND,0)-2),REL_D,D$4,NwID,$C$4),SUMIFS(OFFSET(REL_D,,MATCH($A37,IND,0)-2),REL_D,D$4,OrgID,$C$5)) -> 3591 | E37: =IF($C$5="Total",SUMIFS(OFFSET(REL_D,,MATCH($A37,IND,0)-2),REL_D,E$4,NwID,$C$4),SUMIFS(OFFSET(REL_D,,MATCH($A37,IND,0)-2),REL_D,E$4,OrgID,$C$5)) -> 4186 | F37: =IF($C$5="Total",SUMIFS(OFFSET(REL_D,,MATCH($A37,IND,0)-2),REL_D,F$4,NwID,$C$4),SUMIFS(OFFSET(REL_D,,MATCH($A37,IND,0)-2),REL_D,F$4,OrgID,$C$5)) -> 4109 | G37: =IF($C$5="Total",SUMIFS(OFFSET(REL_D,,MATCH($A37,IND,0)-2),REL_D,G$4,NwID,$C$4),SUMIFS(OFFSET(REL_D,,MATCH($A37,IND,0)-2),REL_D,G$4,OrgID,$C$5)) -> 4068 | H37: =IF($C$5="Total",SUMIFS(OFFSET(REL_D,,MATCH($A37,IND,0)-2),REL_D,H$4,NwID,$C$4),SUMIFS(OFFSET(REL_D,,MATCH($A37,IND,0)-2),REL_D,H$4,OrgID,$C$5)) -> 4047 | I37: =IF($C$5="Total",SUMIFS(OFFSET(REL_D,,MATCH($A37,IND,0)-2),REL_D,I$4,NwID,$C$4),SUMIFS(OFFSET(REL_D,,MATCH($A37,IND,0)-2),REL_D,I$4,OrgID,$C$5)) -> 4044 | J37: =IF($C$5="Total",SUMIFS(OFFSET(REL_D,,MATCH($A37,IND,0)-2),REL_D,J$4,NwID,$C$4),SUMIFS(OFFSET(REL_D,,MATCH($A37,IND,0)-2),REL_D,J$4,OrgID,$C$5)) -> 4012 | K37: =IF($C$5="Total",SUMIFS(OFFSET(REL_D,,MATCH($A37,IND,0)-2),REL_D,K$4,NwID,$C$4),SUMIFS(OFFSET(REL_D,,MATCH($A37,IND,0)-2),REL_D,K$4,OrgID,$C$5)) -> 0 | L37: =IF($C$5="Total",SUMIFS(OFFSET(REL_D,,MATCH($A37,IND,0)-2),REL_D,L$4,NwID,$C$4),SUMIFS(OFFSET(REL_D,,MATCH($A37,IND,0)-2),REL_D,L$4,OrgID,$C$5)) -> 0 | M37: =IF($C$5="Total",SUMIFS(OFFSET(REL_D,,MATCH($A37,IND,0)-2),REL_D,M$4,NwID,$C$4),SUMIFS(OFFSET(REL_D,,MATCH($A37,IND,0)-2),REL_D,M$4,OrgID,$C$5)) -> 0 | N37: =IF($C$5="Total",SUMIFS(OFFSET(REL_D,,MATCH($A37,IND,0)-2),REL_D,N$4,NwID,$C$4),SUMIFS(OFFSET(REL_D,,MATCH($A37,IND,0)-2),REL_D,N$4,OrgID,$C$5)) -> 0 | O37: =IF($C$5="Total",SUMIFS(OFFSET(REL_D,,MATCH($A37,IND,0)-2),REL_D,O$4,NwID,$C$4),SUMIFS(OFFSET(REL_D,,MATCH($A37,IND,0)-2),REL_D,O$4,OrgID,$C$5)) -> 0 | P37: =IF($C$5="Total",SUMIFS(OFFSET(REL_D,,MATCH($A37,IND,0)-2),REL_D,P$4,NwID,$C$4),SUMIFS(OFFSET(REL_D,,MATCH($A37,IND,0)-2),REL_D,P$4,OrgID,$C$5)) -> 0 | Q37: =IF($C$5="Total",SUMIFS(OFFSET(REL_D,,MATCH($A37,IND,0)-2),REL_D,Q$4,NwID,$C$4),SUMIFS(OFFSET(REL_D,,MATCH($A37,IND,0)-2),REL_D,Q$4,OrgID,$C$5)) -> 0 | R37: =SUMIFS(OFFSET(REL_D,,MATCH($A37,IND,0)-1),REL_D,R$4,IF(LEFT($C$5,1)="N",NwID,OrgID),$C$5) -> 0
A38: ='Control Panel'!B33 -> %LDP.03.02: CHD BP less than or equal 150/90 (last 9m) | B38: %LDP.03.02: CHD BP less than or equal 150/90 (last 9m) | C38: ='Control Panel'!D33 -> % CHD register | D38: =IFERROR(D37/D31,"N/A") -> 0.521 | E38: 0.617 | F38: =IFERROR(F37/F31,"N/A") -> 0.605 | G38: =IFERROR(G37/G31,"N/A") -> 0.597 | H38: 0.592 | I38: 0.591 | J38: 0.587 | K38: N/A | L38: N/A | M38: N/A | N38: N/A | O38: N/A | P38: N/A | Q38: N/A | R38: N/A
A39: Stroke/TIA | C39: Stroke/TIA
A40: LDP.10 Stroke or TIA register | C40: Stroke/TIA register | D40: =IF($C$5="Total",SUMIFS(OFFSET(REL_D,,MATCH($A40,IND,0)-2),REL_D,D$4,NwID,$C$4),SUMIFS(OFFSET(REL_D,,MATCH($A40,IND,0)-2),REL_D,D$4,OrgID,$C$5)) -> 3231 | E40: =IF($C$5="Total",SUMIFS(OFFSET(REL_D,,MATCH($A40,IND,0)-2),REL_D,E$4,NwID,$C$4),SUMIFS(OFFSET(REL_D,,MATCH($A40,IND,0)-2),REL_D,E$4,OrgID,$C$5)) -> 3203 | F40: =IF($C$5="Total",SUMIFS(OFFSET(REL_D,,MATCH($A40,IND,0)-2),REL_D,F$4,NwID,$C$4),SUMIFS(OFFSET(REL_D,,MATCH($A40,IND,0)-2),REL_D,F$4,OrgID,$C$5)) -> 3204 | G40: =IF($C$5="Total",SUMIFS(OFFSET(REL_D,,MATCH($A40,IND,0)-2),REL_D,G$4,NwID,$C$4),SUMIFS(OFFSET(REL_D,,MATCH($A40,IND,0)-2),REL_D,G$4,OrgID,$C$5)) -> 3212 | H40: =IF($C$5="Total",SUMIFS(OFFSET(REL_D,,MATCH($A40,IND,0)-2),REL_D,H$4,NwID,$C$4),SUMIFS(OFFSET(REL_D,,MATCH($A40,IND,0)-2),REL_D,H$4,OrgID,$C$5)) -> 3220 | I40: =IF($C$5="Total",SUMIFS(OFFSET(REL_D,,MATCH($A40,IND,0)-2),REL_D,I$4,NwID,$C$4),SUMIFS(OFFSET(REL_D,,MATCH($A40,IND,0)-2),REL_D,I$4,OrgID,$C$5)) -> 3250 | J40: =IF($C$5="Total",SUMIFS(OFFSET(REL_D,,MATCH($A40,IND,0)-2),REL_D,J$4,NwID,$C$4),SUMIFS(OFFSET(REL_D,,MATCH($A40,IND,0)-2),REL_D,J$4,OrgID,$C$5)) -> 3371 | K40: =IF($C$5="Total",SUMIFS(OFFSET(REL_D,,MATCH($A40,IND,0)-2),REL_D,K$4,NwID,$C$4),SUMIFS(OFFSET(REL_D,,MATCH($A40,IND,0)-2),REL_D,K$4,OrgID,$C$5)) -> 0 | L40: =IF($C$5="Total",SUMIFS(OFFSET(REL_D,,MATCH($A40,IND,0)-2),REL_D,L$4,NwID,$C$4),SUMIFS(OFFSET(REL_D,,MATCH($A40,IND,0)-2),REL_D,L$4,OrgID,$C$5)) -> 0 | M40: =IF($C$5="Total",SUMIFS(OFFSET(REL_D,,MATCH($A40,IND,0)-2),REL_D,M$4,NwID,$C$4),SUMIFS(OFFSET(REL_D,,MATCH($A40,IND,0)-2),REL_D,M$4,OrgID,$C$5)) -> 0 | N40: =IF($C$5="Total",SUMIFS(OFFSET(REL_D,,MATCH($A40,IND,0)-2),REL_D,N$4,NwID,$C$4),SUMIFS(OFFSET(REL_D,,MATCH($A40,IND,0)-2),REL_D,N$4,OrgID,$C$5)) -> 0 | O40: =IF($C$5="Total",SUMIFS(OFFSET(REL_D,,MATCH($A40,IND,0)-2),REL_D,O$4,NwID,$C$4),SUMIFS(OFFSET(REL_D,,MATCH($A40,IND,0)-2),REL_D,O$4,OrgID,$C$5)) -> 0 | P40: =IF($C$5="Total",SUMIFS(OFFSET(REL_D,,MATCH($A40,IND,0)-2),REL_D,P$4,NwID,$C$4),SUMIFS(OFFSET(REL_D,,MATCH($A40,IND,0)-2),REL_D,P$4,OrgID,$C$5)) -> 0 | Q40: =IF($C$5="Total",SUMIFS(OFFSET(REL_D,,MATCH($A40,IND,0)-2),REL_D,Q$4,NwID,$C$4),SUMIFS(OFFSET(REL_D,,MATCH($A40,IND,0)-2),REL_D,Q$4,OrgID,$C$5)) -> 0 | R40: -
A41: %LDP.10 Stroke or TIA register | C41: % list size | D41: =IFERROR(D40/D8,"N/A") -> 0.011 | E41: 0.01 | F41: =IFERROR(F40/F8,"N/A") -> 0.01 | G41: =IFERROR(G40/G8,"N/A") -> 0.01 | H41: 0.01 | I41: 0.01 | J41: 0.011 | K41: N/A | L41: N/A | M41: N/A | N41: N/A | O41: N/A | P41: N/A | Q41: N/A | R41: -
A42: LDP.10.01: Stroke/TIA BP recorded (last 12m) | C42: Patients on Stroke/TIA register with BP recorded | D42: =IF($C$5="Total",SUMIFS(OFFSET(REL_D,,MATCH($A42,IND,0)-2),REL_D,D$4,NwID,$C$4),SUMIFS(OFFSET(REL_D,,MATCH($A42,IND,0)-2),REL_D,D$4,OrgID,$C$5)) -> 2535 | E42: =IF($C$5="Total",SUMIFS(OFFSET(REL_D,,MATCH($A42,IND,0)-2),REL_D,E$4,NwID,$C$4),SUMIFS(OFFSET(REL_D,,MATCH($A42,IND,0)-2),REL_D,E$4,OrgID,$C$5)) -> 2839 | F42: =IF($C$5="Total",SUMIFS(OFFSET(REL_D,,MATCH($A42,IND,0)-2),REL_D,F$4,NwID,$C$4),SUMIFS(OFFSET(REL_D,,MATCH($A42,IND,0)-2),REL_D,F$4,OrgID,$C$5)) -> 2806 | G42: =IF($C$5="Total",SUMIFS(OFFSET(REL_D,,MATCH($A42,IND,0)-2),REL_D,G$4,NwID,$C$4),SUMIFS(OFFSET(REL_D,,MATCH($A42,IND,0)-2),REL_D,G$4,OrgID,$C$5)) -> 2776 | H42: =IF($C$5="Total",SUMIFS(OFFSET(REL_D,,MATCH($A42,IND,0)-2),REL_D,H$4,NwID,$C$4),SUMIFS(OFFSET(REL_D,,MATCH($A42,IND,0)-2),REL_D,H$4,OrgID,$C$5)) -> 2760 | I42: =IF($C$5="Total",SUMIFS(OFFSET(REL_D,,MATCH($A42,IND,0)-2),REL_D,I$4,NwID,$C$4),SUMIFS(OFFSET(REL_D,,MATCH($A42,IND,0)-2),REL_D,I$4,OrgID,$C$5)) -> 2771 | J42: =IF($C$5="Total",SUMIFS(OFFSET(REL_D,,MATCH($A42,IND,0)-2),REL_D,J$4,NwID,$C$4),SUMIFS(OFFSET(REL_D,,MATCH($A42,IND,0)-2),REL_D,J$4,OrgID,$C$5)) -> 2870 | K42: =IF($C$5="Total",SUMIFS(OFFSET(REL_D,,MATCH($A42,IND,0)-2),REL_D,K$4,NwID,$C$4),SUMIFS(OFFSET(REL_D,,MATCH($A42,IND,0)-2),REL_D,K$4,OrgID,$C$5)) -> 0 | L42: =IF($C$5="Total",SUMIFS(OFFSET(REL_D,,MATCH($A42,IND,0)-2),REL_D,L$4,NwID,$C$4),SUMIFS(OFFSET(REL_D,,MATCH($A42,IND,0)-2),REL_D,L$4,OrgID,$C$5)) -> 0 | M42: =IF($C$5="Total",SUMIFS(OFFSET(REL_D,,MATCH($A42,IND,0)-2),REL_D,M$4,NwID,$C$4),SUMIFS(OFFSET(REL_D,,MATCH($A42,IND,0)-2),REL_D,M$4,OrgID,$C$5)) -> 0 | N42: =IF($C$5="Total",SUMIFS(OFFSET(REL_D,,MATCH($A42,IND,0)-2),REL_D,N$4,NwID,$C$4),SUMIFS(OFFSET(REL_D,,MATCH($A42,IND,0)-2),REL_D,N$4,OrgID,$C$5)) -> 0 | O42: =IF($C$5="Total",SUMIFS(OFFSET(REL_D,,MATCH($A42,IND,0)-2),REL_D,O$4,NwID,$C$4),SUMIFS(OFFSET(REL_D,,MATCH($A42,IND,0)-2),REL_D,O$4,OrgID,$C$5)) -> 0 | P42: =IF($C$5="Total",SUMIFS(OFFSET(REL_D,,MATCH($A42,IND,0)-2),REL_D,P$4,NwID,$C$4),SUMIFS(OFFSET(REL_D,,MATCH($A42,IND,0)-2),REL_D,P$4,OrgID,$C$5)) -> 0 | Q42: =IF($C$5="Total",SUMIFS(OFFSET(REL_D,,MATCH($A42,IND,0)-2),REL_D,Q$4,NwID,$C$4),SUMIFS(OFFSET(REL_D,,MATCH($A42,IND,0)-2),REL_D,Q$4,OrgID,$C$5)) -> 0 | R42: -
A43: %LDP.10.01: Stroke/TIA BP recorded (last 12m) | C43: % of stroke register | D43: =IFERROR(D42/D40,"N/A") -> 0.785 | E43: 0.886 | F43: =IFERROR(F42/F40,"N/A") -> 0.876 | G43: =IFERROR(G42/G40,"N/A") -> 0.864 | H43: 0.857 | I43: 0.853 | J43: 0.851 | K43: N/A | L43: N/A | M43: N/A | N43: N/A | O43: N/A | P43: N/A | Q43: N/A | R43: -
A44: LDP.10.02 Patients on Stroke/TIA register with BP <140/90 (12m) | C44: Patients on Stroke/TIA register with BP <140/90 (12m) | D44: =IF($C$5="Total",SUMIFS(OFFSET(REL_D,,MATCH($A44,IND,0)-2),REL_D,D$4,NwID,$C$4),SUMIFS(OFFSET(REL_D,,MATCH($A44,IND,0)-2),REL_D,D$4,OrgID,$C$5)) -> 1761 | E44: =IF($C$5="Total",SUMIFS(OFFSET(REL_D,,MATCH($A44,IND,0)-2),REL_D,E$4,NwID,$C$4),SUMIFS(OFFSET(REL_D,,MATCH($A44,IND,0)-2),REL_D,E$4,OrgID,$C$5)) -> 2106 | F44: =IF($C$5="Total",SUMIFS(OFFSET(REL_D,,MATCH($A44,IND,0)-2),REL_D,F$4,NwID,$C$4),SUMIFS(OFFSET(REL_D,,MATCH($A44,IND,0)-2),REL_D,F$4,OrgID,$C$5)) -> 2074 | G44: =IF($C$5="Total",SUMIFS(OFFSET(REL_D,,MATCH($A44,IND,0)-2),REL_D,G$4,NwID,$C$4),SUMIFS(OFFSET(REL_D,,MATCH($A44,IND,0)-2),REL_D,G$4,OrgID,$C$5)) -> 2045 | H44: =IF($C$5="Total",SUMIFS(OFFSET(REL_D,,MATCH($A44,IND,0)-2),REL_D,H$4,NwID,$C$4),SUMIFS(OFFSET(REL_D,,MATCH($A44,IND,0)-2),REL_D,H$4,OrgID,$C$5)) -> 2049 | I44: =IF($C$5="Total",SUMIFS(OFFSET(REL_D,,MATCH($A44,IND,0)-2),REL_D,I$4,NwID,$C$4),SUMIFS(OFFSET(REL_D,,MATCH($A44,IND,0)-2),REL_D,I$4,OrgID,$C$5)) -> 2066 | J44: =IF($C$5="Total",SUMIFS(OFFSET(REL_D,,MATCH($A44,IND,0)-2),REL_D,J$4,NwID,$C$4),SUMIFS(OFFSET(REL_D,,MATCH($A44,IND,0)-2),REL_D,J$4,OrgID,$C$5)) -> 2152 | K44: =IF($C$5="Total",SUMIFS(OFFSET(REL_D,,MATCH($A44,IND,0)-2),REL_D,K$4,NwID,$C$4),SUMIFS(OFFSET(REL_D,,MATCH($A44,IND,0)-2),REL_D,K$4,OrgID,$C$5)) -> 0 | L44: =IF($C$5="Total",SUMIFS(OFFSET(REL_D,,MATCH($A44,IND,0)-2),REL_D,L$4,NwID,$C$4),SUMIFS(OFFSET(REL_D,,MATCH($A44,IND,0)-2),REL_D,L$4,OrgID,$C$5)) -> 0 | M44: =IF($C$5="Total",SUMIFS(OFFSET(REL_D,,MATCH($A44,IND,0)-2),REL_D,M$4,NwID,$C$4),SUMIFS(OFFSET(REL_D,,MATCH($A44,IND,0)-2),REL_D,M$4,OrgID,$C$5)) -> 0 | N44: =IF($C$5="Total",SUMIFS(OFFSET(REL_D,,MATCH($A44,IND,0)-2),REL_D,N$4,NwID,$C$4),SUMIFS(OFFSET(REL_D,,MATCH($A44,IND,0)-2),REL_D,N$4,OrgID,$C$5)) -> 0 | O44: =IF($C$5="Total",SUMIFS(OFFSET(REL_D,,MATCH($A44,IND,0)-2),REL_D,O$4,NwID,$C$4),SUMIFS(OFFSET(REL_D,,MATCH($A44,IND,0)-2),REL_D,O$4,OrgID,$C$5)) -> 0 | P44: =IF($C$5="Total",SUMIFS(OFFSET(REL_D,,MATCH($A44,IND,0)-2),REL_D,P$4,NwID,$C$4),SUMIFS(OFFSET(REL_D,,MATCH($A44,IND,0)-2),REL_D,P$4,OrgID,$C$5)) -> 0 | Q44: =IF($C$5="Total",SUMIFS(OFFSET(REL_D,,MATCH($A44,IND,0)-2),REL_D,Q$4,NwID,$C$4),SUMIFS(OFFSET(REL_D,,MATCH($A44,IND,0)-2),REL_D,Q$4,OrgID,$C$5)) -> 0 | R44: -
A45: %LDP.10.02 Patients on Stroke/TIA register with BP <140/90 (12m) | C45: % of stroke register | D45: =IFERROR(D44/D40,"N/A") -> 0.545 | E45: 0.658 | F45: =IFERROR(F44/F40,"N/A") -> 0.647 | G45: =IFERROR(G44/G40,"N/A") -> 0.637 | H45: 0.636 | I45: 0.636 | J45: 0.638 | K45: N/A | L45: N/A | M45: N/A | N45: N/A | O45: N/A | P45: N/A | Q45: N/A | R45: -
A46: ='Control Panel'!B48 -> CVD Risk | B46: CVD Risk | C46: ='Control Panel'!B48 -> CVD Risk
A47: ='Control Panel'!B49 -> LDP.05: CVD 25-84yrs (excl CVD) | B47: LDP.05: CVD 25-84yrs (excl CVD) | C47: Aged 25 to 84 (exc CVD) | D47: =IF($C$5="Total",SUMIFS(OFFSET(REL_D,,MATCH($A47,IND,0)-2),REL_D,D$4,NwID,$C$4),SUMIFS(OFFSET(REL_D,,MATCH($A47,IND,0)-2),REL_D,D$4,OrgID,$C$5)) -> 192601 | E47: =IF($C$5="Total",SUMIFS(OFFSET(REL_D,,MATCH($A47,IND,0)-2),REL_D,E$4,NwID,$C$4),SUMIFS(OFFSET(REL_D,,MATCH($A47,IND,0)-2),REL_D,E$4,OrgID,$C$5)) -> 199177 | F47: =IF($C$5="Total",SUMIFS(OFFSET(REL_D,,MATCH($A47,IND,0)-2),REL_D,F$4,NwID,$C$4),SUMIFS(OFFSET(REL_D,,MATCH($A47,IND,0)-2),REL_D,F$4,OrgID,$C$5)) -> 199669 | G47: =IF($C$5="Total",SUMIFS(OFFSET(REL_D,,MATCH($A47,IND,0)-2),REL_D,G$4,NwID,$C$4),SUMIFS(OFFSET(REL_D,,MATCH($A47,IND,0)-2),REL_D,G$4,OrgID,$C$5)) -> 200501 | H47: =IF($C$5="Total",SUMIFS(OFFSET(REL_D,,MATCH($A47,IND,0)-2),REL_D,H$4,NwID,$C$4),SUMIFS(OFFSET(REL_D,,MATCH($A47,IND,0)-2),REL_D,H$4,OrgID,$C$5)) -> 201328 | I47: =IF($C$5="Total",SUMIFS(OFFSET(REL_D,,MATCH($A47,IND,0)-2),REL_D,I$4,NwID,$C$4),SUMIFS(OFFSET(REL_D,,MATCH($A47,IND,0)-2),REL_D,I$4,OrgID,$C$5)) -> 201607 | J47: =IF($C$5="Total",SUMIFS(OFFSET(REL_D,,MATCH($A47,IND,0)-2),REL_D,J$4,NwID,$C$4),SUMIFS(OFFSET(REL_D,,MATCH($A47,IND,0)-2),REL_D,J$4,OrgID,$C$5)) -> 202114 | K47: =IF($C$5="Total",SUMIFS(OFFSET(REL_D,,MATCH($A47,IND,0)-2),REL_D,K$4,NwID,$C$4),SUMIFS(OFFSET(REL_D,,MATCH($A47,IND,0)-2),REL_D,K$4,OrgID,$C$5)) -> 0 | L47: =IF($C$5="Total",SUMIFS(OFFSET(REL_D,,MATCH($A47,IND,0)-2),REL_D,L$4,NwID,$C$4),SUMIFS(OFFSET(REL_D,,MATCH($A47,IND,0)-2),REL_D,L$4,OrgID,$C$5)) -> 0 | M47: =IF($C$5="Total",SUMIFS(OFFSET(REL_D,,MATCH($A47,IND,0)-2),REL_D,M$4,NwID,$C$4),SUMIFS(OFFSET(REL_D,,MATCH($A47,IND,0)-2),REL_D,M$4,OrgID,$C$5)) -> 0 | N47: =IF($C$5="Total",SUMIFS(OFFSET(REL_D,,MATCH($A47,IND,0)-2),REL_D,N$4,NwID,$C$4),SUMIFS(OFFSET(REL_D,,MATCH($A47,IND,0)-2),REL_D,N$4,OrgID,$C$5)) -> 0 | O47: =IF($C$5="Total",SUMIFS(OFFSET(REL_D,,MATCH($A47,IND,0)-2),REL_D,O$4,NwID,$C$4),SUMIFS(OFFSET(REL_D,,MATCH($A47,IND,0)-2),REL_D,O$4,OrgID,$C$5)) -> 0 | P47: =IF($C$5="Total",SUMIFS(OFFSET(REL_D,,MATCH($A47,IND,0)-2),REL_D,P$4,NwID,$C$4),SUMIFS(OFFSET(REL_D,,MATCH($A47,IND,0)-2),REL_D,P$4,OrgID,$C$5)) -> 0 | Q47: =IF($C$5="Total",SUMIFS(OFFSET(REL_D,,MATCH($A47,IND,0)-2),REL_D,Q$4,NwID,$C$4),SUMIFS(OFFSET(REL_D,,MATCH($A47,IND,0)-2),REL_D,Q$4,OrgID,$C$5)) -> 0 | R47: =SUMIFS(OFFSET(REL_D,,MATCH($A47,IND,0)-1),REL_D,R$4,IF(LEFT($C$5,1)="N",NwID,OrgID),$C$5) -> 0
A48: ='Control Panel'!B50 -> LDP.05.02: Cardiovascular Risk Score Done (5y) | B48: LDP.05.02: Cardiovascular Risk Score Done (5y) | C48: QRISK recorded (5 years) | D48: =IF($C$5="Total",SUMIFS(OFFSET(REL_D,,MATCH($A48,IND,0)-2),REL_D,D$4,NwID,$C$4),SUMIFS(OFFSET(REL_D,,MATCH($A48,IND,0)-2),REL_D,D$4,OrgID,$C$5)) -> 63285 | E48: =IF($C$5="Total",SUMIFS(OFFSET(REL_D,,MATCH($A48,IND,0)-2),REL_D,E$4,NwID,$C$4),SUMIFS(OFFSET(REL_D,,MATCH($A48,IND,0)-2),REL_D,E$4,OrgID,$C$5)) -> 70277 | F48: =IF($C$5="Total",SUMIFS(OFFSET(REL_D,,MATCH($A48,IND,0)-2),REL_D,F$4,NwID,$C$4),SUMIFS(OFFSET(REL_D,,MATCH($A48,IND,0)-2),REL_D,F$4,OrgID,$C$5)) -> 70495 | G48: =IF($C$5="Total",SUMIFS(OFFSET(REL_D,,MATCH($A48,IND,0)-2),REL_D,G$4,NwID,$C$4),SUMIFS(OFFSET(REL_D,,MATCH($A48,IND,0)-2),REL_D,G$4,OrgID,$C$5)) -> 70970 | H48: =IF($C$5="Total",SUMIFS(OFFSET(REL_D,,MATCH($A48,IND,0)-2),REL_D,H$4,NwID,$C$4),SUMIFS(OFFSET(REL_D,,MATCH($A48,IND,0)-2),REL_D,H$4,OrgID,$C$5)) -> 71529 | I48: =IF($C$5="Total",SUMIFS(OFFSET(REL_D,,MATCH($A48,IND,0)-2),REL_D,I$4,NwID,$C$4),SUMIFS(OFFSET(REL_D,,MATCH($A48,IND,0)-2),REL_D,I$4,OrgID,$C$5)) -> 72202 | J48: =IF($C$5="Total",SUMIFS(OFFSET(REL_D,,MATCH($A48,IND,0)-2),REL_D,J$4,NwID,$C$4),SUMIFS(OFFSET(REL_D,,MATCH($A48,IND,0)-2),REL_D,J$4,OrgID,$C$5)) -> 72931 | K48: =IF($C$5="Total",SUMIFS(OFFSET(REL_D,,MATCH($A48,IND,0)-2),REL_D,K$4,NwID,$C$4),SUMIFS(OFFSET(REL_D,,MATCH($A48,IND,0)-2),REL_D,K$4,OrgID,$C$5)) -> 0 | L48: =IF($C$5="Total",SUMIFS(OFFSET(REL_D,,MATCH($A48,IND,0)-2),REL_D,L$4,NwID,$C$4),SUMIFS(OFFSET(REL_D,,MATCH($A48,IND,0)-2),REL_D,L$4,OrgID,$C$5)) -> 0 | M48: =IF($C$5="Total",SUMIFS(OFFSET(REL_D,,MATCH($A48,IND,0)-2),REL_D,M$4,NwID,$C$4),SUMIFS(OFFSET(REL_D,,MATCH($A48,IND,0)-2),REL_D,M$4,OrgID,$C$5)) -> 0 | N48: =IF($C$5="Total",SUMIFS(OFFSET(REL_D,,MATCH($A48,IND,0)-2),REL_D,N$4,NwID,$C$4),SUMIFS(OFFSET(REL_D,,MATCH($A48,IND,0)-2),REL_D,N$4,OrgID,$C$5)) -> 0 | O48: =IF($C$5="Total",SUMIFS(OFFSET(REL_D,,MATCH($A48,IND,0)-2),REL_D,O$4,NwID,$C$4),SUMIFS(OFFSET(REL_D,,MATCH($A48,IND,0)-2),REL_D,O$4,OrgID,$C$5)) -> 0 | P48: =IF($C$5="Total",SUMIFS(OFFSET(REL_D,,MATCH($A48,IND,0)-2),REL_D,P$4,NwID,$C$4),SUMIFS(OFFSET(REL_D,,MATCH($A48,IND,0)-2),REL_D,P$4,OrgID,$C$5)) -> 0 | Q48: =IF($C$5="Total",SUMIFS(OFFSET(REL_D,,MATCH($A48,IND,0)-2),REL_D,Q$4,NwID,$C$4),SUMIFS(OFFSET(REL_D,,MATCH($A48,IND,0)-2),REL_D,Q$4,OrgID,$C$5)) -> 0 | R48: =SUMIFS(OFFSET(REL_D,,MATCH($A48,IND,0)-1),REL_D,R$4,IF(LEFT($C$5,1)="N",NwID,OrgID),$C$5) -> 0
A49: ='Control Panel'!B51 -> %LDP.05.02: Cardiovascular Risk Score Done (5y) | B49: %LDP.05.02: Cardiovascular Risk Score Done (5y) | C49: % of patients aged 25 to 84 (exc CVD) | D49: =IFERROR(D47/D8,"N/A") -> 0.641 | E49: 0.644 | F49: =IFERROR(F47/F8,"N/A") -> 0.644 | G49: =IFERROR(G47/G8,"N/A") -> 0.644 | H49: 0.644 | I49: 0.644 | J49: 0.644 | K49: N/A | L49: N/A | M49: N/A | N49: N/A | O49: N/A | P49: N/A | Q49: N/A | R49: =IFERROR(R48/R8,"N/A") -> N/A
A50: ='Control Panel'!B52 -> LDP.05.01: CVD QRISK greater than or equal 20% | B50: LDP.05.01: CVD QRISK greater than or equal 20% | C50: QRISK ≥ 20% | D50: =IF($C$5="Total",SUMIFS(OFFSET(REL_D,,MATCH($A50,IND,0)-2),REL_D,D$4,NwID,$C$4),SUMIFS(OFFSET(REL_D,,MATCH($A50,IND,0)-2),REL_D,D$4,OrgID,$C$5)) -> 11496 | E50: =IF($C$5="Total",SUMIFS(OFFSET(REL_D,,MATCH($A50,IND,0)-2),REL_D,E$4,NwID,$C$4),SUMIFS(OFFSET(REL_D,,MATCH($A50,IND,0)-2),REL_D,E$4,OrgID,$C$5)) -> 12945 | F50: =IF($C$5="Total",SUMIFS(OFFSET(REL_D,,MATCH($A50,IND,0)-2),REL_D,F$4,NwID,$C$4),SUMIFS(OFFSET(REL_D,,MATCH($A50,IND,0)-2),REL_D,F$4,OrgID,$C$5)) -> 13006 | G50: =IF($C$5="Total",SUMIFS(OFFSET(REL_D,,MATCH($A50,IND,0)-2),REL_D,G$4,NwID,$C$4),SUMIFS(OFFSET(REL_D,,MATCH($A50,IND,0)-2),REL_D,G$4,OrgID,$C$5)) -> 13076 | H50: =IF($C$5="Total",SUMIFS(OFFSET(REL_D,,MATCH($A50,IND,0)-2),REL_D,H$4,NwID,$C$4),SUMIFS(OFFSET(REL_D,,MATCH($A50,IND,0)-2),REL_D,H$4,OrgID,$C$5)) -> 13204 | I50: =IF($C$5="Total",SUMIFS(OFFSET(REL_D,,MATCH($A50,IND,0)-2),REL_D,I$4,NwID,$C$4),SUMIFS(OFFSET(REL_D,,MATCH($A50,IND,0)-2),REL_D,I$4,OrgID,$C$5)) -> 13303 | J50: =IF($C$5="Total",SUMIFS(OFFSET(REL_D,,MATCH($A50,IND,0)-2),REL_D,J$4,NwID,$C$4),SUMIFS(OFFSET(REL_D,,MATCH($A50,IND,0)-2),REL_D,J$4,OrgID,$C$5)) -> 13471 | K50: =IF($C$5="Total",SUMIFS(OFFSET(REL_D,,MATCH($A50,IND,0)-2),REL_D,K$4,NwID,$C$4),SUMIFS(OFFSET(REL_D,,MATCH($A50,IND,0)-2),REL_D,K$4,OrgID,$C$5)) -> 0 | L50: =IF($C$5="Total",SUMIFS(OFFSET(REL_D,,MATCH($A50,IND,0)-2),REL_D,L$4,NwID,$C$4),SUMIFS(OFFSET(REL_D,,MATCH($A50,IND,0)-2),REL_D,L$4,OrgID,$C$5)) -> 0 | M50: =IF($C$5="Total",SUMIFS(OFFSET(REL_D,,MATCH($A50,IND,0)-2),REL_D,M$4,NwID,$C$4),SUMIFS(OFFSET(REL_D,,MATCH($A50,IND,0)-2),REL_D,M$4,OrgID,$C$5)) -> 0 | N50: =IF($C$5="Total",SUMIFS(OFFSET(REL_D,,MATCH($A50,IND,0)-2),REL_D,N$4,NwID,$C$4),SUMIFS(OFFSET(REL_D,,MATCH($A50,IND,0)-2),REL_D,N$4,OrgID,$C$5)) -> 0 | O50: =IF($C$5="Total",SUMIFS(OFFSET(REL_D,,MATCH($A50,IND,0)-2),REL_D,O$4,NwID,$C$4),SUMIFS(OFFSET(REL_D,,MATCH($A50,IND,0)-2),REL_D,O$4,OrgID,$C$5)) -> 0 | P50: =IF($C$5="Total",SUMIFS(OFFSET(REL_D,,MATCH($A50,IND,0)-2),REL_D,P$4,NwID,$C$4),SUMIFS(OFFSET(REL_D,,MATCH($A50,IND,0)-2),REL_D,P$4,OrgID,$C$5)) -> 0 | Q50: =IF($C$5="Total",SUMIFS(OFFSET(REL_D,,MATCH($A50,IND,0)-2),REL_D,Q$4,NwID,$C$4),SUMIFS(OFFSET(REL_D,,MATCH($A50,IND,0)-2),REL_D,Q$4,OrgID,$C$5)) -> 0 | R50: =SUMIFS(OFFSET(REL_D,,MATCH($A50,IND,0)-1),REL_D,R$4,IF(LEFT($C$5,1)="N",NwID,OrgID),$C$5) -> 0
A51: ='Control Panel'!B53 -> %LDP.05.01: CVD QRISK greater than or equal 20% | B51: %LDP.05.01: CVD QRISK greater than or equal 20% | C51: % QRISK Score recorded | D51: =IFERROR(D50/D48,"N/A") -> 0.182 | E51: 0.184 | F51: =IFERROR(F50/F48,"N/A") -> 0.184 | G51: =IFERROR(G50/G48,"N/A") -> 0.184 | H51: 0.185 | I51: 0.184 | J51: 0.185 | K51: N/A | L51: N/A | M51: N/A | N51: N/A | O51: N/A | P51: N/A | Q51: N/A | R51: =IFERROR(R50/R48,"N/A") -> N/A
A52: ='Control Panel'!B54 -> LDP.05.01.01: CVD Proxy Annual Review (last 12m) | B52: LDP.05.01.01: CVD Proxy Annual Review (last 12m) | C52: QRISK ≥ 20% and proxy review (BP and Chol last 12m) | D52: =IF($C$5="Total",SUMIFS(OFFSET(REL_D,,MATCH($A52,IND,0)-2),REL_D,D$4,NwID,$C$4),SUMIFS(OFFSET(REL_D,,MATCH($A52,IND,0)-2),REL_D,D$4,OrgID,$C$5)) -> 1426 | E52: =IF($C$5="Total",SUMIFS(OFFSET(REL_D,,MATCH($A52,IND,0)-2),REL_D,E$4,NwID,$C$4),SUMIFS(OFFSET(REL_D,,MATCH($A52,IND,0)-2),REL_D,E$4,OrgID,$C$5)) -> 1905 | F52: =IF($C$5="Total",SUMIFS(OFFSET(REL_D,,MATCH($A52,IND,0)-2),REL_D,F$4,NwID,$C$4),SUMIFS(OFFSET(REL_D,,MATCH($A52,IND,0)-2),REL_D,F$4,OrgID,$C$5)) -> 1865 | G52: =IF($C$5="Total",SUMIFS(OFFSET(REL_D,,MATCH($A52,IND,0)-2),REL_D,G$4,NwID,$C$4),SUMIFS(OFFSET(REL_D,,MATCH($A52,IND,0)-2),REL_D,G$4,OrgID,$C$5)) -> 1845 | H52: =IF($C$5="Total",SUMIFS(OFFSET(REL_D,,MATCH($A52,IND,0)-2),REL_D,H$4,NwID,$C$4),SUMIFS(OFFSET(REL_D,,MATCH($A52,IND,0)-2),REL_D,H$4,OrgID,$C$5)) -> 1793 | I52: =IF($C$5="Total",SUMIFS(OFFSET(REL_D,,MATCH($A52,IND,0)-2),REL_D,I$4,NwID,$C$4),SUMIFS(OFFSET(REL_D,,MATCH($A52,IND,0)-2),REL_D,I$4,OrgID,$C$5)) -> 1782 | J52: =IF($C$5="Total",SUMIFS(OFFSET(REL_D,,MATCH($A52,IND,0)-2),REL_D,J$4,NwID,$C$4),SUMIFS(OFFSET(REL_D,,MATCH($A52,IND,0)-2),REL_D,J$4,OrgID,$C$5)) -> 1865 | K52: =IF($C$5="Total",SUMIFS(OFFSET(REL_D,,MATCH($A52,IND,0)-2),REL_D,K$4,NwID,$C$4),SUMIFS(OFFSET(REL_D,,MATCH($A52,IND,0)-2),REL_D,K$4,OrgID,$C$5)) -> 0 | L52: =IF($C$5="Total",SUMIFS(OFFSET(REL_D,,MATCH($A52,IND,0)-2),REL_D,L$4,NwID,$C$4),SUMIFS(OFFSET(REL_D,,MATCH($A52,IND,0)-2),REL_D,L$4,OrgID,$C$5)) -> 0 | M52: =IF($C$5="Total",SUMIFS(OFFSET(REL_D,,MATCH($A52,IND,0)-2),REL_D,M$4,NwID,$C$4),SUMIFS(OFFSET(REL_D,,MATCH($A52,IND,0)-2),REL_D,M$4,OrgID,$C$5)) -> 0 | N52: =IF($C$5="Total",SUMIFS(OFFSET(REL_D,,MATCH($A52,IND,0)-2),REL_D,N$4,NwID,$C$4),SUMIFS(OFFSET(REL_D,,MATCH($A52,IND,0)-2),REL_D,N$4,OrgID,$C$5)) -> 0 | O52: =IF($C$5="Total",SUMIFS(OFFSET(REL_D,,MATCH($A52,IND,0)-2),REL_D,O$4,NwID,$C$4),SUMIFS(OFFSET(REL_D,,MATCH($A52,IND,0)-2),REL_D,O$4,OrgID,$C$5)) -> 0 | P52: =IF($C$5="Total",SUMIFS(OFFSET(REL_D,,MATCH($A52,IND,0)-2),REL_D,P$4,NwID,$C$4),SUMIFS(OFFSET(REL_D,,MATCH($A52,IND,0)-2),REL_D,P$4,OrgID,$C$5)) -> 0 | Q52: =IF($C$5="Total",SUMIFS(OFFSET(REL_D,,MATCH($A52,IND,0)-2),REL_D,Q$4,NwID,$C$4),SUMIFS(OFFSET(REL_D,,MATCH($A52,IND,0)-2),REL_D,Q$4,OrgID,$C$5)) -> 0 | R52: =SUMIFS(OFFSET(REL_D,,MATCH($A52,IND,0)-1),REL_D,R$4,IF(LEFT($C$5,1)="N",NwID,OrgID),$C$5) -> 0
A53: ='Control Panel'!B55 -> %LDP.05.01.01: CVD Proxy Annual Review (last 12m) | B53: %LDP.05.01.01: CVD Proxy Annual Review (last 12m) | C53: % Patients with QRISK ≥ 20% | D53: =IFERROR(D52/D48,"N/A") -> 0.023 | E53: 0.027 | F53: =IFERROR(F52/F48,"N/A") -> 0.026 | G53: =IFERROR(G52/G48,"N/A") -> 0.026 | H53: 0.025 | I53: 0.025 | J53: 0.026 | K53: N/A | L53: N/A | M53: N/A | N53: N/A | O53: N/A | P53: N/A | Q53: N/A | R53: =IFERROR(R52/R48,"N/A") -> N/A
A54: LDP.05.03: CVD QRISK >=10 & <20 | B54: LDP.05.03: CVD QRISK >=10 & <20 | C54: QRISK >=10 & <20 | D54: =IF($C$5="Total",SUMIFS(OFFSET(REL_D,,MATCH($A54,IND,0)-2),REL_D,D$4,NwID,$C$4),SUMIFS(OFFSET(REL_D,,MATCH($A54,IND,0)-2),REL_D,D$4,OrgID,$C$5)) -> 0 | E54: =IF($C$5="Total",SUMIFS(OFFSET(REL_D,,MATCH($A54,IND,0)-2),REL_D,E$4,NwID,$C$4),SUMIFS(OFFSET(REL_D,,MATCH($A54,IND,0)-2),REL_D,E$4,OrgID,$C$5)) -> 0 | F54: =IF($C$5="Total",SUMIFS(OFFSET(REL_D,,MATCH($A54,IND,0)-2),REL_D,F$4,NwID,$C$4),SUMIFS(OFFSET(REL_D,,MATCH($A54,IND,0)-2),REL_D,F$4,OrgID,$C$5)) -> 0 | G54: =IF($C$5="Total",SUMIFS(OFFSET(REL_D,,MATCH($A54,IND,0)-2),REL_D,G$4,NwID,$C$4),SUMIFS(OFFSET(REL_D,,MATCH($A54,IND,0)-2),REL_D,G$4,OrgID,$C$5)) -> 0 | H54: =IF($C$5="Total",SUMIFS(OFFSET(REL_D,,MATCH($A54,IND,0)-2),REL_D,H$4,NwID,$C$4),SUMIFS(OFFSET(REL_D,,MATCH($A54,IND,0)-2),REL_D,H$4,OrgID,$C$5)) -> 0 | I54: =IF($C$5="Total",SUMIFS(OFFSET(REL_D,,MATCH($A54,IND,0)-2),REL_D,I$4,NwID,$C$4),SUMIFS(OFFSET(REL_D,,MATCH($A54,IND,0)-2),REL_D,I$4,OrgID,$C$5)) -> 0 | J54: =IF($C$5="Total",SUMIFS(OFFSET(REL_D,,MATCH($A54,IND,0)-2),REL_D,J$4,NwID,$C$4),SUMIFS(OFFSET(REL_D,,MATCH($A54,IND,0)-2),REL_D,J$4,OrgID,$C$5)) -> 18421 | K54: =IF($C$5="Total",SUMIFS(OFFSET(REL_D,,MATCH($A54,IND,0)-2),REL_D,K$4,NwID,$C$4),SUMIFS(OFFSET(REL_D,,MATCH($A54,IND,0)-2),REL_D,K$4,OrgID,$C$5)) -> 0 | L54: =IF($C$5="Total",SUMIFS(OFFSET(REL_D,,MATCH($A54,IND,0)-2),REL_D,L$4,NwID,$C$4),SUMIFS(OFFSET(REL_D,,MATCH($A54,IND,0)-2),REL_D,L$4,OrgID,$C$5)) -> 0 | M54: =IF($C$5="Total",SUMIFS(OFFSET(REL_D,,MATCH($A54,IND,0)-2),REL_D,M$4,NwID,$C$4),SUMIFS(OFFSET(REL_D,,MATCH($A54,IND,0)-2),REL_D,M$4,OrgID,$C$5)) -> 0 | N54: =IF($C$5="Total",SUMIFS(OFFSET(REL_D,,MATCH($A54,IND,0)-2),REL_D,N$4,NwID,$C$4),SUMIFS(OFFSET(REL_D,,MATCH($A54,IND,0)-2),REL_D,N$4,OrgID,$C$5)) -> 0 | O54: =IF($C$5="Total",SUMIFS(OFFSET(REL_D,,MATCH($A54,IND,0)-2),REL_D,O$4,NwID,$C$4),SUMIFS(OFFSET(REL_D,,MATCH($A54,IND,0)-2),REL_D,O$4,OrgID,$C$5)) -> 0 | P54: =IF($C$5="Total",SUMIFS(OFFSET(REL_D,,MATCH($A54,IND,0)-2),REL_D,P$4,NwID,$C$4),SUMIFS(OFFSET(REL_D,,MATCH($A54,IND,0)-2),REL_D,P$4,OrgID,$C$5)) -> 0 | Q54: =IF($C$5="Total",SUMIFS(OFFSET(REL_D,,MATCH($A54,IND,0)-2),REL_D,Q$4,NwID,$C$4),SUMIFS(OFFSET(REL_D,,MATCH($A54,IND,0)-2),REL_D,Q$4,OrgID,$C$5)) -> 0
C55: % QRISK >=10 & <20 | D55: =IFERROR(D54/D48,"N/A") -> 0 | E55: 0 | F55: 0 | G55: 0 | H55: 0 | I55: 0 | J55: =IFERROR(J54/J48,"N/A") -> 0.253 | K55: =IFERROR(K54/K48,"N/A") -> N/A | L55: N/A | M55: N/A | N55: N/A | O55: N/A | P55: N/A | Q55: N/A
A56: ='Control Panel'!B56 -> Diabetes | B56: Diabetes | C56: ='Control Panel'!B56 -> Diabetes
A57: ='Control Panel'!B57 -> LDP.04: Diabetes Register | B57: LDP.04: Diabetes Register | C57: Diabetes register | D57: =IF($C$5="Total",SUMIFS(OFFSET(REL_D,,MATCH($A57,IND,0)-2),REL_D,D$4,NwID,$C$4),SUMIFS(OFFSET(REL_D,,MATCH($A57,IND,0)-2),REL_D,D$4,OrgID,$C$5)) -> 21951 | E57: =IF($C$5="Total",SUMIFS(OFFSET(REL_D,,MATCH($A57,IND,0)-2),REL_D,E$4,NwID,$C$4),SUMIFS(OFFSET(REL_D,,MATCH($A57,IND,0)-2),REL_D,E$4,OrgID,$C$5)) -> 23061 | F57: =IF($C$5="Total",SUMIFS(OFFSET(REL_D,,MATCH($A57,IND,0)-2),REL_D,F$4,NwID,$C$4),SUMIFS(OFFSET(REL_D,,MATCH($A57,IND,0)-2),REL_D,F$4,OrgID,$C$5)) -> 23141 | G57: =IF($C$5="Total",SUMIFS(OFFSET(REL_D,,MATCH($A57,IND,0)-2),REL_D,G$4,NwID,$C$4),SUMIFS(OFFSET(REL_D,,MATCH($A57,IND,0)-2),REL_D,G$4,OrgID,$C$5)) -> 23345 | H57: =IF($C$5="Total",SUMIFS(OFFSET(REL_D,,MATCH($A57,IND,0)-2),REL_D,H$4,NwID,$C$4),SUMIFS(OFFSET(REL_D,,MATCH($A57,IND,0)-2),REL_D,H$4,OrgID,$C$5)) -> 23513 | I57: =IF($C$5="Total",SUMIFS(OFFSET(REL_D,,MATCH($A57,IND,0)-2),REL_D,I$4,NwID,$C$4),SUMIFS(OFFSET(REL_D,,MATCH($A57,IND,0)-2),REL_D,I$4,OrgID,$C$5)) -> 23648 | J57: =IF($C$5="Total",SUMIFS(OFFSET(REL_D,,MATCH($A57,IND,0)-2),REL_D,J$4,NwID,$C$4),SUMIFS(OFFSET(REL_D,,MATCH($A57,IND,0)-2),REL_D,J$4,OrgID,$C$5)) -> 23745 | K57: =IF($C$5="Total",SUMIFS(OFFSET(REL_D,,MATCH($A57,IND,0)-2),REL_D,K$4,NwID,$C$4),SUMIFS(OFFSET(REL_D,,MATCH($A57,IND,0)-2),REL_D,K$4,OrgID,$C$5)) -> 0 | L57: =IF($C$5="Total",SUMIFS(OFFSET(REL_D,,MATCH($A57,IND,0)-2),REL_D,L$4,NwID,$C$4),SUMIFS(OFFSET(REL_D,,MATCH($A57,IND,0)-2),REL_D,L$4,OrgID,$C$5)) -> 0 | M57: =IF($C$5="Total",SUMIFS(OFFSET(REL_D,,MATCH($A57,IND,0)-2),REL_D,M$4,NwID,$C$4),SUMIFS(OFFSET(REL_D,,MATCH($A57,IND,0)-2),REL_D,M$4,OrgID,$C$5)) -> 0 | N57: =IF($C$5="Total",SUMIFS(OFFSET(REL_D,,MATCH($A57,IND,0)-2),REL_D,N$4,NwID,$C$4),SUMIFS(OFFSET(REL_D,,MATCH($A57,IND,0)-2),REL_D,N$4,OrgID,$C$5)) -> 0 | O57: =IF($C$5="Total",SUMIFS(OFFSET(REL_D,,MATCH($A57,IND,0)-2),REL_D,O$4,NwID,$C$4),SUMIFS(OFFSET(REL_D,,MATCH($A57,IND,0)-2),REL_D,O$4,OrgID,$C$5)) -> 0 | P57: =IF($C$5="Total",SUMIFS(OFFSET(REL_D,,MATCH($A57,IND,0)-2),REL_D,P$4,NwID,$C$4),SUMIFS(OFFSET(REL_D,,MATCH($A57,IND,0)-2),REL_D,P$4,OrgID,$C$5)) -> 0 | Q57: =IF($C$5="Total",SUMIFS(OFFSET(REL_D,,MATCH($A57,IND,0)-2),REL_D,Q$4,NwID,$C$4),SUMIFS(OFFSET(REL_D,,MATCH($A57,IND,0)-2),REL_D,Q$4,OrgID,$C$5)) -> 0 | R57: =SUMIFS(OFFSET(REL_D,,MATCH($A57,IND,0)-1),REL_D,R$4,IF(LEFT($C$5,1)="N",NwID,OrgID),$C$5) -> 0
A58: ='Control Panel'!B58 -> %LDP.04: Diabetes Register | B58: %LDP.04: Diabetes Register | C58: % List size | D58: =IFERROR(D57/D8,"N/A") -> 0.073 | E58: 0.075 | F58: =IFERROR(F57/F8,"N/A") -> 0.075 | G58: =IFERROR(G57/G8,"N/A") -> 0.075 | H58: 0.075 | I58: 0.076 | J58: 0.076 | K58: N/A | L58: N/A | M58: N/A | N58: N/A | O58: N/A | P58: N/A | Q58: N/A | R58: N/A
A59: ='Control Panel'!B61 -> LDP.04.11: Diabetes and BP in last 12 months | B59: LDP.04.11: Diabetes and BP in last 12 months | C59: BP (last 12m) | D59: =IF($C$5="Total",SUMIFS(OFFSET(REL_D,,MATCH($A59,IND,0)-2),REL_D,D$4,NwID,$C$4),SUMIFS(OFFSET(REL_D,,MATCH($A59,IND,0)-2),REL_D,D$4,OrgID,$C$5)) -> 17520 | E59: =IF($C$5="Total",SUMIFS(OFFSET(REL_D,,MATCH($A59,IND,0)-2),REL_D,E$4,NwID,$C$4),SUMIFS(OFFSET(REL_D,,MATCH($A59,IND,0)-2),REL_D,E$4,OrgID,$C$5)) -> 20998 | F59: =IF($C$5="Total",SUMIFS(OFFSET(REL_D,,MATCH($A59,IND,0)-2),REL_D,F$4,NwID,$C$4),SUMIFS(OFFSET(REL_D,,MATCH($A59,IND,0)-2),REL_D,F$4,OrgID,$C$5)) -> 20814 | G59: =IF($C$5="Total",SUMIFS(OFFSET(REL_D,,MATCH($A59,IND,0)-2),REL_D,G$4,NwID,$C$4),SUMIFS(OFFSET(REL_D,,MATCH($A59,IND,0)-2),REL_D,G$4,OrgID,$C$5)) -> 20648 | H59: =IF($C$5="Total",SUMIFS(OFFSET(REL_D,,MATCH($A59,IND,0)-2),REL_D,H$4,NwID,$C$4),SUMIFS(OFFSET(REL_D,,MATCH($A59,IND,0)-2),REL_D,H$4,OrgID,$C$5)) -> 20543 | I59: =IF($C$5="Total",SUMIFS(OFFSET(REL_D,,MATCH($A59,IND,0)-2),REL_D,I$4,NwID,$C$4),SUMIFS(OFFSET(REL_D,,MATCH($A59,IND,0)-2),REL_D,I$4,OrgID,$C$5)) -> 20668 | J59: =IF($C$5="Total",SUMIFS(OFFSET(REL_D,,MATCH($A59,IND,0)-2),REL_D,J$4,NwID,$C$4),SUMIFS(OFFSET(REL_D,,MATCH($A59,IND,0)-2),REL_D,J$4,OrgID,$C$5)) -> 20740 | K59: =IF($C$5="Total",SUMIFS(OFFSET(REL_D,,MATCH($A59,IND,0)-2),REL_D,K$4,NwID,$C$4),SUMIFS(OFFSET(REL_D,,MATCH($A59,IND,0)-2),REL_D,K$4,OrgID,$C$5)) -> 0 | L59: =IF($C$5="Total",SUMIFS(OFFSET(REL_D,,MATCH($A59,IND,0)-2),REL_D,L$4,NwID,$C$4),SUMIFS(OFFSET(REL_D,,MATCH($A59,IND,0)-2),REL_D,L$4,OrgID,$C$5)) -> 0 | M59: =IF($C$5="Total",SUMIFS(OFFSET(REL_D,,MATCH($A59,IND,0)-2),REL_D,M$4,NwID,$C$4),SUMIFS(OFFSET(REL_D,,MATCH($A59,IND,0)-2),REL_D,M$4,OrgID,$C$5)) -> 0 | N59: =IF($C$5="Total",SUMIFS(OFFSET(REL_D,,MATCH($A59,IND,0)-2),REL_D,N$4,NwID,$C$4),SUMIFS(OFFSET(REL_D,,MATCH($A59,IND,0)-2),REL_D,N$4,OrgID,$C$5)) -> 0 | O59: =IF($C$5="Total",SUMIFS(OFFSET(REL_D,,MATCH($A59,IND,0)-2),REL_D,O$4,NwID,$C$4),SUMIFS(OFFSET(REL_D,,MATCH($A59,IND,0)-2),REL_D,O$4,OrgID,$C$5)) -> 0 | P59: =IF($C$5="Total",SUMIFS(OFFSET(REL_D,,MATCH($A59,IND,0)-2),REL_D,P$4,NwID,$C$4),SUMIFS(OFFSET(REL_D,,MATCH($A59,IND,0)-2),REL_D,P$4,OrgID,$C$5)) -> 0 | Q59: =IF($C$5="Total",SUMIFS(OFFSET(REL_D,,MATCH($A59,IND,0)-2),REL_D,Q$4,NwID,$C$4),SUMIFS(OFFSET(REL_D,,MATCH($A59,IND,0)-2),REL_D,Q$4,OrgID,$C$5)) -> 0 | R59: =SUMIFS(OFFSET(REL_D,,MATCH($A59,IND,0)-1),REL_D,R$4,IF(LEFT($C$5,1)="N",NwID,OrgID),$C$5) -> 0
A60: ='Control Panel'!B62 -> %LDP.04.11: Diabetes and BP in last 12 months | B60: %LDP.04.11: Diabetes and BP in last 12 months | C60: % Diabetes Register | D60: =IFERROR(D59/D57,"N/A") -> 0.798 | E60: 0.911 | F60: =IFERROR(F59/F57,"N/A") -> 0.899 | G60: =IFERROR(G59/G57,"N/A") -> 0.884 | H60: 0.874 | I60: 0.874 | J60: 0.873 | K60: N/A | L60: N/A | M60: N/A | N60: N/A | O60: N/A | P60: N/A | Q60: N/A | R60: =IFERROR(R59/R57,"N/A") -> N/A
A61: ='Control Panel'!B63 -> LDP.04.09: Diabetes BP less than 145/85 (last 12m) | B61: LDP.04.09: Diabetes BP less than 145/85 (last 12m) | C61: BP < 145/85 (last 12m) | D61: =IF($C$5="Total",SUMIFS(OFFSET(REL_D,,MATCH($A61,IND,0)-2),REL_D,D$4,NwID,$C$4),SUMIFS(OFFSET(REL_D,,MATCH($A61,IND,0)-2),REL_D,D$4,OrgID,$C$5)) -> 13574 | E61: =IF($C$5="Total",SUMIFS(OFFSET(REL_D,,MATCH($A61,IND,0)-2),REL_D,E$4,NwID,$C$4),SUMIFS(OFFSET(REL_D,,MATCH($A61,IND,0)-2),REL_D,E$4,OrgID,$C$5)) -> 17383 | F61: =IF($C$5="Total",SUMIFS(OFFSET(REL_D,,MATCH($A61,IND,0)-2),REL_D,F$4,NwID,$C$4),SUMIFS(OFFSET(REL_D,,MATCH($A61,IND,0)-2),REL_D,F$4,OrgID,$C$5)) -> 17090 | G61: =IF($C$5="Total",SUMIFS(OFFSET(REL_D,,MATCH($A61,IND,0)-2),REL_D,G$4,NwID,$C$4),SUMIFS(OFFSET(REL_D,,MATCH($A61,IND,0)-2),REL_D,G$4,OrgID,$C$5)) -> 16853 | H61: =IF($C$5="Total",SUMIFS(OFFSET(REL_D,,MATCH($A61,IND,0)-2),REL_D,H$4,NwID,$C$4),SUMIFS(OFFSET(REL_D,,MATCH($A61,IND,0)-2),REL_D,H$4,OrgID,$C$5)) -> 16781 | I61: =IF($C$5="Total",SUMIFS(OFFSET(REL_D,,MATCH($A61,IND,0)-2),REL_D,I$4,NwID,$C$4),SUMIFS(OFFSET(REL_D,,MATCH($A61,IND,0)-2),REL_D,I$4,OrgID,$C$5)) -> 16867 | J61: =IF($C$5="Total",SUMIFS(OFFSET(REL_D,,MATCH($A61,IND,0)-2),REL_D,J$4,NwID,$C$4),SUMIFS(OFFSET(REL_D,,MATCH($A61,IND,0)-2),REL_D,J$4,OrgID,$C$5)) -> 16797 | K61: =IF($C$5="Total",SUMIFS(OFFSET(REL_D,,MATCH($A61,IND,0)-2),REL_D,K$4,NwID,$C$4),SUMIFS(OFFSET(REL_D,,MATCH($A61,IND,0)-2),REL_D,K$4,OrgID,$C$5)) -> 0 | L61: =IF($C$5="Total",SUMIFS(OFFSET(REL_D,,MATCH($A61,IND,0)-2),REL_D,L$4,NwID,$C$4),SUMIFS(OFFSET(REL_D,,MATCH($A61,IND,0)-2),REL_D,L$4,OrgID,$C$5)) -> 0 | M61: =IF($C$5="Total",SUMIFS(OFFSET(REL_D,,MATCH($A61,IND,0)-2),REL_D,M$4,NwID,$C$4),SUMIFS(OFFSET(REL_D,,MATCH($A61,IND,0)-2),REL_D,M$4,OrgID,$C$5)) -> 0 | N61: =IF($C$5="Total",SUMIFS(OFFSET(REL_D,,MATCH($A61,IND,0)-2),REL_D,N$4,NwID,$C$4),SUMIFS(OFFSET(REL_D,,MATCH($A61,IND,0)-2),REL_D,N$4,OrgID,$C$5)) -> 0 | O61: =IF($C$5="Total",SUMIFS(OFFSET(REL_D,,MATCH($A61,IND,0)-2),REL_D,O$4,NwID,$C$4),SUMIFS(OFFSET(REL_D,,MATCH($A61,IND,0)-2),REL_D,O$4,OrgID,$C$5)) -> 0 | P61: =IF($C$5="Total",SUMIFS(OFFSET(REL_D,,MATCH($A61,IND,0)-2),REL_D,P$4,NwID,$C$4),SUMIFS(OFFSET(REL_D,,MATCH($A61,IND,0)-2),REL_D,P$4,OrgID,$C$5)) -> 0 | Q61: =IF($C$5="Total",SUMIFS(OFFSET(REL_D,,MATCH($A61,IND,0)-2),REL_D,Q$4,NwID,$C$4),SUMIFS(OFFSET(REL_D,,MATCH($A61,IND,0)-2),REL_D,Q$4,OrgID,$C$5)) -> 0 | R61: =SUMIFS(OFFSET(REL_D,,MATCH($A61,IND,0)-1),REL_D,R$4,IF(LEFT($C$5,1)="N",NwID,OrgID),$C$5) -> 0
A62: ='Control Panel'!B64 -> %LDP.04.09: Diabetes BP less than 145/85 (last 12m) | B62: %LDP.04.09: Diabetes BP less than 145/85 (last 12m) | C62: % Diabetes Register | D62: =IFERROR(D61/D57,"N/A") -> 0.618 | E62: 0.754 | F62: =IFERROR(F61/F57,"N/A") -> 0.739 | G62: =IFERROR(G61/G57,"N/A") -> 0.722 | H62: 0.714 | I62: 0.713 | J62: 0.707 | K62: N/A | L62: N/A | M62: N/A | N62: N/A | O62: N/A | P62: N/A | Q62: N/A | R62: =IFERROR(R61/R57,"N/A") -> N/A
A63: ='Control Panel'!B67 -> LDP.04.08: Diabetes Chol less than 5mmol (last 12m) | B63: LDP.04.08: Diabetes Chol less than 5mmol (last 12m) | C63: Cholesterol < 5mmols (last 12m) | D63: =IF($C$5="Total",SUMIFS(OFFSET(REL_D,,MATCH($A63,IND,0)-2),REL_D,D$4,NwID,$C$4),SUMIFS(OFFSET(REL_D,,MATCH($A63,IND,0)-2),REL_D,D$4,OrgID,$C$5)) -> 2404 | E63: =IF($C$5="Total",SUMIFS(OFFSET(REL_D,,MATCH($A63,IND,0)-2),REL_D,E$4,NwID,$C$4),SUMIFS(OFFSET(REL_D,,MATCH($A63,IND,0)-2),REL_D,E$4,OrgID,$C$5)) -> 2637 | F63: =IF($C$5="Total",SUMIFS(OFFSET(REL_D,,MATCH($A63,IND,0)-2),REL_D,F$4,NwID,$C$4),SUMIFS(OFFSET(REL_D,,MATCH($A63,IND,0)-2),REL_D,F$4,OrgID,$C$5)) -> 2560 | G63: =IF($C$5="Total",SUMIFS(OFFSET(REL_D,,MATCH($A63,IND,0)-2),REL_D,G$4,NwID,$C$4),SUMIFS(OFFSET(REL_D,,MATCH($A63,IND,0)-2),REL_D,G$4,OrgID,$C$5)) -> 2471 | H63: =IF($C$5="Total",SUMIFS(OFFSET(REL_D,,MATCH($A63,IND,0)-2),REL_D,H$4,NwID,$C$4),SUMIFS(OFFSET(REL_D,,MATCH($A63,IND,0)-2),REL_D,H$4,OrgID,$C$5)) -> 2339 | I63: =IF($C$5="Total",SUMIFS(OFFSET(REL_D,,MATCH($A63,IND,0)-2),REL_D,I$4,NwID,$C$4),SUMIFS(OFFSET(REL_D,,MATCH($A63,IND,0)-2),REL_D,I$4,OrgID,$C$5)) -> 2317 | J63: =IF($C$5="Total",SUMIFS(OFFSET(REL_D,,MATCH($A63,IND,0)-2),REL_D,J$4,NwID,$C$4),SUMIFS(OFFSET(REL_D,,MATCH($A63,IND,0)-2),REL_D,J$4,OrgID,$C$5)) -> 2379 | K63: =IF($C$5="Total",SUMIFS(OFFSET(REL_D,,MATCH($A63,IND,0)-2),REL_D,K$4,NwID,$C$4),SUMIFS(OFFSET(REL_D,,MATCH($A63,IND,0)-2),REL_D,K$4,OrgID,$C$5)) -> 0 | L63: =IF($C$5="Total",SUMIFS(OFFSET(REL_D,,MATCH($A63,IND,0)-2),REL_D,L$4,NwID,$C$4),SUMIFS(OFFSET(REL_D,,MATCH($A63,IND,0)-2),REL_D,L$4,OrgID,$C$5)) -> 0 | M63: =IF($C$5="Total",SUMIFS(OFFSET(REL_D,,MATCH($A63,IND,0)-2),REL_D,M$4,NwID,$C$4),SUMIFS(OFFSET(REL_D,,MATCH($A63,IND,0)-2),REL_D,M$4,OrgID,$C$5)) -> 0 | N63: =IF($C$5="Total",SUMIFS(OFFSET(REL_D,,MATCH($A63,IND,0)-2),REL_D,N$4,NwID,$C$4),SUMIFS(OFFSET(REL_D,,MATCH($A63,IND,0)-2),REL_D,N$4,OrgID,$C$5)) -> 0 | O63: =IF($C$5="Total",SUMIFS(OFFSET(REL_D,,MATCH($A63,IND,0)-2),REL_D,O$4,NwID,$C$4),SUMIFS(OFFSET(REL_D,,MATCH($A63,IND,0)-2),REL_D,O$4,OrgID,$C$5)) -> 0 | P63: =IF($C$5="Total",SUMIFS(OFFSET(REL_D,,MATCH($A63,IND,0)-2),REL_D,P$4,NwID,$C$4),SUMIFS(OFFSET(REL_D,,MATCH($A63,IND,0)-2),REL_D,P$4,OrgID,$C$5)) -> 0 | Q63: =IF($C$5="Total",SUMIFS(OFFSET(REL_D,,MATCH($A63,IND,0)-2),REL_D,Q$4,NwID,$C$4),SUMIFS(OFFSET(REL_D,,MATCH($A63,IND,0)-2),REL_D,Q$4,OrgID,$C$5)) -> 0 | R63: =SUMIFS(OFFSET(REL_D,,MATCH($A63,IND,0)-1),REL_D,R$4,IF(LEFT($C$5,1)="N",NwID,OrgID),$C$5) -> 0
A64: ='Control Panel'!B68 -> %LDP.04.08: Diabetes Chol less than 5mmol (last 12m) | B64: %LDP.04.08: Diabetes Chol less than 5mmol (last 12m) | C64: % Diabetes Register | D64: =IFERROR(D63/D57,"N/A") -> 0.11 | E64: 0.114 | F64: =IFERROR(F63/F57,"N/A") -> 0.111 | G64: =IFERROR(G63/G57,"N/A") -> 0.106 | H64: 0.099 | I64: 0.098 | J64: 0.1 | K64: N/A | L64: N/A | M64: N/A | N64: N/A | O64: N/A | P64: N/A | Q64: N/A | R64: =IFERROR(R63/R57,"N/A") -> N/A
A65: ='Control Panel'!B69 -> LDP.04.01: Diabetes HbA1c <7.5% OR <59mmol (last 12m) | B65: LDP.04.01: Diabetes HbA1c <7.5% OR <59mmol (last 12m) | C65: HbA1c < 59 (last 12m) | D65: =IF($C$5="Total",SUMIFS(OFFSET(REL_D,,MATCH($A65,IND,0)-2),REL_D,D$4,NwID,$C$4),SUMIFS(OFFSET(REL_D,,MATCH($A65,IND,0)-2),REL_D,D$4,OrgID,$C$5)) -> 10829 | E65: =IF($C$5="Total",SUMIFS(OFFSET(REL_D,,MATCH($A65,IND,0)-2),REL_D,E$4,NwID,$C$4),SUMIFS(OFFSET(REL_D,,MATCH($A65,IND,0)-2),REL_D,E$4,OrgID,$C$5)) -> 12373 | F65: =IF($C$5="Total",SUMIFS(OFFSET(REL_D,,MATCH($A65,IND,0)-2),REL_D,F$4,NwID,$C$4),SUMIFS(OFFSET(REL_D,,MATCH($A65,IND,0)-2),REL_D,F$4,OrgID,$C$5)) -> 12166 | G65: =IF($C$5="Total",SUMIFS(OFFSET(REL_D,,MATCH($A65,IND,0)-2),REL_D,G$4,NwID,$C$4),SUMIFS(OFFSET(REL_D,,MATCH($A65,IND,0)-2),REL_D,G$4,OrgID,$C$5)) -> 11910 | H65: =IF($C$5="Total",SUMIFS(OFFSET(REL_D,,MATCH($A65,IND,0)-2),REL_D,H$4,NwID,$C$4),SUMIFS(OFFSET(REL_D,,MATCH($A65,IND,0)-2),REL_D,H$4,OrgID,$C$5)) -> 11917 | I65: =IF($C$5="Total",SUMIFS(OFFSET(REL_D,,MATCH($A65,IND,0)-2),REL_D,I$4,NwID,$C$4),SUMIFS(OFFSET(REL_D,,MATCH($A65,IND,0)-2),REL_D,I$4,OrgID,$C$5)) -> 12034 | J65: =IF($C$5="Total",SUMIFS(OFFSET(REL_D,,MATCH($A65,IND,0)-2),REL_D,J$4,NwID,$C$4),SUMIFS(OFFSET(REL_D,,MATCH($A65,IND,0)-2),REL_D,J$4,OrgID,$C$5)) -> 12052 | K65: =IF($C$5="Total",SUMIFS(OFFSET(REL_D,,MATCH($A65,IND,0)-2),REL_D,K$4,NwID,$C$4),SUMIFS(OFFSET(REL_D,,MATCH($A65,IND,0)-2),REL_D,K$4,OrgID,$C$5)) -> 0 | L65: =IF($C$5="Total",SUMIFS(OFFSET(REL_D,,MATCH($A65,IND,0)-2),REL_D,L$4,NwID,$C$4),SUMIFS(OFFSET(REL_D,,MATCH($A65,IND,0)-2),REL_D,L$4,OrgID,$C$5)) -> 0 | M65: =IF($C$5="Total",SUMIFS(OFFSET(REL_D,,MATCH($A65,IND,0)-2),REL_D,M$4,NwID,$C$4),SUMIFS(OFFSET(REL_D,,MATCH($A65,IND,0)-2),REL_D,M$4,OrgID,$C$5)) -> 0 | N65: =IF($C$5="Total",SUMIFS(OFFSET(REL_D,,MATCH($A65,IND,0)-2),REL_D,N$4,NwID,$C$4),SUMIFS(OFFSET(REL_D,,MATCH($A65,IND,0)-2),REL_D,N$4,OrgID,$C$5)) -> 0 | O65: =IF($C$5="Total",SUMIFS(OFFSET(REL_D,,MATCH($A65,IND,0)-2),REL_D,O$4,NwID,$C$4),SUMIFS(OFFSET(REL_D,,MATCH($A65,IND,0)-2),REL_D,O$4,OrgID,$C$5)) -> 0 | P65: =IF($C$5="Total",SUMIFS(OFFSET(REL_D,,MATCH($A65,IND,0)-2),REL_D,P$4,NwID,$C$4),SUMIFS(OFFSET(REL_D,,MATCH($A65,IND,0)-2),REL_D,P$4,OrgID,$C$5)) -> 0 | Q65: =IF($C$5="Total",SUMIFS(OFFSET(REL_D,,MATCH($A65,IND,0)-2),REL_D,Q$4,NwID,$C$4),SUMIFS(OFFSET(REL_D,,MATCH($A65,IND,0)-2),REL_D,Q$4,OrgID,$C$5)) -> 0 | R65: =SUMIFS(OFFSET(REL_D,,MATCH($A65,IND,0)-1),REL_D,R$4,IF(LEFT($C$5,1)="N",NwID,OrgID),$C$5) -> 0
A66: ='Control Panel'!B70 -> %LDP.04.01: Diabetes HbA1c <7.5% OR <59mmol (last 12m) | B66: %LDP.04.01: Diabetes HbA1c <7.5% OR <59mmol (last 12m) | C66: % Diabetes register | D66: =IFERROR(D65/D57,"N/A") -> 0.493 | E66: 0.537 | F66: =IFERROR(F65/F57,"N/A") -> 0.526 | G66: =IFERROR(G65/G57,"N/A") -> 0.51 | H66: 0.507 | I66: 0.509 | J66: 0.508 | K66: N/A | L66: N/A | M66: N/A | N66: N/A | O66: N/A | P66: N/A | Q66: N/A | R66: =IFERROR(R65/R57,"N/A") -> N/A
A67: ='Control Panel'!B81 -> LDP.04.07: Diabetes Influenza Vaccinations (From August 2018) | B67: LDP.04.07: Diabetes Influenza Vaccinations (last 12m) | C67: Flu jab (From August 2023) | D67: =IF($C$5="Total",SUMIFS(OFFSET(REL_D,,MATCH($A67,IND,0)-2),REL_D,D$4,NwID,$C$4),SUMIFS(OFFSET(REL_D,,MATCH($A67,IND,0)-2),REL_D,D$4,OrgID,$C$5)) -> 0 | E67: =IF($C$5="Total",SUMIFS(OFFSET(REL_D,,MATCH($A67,IND,0)-2),REL_D,E$4,NwID,$C$4),SUMIFS(OFFSET(REL_D,,MATCH($A67,IND,0)-2),REL_D,E$4,OrgID,$C$5)) -> 15370 | F67: =IF($C$5="Total",SUMIFS(OFFSET(REL_D,,MATCH($A67,IND,0)-2),REL_D,F$4,NwID,$C$4),SUMIFS(OFFSET(REL_D,,MATCH($A67,IND,0)-2),REL_D,F$4,OrgID,$C$5)) -> 0 | G67: =IF($C$5="Total",SUMIFS(OFFSET(REL_D,,MATCH($A67,IND,0)-2),REL_D,G$4,NwID,$C$4),SUMIFS(OFFSET(REL_D,,MATCH($A67,IND,0)-2),REL_D,G$4,OrgID,$C$5)) -> 0 | H67: =IF($C$5="Total",SUMIFS(OFFSET(REL_D,,MATCH($A67,IND,0)-2),REL_D,H$4,NwID,$C$4),SUMIFS(OFFSET(REL_D,,MATCH($A67,IND,0)-2),REL_D,H$4,OrgID,$C$5)) -> 0 | I67: =IF($C$5="Total",SUMIFS(OFFSET(REL_D,,MATCH($A67,IND,0)-2),REL_D,I$4,NwID,$C$4),SUMIFS(OFFSET(REL_D,,MATCH($A67,IND,0)-2),REL_D,I$4,OrgID,$C$5)) -> 0 | J67: =IF($C$5="Total",SUMIFS(OFFSET(REL_D,,MATCH($A67,IND,0)-2),REL_D,J$4,NwID,$C$4),SUMIFS(OFFSET(REL_D,,MATCH($A67,IND,0)-2),REL_D,J$4,OrgID,$C$5)) -> 2 | K67: =IF($C$5="Total",SUMIFS(OFFSET(REL_D,,MATCH($A67,IND,0)-2),REL_D,K$4,NwID,$C$4),SUMIFS(OFFSET(REL_D,,MATCH($A67,IND,0)-2),REL_D,K$4,OrgID,$C$5)) -> 0 | L67: =IF($C$5="Total",SUMIFS(OFFSET(REL_D,,MATCH($A67,IND,0)-2),REL_D,L$4,NwID,$C$4),SUMIFS(OFFSET(REL_D,,MATCH($A67,IND,0)-2),REL_D,L$4,OrgID,$C$5)) -> 0 | M67: =IF($C$5="Total",SUMIFS(OFFSET(REL_D,,MATCH($A67,IND,0)-2),REL_D,M$4,NwID,$C$4),SUMIFS(OFFSET(REL_D,,MATCH($A67,IND,0)-2),REL_D,M$4,OrgID,$C$5)) -> 0 | N67: =IF($C$5="Total",SUMIFS(OFFSET(REL_D,,MATCH($A67,IND,0)-2),REL_D,N$4,NwID,$C$4),SUMIFS(OFFSET(REL_D,,MATCH($A67,IND,0)-2),REL_D,N$4,OrgID,$C$5)) -> 0 | O67: =IF($C$5="Total",SUMIFS(OFFSET(REL_D,,MATCH($A67,IND,0)-2),REL_D,O$4,NwID,$C$4),SUMIFS(OFFSET(REL_D,,MATCH($A67,IND,0)-2),REL_D,O$4,OrgID,$C$5)) -> 0 | P67: =IF($C$5="Total",SUMIFS(OFFSET(REL_D,,MATCH($A67,IND,0)-2),REL_D,P$4,NwID,$C$4),SUMIFS(OFFSET(REL_D,,MATCH($A67,IND,0)-2),REL_D,P$4,OrgID,$C$5)) -> 0 | Q67: =IF($C$5="Total",SUMIFS(OFFSET(REL_D,,MATCH($A67,IND,0)-2),REL_D,Q$4,NwID,$C$4),SUMIFS(OFFSET(REL_D,,MATCH($A67,IND,0)-2),REL_D,Q$4,OrgID,$C$5)) -> 0 | R67: =SUMIFS(OFFSET(REL_D,,MATCH($A67,IND,0)-1),REL_D,R$4,IF(LEFT($C$5,1)="N",NwID,OrgID),$C$5) -> 0
A68: ='Control Panel'!B82 -> %LDP.04.07: Diabetes Influenza Vaccinations (From August 2018) | B68: %LDP.04.07: Diabetes Influenza Vaccinations (last 12m) | C68: % Diabetes Register | D68: =IFERROR(D67/D57,"N/A") -> 0 | E68: 0.666 | F68: =IFERROR(F67/F57,"N/A") -> 0 | G68: =IFERROR(G67/G57,"N/A") -> 0 | H68: 0 | I68: 0 | J68: 0 | K68: N/A | L68: N/A | M68: N/A | N68: N/A | O68: N/A | P68: N/A | Q68: N/A | R68: =IFERROR(R67/R57,"N/A") -> N/A
C69: ='Control Panel'!B107 -> Mental Health
A70: ='Control Panel'!B108 -> CSPMH.01 SMI Register | B70: CSPMH.01 SMI Register | C70: ='Control Panel'!D108 -> Mental Health register | D70: =IF($C$5="Total",SUMIFS(OFFSET(REL_D,,MATCH($A70,IND,0)-2),REL_D,D$4,NwID,$C$4),SUMIFS(OFFSET(REL_D,,MATCH($A70,IND,0)-2),REL_D,D$4,OrgID,$C$5)) -> 2704 | E70: =IF($C$5="Total",SUMIFS(OFFSET(REL_D,,MATCH($A70,IND,0)-2),REL_D,E$4,NwID,$C$4),SUMIFS(OFFSET(REL_D,,MATCH($A70,IND,0)-2),REL_D,E$4,OrgID,$C$5)) -> 2717 | F70: =IF($C$5="Total",SUMIFS(OFFSET(REL_D,,MATCH($A70,IND,0)-2),REL_D,F$4,NwID,$C$4),SUMIFS(OFFSET(REL_D,,MATCH($A70,IND,0)-2),REL_D,F$4,OrgID,$C$5)) -> 2734 | G70: =IF($C$5="Total",SUMIFS(OFFSET(REL_D,,MATCH($A70,IND,0)-2),REL_D,G$4,NwID,$C$4),SUMIFS(OFFSET(REL_D,,MATCH($A70,IND,0)-2),REL_D,G$4,OrgID,$C$5)) -> 2744 | H70: =IF($C$5="Total",SUMIFS(OFFSET(REL_D,,MATCH($A70,IND,0)-2),REL_D,H$4,NwID,$C$4),SUMIFS(OFFSET(REL_D,,MATCH($A70,IND,0)-2),REL_D,H$4,OrgID,$C$5)) -> 2751 | I70: =IF($C$5="Total",SUMIFS(OFFSET(REL_D,,MATCH($A70,IND,0)-2),REL_D,I$4,NwID,$C$4),SUMIFS(OFFSET(REL_D,,MATCH($A70,IND,0)-2),REL_D,I$4,OrgID,$C$5)) -> 2763 | J70: =IF($C$5="Total",SUMIFS(OFFSET(REL_D,,MATCH($A70,IND,0)-2),REL_D,J$4,NwID,$C$4),SUMIFS(OFFSET(REL_D,,MATCH($A70,IND,0)-2),REL_D,J$4,OrgID,$C$5)) -> 2801 | K70: =IF($C$5="Total",SUMIFS(OFFSET(REL_D,,MATCH($A70,IND,0)-2),REL_D,K$4,NwID,$C$4),SUMIFS(OFFSET(REL_D,,MATCH($A70,IND,0)-2),REL_D,K$4,OrgID,$C$5)) -> 0 | L70: =IF($C$5="Total",SUMIFS(OFFSET(REL_D,,MATCH($A70,IND,0)-2),REL_D,L$4,NwID,$C$4),SUMIFS(OFFSET(REL_D,,MATCH($A70,IND,0)-2),REL_D,L$4,OrgID,$C$5)) -> 0 | M70: =IF($C$5="Total",SUMIFS(OFFSET(REL_D,,MATCH($A70,IND,0)-2),REL_D,M$4,NwID,$C$4),SUMIFS(OFFSET(REL_D,,MATCH($A70,IND,0)-2),REL_D,M$4,OrgID,$C$5)) -> 0 | N70: =IF($C$5="Total",SUMIFS(OFFSET(REL_D,,MATCH($A70,IND,0)-2),REL_D,N$4,NwID,$C$4),SUMIFS(OFFSET(REL_D,,MATCH($A70,IND,0)-2),REL_D,N$4,OrgID,$C$5)) -> 0 | O70: =IF($C$5="Total",SUMIFS(OFFSET(REL_D,,MATCH($A70,IND,0)-2),REL_D,O$4,NwID,$C$4),SUMIFS(OFFSET(REL_D,,MATCH($A70,IND,0)-2),REL_D,O$4,OrgID,$C$5)) -> 0 | P70: =IF($C$5="Total",SUMIFS(OFFSET(REL_D,,MATCH($A70,IND,0)-2),REL_D,P$4,NwID,$C$4),SUMIFS(OFFSET(REL_D,,MATCH($A70,IND,0)-2),REL_D,P$4,OrgID,$C$5)) -> 0 | Q70: =IF($C$5="Total",SUMIFS(OFFSET(REL_D,,MATCH($A70,IND,0)-2),REL_D,Q$4,NwID,$C$4),SUMIFS(OFFSET(REL_D,,MATCH($A70,IND,0)-2),REL_D,Q$4,OrgID,$C$5)) -> 0 | R70: =SUMIFS(OFFSET(REL_D,,MATCH($A70,IND,0)-1),REL_D,R$4,IF(LEFT($C$5,1)="N",NwID,OrgID),$C$5) -> 0
A71: ='Control Panel'!B109 -> %CSPMH.01 SMI Register | B71: %CSPMH.01 SMI Register | C71: ='Control Panel'!D109 -> % list size | D71: =IFERROR(D70/D8,"N/A") -> 0.009 | E71: 0.009 | F71: =IFERROR(F70/F8,"N/A") -> 0.009 | G71: =IFERROR(G70/G8,"N/A") -> 0.009 | H71: 0.009 | I71: 0.009 | J71: 0.009 | K71: N/A | L71: N/A | M71: N/A | N71: N/A | O71: N/A | P71: N/A | Q71: N/A | R71: N/A
A72: ='Control Panel'!B110 -> CSPMH.01.02 Smoking Status Recorded (12m) | B72: CSPMH.01.02 Smoking Status Recorded (12m) | C72: ='Control Panel'!D110 -> No. of Mental Health Patients with smoking status recorded (last 12m) or never smoked | D72: =IF($C$5="Total",SUMIFS(OFFSET(REL_D,,MATCH($A72,IND,0)-2),REL_D,D$4,NwID,$C$4),SUMIFS(OFFSET(REL_D,,MATCH($A72,IND,0)-2),REL_D,D$4,OrgID,$C$5)) -> 2309 | E72: =IF($C$5="Total",SUMIFS(OFFSET(REL_D,,MATCH($A72,IND,0)-2),REL_D,E$4,NwID,$C$4),SUMIFS(OFFSET(REL_D,,MATCH($A72,IND,0)-2),REL_D,E$4,OrgID,$C$5)) -> 2427 | F72: =IF($C$5="Total",SUMIFS(OFFSET(REL_D,,MATCH($A72,IND,0)-2),REL_D,F$4,NwID,$C$4),SUMIFS(OFFSET(REL_D,,MATCH($A72,IND,0)-2),REL_D,F$4,OrgID,$C$5)) -> 2436 | G72: =IF($C$5="Total",SUMIFS(OFFSET(REL_D,,MATCH($A72,IND,0)-2),REL_D,G$4,NwID,$C$4),SUMIFS(OFFSET(REL_D,,MATCH($A72,IND,0)-2),REL_D,G$4,OrgID,$C$5)) -> 2436 | H72: =IF($C$5="Total",SUMIFS(OFFSET(REL_D,,MATCH($A72,IND,0)-2),REL_D,H$4,NwID,$C$4),SUMIFS(OFFSET(REL_D,,MATCH($A72,IND,0)-2),REL_D,H$4,OrgID,$C$5)) -> 2426 | I72: =IF($C$5="Total",SUMIFS(OFFSET(REL_D,,MATCH($A72,IND,0)-2),REL_D,I$4,NwID,$C$4),SUMIFS(OFFSET(REL_D,,MATCH($A72,IND,0)-2),REL_D,I$4,OrgID,$C$5)) -> 2436 | J72: =IF($C$5="Total",SUMIFS(OFFSET(REL_D,,MATCH($A72,IND,0)-2),REL_D,J$4,NwID,$C$4),SUMIFS(OFFSET(REL_D,,MATCH($A72,IND,0)-2),REL_D,J$4,OrgID,$C$5)) -> 2453 | K72: =IF($C$5="Total",SUMIFS(OFFSET(REL_D,,MATCH($A72,IND,0)-2),REL_D,K$4,NwID,$C$4),SUMIFS(OFFSET(REL_D,,MATCH($A72,IND,0)-2),REL_D,K$4,OrgID,$C$5)) -> 0 | L72: =IF($C$5="Total",SUMIFS(OFFSET(REL_D,,MATCH($A72,IND,0)-2),REL_D,L$4,NwID,$C$4),SUMIFS(OFFSET(REL_D,,MATCH($A72,IND,0)-2),REL_D,L$4,OrgID,$C$5)) -> 0 | M72: =IF($C$5="Total",SUMIFS(OFFSET(REL_D,,MATCH($A72,IND,0)-2),REL_D,M$4,NwID,$C$4),SUMIFS(OFFSET(REL_D,,MATCH($A72,IND,0)-2),REL_D,M$4,OrgID,$C$5)) -> 0 | N72: =IF($C$5="Total",SUMIFS(OFFSET(REL_D,,MATCH($A72,IND,0)-2),REL_D,N$4,NwID,$C$4),SUMIFS(OFFSET(REL_D,,MATCH($A72,IND,0)-2),REL_D,N$4,OrgID,$C$5)) -> 0 | O72: =IF($C$5="Total",SUMIFS(OFFSET(REL_D,,MATCH($A72,IND,0)-2),REL_D,O$4,NwID,$C$4),SUMIFS(OFFSET(REL_D,,MATCH($A72,IND,0)-2),REL_D,O$4,OrgID,$C$5)) -> 0 | P72: =IF($C$5="Total",SUMIFS(OFFSET(REL_D,,MATCH($A72,IND,0)-2),REL_D,P$4,NwID,$C$4),SUMIFS(OFFSET(REL_D,,MATCH($A72,IND,0)-2),REL_D,P$4,OrgID,$C$5)) -> 0 | Q72: =IF($C$5="Total",SUMIFS(OFFSET(REL_D,,MATCH($A72,IND,0)-2),REL_D,Q$4,NwID,$C$4),SUMIFS(OFFSET(REL_D,,MATCH($A72,IND,0)-2),REL_D,Q$4,OrgID,$C$5)) -> 0 | R72: =SUMIFS(OFFSET(REL_D,,MATCH($A72,IND,0)-1),REL_D,R$4,IF(LEFT($C$5,1)="N",NwID,OrgID),$C$5) -> 0
A73: ='Control Panel'!B111 -> %CSPMH.01.02 Smoking Status Recorded (12m) | B73: %CSPMH.01.02 Smoking Status Recorded (12m) | C73: ='Control Panel'!D111 -> % Mental Health Register | D73: =IFERROR(D72/D70,"N/A") -> 0.854 | E73: 0.893 | F73: =IFERROR(F72/F70,"N/A") -> 0.891 | G73: =IFERROR(G72/G70,"N/A") -> 0.888 | H73: 0.882 | I73: 0.882 | J73: 0.876 | K73: N/A | L73: N/A | M73: N/A | N73: N/A | O73: N/A | P73: N/A | Q73: N/A | R73: =IFERROR(R72/R70,"N/A") -> N/A
A74: ='Control Panel'!B112 -> CSPMH.01.02.01 Current Smoker (12m) | B74: CSPMH.01.02.01 Current Smoker (15m) | C74: ='Control Panel'!D112 -> No. of Mental Health patients recorded as a Smoker | D74: =IF($C$5="Total",SUMIFS(OFFSET(REL_D,,MATCH($A74,IND,0)-2),REL_D,D$4,NwID,$C$4),SUMIFS(OFFSET(REL_D,,MATCH($A74,IND,0)-2),REL_D,D$4,OrgID,$C$5)) -> 505 | E74: =IF($C$5="Total",SUMIFS(OFFSET(REL_D,,MATCH($A74,IND,0)-2),REL_D,E$4,NwID,$C$4),SUMIFS(OFFSET(REL_D,,MATCH($A74,IND,0)-2),REL_D,E$4,OrgID,$C$5)) -> 603 | F74: =IF($C$5="Total",SUMIFS(OFFSET(REL_D,,MATCH($A74,IND,0)-2),REL_D,F$4,NwID,$C$4),SUMIFS(OFFSET(REL_D,,MATCH($A74,IND,0)-2),REL_D,F$4,OrgID,$C$5)) -> 599 | G74: =IF($C$5="Total",SUMIFS(OFFSET(REL_D,,MATCH($A74,IND,0)-2),REL_D,G$4,NwID,$C$4),SUMIFS(OFFSET(REL_D,,MATCH($A74,IND,0)-2),REL_D,G$4,OrgID,$C$5)) -> 595 | H74: =IF($C$5="Total",SUMIFS(OFFSET(REL_D,,MATCH($A74,IND,0)-2),REL_D,H$4,NwID,$C$4),SUMIFS(OFFSET(REL_D,,MATCH($A74,IND,0)-2),REL_D,H$4,OrgID,$C$5)) -> 576 | I74: =IF($C$5="Total",SUMIFS(OFFSET(REL_D,,MATCH($A74,IND,0)-2),REL_D,I$4,NwID,$C$4),SUMIFS(OFFSET(REL_D,,MATCH($A74,IND,0)-2),REL_D,I$4,OrgID,$C$5)) -> 581 | J74: =IF($C$5="Total",SUMIFS(OFFSET(REL_D,,MATCH($A74,IND,0)-2),REL_D,J$4,NwID,$C$4),SUMIFS(OFFSET(REL_D,,MATCH($A74,IND,0)-2),REL_D,J$4,OrgID,$C$5)) -> 569 | K74: =IF($C$5="Total",SUMIFS(OFFSET(REL_D,,MATCH($A74,IND,0)-2),REL_D,K$4,NwID,$C$4),SUMIFS(OFFSET(REL_D,,MATCH($A74,IND,0)-2),REL_D,K$4,OrgID,$C$5)) -> 0 | L74: =IF($C$5="Total",SUMIFS(OFFSET(REL_D,,MATCH($A74,IND,0)-2),REL_D,L$4,NwID,$C$4),SUMIFS(OFFSET(REL_D,,MATCH($A74,IND,0)-2),REL_D,L$4,OrgID,$C$5)) -> 0 | M74: =IF($C$5="Total",SUMIFS(OFFSET(REL_D,,MATCH($A74,IND,0)-2),REL_D,M$4,NwID,$C$4),SUMIFS(OFFSET(REL_D,,MATCH($A74,IND,0)-2),REL_D,M$4,OrgID,$C$5)) -> 0 | N74: =IF($C$5="Total",SUMIFS(OFFSET(REL_D,,MATCH($A74,IND,0)-2),REL_D,N$4,NwID,$C$4),SUMIFS(OFFSET(REL_D,,MATCH($A74,IND,0)-2),REL_D,N$4,OrgID,$C$5)) -> 0 | O74: =IF($C$5="Total",SUMIFS(OFFSET(REL_D,,MATCH($A74,IND,0)-2),REL_D,O$4,NwID,$C$4),SUMIFS(OFFSET(REL_D,,MATCH($A74,IND,0)-2),REL_D,O$4,OrgID,$C$5)) -> 0 | P74: =IF($C$5="Total",SUMIFS(OFFSET(REL_D,,MATCH($A74,IND,0)-2),REL_D,P$4,NwID,$C$4),SUMIFS(OFFSET(REL_D,,MATCH($A74,IND,0)-2),REL_D,P$4,OrgID,$C$5)) -> 0 | Q74: =IF($C$5="Total",SUMIFS(OFFSET(REL_D,,MATCH($A74,IND,0)-2),REL_D,Q$4,NwID,$C$4),SUMIFS(OFFSET(REL_D,,MATCH($A74,IND,0)-2),REL_D,Q$4,OrgID,$C$5)) -> 0 | R74: =SUMIFS(OFFSET(REL_D,,MATCH($A74,IND,0)-1),REL_D,R$4,IF(LEFT($C$5,1)="N",NwID,OrgID),$C$5) -> 0
A75: ='Control Panel'!B113 -> %CSPMH.01.02.01 Current Smoker (12m) | B75: %CSPMH.01.02.01 Current Smoker (15m) | C75: ='Control Panel'!D113 -> % Mental Health Register | D75: =IFERROR(D74/D70,"N/A") -> 0.187 | E75: 0.222 | F75: =IFERROR(F74/F70,"N/A") -> 0.219 | G75: =IFERROR(G74/G70,"N/A") -> 0.217 | H75: 0.209 | I75: 0.21 | J75: 0.203 | K75: N/A | L75: N/A | M75: N/A | N75: N/A | O75: N/A | P75: N/A | Q75: N/A | R75: =IFERROR(R74/R70,"N/A") -> N/A
A76: ='Control Panel'!B114 -> CSPMH 01.02.01.01 Ref to clinic 12m | B76: CSPMH 01.02.01.01 Ref to clinic 15m | C76: ='Control Panel'!D114 -> No. of Mental Health Patients who are current smokers & referred to the Stop Smoking Clinic | D76: =IF($C$5="Total",SUMIFS(OFFSET(REL_D,,MATCH($A76,IND,0)-2),REL_D,D$4,NwID,$C$4),SUMIFS(OFFSET(REL_D,,MATCH($A76,IND,0)-2),REL_D,D$4,OrgID,$C$5)) -> 4 | E76: =IF($C$5="Total",SUMIFS(OFFSET(REL_D,,MATCH($A76,IND,0)-2),REL_D,E$4,NwID,$C$4),SUMIFS(OFFSET(REL_D,,MATCH($A76,IND,0)-2),REL_D,E$4,OrgID,$C$5)) -> 12 | F76: =IF($C$5="Total",SUMIFS(OFFSET(REL_D,,MATCH($A76,IND,0)-2),REL_D,F$4,NwID,$C$4),SUMIFS(OFFSET(REL_D,,MATCH($A76,IND,0)-2),REL_D,F$4,OrgID,$C$5)) -> 10 | G76: =IF($C$5="Total",SUMIFS(OFFSET(REL_D,,MATCH($A76,IND,0)-2),REL_D,G$4,NwID,$C$4),SUMIFS(OFFSET(REL_D,,MATCH($A76,IND,0)-2),REL_D,G$4,OrgID,$C$5)) -> 10 | H76: =IF($C$5="Total",SUMIFS(OFFSET(REL_D,,MATCH($A76,IND,0)-2),REL_D,H$4,NwID,$C$4),SUMIFS(OFFSET(REL_D,,MATCH($A76,IND,0)-2),REL_D,H$4,OrgID,$C$5)) -> 10 | I76: =IF($C$5="Total",SUMIFS(OFFSET(REL_D,,MATCH($A76,IND,0)-2),REL_D,I$4,NwID,$C$4),SUMIFS(OFFSET(REL_D,,MATCH($A76,IND,0)-2),REL_D,I$4,OrgID,$C$5)) -> 11 | J76: =IF($C$5="Total",SUMIFS(OFFSET(REL_D,,MATCH($A76,IND,0)-2),REL_D,J$4,NwID,$C$4),SUMIFS(OFFSET(REL_D,,MATCH($A76,IND,0)-2),REL_D,J$4,OrgID,$C$5)) -> 11 | K76: =IF($C$5="Total",SUMIFS(OFFSET(REL_D,,MATCH($A76,IND,0)-2),REL_D,K$4,NwID,$C$4),SUMIFS(OFFSET(REL_D,,MATCH($A76,IND,0)-2),REL_D,K$4,OrgID,$C$5)) -> 0 | L76: =IF($C$5="Total",SUMIFS(OFFSET(REL_D,,MATCH($A76,IND,0)-2),REL_D,L$4,NwID,$C$4),SUMIFS(OFFSET(REL_D,,MATCH($A76,IND,0)-2),REL_D,L$4,OrgID,$C$5)) -> 0 | M76: =IF($C$5="Total",SUMIFS(OFFSET(REL_D,,MATCH($A76,IND,0)-2),REL_D,M$4,NwID,$C$4),SUMIFS(OFFSET(REL_D,,MATCH($A76,IND,0)-2),REL_D,M$4,OrgID,$C$5)) -> 0 | N76: =IF($C$5="Total",SUMIFS(OFFSET(REL_D,,MATCH($A76,IND,0)-2),REL_D,N$4,NwID,$C$4),SUMIFS(OFFSET(REL_D,,MATCH($A76,IND,0)-2),REL_D,N$4,OrgID,$C$5)) -> 0 | O76: =IF($C$5="Total",SUMIFS(OFFSET(REL_D,,MATCH($A76,IND,0)-2),REL_D,O$4,NwID,$C$4),SUMIFS(OFFSET(REL_D,,MATCH($A76,IND,0)-2),REL_D,O$4,OrgID,$C$5)) -> 0 | P76: =IF($C$5="Total",SUMIFS(OFFSET(REL_D,,MATCH($A76,IND,0)-2),REL_D,P$4,NwID,$C$4),SUMIFS(OFFSET(REL_D,,MATCH($A76,IND,0)-2),REL_D,P$4,OrgID,$C$5)) -> 0 | Q76: =IF($C$5="Total",SUMIFS(OFFSET(REL_D,,MATCH($A76,IND,0)-2),REL_D,Q$4,NwID,$C$4),SUMIFS(OFFSET(REL_D,,MATCH($A76,IND,0)-2),REL_D,Q$4,OrgID,$C$5)) -> 0 | R76: =SUMIFS(OFFSET(REL_D,,MATCH($A76,IND,0)-1),REL_D,R$4,IF(LEFT($C$5,1)="N",NwID,OrgID),$C$5) -> 0
A77: ='Control Panel'!B115 -> %CSPMH 01.02.01.01 Ref to clinic 12m | B77: %CSPMH 01.02.01.01 Ref to clinic 15m | C77: ='Control Panel'!D115 -> % Mental Health Register | D77: =IFERROR(D76/D70,"N/A") -> 0.001 | E77: 0.004 | F77: =IFERROR(F76/F70,"N/A") -> 0.004 | G77: =IFERROR(G76/G70,"N/A") -> 0.004 | H77: 0.004 | I77: 0.004 | J77: 0.004 | K77: N/A | L77: N/A | M77: N/A | N77: N/A | O77: N/A | P77: N/A | Q77: N/A | R77: =IFERROR(R76/R70,"N/A") -> N/A
A78: ='Control Panel'!B116 -> CSPMH.01.02.02 Ex-smoker Recorded (latest 12m) | B78: CSPMH.01.02.02 Ex-smoker Recorded (latest 15m) | C78: ='Control Panel'!D116 -> No. Of Mental Health Patients who are recorded as quitters | D78: =IF($C$5="Total",SUMIFS(OFFSET(REL_D,,MATCH($A78,IND,0)-2),REL_D,D$4,NwID,$C$4),SUMIFS(OFFSET(REL_D,,MATCH($A78,IND,0)-2),REL_D,D$4,OrgID,$C$5)) -> 157 | E78: =IF($C$5="Total",SUMIFS(OFFSET(REL_D,,MATCH($A78,IND,0)-2),REL_D,E$4,NwID,$C$4),SUMIFS(OFFSET(REL_D,,MATCH($A78,IND,0)-2),REL_D,E$4,OrgID,$C$5)) -> 201 | F78: =IF($C$5="Total",SUMIFS(OFFSET(REL_D,,MATCH($A78,IND,0)-2),REL_D,F$4,NwID,$C$4),SUMIFS(OFFSET(REL_D,,MATCH($A78,IND,0)-2),REL_D,F$4,OrgID,$C$5)) -> 197 | G78: =IF($C$5="Total",SUMIFS(OFFSET(REL_D,,MATCH($A78,IND,0)-2),REL_D,G$4,NwID,$C$4),SUMIFS(OFFSET(REL_D,,MATCH($A78,IND,0)-2),REL_D,G$4,OrgID,$C$5)) -> 186 | H78: =IF($C$5="Total",SUMIFS(OFFSET(REL_D,,MATCH($A78,IND,0)-2),REL_D,H$4,NwID,$C$4),SUMIFS(OFFSET(REL_D,,MATCH($A78,IND,0)-2),REL_D,H$4,OrgID,$C$5)) -> 183 | I78: =IF($C$5="Total",SUMIFS(OFFSET(REL_D,,MATCH($A78,IND,0)-2),REL_D,I$4,NwID,$C$4),SUMIFS(OFFSET(REL_D,,MATCH($A78,IND,0)-2),REL_D,I$4,OrgID,$C$5)) -> 186 | J78: =IF($C$5="Total",SUMIFS(OFFSET(REL_D,,MATCH($A78,IND,0)-2),REL_D,J$4,NwID,$C$4),SUMIFS(OFFSET(REL_D,,MATCH($A78,IND,0)-2),REL_D,J$4,OrgID,$C$5)) -> 190 | K78: =IF($C$5="Total",SUMIFS(OFFSET(REL_D,,MATCH($A78,IND,0)-2),REL_D,K$4,NwID,$C$4),SUMIFS(OFFSET(REL_D,,MATCH($A78,IND,0)-2),REL_D,K$4,OrgID,$C$5)) -> 0 | L78: =IF($C$5="Total",SUMIFS(OFFSET(REL_D,,MATCH($A78,IND,0)-2),REL_D,L$4,NwID,$C$4),SUMIFS(OFFSET(REL_D,,MATCH($A78,IND,0)-2),REL_D,L$4,OrgID,$C$5)) -> 0 | M78: =IF($C$5="Total",SUMIFS(OFFSET(REL_D,,MATCH($A78,IND,0)-2),REL_D,M$4,NwID,$C$4),SUMIFS(OFFSET(REL_D,,MATCH($A78,IND,0)-2),REL_D,M$4,OrgID,$C$5)) -> 0 | N78: =IF($C$5="Total",SUMIFS(OFFSET(REL_D,,MATCH($A78,IND,0)-2),REL_D,N$4,NwID,$C$4),SUMIFS(OFFSET(REL_D,,MATCH($A78,IND,0)-2),REL_D,N$4,OrgID,$C$5)) -> 0 | O78: =IF($C$5="Total",SUMIFS(OFFSET(REL_D,,MATCH($A78,IND,0)-2),REL_D,O$4,NwID,$C$4),SUMIFS(OFFSET(REL_D,,MATCH($A78,IND,0)-2),REL_D,O$4,OrgID,$C$5)) -> 0 | P78: =IF($C$5="Total",SUMIFS(OFFSET(REL_D,,MATCH($A78,IND,0)-2),REL_D,P$4,NwID,$C$4),SUMIFS(OFFSET(REL_D,,MATCH($A78,IND,0)-2),REL_D,P$4,OrgID,$C$5)) -> 0 | Q78: =IF($C$5="Total",SUMIFS(OFFSET(REL_D,,MATCH($A78,IND,0)-2),REL_D,Q$4,NwID,$C$4),SUMIFS(OFFSET(REL_D,,MATCH($A78,IND,0)-2),REL_D,Q$4,OrgID,$C$5)) -> 0 | R78: =SUMIFS(OFFSET(REL_D,,MATCH($A78,IND,0)-1),REL_D,R$4,IF(LEFT($C$5,1)="N",NwID,OrgID),$C$5) -> 0
A79: ='Control Panel'!B117 -> %CSPMH.01.02.02 Ex-smoker Recorded (latest 12m) | B79: %CSPMH.01.02.02 Ex-smoker Recorded (latest 15m) | C79: ='Control Panel'!D117 -> % Mental Health Register | D79: =IFERROR(D78/D70,"N/A") -> 0.058 | E79: 0.074 | F79: =IFERROR(F78/F70,"N/A") -> 0.072 | G79: =IFERROR(G78/G70,"N/A") -> 0.068 | H79: 0.067 | I79: 0.067 | J79: 0.068 | K79: N/A | L79: N/A | M79: N/A | N79: N/A | O79: N/A | P79: N/A | Q79: N/A | R79: =IFERROR(R78/R70,"N/A") -> N/A
A80: ='Control Panel'!B118 -> CSPMH. 01.03 QRisk Recorded (12m) | B80: CSPMH. 01.03 QRisk Recorded (12m) | C80: ='Control Panel'!D118 -> Patients with Mental Health with QRISK recorded in the last 12m | D80: =IF($C$5="Total",SUMIFS(OFFSET(REL_D,,MATCH($A80,IND,0)-2),REL_D,D$4,NwID,$C$4),SUMIFS(OFFSET(REL_D,,MATCH($A80,IND,0)-2),REL_D,D$4,OrgID,$C$5)) -> 572 | E80: =IF($C$5="Total",SUMIFS(OFFSET(REL_D,,MATCH($A80,IND,0)-2),REL_D,E$4,NwID,$C$4),SUMIFS(OFFSET(REL_D,,MATCH($A80,IND,0)-2),REL_D,E$4,OrgID,$C$5)) -> 834 | F80: =IF($C$5="Total",SUMIFS(OFFSET(REL_D,,MATCH($A80,IND,0)-2),REL_D,F$4,NwID,$C$4),SUMIFS(OFFSET(REL_D,,MATCH($A80,IND,0)-2),REL_D,F$4,OrgID,$C$5)) -> 815 | G80: =IF($C$5="Total",SUMIFS(OFFSET(REL_D,,MATCH($A80,IND,0)-2),REL_D,G$4,NwID,$C$4),SUMIFS(OFFSET(REL_D,,MATCH($A80,IND,0)-2),REL_D,G$4,OrgID,$C$5)) -> 803 | H80: =IF($C$5="Total",SUMIFS(OFFSET(REL_D,,MATCH($A80,IND,0)-2),REL_D,H$4,NwID,$C$4),SUMIFS(OFFSET(REL_D,,MATCH($A80,IND,0)-2),REL_D,H$4,OrgID,$C$5)) -> 818 | I80: =IF($C$5="Total",SUMIFS(OFFSET(REL_D,,MATCH($A80,IND,0)-2),REL_D,I$4,NwID,$C$4),SUMIFS(OFFSET(REL_D,,MATCH($A80,IND,0)-2),REL_D,I$4,OrgID,$C$5)) -> 788 | J80: =IF($C$5="Total",SUMIFS(OFFSET(REL_D,,MATCH($A80,IND,0)-2),REL_D,J$4,NwID,$C$4),SUMIFS(OFFSET(REL_D,,MATCH($A80,IND,0)-2),REL_D,J$4,OrgID,$C$5)) -> 776 | K80: =IF($C$5="Total",SUMIFS(OFFSET(REL_D,,MATCH($A80,IND,0)-2),REL_D,K$4,NwID,$C$4),SUMIFS(OFFSET(REL_D,,MATCH($A80,IND,0)-2),REL_D,K$4,OrgID,$C$5)) -> 0 | L80: =IF($C$5="Total",SUMIFS(OFFSET(REL_D,,MATCH($A80,IND,0)-2),REL_D,L$4,NwID,$C$4),SUMIFS(OFFSET(REL_D,,MATCH($A80,IND,0)-2),REL_D,L$4,OrgID,$C$5)) -> 0 | M80: =IF($C$5="Total",SUMIFS(OFFSET(REL_D,,MATCH($A80,IND,0)-2),REL_D,M$4,NwID,$C$4),SUMIFS(OFFSET(REL_D,,MATCH($A80,IND,0)-2),REL_D,M$4,OrgID,$C$5)) -> 0 | N80: =IF($C$5="Total",SUMIFS(OFFSET(REL_D,,MATCH($A80,IND,0)-2),REL_D,N$4,NwID,$C$4),SUMIFS(OFFSET(REL_D,,MATCH($A80,IND,0)-2),REL_D,N$4,OrgID,$C$5)) -> 0 | O80: =IF($C$5="Total",SUMIFS(OFFSET(REL_D,,MATCH($A80,IND,0)-2),REL_D,O$4,NwID,$C$4),SUMIFS(OFFSET(REL_D,,MATCH($A80,IND,0)-2),REL_D,O$4,OrgID,$C$5)) -> 0 | P80: =IF($C$5="Total",SUMIFS(OFFSET(REL_D,,MATCH($A80,IND,0)-2),REL_D,P$4,NwID,$C$4),SUMIFS(OFFSET(REL_D,,MATCH($A80,IND,0)-2),REL_D,P$4,OrgID,$C$5)) -> 0 | Q80: =IF($C$5="Total",SUMIFS(OFFSET(REL_D,,MATCH($A80,IND,0)-2),REL_D,Q$4,NwID,$C$4),SUMIFS(OFFSET(REL_D,,MATCH($A80,IND,0)-2),REL_D,Q$4,OrgID,$C$5)) -> 0 | R80: =SUMIFS(OFFSET(REL_D,,MATCH($A80,IND,0)-1),REL_D,R$4,IF(LEFT($C$5,1)="N",NwID,OrgID),$C$5) -> 0
A81: ='Control Panel'!B119 -> %CSPMH. 01.03 QRisk Recorded (12m) | B81: %CSPMH. 01.03 QRisk Recorded (12m) | C81: ='Control Panel'!D119 -> % Mental Health Register | D81: =IFERROR(D80/D70,"N/A") -> 0.212 | E81: 0.307 | F81: =IFERROR(F80/F70,"N/A") -> 0.298 | G81: =IFERROR(G80/G70,"N/A") -> 0.293 | H81: 0.297 | I81: 0.285 | J81: 0.277 | K81: N/A | L81: N/A | M81: N/A | N81: N/A | O81: N/A | P81: N/A | Q81: N/A | R81: =IFERROR(R80/R70,"N/A") -> N/A
A82: ='Control Panel'!B120 -> CSPMH. 01.03.02 Qrisk>=20 (12m) | B82: CSPMH. 01.03.02 Qrisk>=20 (12m) | C82: ='Control Panel'!D120 -> Patients with Mental Health with QRISK 20% or higher in the last 12m | D82: =IF($C$5="Total",SUMIFS(OFFSET(REL_D,,MATCH($A82,IND,0)-2),REL_D,D$4,NwID,$C$4),SUMIFS(OFFSET(REL_D,,MATCH($A82,IND,0)-2),REL_D,D$4,OrgID,$C$5)) -> 114 | E82: =IF($C$5="Total",SUMIFS(OFFSET(REL_D,,MATCH($A82,IND,0)-2),REL_D,E$4,NwID,$C$4),SUMIFS(OFFSET(REL_D,,MATCH($A82,IND,0)-2),REL_D,E$4,OrgID,$C$5)) -> 174 | F82: =IF($C$5="Total",SUMIFS(OFFSET(REL_D,,MATCH($A82,IND,0)-2),REL_D,F$4,NwID,$C$4),SUMIFS(OFFSET(REL_D,,MATCH($A82,IND,0)-2),REL_D,F$4,OrgID,$C$5)) -> 167 | G82: =IF($C$5="Total",SUMIFS(OFFSET(REL_D,,MATCH($A82,IND,0)-2),REL_D,G$4,NwID,$C$4),SUMIFS(OFFSET(REL_D,,MATCH($A82,IND,0)-2),REL_D,G$4,OrgID,$C$5)) -> 161 | H82: =IF($C$5="Total",SUMIFS(OFFSET(REL_D,,MATCH($A82,IND,0)-2),REL_D,H$4,NwID,$C$4),SUMIFS(OFFSET(REL_D,,MATCH($A82,IND,0)-2),REL_D,H$4,OrgID,$C$5)) -> 158 | I82: =IF($C$5="Total",SUMIFS(OFFSET(REL_D,,MATCH($A82,IND,0)-2),REL_D,I$4,NwID,$C$4),SUMIFS(OFFSET(REL_D,,MATCH($A82,IND,0)-2),REL_D,I$4,OrgID,$C$5)) -> 152 | J82: =IF($C$5="Total",SUMIFS(OFFSET(REL_D,,MATCH($A82,IND,0)-2),REL_D,J$4,NwID,$C$4),SUMIFS(OFFSET(REL_D,,MATCH($A82,IND,0)-2),REL_D,J$4,OrgID,$C$5)) -> 147 | K82: =IF($C$5="Total",SUMIFS(OFFSET(REL_D,,MATCH($A82,IND,0)-2),REL_D,K$4,NwID,$C$4),SUMIFS(OFFSET(REL_D,,MATCH($A82,IND,0)-2),REL_D,K$4,OrgID,$C$5)) -> 0 | L82: =IF($C$5="Total",SUMIFS(OFFSET(REL_D,,MATCH($A82,IND,0)-2),REL_D,L$4,NwID,$C$4),SUMIFS(OFFSET(REL_D,,MATCH($A82,IND,0)-2),REL_D,L$4,OrgID,$C$5)) -> 0 | M82: =IF($C$5="Total",SUMIFS(OFFSET(REL_D,,MATCH($A82,IND,0)-2),REL_D,M$4,NwID,$C$4),SUMIFS(OFFSET(REL_D,,MATCH($A82,IND,0)-2),REL_D,M$4,OrgID,$C$5)) -> 0 | N82: =IF($C$5="Total",SUMIFS(OFFSET(REL_D,,MATCH($A82,IND,0)-2),REL_D,N$4,NwID,$C$4),SUMIFS(OFFSET(REL_D,,MATCH($A82,IND,0)-2),REL_D,N$4,OrgID,$C$5)) -> 0 | O82: =IF($C$5="Total",SUMIFS(OFFSET(REL_D,,MATCH($A82,IND,0)-2),REL_D,O$4,NwID,$C$4),SUMIFS(OFFSET(REL_D,,MATCH($A82,IND,0)-2),REL_D,O$4,OrgID,$C$5)) -> 0 | P82: =IF($C$5="Total",SUMIFS(OFFSET(REL_D,,MATCH($A82,IND,0)-2),REL_D,P$4,NwID,$C$4),SUMIFS(OFFSET(REL_D,,MATCH($A82,IND,0)-2),REL_D,P$4,OrgID,$C$5)) -> 0 | Q82: =IF($C$5="Total",SUMIFS(OFFSET(REL_D,,MATCH($A82,IND,0)-2),REL_D,Q$4,NwID,$C$4),SUMIFS(OFFSET(REL_D,,MATCH($A82,IND,0)-2),REL_D,Q$4,OrgID,$C$5)) -> 0 | R82: =SUMIFS(OFFSET(REL_D,,MATCH($A82,IND,0)-1),REL_D,R$4,IF(LEFT($C$5,1)="N",NwID,OrgID),$C$5) -> 0
A83: ='Control Panel'!B121 -> %CSPMH. 01.03.02 Qrisk>=20 (12m) | B83: %CSPMH. 01.03.02 Qrisk>=20 (12m) | C83: ='Control Panel'!D121 -> % patients with QRISK recorded | D83: =IFERROR(D82/D70,"N/A") -> 0.042 | E83: 0.064 | F83: =IFERROR(F82/F70,"N/A") -> 0.061 | G83: =IFERROR(G82/G70,"N/A") -> 0.059 | H83: 0.057 | I83: 0.055 | J83: 0.052 | K83: N/A | L83: N/A | M83: N/A | N83: N/A | O83: N/A | P83: N/A | Q83: N/A | R83: =IFERROR(R82/R70,"N/A") -> N/A
A84: ='Control Panel'!B122 -> CSPMH. 01.03.01 BP recorded on same day as QRisk (12m) | B84: CSPMH. 01.03.01 BP recorded on same day as QRisk (12m) | C84: ='Control Panel'!D122 -> Patients with Mental Health with BP & QRisk on the same day in the last 12m | D84: =IF($C$5="Total",SUMIFS(OFFSET(REL_D,,MATCH($A84,IND,0)-2),REL_D,D$4,NwID,$C$4),SUMIFS(OFFSET(REL_D,,MATCH($A84,IND,0)-2),REL_D,D$4,OrgID,$C$5)) -> 248 | E84: =IF($C$5="Total",SUMIFS(OFFSET(REL_D,,MATCH($A84,IND,0)-2),REL_D,E$4,NwID,$C$4),SUMIFS(OFFSET(REL_D,,MATCH($A84,IND,0)-2),REL_D,E$4,OrgID,$C$5)) -> 362 | F84: =IF($C$5="Total",SUMIFS(OFFSET(REL_D,,MATCH($A84,IND,0)-2),REL_D,F$4,NwID,$C$4),SUMIFS(OFFSET(REL_D,,MATCH($A84,IND,0)-2),REL_D,F$4,OrgID,$C$5)) -> 360 | G84: =IF($C$5="Total",SUMIFS(OFFSET(REL_D,,MATCH($A84,IND,0)-2),REL_D,G$4,NwID,$C$4),SUMIFS(OFFSET(REL_D,,MATCH($A84,IND,0)-2),REL_D,G$4,OrgID,$C$5)) -> 363 | H84: =IF($C$5="Total",SUMIFS(OFFSET(REL_D,,MATCH($A84,IND,0)-2),REL_D,H$4,NwID,$C$4),SUMIFS(OFFSET(REL_D,,MATCH($A84,IND,0)-2),REL_D,H$4,OrgID,$C$5)) -> 356 | I84: =IF($C$5="Total",SUMIFS(OFFSET(REL_D,,MATCH($A84,IND,0)-2),REL_D,I$4,NwID,$C$4),SUMIFS(OFFSET(REL_D,,MATCH($A84,IND,0)-2),REL_D,I$4,OrgID,$C$5)) -> 357 | J84: =IF($C$5="Total",SUMIFS(OFFSET(REL_D,,MATCH($A84,IND,0)-2),REL_D,J$4,NwID,$C$4),SUMIFS(OFFSET(REL_D,,MATCH($A84,IND,0)-2),REL_D,J$4,OrgID,$C$5)) -> 340 | K84: =IF($C$5="Total",SUMIFS(OFFSET(REL_D,,MATCH($A84,IND,0)-2),REL_D,K$4,NwID,$C$4),SUMIFS(OFFSET(REL_D,,MATCH($A84,IND,0)-2),REL_D,K$4,OrgID,$C$5)) -> 0 | L84: =IF($C$5="Total",SUMIFS(OFFSET(REL_D,,MATCH($A84,IND,0)-2),REL_D,L$4,NwID,$C$4),SUMIFS(OFFSET(REL_D,,MATCH($A84,IND,0)-2),REL_D,L$4,OrgID,$C$5)) -> 0 | M84: =IF($C$5="Total",SUMIFS(OFFSET(REL_D,,MATCH($A84,IND,0)-2),REL_D,M$4,NwID,$C$4),SUMIFS(OFFSET(REL_D,,MATCH($A84,IND,0)-2),REL_D,M$4,OrgID,$C$5)) -> 0 | N84: =IF($C$5="Total",SUMIFS(OFFSET(REL_D,,MATCH($A84,IND,0)-2),REL_D,N$4,NwID,$C$4),SUMIFS(OFFSET(REL_D,,MATCH($A84,IND,0)-2),REL_D,N$4,OrgID,$C$5)) -> 0 | O84: =IF($C$5="Total",SUMIFS(OFFSET(REL_D,,MATCH($A84,IND,0)-2),REL_D,O$4,NwID,$C$4),SUMIFS(OFFSET(REL_D,,MATCH($A84,IND,0)-2),REL_D,O$4,OrgID,$C$5)) -> 0 | P84: =IF($C$5="Total",SUMIFS(OFFSET(REL_D,,MATCH($A84,IND,0)-2),REL_D,P$4,NwID,$C$4),SUMIFS(OFFSET(REL_D,,MATCH($A84,IND,0)-2),REL_D,P$4,OrgID,$C$5)) -> 0 | Q84: =IF($C$5="Total",SUMIFS(OFFSET(REL_D,,MATCH($A84,IND,0)-2),REL_D,Q$4,NwID,$C$4),SUMIFS(OFFSET(REL_D,,MATCH($A84,IND,0)-2),REL_D,Q$4,OrgID,$C$5)) -> 0 | R84: =SUMIFS(OFFSET(REL_D,,MATCH($A84,IND,0)-1),REL_D,R$4,IF(LEFT($C$5,1)="N",NwID,OrgID),$C$5) -> 0
A85: ='Control Panel'!B123 -> %CSPMH. 01.03.01 BP recorded on same day as QRisk (12m) | B85: %CSPMH. 01.03.01 BP recorded on same day as QRisk (12m) | C85: ='Control Panel'!D123 -> % Mental Health Register | D85: =IFERROR(D84/D70,"N/A") -> 0.092 | E85: 0.133 | F85: =IFERROR(F84/F70,"N/A") -> 0.132 | G85: =IFERROR(G84/G70,"N/A") -> 0.132 | H85: 0.129 | I85: 0.129 | J85: 0.121 | K85: N/A | L85: N/A | M85: N/A | N85: N/A | O85: N/A | P85: N/A | Q85: N/A | R85: =IFERROR(R84/R70,"N/A") -> N/A
C86: ='Control Panel'!B124 -> CKD
A87: =VLOOKUP(C87,'Control Panel'!A124:B250,2,FALSE) -> LDP.08 CKD Register | B87: LDP.08 CKD Register | C87: ='Control Panel'!D125 -> No. of patients on CKD register | D87: =IF($C$5="Total",SUMIFS(OFFSET(REL_D,,MATCH($A87,IND,0)-2),REL_D,D$4,NwID,$C$4),SUMIFS(OFFSET(REL_D,,MATCH($A87,IND,0)-2),REL_D,D$4,OrgID,$C$5)) -> 6087 | E87: =IF($C$5="Total",SUMIFS(OFFSET(REL_D,,MATCH($A87,IND,0)-2),REL_D,E$4,NwID,$C$4),SUMIFS(OFFSET(REL_D,,MATCH($A87,IND,0)-2),REL_D,E$4,OrgID,$C$5)) -> 6786 | F87: =IF($C$5="Total",SUMIFS(OFFSET(REL_D,,MATCH($A87,IND,0)-2),REL_D,F$4,NwID,$C$4),SUMIFS(OFFSET(REL_D,,MATCH($A87,IND,0)-2),REL_D,F$4,OrgID,$C$5)) -> 6832 | G87: =IF($C$5="Total",SUMIFS(OFFSET(REL_D,,MATCH($A87,IND,0)-2),REL_D,G$4,NwID,$C$4),SUMIFS(OFFSET(REL_D,,MATCH($A87,IND,0)-2),REL_D,G$4,OrgID,$C$5)) -> 6972 | H87: =IF($C$5="Total",SUMIFS(OFFSET(REL_D,,MATCH($A87,IND,0)-2),REL_D,H$4,NwID,$C$4),SUMIFS(OFFSET(REL_D,,MATCH($A87,IND,0)-2),REL_D,H$4,OrgID,$C$5)) -> 7139 | I87: =IF($C$5="Total",SUMIFS(OFFSET(REL_D,,MATCH($A87,IND,0)-2),REL_D,I$4,NwID,$C$4),SUMIFS(OFFSET(REL_D,,MATCH($A87,IND,0)-2),REL_D,I$4,OrgID,$C$5)) -> 7467 | J87: =IF($C$5="Total",SUMIFS(OFFSET(REL_D,,MATCH($A87,IND,0)-2),REL_D,J$4,NwID,$C$4),SUMIFS(OFFSET(REL_D,,MATCH($A87,IND,0)-2),REL_D,J$4,OrgID,$C$5)) -> 7578 | K87: =IF($C$5="Total",SUMIFS(OFFSET(REL_D,,MATCH($A87,IND,0)-2),REL_D,K$4,NwID,$C$4),SUMIFS(OFFSET(REL_D,,MATCH($A87,IND,0)-2),REL_D,K$4,OrgID,$C$5)) -> 0 | L87: =IF($C$5="Total",SUMIFS(OFFSET(REL_D,,MATCH($A87,IND,0)-2),REL_D,L$4,NwID,$C$4),SUMIFS(OFFSET(REL_D,,MATCH($A87,IND,0)-2),REL_D,L$4,OrgID,$C$5)) -> 0 | M87: =IF($C$5="Total",SUMIFS(OFFSET(REL_D,,MATCH($A87,IND,0)-2),REL_D,M$4,NwID,$C$4),SUMIFS(OFFSET(REL_D,,MATCH($A87,IND,0)-2),REL_D,M$4,OrgID,$C$5)) -> 0 | N87: =IF($C$5="Total",SUMIFS(OFFSET(REL_D,,MATCH($A87,IND,0)-2),REL_D,N$4,NwID,$C$4),SUMIFS(OFFSET(REL_D,,MATCH($A87,IND,0)-2),REL_D,N$4,OrgID,$C$5)) -> 0 | O87: =IF($C$5="Total",SUMIFS(OFFSET(REL_D,,MATCH($A87,IND,0)-2),REL_D,O$4,NwID,$C$4),SUMIFS(OFFSET(REL_D,,MATCH($A87,IND,0)-2),REL_D,O$4,OrgID,$C$5)) -> 0 | P87: =IF($C$5="Total",SUMIFS(OFFSET(REL_D,,MATCH($A87,IND,0)-2),REL_D,P$4,NwID,$C$4),SUMIFS(OFFSET(REL_D,,MATCH($A87,IND,0)-2),REL_D,P$4,OrgID,$C$5)) -> 0 | Q87: =IF($C$5="Total",SUMIFS(OFFSET(REL_D,,MATCH($A87,IND,0)-2),REL_D,Q$4,NwID,$C$4),SUMIFS(OFFSET(REL_D,,MATCH($A87,IND,0)-2),REL_D,Q$4,OrgID,$C$5)) -> 0 | R87: =SUMIFS(OFFSET(REL_D,,MATCH($A87,IND,0)-1),REL_D,R$4,IF(LEFT($C$5,1)="N",NwID,OrgID),$C$5) -> 0
A88: =VLOOKUP(C88,'Control Panel'!A125:B251,2,FALSE) -> %LDP.08 CKD Register | B88: %LDP.08 CKD Register | C88: ='Control Panel'!D126 -> % List Size | D88: =IFERROR(D87/D8,"N/A") -> 0.02 | E88: 0.022 | F88: =IFERROR(F87/F8,"N/A") -> 0.022 | G88: =IFERROR(G87/G8,"N/A") -> 0.022 | H88: 0.023 | I88: 0.024 | J88: 0.024 | K88: N/A | L88: N/A | M88: N/A | N88: N/A | O88: N/A | P88: N/A | Q88: N/A | R88: N/A
A89: =VLOOKUP(C89,'Control Panel'!A126:B252,2,FALSE) -> LDP.08.03 CKD and BP Recorded (last 12 m) | B89: LDP.08.03 CKD and BP Recorded (last 12 m) | C89: ='Control Panel'!D127 -> BP Recorded (last 12m) | D89: =IF($C$5="Total",SUMIFS(OFFSET(REL_D,,MATCH($A89,IND,0)-2),REL_D,D$4,NwID,$C$4),SUMIFS(OFFSET(REL_D,,MATCH($A89,IND,0)-2),REL_D,D$4,OrgID,$C$5)) -> 4657 | E89: =IF($C$5="Total",SUMIFS(OFFSET(REL_D,,MATCH($A89,IND,0)-2),REL_D,E$4,NwID,$C$4),SUMIFS(OFFSET(REL_D,,MATCH($A89,IND,0)-2),REL_D,E$4,OrgID,$C$5)) -> 5901 | F89: =IF($C$5="Total",SUMIFS(OFFSET(REL_D,,MATCH($A89,IND,0)-2),REL_D,F$4,NwID,$C$4),SUMIFS(OFFSET(REL_D,,MATCH($A89,IND,0)-2),REL_D,F$4,OrgID,$C$5)) -> 5892 | G89: =IF($C$5="Total",SUMIFS(OFFSET(REL_D,,MATCH($A89,IND,0)-2),REL_D,G$4,NwID,$C$4),SUMIFS(OFFSET(REL_D,,MATCH($A89,IND,0)-2),REL_D,G$4,OrgID,$C$5)) -> 5901 | H89: =IF($C$5="Total",SUMIFS(OFFSET(REL_D,,MATCH($A89,IND,0)-2),REL_D,H$4,NwID,$C$4),SUMIFS(OFFSET(REL_D,,MATCH($A89,IND,0)-2),REL_D,H$4,OrgID,$C$5)) -> 6011 | I89: =IF($C$5="Total",SUMIFS(OFFSET(REL_D,,MATCH($A89,IND,0)-2),REL_D,I$4,NwID,$C$4),SUMIFS(OFFSET(REL_D,,MATCH($A89,IND,0)-2),REL_D,I$4,OrgID,$C$5)) -> 6271 | J89: =IF($C$5="Total",SUMIFS(OFFSET(REL_D,,MATCH($A89,IND,0)-2),REL_D,J$4,NwID,$C$4),SUMIFS(OFFSET(REL_D,,MATCH($A89,IND,0)-2),REL_D,J$4,OrgID,$C$5)) -> 6329 | K89: =IF($C$5="Total",SUMIFS(OFFSET(REL_D,,MATCH($A89,IND,0)-2),REL_D,K$4,NwID,$C$4),SUMIFS(OFFSET(REL_D,,MATCH($A89,IND,0)-2),REL_D,K$4,OrgID,$C$5)) -> 0 | L89: =IF($C$5="Total",SUMIFS(OFFSET(REL_D,,MATCH($A89,IND,0)-2),REL_D,L$4,NwID,$C$4),SUMIFS(OFFSET(REL_D,,MATCH($A89,IND,0)-2),REL_D,L$4,OrgID,$C$5)) -> 0 | M89: =IF($C$5="Total",SUMIFS(OFFSET(REL_D,,MATCH($A89,IND,0)-2),REL_D,M$4,NwID,$C$4),SUMIFS(OFFSET(REL_D,,MATCH($A89,IND,0)-2),REL_D,M$4,OrgID,$C$5)) -> 0 | N89: =IF($C$5="Total",SUMIFS(OFFSET(REL_D,,MATCH($A89,IND,0)-2),REL_D,N$4,NwID,$C$4),SUMIFS(OFFSET(REL_D,,MATCH($A89,IND,0)-2),REL_D,N$4,OrgID,$C$5)) -> 0 | O89: =IF($C$5="Total",SUMIFS(OFFSET(REL_D,,MATCH($A89,IND,0)-2),REL_D,O$4,NwID,$C$4),SUMIFS(OFFSET(REL_D,,MATCH($A89,IND,0)-2),REL_D,O$4,OrgID,$C$5)) -> 0 | P89: =IF($C$5="Total",SUMIFS(OFFSET(REL_D,,MATCH($A89,IND,0)-2),REL_D,P$4,NwID,$C$4),SUMIFS(OFFSET(REL_D,,MATCH($A89,IND,0)-2),REL_D,P$4,OrgID,$C$5)) -> 0 | Q89: =IF($C$5="Total",SUMIFS(OFFSET(REL_D,,MATCH($A89,IND,0)-2),REL_D,Q$4,NwID,$C$4),SUMIFS(OFFSET(REL_D,,MATCH($A89,IND,0)-2),REL_D,Q$4,OrgID,$C$5)) -> 0 | R89: =SUMIFS(OFFSET(REL_D,,MATCH($A89,IND,0)-1),REL_D,R$4,IF(LEFT($C$5,1)="N",NwID,OrgID),$C$5) -> 0
A90: =VLOOKUP(C90,'Control Panel'!A127:B253,2,FALSE) -> %LDP.08.03 CKD and BP Recorded (last 12 m) | B90: %LDP.08.03 CKD and BP Recorded (last 12 m) | C90: ='Control Panel'!D128 -> % CKD register | D90: =IFERROR(D89/D87,"N/A") -> 0.765 | E90: 0.87 | F90: =IFERROR(F89/F87,"N/A") -> 0.862 | G90: =IFERROR(G89/G87,"N/A") -> 0.846 | H90: 0.842 | I90: 0.84 | J90: 0.835 | K90: N/A | L90: N/A | M90: N/A | N90: N/A | O90: N/A | P90: N/A | Q90: N/A | R90: =IFERROR(R89/R87,"N/A") -> N/A
A91: LDP.08.01 CKD and BP less than 140/90 (last 12 m) | B91: LDP.08.01 CKD and BP less than 140/90 (last 12 m) | C91: ='Control Panel'!D129 -> BP < 140/90 | D91: =IF($C$5="Total",SUMIFS(OFFSET(REL_D,,MATCH($A91,IND,0)-2),REL_D,D$4,NwID,$C$4),SUMIFS(OFFSET(REL_D,,MATCH($A91,IND,0)-2),REL_D,D$4,OrgID,$C$5)) -> 3054 | E91: =IF($C$5="Total",SUMIFS(OFFSET(REL_D,,MATCH($A91,IND,0)-2),REL_D,E$4,NwID,$C$4),SUMIFS(OFFSET(REL_D,,MATCH($A91,IND,0)-2),REL_D,E$4,OrgID,$C$5)) -> 4204 | F91: =IF($C$5="Total",SUMIFS(OFFSET(REL_D,,MATCH($A91,IND,0)-2),REL_D,F$4,NwID,$C$4),SUMIFS(OFFSET(REL_D,,MATCH($A91,IND,0)-2),REL_D,F$4,OrgID,$C$5)) -> 4152 | G91: =IF($C$5="Total",SUMIFS(OFFSET(REL_D,,MATCH($A91,IND,0)-2),REL_D,G$4,NwID,$C$4),SUMIFS(OFFSET(REL_D,,MATCH($A91,IND,0)-2),REL_D,G$4,OrgID,$C$5)) -> 4155 | H91: =IF($C$5="Total",SUMIFS(OFFSET(REL_D,,MATCH($A91,IND,0)-2),REL_D,H$4,NwID,$C$4),SUMIFS(OFFSET(REL_D,,MATCH($A91,IND,0)-2),REL_D,H$4,OrgID,$C$5)) -> 4263 | I91: =IF($C$5="Total",SUMIFS(OFFSET(REL_D,,MATCH($A91,IND,0)-2),REL_D,I$4,NwID,$C$4),SUMIFS(OFFSET(REL_D,,MATCH($A91,IND,0)-2),REL_D,I$4,OrgID,$C$5)) -> 4487 | J91: =IF($C$5="Total",SUMIFS(OFFSET(REL_D,,MATCH($A91,IND,0)-2),REL_D,J$4,NwID,$C$4),SUMIFS(OFFSET(REL_D,,MATCH($A91,IND,0)-2),REL_D,J$4,OrgID,$C$5)) -> 4546 | K91: =IF($C$5="Total",SUMIFS(OFFSET(REL_D,,MATCH($A91,IND,0)-2),REL_D,K$4,NwID,$C$4),SUMIFS(OFFSET(REL_D,,MATCH($A91,IND,0)-2),REL_D,K$4,OrgID,$C$5)) -> 0 | L91: =IF($C$5="Total",SUMIFS(OFFSET(REL_D,,MATCH($A91,IND,0)-2),REL_D,L$4,NwID,$C$4),SUMIFS(OFFSET(REL_D,,MATCH($A91,IND,0)-2),REL_D,L$4,OrgID,$C$5)) -> 0 | M91: =IF($C$5="Total",SUMIFS(OFFSET(REL_D,,MATCH($A91,IND,0)-2),REL_D,M$4,NwID,$C$4),SUMIFS(OFFSET(REL_D,,MATCH($A91,IND,0)-2),REL_D,M$4,OrgID,$C$5)) -> 0 | N91: =IF($C$5="Total",SUMIFS(OFFSET(REL_D,,MATCH($A91,IND,0)-2),REL_D,N$4,NwID,$C$4),SUMIFS(OFFSET(REL_D,,MATCH($A91,IND,0)-2),REL_D,N$4,OrgID,$C$5)) -> 0 | O91: =IF($C$5="Total",SUMIFS(OFFSET(REL_D,,MATCH($A91,IND,0)-2),REL_D,O$4,NwID,$C$4),SUMIFS(OFFSET(REL_D,,MATCH($A91,IND,0)-2),REL_D,O$4,OrgID,$C$5)) -> 0 | P91: =IF($C$5="Total",SUMIFS(OFFSET(REL_D,,MATCH($A91,IND,0)-2),REL_D,P$4,NwID,$C$4),SUMIFS(OFFSET(REL_D,,MATCH($A91,IND,0)-2),REL_D,P$4,OrgID,$C$5)) -> 0 | Q91: =IF($C$5="Total",SUMIFS(OFFSET(REL_D,,MATCH($A91,IND,0)-2),REL_D,Q$4,NwID,$C$4),SUMIFS(OFFSET(REL_D,,MATCH($A91,IND,0)-2),REL_D,Q$4,OrgID,$C$5)) -> 0 | R91: =SUMIFS(OFFSET(REL_D,,MATCH($A91,IND,0)-1),REL_D,R$4,IF(LEFT($C$5,1)="N",NwID,OrgID),$C$5) -> 0
A92: =VLOOKUP(C92,'Control Panel'!A129:B255,2,FALSE) -> %LDP.08.01 CKD and BP less than 140/90 (last 12 m) | B92: %LDP.08.01 CKD and BP less than 140/90 (last 12 m) | C92: ='Control Panel'!D130 -> % CKD register | D92: =IFERROR(D91/D87,"N/A") -> 0.502 | E92: 0.62 | F92: =IFERROR(F91/F87,"N/A") -> 0.608 | G92: =IFERROR(G91/G87,"N/A") -> 0.596 | H92: 0.597 | I92: 0.601 | J92: 0.6 | K92: N/A | L92: N/A | M92: N/A | N92: N/A | O92: N/A | P92: N/A | Q92: N/A | R92: =IFERROR(R91/R87,"N/A") -> N/A
A93: =VLOOKUP(C93,'Control Panel'!A130:B256,2,FALSE) -> LDP.08.02 CKD Diagnosed (Last 6m) | B93: LDP.08.02 CKD Diagnosed (Last 6m) | C93: ='Control Panel'!D131 -> No of patients with new diagnosis of CKD (last 6m) | D93: =IF($C$5="Total",SUMIFS(OFFSET(REL_D,,MATCH($A93,IND,0)-2),REL_D,D$4,NwID,$C$4),SUMIFS(OFFSET(REL_D,,MATCH($A93,IND,0)-2),REL_D,D$4,OrgID,$C$5)) -> 378 | E93: =IF($C$5="Total",SUMIFS(OFFSET(REL_D,,MATCH($A93,IND,0)-2),REL_D,E$4,NwID,$C$4),SUMIFS(OFFSET(REL_D,,MATCH($A93,IND,0)-2),REL_D,E$4,OrgID,$C$5)) -> 554 | F93: =IF($C$5="Total",SUMIFS(OFFSET(REL_D,,MATCH($A93,IND,0)-2),REL_D,F$4,NwID,$C$4),SUMIFS(OFFSET(REL_D,,MATCH($A93,IND,0)-2),REL_D,F$4,OrgID,$C$5)) -> 539 | G93: =IF($C$5="Total",SUMIFS(OFFSET(REL_D,,MATCH($A93,IND,0)-2),REL_D,G$4,NwID,$C$4),SUMIFS(OFFSET(REL_D,,MATCH($A93,IND,0)-2),REL_D,G$4,OrgID,$C$5)) -> 538 | H93: =IF($C$5="Total",SUMIFS(OFFSET(REL_D,,MATCH($A93,IND,0)-2),REL_D,H$4,NwID,$C$4),SUMIFS(OFFSET(REL_D,,MATCH($A93,IND,0)-2),REL_D,H$4,OrgID,$C$5)) -> 613 | I93: =IF($C$5="Total",SUMIFS(OFFSET(REL_D,,MATCH($A93,IND,0)-2),REL_D,I$4,NwID,$C$4),SUMIFS(OFFSET(REL_D,,MATCH($A93,IND,0)-2),REL_D,I$4,OrgID,$C$5)) -> 785 | J93: =IF($C$5="Total",SUMIFS(OFFSET(REL_D,,MATCH($A93,IND,0)-2),REL_D,J$4,NwID,$C$4),SUMIFS(OFFSET(REL_D,,MATCH($A93,IND,0)-2),REL_D,J$4,OrgID,$C$5)) -> 844 | K93: =IF($C$5="Total",SUMIFS(OFFSET(REL_D,,MATCH($A93,IND,0)-2),REL_D,K$4,NwID,$C$4),SUMIFS(OFFSET(REL_D,,MATCH($A93,IND,0)-2),REL_D,K$4,OrgID,$C$5)) -> 0 | L93: =IF($C$5="Total",SUMIFS(OFFSET(REL_D,,MATCH($A93,IND,0)-2),REL_D,L$4,NwID,$C$4),SUMIFS(OFFSET(REL_D,,MATCH($A93,IND,0)-2),REL_D,L$4,OrgID,$C$5)) -> 0 | M93: =IF($C$5="Total",SUMIFS(OFFSET(REL_D,,MATCH($A93,IND,0)-2),REL_D,M$4,NwID,$C$4),SUMIFS(OFFSET(REL_D,,MATCH($A93,IND,0)-2),REL_D,M$4,OrgID,$C$5)) -> 0 | N93: =IF($C$5="Total",SUMIFS(OFFSET(REL_D,,MATCH($A93,IND,0)-2),REL_D,N$4,NwID,$C$4),SUMIFS(OFFSET(REL_D,,MATCH($A93,IND,0)-2),REL_D,N$4,OrgID,$C$5)) -> 0 | O93: =IF($C$5="Total",SUMIFS(OFFSET(REL_D,,MATCH($A93,IND,0)-2),REL_D,O$4,NwID,$C$4),SUMIFS(OFFSET(REL_D,,MATCH($A93,IND,0)-2),REL_D,O$4,OrgID,$C$5)) -> 0 | P93: =IF($C$5="Total",SUMIFS(OFFSET(REL_D,,MATCH($A93,IND,0)-2),REL_D,P$4,NwID,$C$4),SUMIFS(OFFSET(REL_D,,MATCH($A93,IND,0)-2),REL_D,P$4,OrgID,$C$5)) -> 0 | Q93: =IF($C$5="Total",SUMIFS(OFFSET(REL_D,,MATCH($A93,IND,0)-2),REL_D,Q$4,NwID,$C$4),SUMIFS(OFFSET(REL_D,,MATCH($A93,IND,0)-2),REL_D,Q$4,OrgID,$C$5)) -> 0 | R93: =SUMIFS(OFFSET(REL_D,,MATCH($A93,IND,0)-1),REL_D,R$4,IF(LEFT($C$5,1)="N",NwID,OrgID),$C$5) -> 0
A94: =VLOOKUP(C94,'Control Panel'!A131:B257,2,FALSE) -> %LDP.08.02 CKD Diagnosed (Last 6m) | B94: %LDP.08.02 CKD Diagnosed (Last 6m) | C94: ='Control Panel'!D132 -> % CKD register | D94: =IFERROR(D93/D87,"N/A") -> 0.062 | E94: 0.082 | F94: =IFERROR(F93/F87,"N/A") -> 0.079 | G94: =IFERROR(G93/G87,"N/A") -> 0.077 | H94: 0.086 | I94: 0.105 | J94: 0.111 | K94: N/A | L94: N/A | M94: N/A | N94: N/A | O94: N/A | P94: N/A | Q94: N/A | R94: =IFERROR(R93/R87,"N/A") -> N/A
C95: ='Control Panel'!B133 -> COPD
A96: LDP.09 COPD Register | B96: LDP.09 COPD Register | C96: ='Control Panel'!C134 -> No. of patients on COPD register | D96: =IF($C$5="Total",SUMIFS(OFFSET(REL_D,,MATCH($A96,IND,0)-2),REL_D,D$4,NwID,$C$4),SUMIFS(OFFSET(REL_D,,MATCH($A96,IND,0)-2),REL_D,D$4,OrgID,$C$5)) -> 2176 | E96: =IF($C$5="Total",SUMIFS(OFFSET(REL_D,,MATCH($A96,IND,0)-2),REL_D,E$4,NwID,$C$4),SUMIFS(OFFSET(REL_D,,MATCH($A96,IND,0)-2),REL_D,E$4,OrgID,$C$5)) -> 2054 | F96: =IF($C$5="Total",SUMIFS(OFFSET(REL_D,,MATCH($A96,IND,0)-2),REL_D,F$4,NwID,$C$4),SUMIFS(OFFSET(REL_D,,MATCH($A96,IND,0)-2),REL_D,F$4,OrgID,$C$5)) -> 2056 | G96: =IF($C$5="Total",SUMIFS(OFFSET(REL_D,,MATCH($A96,IND,0)-2),REL_D,G$4,NwID,$C$4),SUMIFS(OFFSET(REL_D,,MATCH($A96,IND,0)-2),REL_D,G$4,OrgID,$C$5)) -> 2068 | H96: =IF($C$5="Total",SUMIFS(OFFSET(REL_D,,MATCH($A96,IND,0)-2),REL_D,H$4,NwID,$C$4),SUMIFS(OFFSET(REL_D,,MATCH($A96,IND,0)-2),REL_D,H$4,OrgID,$C$5)) -> 2064 | I96: =IF($C$5="Total",SUMIFS(OFFSET(REL_D,,MATCH($A96,IND,0)-2),REL_D,I$4,NwID,$C$4),SUMIFS(OFFSET(REL_D,,MATCH($A96,IND,0)-2),REL_D,I$4,OrgID,$C$5)) -> 2061 | J96: =IF($C$5="Total",SUMIFS(OFFSET(REL_D,,MATCH($A96,IND,0)-2),REL_D,J$4,NwID,$C$4),SUMIFS(OFFSET(REL_D,,MATCH($A96,IND,0)-2),REL_D,J$4,OrgID,$C$5)) -> 2131 | K96: =IF($C$5="Total",SUMIFS(OFFSET(REL_D,,MATCH($A96,IND,0)-2),REL_D,K$4,NwID,$C$4),SUMIFS(OFFSET(REL_D,,MATCH($A96,IND,0)-2),REL_D,K$4,OrgID,$C$5)) -> 0 | L96: =IF($C$5="Total",SUMIFS(OFFSET(REL_D,,MATCH($A96,IND,0)-2),REL_D,L$4,NwID,$C$4),SUMIFS(OFFSET(REL_D,,MATCH($A96,IND,0)-2),REL_D,L$4,OrgID,$C$5)) -> 0 | M96: =IF($C$5="Total",SUMIFS(OFFSET(REL_D,,MATCH($A96,IND,0)-2),REL_D,M$4,NwID,$C$4),SUMIFS(OFFSET(REL_D,,MATCH($A96,IND,0)-2),REL_D,M$4,OrgID,$C$5)) -> 0 | N96: =IF($C$5="Total",SUMIFS(OFFSET(REL_D,,MATCH($A96,IND,0)-2),REL_D,N$4,NwID,$C$4),SUMIFS(OFFSET(REL_D,,MATCH($A96,IND,0)-2),REL_D,N$4,OrgID,$C$5)) -> 0 | O96: =IF($C$5="Total",SUMIFS(OFFSET(REL_D,,MATCH($A96,IND,0)-2),REL_D,O$4,NwID,$C$4),SUMIFS(OFFSET(REL_D,,MATCH($A96,IND,0)-2),REL_D,O$4,OrgID,$C$5)) -> 0 | P96: =IF($C$5="Total",SUMIFS(OFFSET(REL_D,,MATCH($A96,IND,0)-2),REL_D,P$4,NwID,$C$4),SUMIFS(OFFSET(REL_D,,MATCH($A96,IND,0)-2),REL_D,P$4,OrgID,$C$5)) -> 0 | Q96: =IF($C$5="Total",SUMIFS(OFFSET(REL_D,,MATCH($A96,IND,0)-2),REL_D,Q$4,NwID,$C$4),SUMIFS(OFFSET(REL_D,,MATCH($A96,IND,0)-2),REL_D,Q$4,OrgID,$C$5)) -> 0 | R96: =SUMIFS(OFFSET(REL_D,,MATCH($A96,IND,0)-1),REL_D,R$4,IF(LEFT($C$5,1)="N",NwID,OrgID),$C$5) -> 0
A97: ="%"&A96 -> %LDP.09 COPD Register | B97: %LDP.09 COPD Register | C97: ='Control Panel'!C135 -> % List Size | D97: =IFERROR(D96/D8,"N/A") -> 0.007 | E97: 0.007 | F97: =IFERROR(F96/F8,"N/A") -> 0.007 | G97: =IFERROR(G96/G8,"N/A") -> 0.007 | H97: 0.007 | I97: 0.007 | J97: 0.007 | K97: N/A | L97: N/A | M97: N/A | N97: N/A | O97: N/A | P97: N/A | Q97: N/A | R97: N/A
A98: LDP.09.01 Patients with severe or very severe COPD (FEV1<50) | B98: LDP.09.01 Patients with severe or very severe COPD (FEV1<50) | C98: ='Control Panel'!C136 -> No of patients with severe or very severe COPD (FEV1<50) | D98: =IF($C$5="Total",SUMIFS(OFFSET(REL_D,,MATCH($A98,IND,0)-2),REL_D,D$4,NwID,$C$4),SUMIFS(OFFSET(REL_D,,MATCH($A98,IND,0)-2),REL_D,D$4,OrgID,$C$5)) -> 345 | E98: =IF($C$5="Total",SUMIFS(OFFSET(REL_D,,MATCH($A98,IND,0)-2),REL_D,E$4,NwID,$C$4),SUMIFS(OFFSET(REL_D,,MATCH($A98,IND,0)-2),REL_D,E$4,OrgID,$C$5)) -> 311 | F98: =IF($C$5="Total",SUMIFS(OFFSET(REL_D,,MATCH($A98,IND,0)-2),REL_D,F$4,NwID,$C$4),SUMIFS(OFFSET(REL_D,,MATCH($A98,IND,0)-2),REL_D,F$4,OrgID,$C$5)) -> 310 | G98: =IF($C$5="Total",SUMIFS(OFFSET(REL_D,,MATCH($A98,IND,0)-2),REL_D,G$4,NwID,$C$4),SUMIFS(OFFSET(REL_D,,MATCH($A98,IND,0)-2),REL_D,G$4,OrgID,$C$5)) -> 311 | H98: =IF($C$5="Total",SUMIFS(OFFSET(REL_D,,MATCH($A98,IND,0)-2),REL_D,H$4,NwID,$C$4),SUMIFS(OFFSET(REL_D,,MATCH($A98,IND,0)-2),REL_D,H$4,OrgID,$C$5)) -> 309 | I98: =IF($C$5="Total",SUMIFS(OFFSET(REL_D,,MATCH($A98,IND,0)-2),REL_D,I$4,NwID,$C$4),SUMIFS(OFFSET(REL_D,,MATCH($A98,IND,0)-2),REL_D,I$4,OrgID,$C$5)) -> 308 | J98: =IF($C$5="Total",SUMIFS(OFFSET(REL_D,,MATCH($A98,IND,0)-2),REL_D,J$4,NwID,$C$4),SUMIFS(OFFSET(REL_D,,MATCH($A98,IND,0)-2),REL_D,J$4,OrgID,$C$5)) -> 311 | K98: =IF($C$5="Total",SUMIFS(OFFSET(REL_D,,MATCH($A98,IND,0)-2),REL_D,K$4,NwID,$C$4),SUMIFS(OFFSET(REL_D,,MATCH($A98,IND,0)-2),REL_D,K$4,OrgID,$C$5)) -> 0 | L98: =IF($C$5="Total",SUMIFS(OFFSET(REL_D,,MATCH($A98,IND,0)-2),REL_D,L$4,NwID,$C$4),SUMIFS(OFFSET(REL_D,,MATCH($A98,IND,0)-2),REL_D,L$4,OrgID,$C$5)) -> 0 | M98: =IF($C$5="Total",SUMIFS(OFFSET(REL_D,,MATCH($A98,IND,0)-2),REL_D,M$4,NwID,$C$4),SUMIFS(OFFSET(REL_D,,MATCH($A98,IND,0)-2),REL_D,M$4,OrgID,$C$5)) -> 0 | N98: =IF($C$5="Total",SUMIFS(OFFSET(REL_D,,MATCH($A98,IND,0)-2),REL_D,N$4,NwID,$C$4),SUMIFS(OFFSET(REL_D,,MATCH($A98,IND,0)-2),REL_D,N$4,OrgID,$C$5)) -> 0 | O98: =IF($C$5="Total",SUMIFS(OFFSET(REL_D,,MATCH($A98,IND,0)-2),REL_D,O$4,NwID,$C$4),SUMIFS(OFFSET(REL_D,,MATCH($A98,IND,0)-2),REL_D,O$4,OrgID,$C$5)) -> 0 | P98: =IF($C$5="Total",SUMIFS(OFFSET(REL_D,,MATCH($A98,IND,0)-2),REL_D,P$4,NwID,$C$4),SUMIFS(OFFSET(REL_D,,MATCH($A98,IND,0)-2),REL_D,P$4,OrgID,$C$5)) -> 0 | Q98: =IF($C$5="Total",SUMIFS(OFFSET(REL_D,,MATCH($A98,IND,0)-2),REL_D,Q$4,NwID,$C$4),SUMIFS(OFFSET(REL_D,,MATCH($A98,IND,0)-2),REL_D,Q$4,OrgID,$C$5)) -> 0 | R98: =SUMIFS(OFFSET(REL_D,,MATCH($A98,IND,0)-1),REL_D,R$4,IF(LEFT($C$5,1)="N",NwID,OrgID),$C$5) -> 0
A99: ="%"&A98 -> %LDP.09.01 Patients with severe or very severe COPD (FEV1<50) | B99: %LDP.09.01 Patients with severe or very severe COPD (FEV1<50) | C99: ='Control Panel'!C137 -> % COPD register | D99: =IFERROR(D98/D96,"N/A") -> 0.159 | E99: 0.151 | F99: =IFERROR(F98/F96,"N/A") -> 0.151 | G99: =IFERROR(G98/G96,"N/A") -> 0.15 | H99: 0.15 | I99: 0.149 | J99: 0.146 | K99: N/A | L99: N/A | M99: N/A | N99: N/A | O99: N/A | P99: N/A | Q99: N/A | R99: =IFERROR(R98/R96,"N/A") -> N/A
A100: LDP.09.02 Patients with smoking status recorded (last 12m) or never smoked | B100: LDP.09.02 Patients with smoking status recorded (last 12m) or never smoked | C100: ='Control Panel'!C138 -> No. of COPD Patients with smoking status recorded (last 12m) or never smoked | D100: =IF($C$5="Total",SUMIFS(OFFSET(REL_D,,MATCH($A100,IND,0)-2),REL_D,D$4,NwID,$C$4),SUMIFS(OFFSET(REL_D,,MATCH($A100,IND,0)-2),REL_D,D$4,OrgID,$C$5)) -> 1891 | E100: =IF($C$5="Total",SUMIFS(OFFSET(REL_D,,MATCH($A100,IND,0)-2),REL_D,E$4,NwID,$C$4),SUMIFS(OFFSET(REL_D,,MATCH($A100,IND,0)-2),REL_D,E$4,OrgID,$C$5)) -> 1937 | F100: =IF($C$5="Total",SUMIFS(OFFSET(REL_D,,MATCH($A100,IND,0)-2),REL_D,F$4,NwID,$C$4),SUMIFS(OFFSET(REL_D,,MATCH($A100,IND,0)-2),REL_D,F$4,OrgID,$C$5)) -> 1902 | G100: =IF($C$5="Total",SUMIFS(OFFSET(REL_D,,MATCH($A100,IND,0)-2),REL_D,G$4,NwID,$C$4),SUMIFS(OFFSET(REL_D,,MATCH($A100,IND,0)-2),REL_D,G$4,OrgID,$C$5)) -> 1897 | H100: =IF($C$5="Total",SUMIFS(OFFSET(REL_D,,MATCH($A100,IND,0)-2),REL_D,H$4,NwID,$C$4),SUMIFS(OFFSET(REL_D,,MATCH($A100,IND,0)-2),REL_D,H$4,OrgID,$C$5)) -> 1878 | I100: =IF($C$5="Total",SUMIFS(OFFSET(REL_D,,MATCH($A100,IND,0)-2),REL_D,I$4,NwID,$C$4),SUMIFS(OFFSET(REL_D,,MATCH($A100,IND,0)-2),REL_D,I$4,OrgID,$C$5)) -> 1860 | J100: =IF($C$5="Total",SUMIFS(OFFSET(REL_D,,MATCH($A100,IND,0)-2),REL_D,J$4,NwID,$C$4),SUMIFS(OFFSET(REL_D,,MATCH($A100,IND,0)-2),REL_D,J$4,OrgID,$C$5)) -> 1910 | K100: =IF($C$5="Total",SUMIFS(OFFSET(REL_D,,MATCH($A100,IND,0)-2),REL_D,K$4,NwID,$C$4),SUMIFS(OFFSET(REL_D,,MATCH($A100,IND,0)-2),REL_D,K$4,OrgID,$C$5)) -> 0 | L100: =IF($C$5="Total",SUMIFS(OFFSET(REL_D,,MATCH($A100,IND,0)-2),REL_D,L$4,NwID,$C$4),SUMIFS(OFFSET(REL_D,,MATCH($A100,IND,0)-2),REL_D,L$4,OrgID,$C$5)) -> 0 | M100: =IF($C$5="Total",SUMIFS(OFFSET(REL_D,,MATCH($A100,IND,0)-2),REL_D,M$4,NwID,$C$4),SUMIFS(OFFSET(REL_D,,MATCH($A100,IND,0)-2),REL_D,M$4,OrgID,$C$5)) -> 0 | N100: =IF($C$5="Total",SUMIFS(OFFSET(REL_D,,MATCH($A100,IND,0)-2),REL_D,N$4,NwID,$C$4),SUMIFS(OFFSET(REL_D,,MATCH($A100,IND,0)-2),REL_D,N$4,OrgID,$C$5)) -> 0 | O100: =IF($C$5="Total",SUMIFS(OFFSET(REL_D,,MATCH($A100,IND,0)-2),REL_D,O$4,NwID,$C$4),SUMIFS(OFFSET(REL_D,,MATCH($A100,IND,0)-2),REL_D,O$4,OrgID,$C$5)) -> 0 | P100: =IF($C$5="Total",SUMIFS(OFFSET(REL_D,,MATCH($A100,IND,0)-2),REL_D,P$4,NwID,$C$4),SUMIFS(OFFSET(REL_D,,MATCH($A100,IND,0)-2),REL_D,P$4,OrgID,$C$5)) -> 0 | Q100: =IF($C$5="Total",SUMIFS(OFFSET(REL_D,,MATCH($A100,IND,0)-2),REL_D,Q$4,NwID,$C$4),SUMIFS(OFFSET(REL_D,,MATCH($A100,IND,0)-2),REL_D,Q$4,OrgID,$C$5)) -> 0 | R100: =SUMIFS(OFFSET(REL_D,,MATCH($A100,IND,0)-1),REL_D,R$4,IF(LEFT($C$5,1)="N",NwID,OrgID),$C$5) -> 0
A101: ="%"&A100 -> %LDP.09.02 Patients with smoking status recorded (last 12m) or never smoked | B101: %LDP.09.02 Patients with smoking status recorded (last 12m) or never smoked | C101: ='Control Panel'!C139 -> % COPD | D101: =IFERROR(D100/D96,"N/A") -> 0.869 | E101: 0.943 | F101: =IFERROR(F100/F96,"N/A") -> 0.925 | G101: =IFERROR(G100/G96,"N/A") -> 0.917 | H101: 0.91 | I101: 0.902 | J101: 0.896 | K101: N/A | L101: N/A | M101: N/A | N101: N/A | O101: N/A | P101: N/A | Q101: N/A | R101: =IFERROR(R100/R96,"N/A") -> N/A
A102: LDP.09.03 COPD patients recorded as a Smoker | B102: LDP.09.03 COPD patients recorded as a Smoker | C102: ='Control Panel'!C140 -> No. of COPD patients recorded as a Smoker | D102: =IF($C$5="Total",SUMIFS(OFFSET(REL_D,,MATCH($A102,IND,0)-2),REL_D,D$4,NwID,$C$4),SUMIFS(OFFSET(REL_D,,MATCH($A102,IND,0)-2),REL_D,D$4,OrgID,$C$5)) -> 493 | E102: =IF($C$5="Total",SUMIFS(OFFSET(REL_D,,MATCH($A102,IND,0)-2),REL_D,E$4,NwID,$C$4),SUMIFS(OFFSET(REL_D,,MATCH($A102,IND,0)-2),REL_D,E$4,OrgID,$C$5)) -> 512 | F102: =IF($C$5="Total",SUMIFS(OFFSET(REL_D,,MATCH($A102,IND,0)-2),REL_D,F$4,NwID,$C$4),SUMIFS(OFFSET(REL_D,,MATCH($A102,IND,0)-2),REL_D,F$4,OrgID,$C$5)) -> 511 | G102: =IF($C$5="Total",SUMIFS(OFFSET(REL_D,,MATCH($A102,IND,0)-2),REL_D,G$4,NwID,$C$4),SUMIFS(OFFSET(REL_D,,MATCH($A102,IND,0)-2),REL_D,G$4,OrgID,$C$5)) -> 513 | H102: =IF($C$5="Total",SUMIFS(OFFSET(REL_D,,MATCH($A102,IND,0)-2),REL_D,H$4,NwID,$C$4),SUMIFS(OFFSET(REL_D,,MATCH($A102,IND,0)-2),REL_D,H$4,OrgID,$C$5)) -> 508 | I102: =IF($C$5="Total",SUMIFS(OFFSET(REL_D,,MATCH($A102,IND,0)-2),REL_D,I$4,NwID,$C$4),SUMIFS(OFFSET(REL_D,,MATCH($A102,IND,0)-2),REL_D,I$4,OrgID,$C$5)) -> 505 | J102: =IF($C$5="Total",SUMIFS(OFFSET(REL_D,,MATCH($A102,IND,0)-2),REL_D,J$4,NwID,$C$4),SUMIFS(OFFSET(REL_D,,MATCH($A102,IND,0)-2),REL_D,J$4,OrgID,$C$5)) -> 516 | K102: =IF($C$5="Total",SUMIFS(OFFSET(REL_D,,MATCH($A102,IND,0)-2),REL_D,K$4,NwID,$C$4),SUMIFS(OFFSET(REL_D,,MATCH($A102,IND,0)-2),REL_D,K$4,OrgID,$C$5)) -> 0 | L102: =IF($C$5="Total",SUMIFS(OFFSET(REL_D,,MATCH($A102,IND,0)-2),REL_D,L$4,NwID,$C$4),SUMIFS(OFFSET(REL_D,,MATCH($A102,IND,0)-2),REL_D,L$4,OrgID,$C$5)) -> 0 | M102: =IF($C$5="Total",SUMIFS(OFFSET(REL_D,,MATCH($A102,IND,0)-2),REL_D,M$4,NwID,$C$4),SUMIFS(OFFSET(REL_D,,MATCH($A102,IND,0)-2),REL_D,M$4,OrgID,$C$5)) -> 0 | N102: =IF($C$5="Total",SUMIFS(OFFSET(REL_D,,MATCH($A102,IND,0)-2),REL_D,N$4,NwID,$C$4),SUMIFS(OFFSET(REL_D,,MATCH($A102,IND,0)-2),REL_D,N$4,OrgID,$C$5)) -> 0 | O102: =IF($C$5="Total",SUMIFS(OFFSET(REL_D,,MATCH($A102,IND,0)-2),REL_D,O$4,NwID,$C$4),SUMIFS(OFFSET(REL_D,,MATCH($A102,IND,0)-2),REL_D,O$4,OrgID,$C$5)) -> 0 | P102: =IF($C$5="Total",SUMIFS(OFFSET(REL_D,,MATCH($A102,IND,0)-2),REL_D,P$4,NwID,$C$4),SUMIFS(OFFSET(REL_D,,MATCH($A102,IND,0)-2),REL_D,P$4,OrgID,$C$5)) -> 0 | Q102: =IF($C$5="Total",SUMIFS(OFFSET(REL_D,,MATCH($A102,IND,0)-2),REL_D,Q$4,NwID,$C$4),SUMIFS(OFFSET(REL_D,,MATCH($A102,IND,0)-2),REL_D,Q$4,OrgID,$C$5)) -> 0 | R102: =SUMIFS(OFFSET(REL_D,,MATCH($A102,IND,0)-1),REL_D,R$4,IF(LEFT($C$5,1)="N",NwID,OrgID),$C$5) -> 0
A103: ="%"&A102 -> %LDP.09.03 COPD patients recorded as a Smoker | B103: %LDP.09.03 COPD patients recorded as a Smoker | C103: ='Control Panel'!C141 -> % COPD | D103: =IFERROR(D102/D96,"N/A") -> 0.227 | E103: 0.249 | F103: =IFERROR(F102/F96,"N/A") -> 0.249 | G103: =IFERROR(G102/G96,"N/A") -> 0.248 | H103: 0.246 | I103: 0.245 | J103: 0.242 | K103: N/A | L103: N/A | M103: N/A | N103: N/A | O103: N/A | P103: N/A | Q103: N/A | R103: =IFERROR(R102/R96,"N/A") -> N/A
A104: LDP.09.04 COPD Patients who are current smokers & referred to the Stop Smoking C | B104: LDP.09.04 COPD Patients who are current smokers & referred to the Stop Smoking C | C104: ='Control Panel'!C142 -> No. of COPD Patients who are current smokers & referred to the Stop Smoking Clinic (12m) | D104: =IF($C$5="Total",SUMIFS(OFFSET(REL_D,,MATCH($A104,IND,0)-2),REL_D,D$4,NwID,$C$4),SUMIFS(OFFSET(REL_D,,MATCH($A104,IND,0)-2),REL_D,D$4,OrgID,$C$5)) -> 9 | E104: =IF($C$5="Total",SUMIFS(OFFSET(REL_D,,MATCH($A104,IND,0)-2),REL_D,E$4,NwID,$C$4),SUMIFS(OFFSET(REL_D,,MATCH($A104,IND,0)-2),REL_D,E$4,OrgID,$C$5)) -> 10 | F104: =IF($C$5="Total",SUMIFS(OFFSET(REL_D,,MATCH($A104,IND,0)-2),REL_D,F$4,NwID,$C$4),SUMIFS(OFFSET(REL_D,,MATCH($A104,IND,0)-2),REL_D,F$4,OrgID,$C$5)) -> 9 | G104: =IF($C$5="Total",SUMIFS(OFFSET(REL_D,,MATCH($A104,IND,0)-2),REL_D,G$4,NwID,$C$4),SUMIFS(OFFSET(REL_D,,MATCH($A104,IND,0)-2),REL_D,G$4,OrgID,$C$5)) -> 8 | H104: =IF($C$5="Total",SUMIFS(OFFSET(REL_D,,MATCH($A104,IND,0)-2),REL_D,H$4,NwID,$C$4),SUMIFS(OFFSET(REL_D,,MATCH($A104,IND,0)-2),REL_D,H$4,OrgID,$C$5)) -> 11 | I104: =IF($C$5="Total",SUMIFS(OFFSET(REL_D,,MATCH($A104,IND,0)-2),REL_D,I$4,NwID,$C$4),SUMIFS(OFFSET(REL_D,,MATCH($A104,IND,0)-2),REL_D,I$4,OrgID,$C$5)) -> 12 | J104: =IF($C$5="Total",SUMIFS(OFFSET(REL_D,,MATCH($A104,IND,0)-2),REL_D,J$4,NwID,$C$4),SUMIFS(OFFSET(REL_D,,MATCH($A104,IND,0)-2),REL_D,J$4,OrgID,$C$5)) -> 12 | K104: =IF($C$5="Total",SUMIFS(OFFSET(REL_D,,MATCH($A104,IND,0)-2),REL_D,K$4,NwID,$C$4),SUMIFS(OFFSET(REL_D,,MATCH($A104,IND,0)-2),REL_D,K$4,OrgID,$C$5)) -> 0 | L104: =IF($C$5="Total",SUMIFS(OFFSET(REL_D,,MATCH($A104,IND,0)-2),REL_D,L$4,NwID,$C$4),SUMIFS(OFFSET(REL_D,,MATCH($A104,IND,0)-2),REL_D,L$4,OrgID,$C$5)) -> 0 | M104: =IF($C$5="Total",SUMIFS(OFFSET(REL_D,,MATCH($A104,IND,0)-2),REL_D,M$4,NwID,$C$4),SUMIFS(OFFSET(REL_D,,MATCH($A104,IND,0)-2),REL_D,M$4,OrgID,$C$5)) -> 0 | N104: =IF($C$5="Total",SUMIFS(OFFSET(REL_D,,MATCH($A104,IND,0)-2),REL_D,N$4,NwID,$C$4),SUMIFS(OFFSET(REL_D,,MATCH($A104,IND,0)-2),REL_D,N$4,OrgID,$C$5)) -> 0 | O104: =IF($C$5="Total",SUMIFS(OFFSET(REL_D,,MATCH($A104,IND,0)-2),REL_D,O$4,NwID,$C$4),SUMIFS(OFFSET(REL_D,,MATCH($A104,IND,0)-2),REL_D,O$4,OrgID,$C$5)) -> 0 | P104: =IF($C$5="Total",SUMIFS(OFFSET(REL_D,,MATCH($A104,IND,0)-2),REL_D,P$4,NwID,$C$4),SUMIFS(OFFSET(REL_D,,MATCH($A104,IND,0)-2),REL_D,P$4,OrgID,$C$5)) -> 0 | Q104: =IF($C$5="Total",SUMIFS(OFFSET(REL_D,,MATCH($A104,IND,0)-2),REL_D,Q$4,NwID,$C$4),SUMIFS(OFFSET(REL_D,,MATCH($A104,IND,0)-2),REL_D,Q$4,OrgID,$C$5)) -> 0 | R104: =SUMIFS(OFFSET(REL_D,,MATCH($A104,IND,0)-1),REL_D,R$4,IF(LEFT($C$5,1)="N",NwID,OrgID),$C$5) -> 0
A105: ="%"&A104 -> %LDP.09.04 COPD Patients who are current smokers & referred to the Stop Smoking C | B105: %LDP.09.04 COPD Patients who are current smokers & referred to the Stop Smoking C | C105: ='Control Panel'!C143 -> % of current COPD smokers | D105: =IFERROR(D104/D102,"N/A") -> 0.018 | E105: 0.02 | F105: =IFERROR(F104/F102,"N/A") -> 0.018 | G105: =IFERROR(G104/G102,"N/A") -> 0.016 | H105: 0.022 | I105: 0.024 | J105: 0.023 | K105: N/A | L105: N/A | M105: N/A | N105: N/A | O105: N/A | P105: N/A | Q105: N/A | R105: =IFERROR(R104/R102,"N/A") -> N/A
A106: LDP.09.05 No of COPD with flu vaccination (From August 2018) | B106: LDP.09.05 No of COPD with flu vaccination (12m) | C106: ='Control Panel'!C144 -> No of COPD with flu vaccination (From August 2023) | D106: =IF($C$5="Total",SUMIFS(OFFSET(REL_D,,MATCH($A106,IND,0)-2),REL_D,D$4,NwID,$C$4),SUMIFS(OFFSET(REL_D,,MATCH($A106,IND,0)-2),REL_D,D$4,OrgID,$C$5)) -> 0 | E106: =IF($C$5="Total",SUMIFS(OFFSET(REL_D,,MATCH($A106,IND,0)-2),REL_D,E$4,NwID,$C$4),SUMIFS(OFFSET(REL_D,,MATCH($A106,IND,0)-2),REL_D,E$4,OrgID,$C$5)) -> 1565 | F106: =IF($C$5="Total",SUMIFS(OFFSET(REL_D,,MATCH($A106,IND,0)-2),REL_D,F$4,NwID,$C$4),SUMIFS(OFFSET(REL_D,,MATCH($A106,IND,0)-2),REL_D,F$4,OrgID,$C$5)) -> 0 | G106: =IF($C$5="Total",SUMIFS(OFFSET(REL_D,,MATCH($A106,IND,0)-2),REL_D,G$4,NwID,$C$4),SUMIFS(OFFSET(REL_D,,MATCH($A106,IND,0)-2),REL_D,G$4,OrgID,$C$5)) -> 0 | H106: =IF($C$5="Total",SUMIFS(OFFSET(REL_D,,MATCH($A106,IND,0)-2),REL_D,H$4,NwID,$C$4),SUMIFS(OFFSET(REL_D,,MATCH($A106,IND,0)-2),REL_D,H$4,OrgID,$C$5)) -> 0 | I106: =IF($C$5="Total",SUMIFS(OFFSET(REL_D,,MATCH($A106,IND,0)-2),REL_D,I$4,NwID,$C$4),SUMIFS(OFFSET(REL_D,,MATCH($A106,IND,0)-2),REL_D,I$4,OrgID,$C$5)) -> 0 | J106: =IF($C$5="Total",SUMIFS(OFFSET(REL_D,,MATCH($A106,IND,0)-2),REL_D,J$4,NwID,$C$4),SUMIFS(OFFSET(REL_D,,MATCH($A106,IND,0)-2),REL_D,J$4,OrgID,$C$5)) -> 1 | K106: =IF($C$5="Total",SUMIFS(OFFSET(REL_D,,MATCH($A106,IND,0)-2),REL_D,K$4,NwID,$C$4),SUMIFS(OFFSET(REL_D,,MATCH($A106,IND,0)-2),REL_D,K$4,OrgID,$C$5)) -> 0 | L106: =IF($C$5="Total",SUMIFS(OFFSET(REL_D,,MATCH($A106,IND,0)-2),REL_D,L$4,NwID,$C$4),SUMIFS(OFFSET(REL_D,,MATCH($A106,IND,0)-2),REL_D,L$4,OrgID,$C$5)) -> 0 | M106: =IF($C$5="Total",SUMIFS(OFFSET(REL_D,,MATCH($A106,IND,0)-2),REL_D,M$4,NwID,$C$4),SUMIFS(OFFSET(REL_D,,MATCH($A106,IND,0)-2),REL_D,M$4,OrgID,$C$5)) -> 0 | N106: =IF($C$5="Total",SUMIFS(OFFSET(REL_D,,MATCH($A106,IND,0)-2),REL_D,N$4,NwID,$C$4),SUMIFS(OFFSET(REL_D,,MATCH($A106,IND,0)-2),REL_D,N$4,OrgID,$C$5)) -> 0 | O106: =IF($C$5="Total",SUMIFS(OFFSET(REL_D,,MATCH($A106,IND,0)-2),REL_D,O$4,NwID,$C$4),SUMIFS(OFFSET(REL_D,,MATCH($A106,IND,0)-2),REL_D,O$4,OrgID,$C$5)) -> 0 | P106: =IF($C$5="Total",SUMIFS(OFFSET(REL_D,,MATCH($A106,IND,0)-2),REL_D,P$4,NwID,$C$4),SUMIFS(OFFSET(REL_D,,MATCH($A106,IND,0)-2),REL_D,P$4,OrgID,$C$5)) -> 0 | Q106: =IF($C$5="Total",SUMIFS(OFFSET(REL_D,,MATCH($A106,IND,0)-2),REL_D,Q$4,NwID,$C$4),SUMIFS(OFFSET(REL_D,,MATCH($A106,IND,0)-2),REL_D,Q$4,OrgID,$C$5)) -> 0 | R106: =SUMIFS(OFFSET(REL_D,,MATCH($A106,IND,0)-1),REL_D,R$4,IF(LEFT($C$5,1)="N",NwID,OrgID),$C$5) -> 0
A107: ="%"&A106 -> %LDP.09.05 No of COPD with flu vaccination (From August 2018) | B107: %LDP.09.05 No of COPD with flu vaccination (12m) | C107: ='Control Panel'!C145 -> % of COPD register | D107: =IFERROR(D106/D96,"N/A") -> 0 | E107: 0.762 | F107: =IFERROR(F106/F96,"N/A") -> 0 | G107: =IFERROR(G106/G96,"N/A") -> 0 | H107: 0 | I107: 0 | J107: 0 | K107: N/A | L107: N/A | M107: N/A | N107: N/A | O107: N/A | P107: N/A | Q107: N/A | R107: =IFERROR(R106/R96,"N/A") -> N/A
A108: LDP.09.06 No of COPD with pneumococcal vaccination ever | B108: LDP.09.06 No of COPD with pneumococcal vaccination ever | C108: ='Control Panel'!C146 -> No of COPD with pneumococcal vaccination ever | D108: =IF($C$5="Total",SUMIFS(OFFSET(REL_D,,MATCH($A108,IND,0)-2),REL_D,D$4,NwID,$C$4),SUMIFS(OFFSET(REL_D,,MATCH($A108,IND,0)-2),REL_D,D$4,OrgID,$C$5)) -> 1755 | E108: =IF($C$5="Total",SUMIFS(OFFSET(REL_D,,MATCH($A108,IND,0)-2),REL_D,E$4,NwID,$C$4),SUMIFS(OFFSET(REL_D,,MATCH($A108,IND,0)-2),REL_D,E$4,OrgID,$C$5)) -> 1667 | F108: =IF($C$5="Total",SUMIFS(OFFSET(REL_D,,MATCH($A108,IND,0)-2),REL_D,F$4,NwID,$C$4),SUMIFS(OFFSET(REL_D,,MATCH($A108,IND,0)-2),REL_D,F$4,OrgID,$C$5)) -> 1668 | G108: =IF($C$5="Total",SUMIFS(OFFSET(REL_D,,MATCH($A108,IND,0)-2),REL_D,G$4,NwID,$C$4),SUMIFS(OFFSET(REL_D,,MATCH($A108,IND,0)-2),REL_D,G$4,OrgID,$C$5)) -> 1672 | H108: =IF($C$5="Total",SUMIFS(OFFSET(REL_D,,MATCH($A108,IND,0)-2),REL_D,H$4,NwID,$C$4),SUMIFS(OFFSET(REL_D,,MATCH($A108,IND,0)-2),REL_D,H$4,OrgID,$C$5)) -> 1668 | I108: =IF($C$5="Total",SUMIFS(OFFSET(REL_D,,MATCH($A108,IND,0)-2),REL_D,I$4,NwID,$C$4),SUMIFS(OFFSET(REL_D,,MATCH($A108,IND,0)-2),REL_D,I$4,OrgID,$C$5)) -> 1668 | J108: =IF($C$5="Total",SUMIFS(OFFSET(REL_D,,MATCH($A108,IND,0)-2),REL_D,J$4,NwID,$C$4),SUMIFS(OFFSET(REL_D,,MATCH($A108,IND,0)-2),REL_D,J$4,OrgID,$C$5)) -> 1723 | K108: =IF($C$5="Total",SUMIFS(OFFSET(REL_D,,MATCH($A108,IND,0)-2),REL_D,K$4,NwID,$C$4),SUMIFS(OFFSET(REL_D,,MATCH($A108,IND,0)-2),REL_D,K$4,OrgID,$C$5)) -> 0 | L108: =IF($C$5="Total",SUMIFS(OFFSET(REL_D,,MATCH($A108,IND,0)-2),REL_D,L$4,NwID,$C$4),SUMIFS(OFFSET(REL_D,,MATCH($A108,IND,0)-2),REL_D,L$4,OrgID,$C$5)) -> 0 | M108: =IF($C$5="Total",SUMIFS(OFFSET(REL_D,,MATCH($A108,IND,0)-2),REL_D,M$4,NwID,$C$4),SUMIFS(OFFSET(REL_D,,MATCH($A108,IND,0)-2),REL_D,M$4,OrgID,$C$5)) -> 0 | N108: =IF($C$5="Total",SUMIFS(OFFSET(REL_D,,MATCH($A108,IND,0)-2),REL_D,N$4,NwID,$C$4),SUMIFS(OFFSET(REL_D,,MATCH($A108,IND,0)-2),REL_D,N$4,OrgID,$C$5)) -> 0 | O108: =IF($C$5="Total",SUMIFS(OFFSET(REL_D,,MATCH($A108,IND,0)-2),REL_D,O$4,NwID,$C$4),SUMIFS(OFFSET(REL_D,,MATCH($A108,IND,0)-2),REL_D,O$4,OrgID,$C$5)) -> 0 | P108: =IF($C$5="Total",SUMIFS(OFFSET(REL_D,,MATCH($A108,IND,0)-2),REL_D,P$4,NwID,$C$4),SUMIFS(OFFSET(REL_D,,MATCH($A108,IND,0)-2),REL_D,P$4,OrgID,$C$5)) -> 0 | Q108: =IF($C$5="Total",SUMIFS(OFFSET(REL_D,,MATCH($A108,IND,0)-2),REL_D,Q$4,NwID,$C$4),SUMIFS(OFFSET(REL_D,,MATCH($A108,IND,0)-2),REL_D,Q$4,OrgID,$C$5)) -> 0 | R108: =SUMIFS(OFFSET(REL_D,,MATCH($A108,IND,0)-1),REL_D,R$4,IF(LEFT($C$5,1)="N",NwID,OrgID),$C$5) -> 0
A109: ="%"&A108 -> %LDP.09.06 No of COPD with pneumococcal vaccination ever | B109: %LDP.09.06 No of COPD with pneumococcal vaccination ever | C109: ='Control Panel'!C147 -> % of COPD register | D109: =IFERROR(D108/D96,"N/A") -> 0.807 | E109: 0.812 | F109: =IFERROR(F108/F96,"N/A") -> 0.811 | G109: =IFERROR(G108/G96,"N/A") -> 0.809 | H109: 0.808 | I109: 0.809 | J109: 0.809 | K109: N/A | L109: N/A | M109: N/A | N109: N/A | O109: N/A | P109: N/A | Q109: N/A | R109: =IFERROR(R108/R96,"N/A") -> N/A
A110: LDP.09.07 No of COPD patients referred to pulmonary rehab ever | B110: LDP.09.07 No of COPD patients referred to pulmonary rehab ever | C110: ='Control Panel'!C148 -> No of COPD patients referred to pulmonary rehab ever | D110: =IF($C$5="Total",SUMIFS(OFFSET(REL_D,,MATCH($A110,IND,0)-2),REL_D,D$4,NwID,$C$4),SUMIFS(OFFSET(REL_D,,MATCH($A110,IND,0)-2),REL_D,D$4,OrgID,$C$5)) -> 973 | E110: =IF($C$5="Total",SUMIFS(OFFSET(REL_D,,MATCH($A110,IND,0)-2),REL_D,E$4,NwID,$C$4),SUMIFS(OFFSET(REL_D,,MATCH($A110,IND,0)-2),REL_D,E$4,OrgID,$C$5)) -> 1163 | F110: =IF($C$5="Total",SUMIFS(OFFSET(REL_D,,MATCH($A110,IND,0)-2),REL_D,F$4,NwID,$C$4),SUMIFS(OFFSET(REL_D,,MATCH($A110,IND,0)-2),REL_D,F$4,OrgID,$C$5)) -> 1167 | G110: =IF($C$5="Total",SUMIFS(OFFSET(REL_D,,MATCH($A110,IND,0)-2),REL_D,G$4,NwID,$C$4),SUMIFS(OFFSET(REL_D,,MATCH($A110,IND,0)-2),REL_D,G$4,OrgID,$C$5)) -> 1173 | H110: =IF($C$5="Total",SUMIFS(OFFSET(REL_D,,MATCH($A110,IND,0)-2),REL_D,H$4,NwID,$C$4),SUMIFS(OFFSET(REL_D,,MATCH($A110,IND,0)-2),REL_D,H$4,OrgID,$C$5)) -> 1171 | I110: =IF($C$5="Total",SUMIFS(OFFSET(REL_D,,MATCH($A110,IND,0)-2),REL_D,I$4,NwID,$C$4),SUMIFS(OFFSET(REL_D,,MATCH($A110,IND,0)-2),REL_D,I$4,OrgID,$C$5)) -> 1192 | J110: =IF($C$5="Total",SUMIFS(OFFSET(REL_D,,MATCH($A110,IND,0)-2),REL_D,J$4,NwID,$C$4),SUMIFS(OFFSET(REL_D,,MATCH($A110,IND,0)-2),REL_D,J$4,OrgID,$C$5)) -> 1230 | K110: =IF($C$5="Total",SUMIFS(OFFSET(REL_D,,MATCH($A110,IND,0)-2),REL_D,K$4,NwID,$C$4),SUMIFS(OFFSET(REL_D,,MATCH($A110,IND,0)-2),REL_D,K$4,OrgID,$C$5)) -> 0 | L110: =IF($C$5="Total",SUMIFS(OFFSET(REL_D,,MATCH($A110,IND,0)-2),REL_D,L$4,NwID,$C$4),SUMIFS(OFFSET(REL_D,,MATCH($A110,IND,0)-2),REL_D,L$4,OrgID,$C$5)) -> 0 | M110: =IF($C$5="Total",SUMIFS(OFFSET(REL_D,,MATCH($A110,IND,0)-2),REL_D,M$4,NwID,$C$4),SUMIFS(OFFSET(REL_D,,MATCH($A110,IND,0)-2),REL_D,M$4,OrgID,$C$5)) -> 0 | N110: =IF($C$5="Total",SUMIFS(OFFSET(REL_D,,MATCH($A110,IND,0)-2),REL_D,N$4,NwID,$C$4),SUMIFS(OFFSET(REL_D,,MATCH($A110,IND,0)-2),REL_D,N$4,OrgID,$C$5)) -> 0 | O110: =IF($C$5="Total",SUMIFS(OFFSET(REL_D,,MATCH($A110,IND,0)-2),REL_D,O$4,NwID,$C$4),SUMIFS(OFFSET(REL_D,,MATCH($A110,IND,0)-2),REL_D,O$4,OrgID,$C$5)) -> 0 | P110: =IF($C$5="Total",SUMIFS(OFFSET(REL_D,,MATCH($A110,IND,0)-2),REL_D,P$4,NwID,$C$4),SUMIFS(OFFSET(REL_D,,MATCH($A110,IND,0)-2),REL_D,P$4,OrgID,$C$5)) -> 0 | Q110: =IF($C$5="Total",SUMIFS(OFFSET(REL_D,,MATCH($A110,IND,0)-2),REL_D,Q$4,NwID,$C$4),SUMIFS(OFFSET(REL_D,,MATCH($A110,IND,0)-2),REL_D,Q$4,OrgID,$C$5)) -> 0 | R110: =SUMIFS(OFFSET(REL_D,,MATCH($A110,IND,0)-1),REL_D,R$4,IF(LEFT($C$5,1)="N",NwID,OrgID),$C$5) -> 0
A111: ="%"&A110 -> %LDP.09.07 No of COPD patients referred to pulmonary rehab ever | B111: %LDP.09.07 No of COPD patients referred to pulmonary rehab ever | C111: ='Control Panel'!C149 -> % of COPD register | D111: =IFERROR(D110/D96,"N/A") -> 0.447 | E111: 0.566 | F111: =IFERROR(F110/F96,"N/A") -> 0.568 | G111: =IFERROR(G110/G96,"N/A") -> 0.567 | H111: 0.567 | I111: 0.578 | J111: 0.577 | K111: N/A | L111: N/A | M111: N/A | N111: N/A | O111: N/A | P111: N/A | Q111: N/A | R111: =IFERROR(R110/R96,"N/A") -> N/A

Sheet Control Panel (hidden)
B1: Control Panel | C1: 2018-06-30 | G1: Select Dates
B2: General Health | G2: 2023-04-01 | I2: - | J2: Select Practice | K2: DN Team | L2: Patch | M2: Network | O2: OrgID | P2: 4 | Q2: =$P$6&ADDRESS(1,P2)&":"&ADDRESS($P$7,P2) -> 'CH LDP TABLE'!$D$1:$D$100000 | T2: OrgID_A | U2: 10 | V2: =$U$6&ADDRESS(1,U2)&":"&ADDRESS($U$7,U2) -> 'Data 17-18'!$J$1:$J$1000
A3: List Size | B3: 01. Listsize | C3: List Size | G3: 2023-05-01 | H3: Bethnal Green Health Centre | I3: F84083 | J3: Bethnal Green Health Centre | M3: NW1 | O3: REL_D | P3: 2 | Q3: =$P$6&ADDRESS(1,P3)&":"&ADDRESS($P$7,P3) -> 'CH LDP TABLE'!$B$1:$B$100000 | T3: REL_DA | U3: 1 | V3: =$U$6&ADDRESS(1,U3)&":"&ADDRESS($U$7,U3) -> 'Data 17-18'!$A$1:$A$1000
A4: Age 16+ | B4: LDP.01: Aged 16yrs+ | C4: Age 16+ | D4: Age 16+ | G4: 2023-06-01 | H4: The Mission Practice | I4: F84016 | J4: The Mission Practice | M4: NW1 | O4: IND | P4: - | Q4: =$P$6&ADDRESS(P11,1)&":"&ADDRESS(P11,P8) -> 'CH LDP TABLE'!$A$1:$BU$1 | T4: IND_A | U4: - | V4: =$U$6&ADDRESS(U11,1)&":"&ADDRESS(U11,U8) -> 'Data 17-18'!$A$1:$BU$1
A5: % list size | B5: ="%"&B4 -> %LDP.01: Aged 16yrs+ | C5: % list size | D5: % list size | G5: 2023-07-01 | H5: Globe Town Surgery | I5: F84123 | J5: Globe Town Surgery | M5: NW1 | O5: NwID | P5: 55 | Q5: =$P$6&ADDRESS(1,P5)&":"&ADDRESS($P$7,P5) -> 'CH LDP TABLE'!$BC$1:$BC$100000 | T5: NwID_A | U5: 2 | V5: =$U$6&ADDRESS(1,U5)&":"&ADDRESS($U$7,U5) -> 'Data 17-18'!$B$1:$B$1000
A6: 16+ and BMI (last 12m) | B6: LDP.01.01: Obesity BMI recorded (last 12m) | C6: 16+ and BMI (last 12m) | D6: 16+ and BMI (last 12m) | G6: 2023-08-01 | H6: Pollard Row Surgery | I6: Y00212 | J6: Pollard Row Surgery | M6: NW1 | O6: Data | P6: =IF(P9="N","BLANK!","'"&P10&"'!") -> 'CH LDP TABLE'! | T6: Data | U6: =IF(U9="N","BLANK!","'"&U10&"'!") -> 'Data 17-18'!
A7: % 16+ | B7: ="%"&B6 -> %LDP.01.01: Obesity BMI recorded (last 12m) | C7: % 16+ | D7: % 16+ | G7: 2023-09-01 | H7: Strouts Place Medical Centre | I7: F84051 | J7: Strouts Place Medical Centre | M7: NW1 | O7: Rows | P7: 100000 | T7: Rows | U7: 1000
A8: BMI 25 to 29 | B8: LDP.01.01.02: Obesity BMI between 30-35 (last 12m) | C8: BMI 25 to 29 | D8: BMI ≥30 & <35 | G8: 2023-10-01 | H8: Spitalfields Practice | I8: F84081 | J8: Spitalfields Practice | M8: NW2 | O8: Columns | P8: 73 | T8: Columns | U8: 73
A9: % 16+ | B9: ="%"&B8 -> %LDP.01.01.02: Obesity BMI between 30-35 (last 12m) | C9: % 16+ | D9: % 16+ | G9: 2023-11-01 | H9: Blithehale Medical Centre | I9: F84718 | J9: Blithehale Medical Centre | M9: NW2 | O9: Data (Y/N) | P9: Y | T9: Data (Y/N) | U9: Y
A10: BMI ≥ 30 | B10: LDP.01.01.01: Obesity BMI more than or equal to 35 less than 40 (last 12m) | C10: BMI ≥ 30 | D10: BMI ≥ 35 & <40 | G10: 2023-12-01 | H10: Health E1 | I10: F84733 | J10: Health E1 | M10: NW2 | O10: Q Work Sheet | P10: CH LDP TABLE | Q10: =$P$6&ADDRESS(1,1)&":"&ADDRESS(P7,P8) -> 'CH LDP TABLE'!$A$1:$BU$100000 | T10: Q Work Sheet | U10: Data 17-18 | V10: =$U$6&ADDRESS(1,1)&":"&ADDRESS(U7,U8) -> 'Data 17-18'!$A$1:$BU$1000
A11: %16+ | B11: ="%"&B10 -> %LDP.01.01.01: Obesity BMI more than or equal to 35 less than 40 (last 12m) | C11: %16+ | D11: %16+ | G11: 2024-01-01 | H11: Albion Health Centre | I11: F84012 | J11: Albion Health Centre | M11: NW2 | O11: Header Row | P11: 1 | T11: Header Row | U11: 1
A12: BMI ≥ 40 | B12: LDP.01.01.03: Obesity BMI equal to or over 40 (last 12m) | C12: BMI ≥ 40 | D12: BMI ≥ 40 | G12: 2024-02-01 | H12: XX Place Surgery | I12: F84122 | J12: XX Place Surgery | M12: NW2 | O12: Header Row 2 | P12: 3 | T12: Header Row 2 | U12: 3
A13: %16+ | B13: ="%"&B12 -> %LDP.01.01.03: Obesity BMI equal to or over 40 (last 12m) | C13: %16+ | D13: %16+ | G13: 2024-03-01 | H13: Harford Health Centre | I13: F84087 | J13: Harford Health Centre | M13: NW3
A14: Smoking status (last 12m) incl. never smoked | B14: LDP.01.02: Smoking Status (last 12m) or Never Smoked (25yrs+) | C14: Smoking status (last 12m) incl. never smoked | D14: Smoking status (last 12m) incl. never smoked | H14: Brayford Square (Dr Varma) | I14: F84046 | J14: Brayford Square (Dr Varma) | M14: NW3
A15: % 16+ | B15: ="%"&B14 -> %LDP.01.02: Smoking Status (last 12m) or Never Smoked (25yrs+) | C15: % 16+ | D15: % 16+ | H15: Whitechapel Health (Shah Jalal) | I15: F84039 | J15: Whitechapel Health (Shah Jalal) | M15: NW3
A16: Age 16+ and current smoker (last 12m) | B16: LDP.01.03: Current Smoker (last 12m) | C16: Age 16+ and current smoker (last 12m) | D16: Age 16+ and current smoker (last 12m) | H16: City Wellbeing Practice (Tower Medical) | I16: F84114 | J16: City Wellbeing Practice (Tower Medical) | M16: NW3 | O16: April 2023 | P16: 2023-05-01
A17: % 16+ | B17: ="%"&B16 -> %LDP.01.03: Current Smoker (last 12m) | C17: % 16+ | D17: % 16+ | H17: Wapping Group Practice | I17: F84079 | J17: Wapping Group Practice | M17: NW4 | O17: May 2023 | P17: 2023-06-01
B18: Hypertension | H18: Jubilee Street Practice | I18: F84031 | J18: Jubilee Street Practice | M18: NW4 | O18: June 2023 | P18: 2023-07-01
A19: Hypertension Register | B19: LDP.02: Hypertension Register | C19: Hypertension Register | D19: Hypertension Register | H19: St Katharine Docks Practice | I19: F84731 | J19: St Katharine Docks Practice | M19: NW4 | O19: July 2023 | P19: 2023-08-01
A20: % list size | B20: ="%"&B19 -> %LDP.02: Hypertension Register | C20: % list size | D20: % list size | H20: East One Health | I20: F84682 | J20: East One Health | M20: NW4 | O20: August 2023 | P20: 2023-09-01
A21: Hypertension and BP (last 9m) | B21: LDP.02.02: Hypertension BP recorded (last 12m) | C21: Hypertension and BP (last 9m) | D21: Hypertension and BP (last 12m) | H21: Harley Grove Medical Centre | I21: F84044 | J21: Harley Grove Medical Centre | M21: NW5 | O21: September 2023 | P21: 2023-10-01
A22: % Hypertension Register | B22: ="%"&B21 -> %LDP.02.02: Hypertension BP recorded (last 12m) | C22: % Hypertension Register | D22: % Hypertension Register | H22: St Stephens Health Centre | I22: F84034 | J22: St Stephens Health Centre | M22: NW5 | O22: October 2023 | P22: 2023-11-01
A23: Hypertension and BP ≤ 150/90 (last 9m) | B23: LDP.02.01: Hypertension and BP < 140/90 (age under 80) < 150/90 (Age 80+) | C23: Hypertension and BP ≤ 150/90 (last 9m) | D23: Hypertension and BP < 140/90 (Patients aged under 80) < 150/90 ( Aged 80 and over) (last 12m) | H23: Ruston Street Clinic (Dr Amin) | I23: F84030 | J23: Ruston Street Clinic (Dr Amin) | M23: NW5 | O23: November 2023 | P23: 2023-12-01
A24: % Hypertension Register | B24: ="%"&B23 -> %LDP.02.01: Hypertension and BP < 140/90 (age under 80) < 150/90 (Age 80+) | C24: % Hypertension Register | D24: % Hypertension Register | H24: Grove Road Surgery (Dr Shah) | I24: F84055 | J24: Grove Road Surgery (Dr Shah) | M24: NW5 | O24: December 2023 | P24: 2024-01-01
B25: CHD | H25: The Tredegar Practice | I25: F84696 | J25: The Tredegar Practice | M25: NW5 | O25: January 2023 | P25: 2024-02-01
A26: CHD register | B26: LDP.03: CHD Register | C26: CHD register | D26: CHD register | H26: Stroudley Walk Centre | I26: F84676 | J26: Stroudley Walk Centre | M26: NW6 | O26: February 2023 | P26: 2024-03-01
A27: % list size | B27: ="%"&B26 -> %LDP.03: CHD Register | C27: % list size | D27: % list size | H27: St Andrews Health Centre | I27: Y03023 | J27: St Andrews Health Centre | M27: NW6 | O27: March 2023 | P27: 2024-04-01
A28: Cholesterol (last 12m) | B28: LDP.03.04: CHD Cholesterol recorded (last 12m) | C28: Cholesterol (last 12m) | D28: Cholesterol (last 12m) | H28: Merchant Street (Dr Rana) | I28: F84118 | J28: Merchant Street (Dr Rana) | M28: NW6
A29: % CHD register | B29: ="%"&B28 -> %LDP.03.04: CHD Cholesterol recorded (last 12m) | C29: % CHD register | D29: % CHD register | H29: St Pauls Way Medical Centre | I29: F84714 | J29: St Pauls Way Medical Centre | M29: NW6
A30: Cholesterol ≤ 5 (last 12m) | B30: LDP.03.01: CHD Chol less than 5mmol (last 12m) | C30: Cholesterol ≤ 5 (last 12m) | D30: Cholesterol < 5 (last 12m) | H30: Bromley-By-Bow Health Centre | I30: F84122 | J30: Bromley-By-Bow Health Centre | M30: NW6
A31: % CHD register | B31: ="%"&B30 -> %LDP.03.01: CHD Chol less than 5mmol (last 12m) | C31: % CHD register | D31: % CHD register | H31: Limehouse Practice (Gill Street) | I31: F84054 | J31: Limehouse Practice (Gill Street) | M31: NW7
A32: BP (last 9m) | B32: LDP.03.02: CHD BP less than or equal 150/90 (last 9m) | C32: BP (last 9m) | D32: BP ≤ 150/90 (last 12m) | H32: Chrisp Street Health Centre | I32: F84062 | J32: Chrisp Street Health Centre | M32: NW7
A33: % CHD register | B33: ="%"&B32 -> %LDP.03.02: CHD BP less than or equal 150/90 (last 9m) | C33: % CHD register | D33: % CHD register | H33: Aberfeldy Practice | I33: F84698 | J33: Aberfeldy Practice | M33: NW7
A34: BP ≤ 150/90 (last 9m) | B34: LDP.03.05: CHD BP recorded (last 9m) | C34: BP ≤ 150/90 (last 9m) | H34: All Saints Practice | I34: F84702 | J34: All Saints Practice | M34: NW7
A35: % CHD register | B35: ="%"&B34 -> %LDP.03.05: CHD BP recorded (last 9m) | C35: % CHD register | H35: Gough Walk (Dr Selvan) | I35: F84025 | J35: Gough Walk (Dr Selvan) | M35: NW7
A36: CHD annual review or proxy review | B36: LDP.03.03: CHD Annual Review & Proxy (last 12m) | C36: CHD annual review or proxy review | H36: Island Health | I36: F84710 | J36: Island Health | M36: NW8
A37: % CHD register | B37: ="%"&B36 -> %LDP.03.03: CHD Annual Review & Proxy (last 12m) | C37: % CHD register | H37: Docklands Medical Centre | I37: F84656 | J37: Docklands Medical Centre | M37: NW8
A38: CHD diagnosed in last 6 months | B38: LDP.03.06: CHD Diagnosed (Last 6 months) | C38: CHD diagnosed in last 6 months | H38: Island Medical Centre | I38: F84647 | J38: Island Medical Centre | M38: NW8
A39: % CHD register | B39: ="%"&B38 -> %LDP.03.06: CHD Diagnosed (Last 6 months) | C39: % CHD register | H39: Barkantine Practice | I39: F84747 | J39: Barkantine Practice | M39: NW8
H40: Tower Hamlets | I40: Total | J40: Tower Hamlets
B41: Stroke/TIA
B42: LDP.10 Stroke or TIA register | D42: Stroke/TIA register
B43: %LDP.10 Stroke or TIA register | D43: % list size
B44: LDP.10.01: Stroke/TIA BP recorded (last 12m) | D44: Patients on Stroke/TIA register with BP recorded
B45: %LDP.10.01: Stroke/TIA BP recorded (last 12m) | D45: % of stroke register
B46: LDP.10.02 Patients on Stroke/TIA register with BP <140/90 (12m) | D46: Patients on Stroke/TIA register with BP <140/90 (12m)
B47: %LDP.10.02 Patients on Stroke/TIA register with BP <140/90 (12m) | D47: % of stroke register
B48: CVD Risk | H48: The One Network | I48: NW1 | J48: The One Network | M48: NW1
A49: Aged 35 to 74 (exc CVD) | B49: LDP.05: CVD 25-84yrs (excl CVD) | C49: Aged 35 to 74 (exc CVD) | D49: Aged 25 to 84 (exc CVD) | H49: East End Health Network | I49: NW2 | J49: East End Health Network | M49: NW2
A50: CVD (QRISK or Framingham) risk score done | B50: LDP.05.02: Cardiovascular Risk Score Done (5y) | C50: CVD (QRISK or Framingham) risk score done | D50: QRISK recorded (5 years) | H50: Stepney and Whitechapel Network | I50: NW3 | J50: Stepney and Whitechapel Network | M50: NW3
A51: % of patients aged 35 to 74 (exc CVD) | B51: ="%"&B50 -> %LDP.05.02: Cardiovascular Risk Score Done (5y) | C51: % of patients aged 35 to 74 (exc CVD) | D51: % of patients aged 25 to 84 (exc CVD) | H51: The Highway Network | I51: NW4 | J51: The Highway Network | M51: NW4
A52: QRISK ≥ 20% | B52: LDP.05.01: CVD QRISK greater than or equal 20% | C52: QRISK ≥ 20% | D52: QRISK ≥ 20% | H52: Bow Health Network | I52: NW5 | J52: Bow Health Network | M52: NW5
A53: % QRISK Score recorded | B53: ="%"&B52 -> %LDP.05.01: CVD QRISK greater than or equal 20% | C53: % QRISK Score recorded | D53: % QRISK Score recorded | H53: Mile End East and Bromley by Bow Network | I53: NW6 | J53: Mile End East and Bromley by Bow Network | M53: NW6
A54: QRISK ≥ 20% and proxy review (BP and Chol last 12m) | B54: LDP.05.01.01: CVD Proxy Annual Review (last 12m) | C54: QRISK ≥ 20% and proxy review (BP and Chol last 12m) | D54: QRISK ≥ 20% and proxy review (BP and Chol last 12m) | H54: Poplar and Limehouse Network | I54: NW7 | J54: Poplar and Limehouse Network | M54: NW7
A55: % Patients with QRISK ≥ 20% | B55: ="%"&B54 -> %LDP.05.01.01: CVD Proxy Annual Review (last 12m) | C55: % Patients with QRISK ≥ 20% | D55: % Patients with QRISK ≥ 20% | H55: Healthy Island Network | I55: NW8 | J55: Healthy Island Network | M55: NW8
B56: Diabetes
A57: Diabetes register | B57: LDP.04: Diabetes Register | C57: Diabetes register | D57: Diabetes register
A58: % List size | B58: ="%"&B57 -> %LDP.04: Diabetes Register | C58: % List size | D58: % List size
A59: Annual review/ called or proxy (last 12m) | B59: LDP.04.02: Diabetes Called & Annual Review or Proxy (last 12m) | C59: Annual review/ called or proxy (last 12m) | D59: BP (last 12m)
A60: % Diabetes register | B60: ="%"&B59 -> %LDP.04.02: Diabetes Called & Annual Review or Proxy (last 12m) | C60: % Diabetes register | D60: % Diabetes Register
A61: BP (last 12m) | B61: LDP.04.11: Diabetes and BP in last 12 months | C61: BP (last 12m) | D61: BP < 145/85 (last 12m)
A62: % Diabetes Register | B62: ="%"&B61 -> %LDP.04.11: Diabetes and BP in last 12 months | C62: % Diabetes Register | D62: % Diabetes Register
A63: BP ≤ 145/85 (last 12m) | B63: LDP.04.09: Diabetes BP less than 145/85 (last 12m) | C63: BP ≤ 145/85 (last 12m) | D63: Cholesterol < 5mmols (last 12m) | H63: Drive Surgery | I63: F86652
A64: % Diabetes Register | B64: ="%"&B63 -> %LDP.04.09: Diabetes BP less than 145/85 (last 12m) | C64: % Diabetes Register | D64: % Diabetes Register | H64: St Clements Surgery | I64: F86702
A65: Cholesterol (last 12m) | B65: LDP.04.12: Diabetes and cholesterol in last 15 mths | C65: Cholesterol (last 12m) | D65: HbA1c < 59 (last 12m) | H65: Granville Medical Centre | I65: Y00918
A66: % Diabetes Register | B66: ="%"&B65 -> %LDP.04.12: Diabetes and cholesterol in last 15 mths | C66: % Diabetes Register | D66: % Diabetes register | H66: Balfour Road Surgery | I66: F86042
A67: Cholesterol < 5mmols (last 12m) | B67: LDP.04.08: Diabetes Chol less than 5mmol (last 12m) | C67: Cholesterol < 5mmols (last 12m) | D67: Flu jab (From August 2022) | H67: Cranbrook Surgery | I67: F86698
A68: % Diabetes Register | B68: ="%"&B67 -> %LDP.04.08: Diabetes Chol less than 5mmol (last 12m) | C68: % Diabetes Register | D68: % Diabetes Register | H68: Gants Hill Medical Centre | I68: F86008
A69: HbA1c ≤ 59(last 12m) | B69: LDP.04.01: Diabetes HbA1c <7.5% OR <59mmol (last 12m) | C69: HbA1c ≤ 59(last 12m) | H69: Redbridge Surgery | I69: F86703
A70: % Diabetes register | B70: ="%"&B69 -> %LDP.04.01: Diabetes HbA1c <7.5% OR <59mmol (last 12m) | C70: % Diabetes register | H70: York Road Surgery | I70: F86657
A71: HbA1c ≤ 86 (last 12m) | B71: LDP.04.10: Diabetes HbA1c <=10% OR <=86mmol (last 12m) | C71: HbA1c ≤ 86 (last 12m) | H71: Kenwood Medical Centre | I71: F86081
A72: % Diabetes Register | B72: ="%"&B71 -> %LDP.04.10: Diabetes HbA1c <=10% OR <=86mmol (last 12m) | C72: % Diabetes Register | H72: Eastern Avenue Medical Centre | I72: F86083
A73: Diabetes retinal screening (last 12m) | B73: LDP.04.03: Diabetes Digital retinal screening or Seen by retinal screener | C73: Diabetes retinal screening (last 12m) | H73: Fullwell Avenue Surgery | I73: F86612
A74: % Diabetes register | B74: ="%"&B73 -> %LDP.04.03: Diabetes Digital retinal screening or Seen by retinal screener | C74: % Diabetes register | H74: Heathcote Primary Care Centre | I74: F86624
A75: Retinal screening (last 12m) | B75: LDP.04.04: Diabetes Retinal Screening (QoF) (last 12m) | C75: Retinal screening (last 12m) | H75: Fencepiece Road Medical Practice | I75: F86707
A76: % Diabetes register | B76: ="%"&B75 -> %LDP.04.04: Diabetes Retinal Screening (QoF) (last 12m) | C76: % Diabetes register | H76: The Willows Practice | I76: F86057
A77: Neuropathy testing (last 12m) | B77: LDP.04.05: Diabetes Neuropathy Test (last 12m) | C77: Neuropathy testing (last 12m) | H77: Forest Edge Practice | I77: F86007
A78: % Diabetes Register | B78: ="%"&B77 -> %LDP.04.05: Diabetes Neuropathy Test (last 12m) | C78: % Diabetes Register | H78: The Palms Medical Centre | I78: F86009
A79: Microalbuminuria (last 12m) | B79: LDP.04.06: Diabetes Microalbuminuria Test (latest last 12m) | C79: Microalbuminuria (last 12m) | H79: Goodmayes Medical Centre | I79: F86087
A80: % Diabetes Register | B80: ="%"&B79 -> %LDP.04.06: Diabetes Microalbuminuria Test (latest last 12m) | C80: % Diabetes Register | H80: Seven Kings Practice | I80: F86637
A81: Flu jab (last 12m) | B81: LDP.04.07: Diabetes Influenza Vaccinations (From August 2018) | C81: Flu jab (last 12m) | H81: Doctor's House | I81: Y00090
A82: % Diabetes Register | B82: ="%"&B81 -> %LDP.04.07: Diabetes Influenza Vaccinations (From August 2018) | C82: % Diabetes Register | H82: Green Lane, Goodmayes Medical practice | I82: F86034
A83: Type 1 Diabetes | B83: LDP.04.13. Type 1 Diabetes | C83: Type 1 Diabetes | H83: Castleton Road Surgery | I83: F86642
A84: % Diabetes Register | B84: ="%"&B83 -> %LDP.04.13. Type 1 Diabetes | C84: % Diabetes Register | H84: Chadwell Heath Surgery | I84: F86028
A85: Type 2 Diabetes | B85: LDP.04.14. Type 2 Diabetes | C85: Type 2 Diabetes | H85: Grove Surgery | I85: Y00155
A86: % Diabetes Register | B86: ="%"&B85 -> %LDP.04.14. Type 2 Diabetes | C86: % Diabetes Register | H86: Broadway Surgery | I86: F86013
A87: No Type Recorded | B87: No Type Recorded | C87: No Type Recorded | H87: The Evergreen Practice | I87: F86023
A88: % Diabetes Register | B88: ="%"&B87 -> %No Type Recorded | C88: % Diabetes Register | H88: Wanstead Place Surgery | I88: F86032
A89: Type 2 diabetes excluding insulin prescriptions (last 15 m) | B89: LDP 04.14.01 Excl Insulin Prescription (12m) | C89: Type 2 diabetes excluding insulin prescriptions (last 15 m) | H89: Aldersbrook Medical Centre | I89: F86731
A90: % Type 2 Diabetes | B90: ="%"&B89 -> %LDP 04.14.01 Excl Insulin Prescription (12m) | C90: % Type 2 Diabetes | H90: Southdene Surgery | I90: F86066
A91: Newly Diagnosed Diabetes (Last 1m) | B91: LDP.04.19 Newly Diagnosed Diabetes (last 1m) | C91: Newly Diagnosed Diabetes (Last 1m) | H91: Shrubberies Medical Centre | I91: F86641
A92: Newly Diagnosed Diabetes - Type 1 | B92: LDP.04.19.01 Newly Diagnosed Type 1 | C92: Newly Diagnosed Diabetes - Type 1 | H92: Glebelands Practice | I92: F86020
A93: Newly Diagnosed Diabetes - Type 2 | B93: LDP.04.19.02 Newly Diagnosed Type 2 | C93: Newly Diagnosed Diabetes - Type 2 | H93: Elmhurst Practice | I93: F86064
A94: Newly Diagnosed Diabetes - Type Not Recorded | B94: ="%"&B93 -> %LDP.04.19.02 Newly Diagnosed Type 2 | C94: Newly Diagnosed Diabetes - Type Not Recorded | H94: Clayhall Clinic | I94: F86691
A95: Diabetics under 18 years old | B95: LDP.04.15 Diabetes (under 18) | C95: Diabetics under 18 years old | H95: Rydal Practice | I95: F86012
A96: Diabetics Under 18 with HbA1c ≤ 59 (last 12m) | B96: LDP.04.15.01 Diabetes HbA1C <=7.5% OR <=59mmol (12m) | C96: Diabetics Under 18 with HbA1c ≤ 59 (last 12m) | H96: Queen Mary Practice | I96: F86658
A97: % of Diabetics under 18 | B97: ="%"&B96 -> %LDP.04.15.01 Diabetes HbA1C <=7.5% OR <=59mmol (12m) | C97: % of Diabetics under 18 | H97: Ilford Medical Centre | I97: F86022
A98: No. of patients with diabetes diagnosed with CKD in the last 12m | B98: LDP.04.16 Diabetes and CKD Diagnosed (12m) | C98: No. of patients with diabetes diagnosed with CKD in the last 12m | H98: The Practice Loxford | I98: Y02987
A99: % Diabetes Register | B99: ="%"&B98 -> %LDP.04.16 Diabetes and CKD Diagnosed (12m) | C99: % Diabetes Register | H99: Mathukias Surgery | I99: F86692
A100: No. of patients with diabetes diagnosed with CHD and/or Stroke/TIA in the last 12 months | B100: LDP.04.17 Diabetes and Stroke or CHD Diagnosed (12m) | C100: No. of patients with diabetes diagnosed with CHD and/or Stroke/TIA in the last 12 months | H100: Ilford Lane Surgery | I100: F86082
A101: % Diabetes Register | B101: ="%"&B100 -> %LDP.04.17 Diabetes and Stroke or CHD Diagnosed (12m) | C101: % Diabetes Register | H101: Oak Tree Medical Practice | I101: F86025
A102: No. of patients with diabetes diagnosed with Depression in the last 12 months | B102: LDP.04.18 Diabetes and Depression (last 12m) | C102: No. of patients with diabetes diagnosed with Depression in the last 12 months | H102: Hainault Surgery | I102: F86085
A103: %Diabetes Register | B103: ="%"&B102 -> %LDP.04.18 Diabetes and Depression (last 12m) | C103: %Diabetes Register | H103: Fullwell Cross Medical Centre | I103: F86010
A104: No. of patients who have ever had gestational diabetes | B104: LDP.07 Gestational Diabetes | C104: No. of patients who have ever had gestational diabetes | H104: Newbury Group Practice | I104: F86060
A105: No. of patients who have ever had gestational diabetes who are also on diabetes register | B105: LDP.07.01 Diabetes dx after Gestational Diabetes | C105: No. of patients who have ever had gestational diabetes who are also on diabetes register | H105: Redbridge | I105: Total
A106: % of patients with gestational diabetes | B106: ="%"&B105 -> %LDP.07.01 Diabetes dx after Gestational Diabetes | C106: % of patients with gestational diabetes
B107: Mental Health
A108: SMI register (QOF) | B108: CSPMH.01 SMI Register | C108: SMI register (QOF) | D108: Mental Health register
A109: % list size | B109: ="%"&B108 -> %CSPMH.01 SMI Register | C109: % list size | D109: % list size
A110: No. of SMI Patients with smoking status recorded (last 12m) or never smoked | B110: CSPMH.01.02 Smoking Status Recorded (12m) | C110: No. of SMI Patients with smoking status recorded (last 12m) or never smoked | D110: No. of Mental Health Patients with smoking status recorded (last 12m) or never smoked
A111: % SMI Register | B111: ="%"&B110 -> %CSPMH.01.02 Smoking Status Recorded (12m) | C111: % SMI Register | D111: % Mental Health Register
A112: No. of SMI patients recorded as a Smoker | B112: CSPMH.01.02.01 Current Smoker (12m) | C112: No. of SMI patients recorded as a Smoker | D112: No. of Mental Health patients recorded as a Smoker
A113: % SMI Register | B113: ="%"&B112 -> %CSPMH.01.02.01 Current Smoker (12m) | C113: % SMI Register | D113: % Mental Health Register
A114: No. of SMI Patients who are current smokers & referred to the Stop Smoking Clinic | B114: CSPMH 01.02.01.01 Ref to clinic 12m | C114: No. of SMI Patients who are current smokers & referred to the Stop Smoking Clinic | D114: No. of Mental Health Patients who are current smokers & referred to the Stop Smoking Clinic
A115: % SMI Register | B115: ="%"&B114 -> %CSPMH 01.02.01.01 Ref to clinic 12m | C115: % SMI Register | D115: % Mental Health Register
A116: No. Of SMI Patients who are recorded as quitters | B116: CSPMH.01.02.02 Ex-smoker Recorded (latest 12m) | C116: No. Of SMI Patients who are recorded as quitters | D116: No. Of Mental Health Patients who are recorded as quitters
A117: % SMI Register | B117: ="%"&B116 -> %CSPMH.01.02.02 Ex-smoker Recorded (latest 12m) | C117: % SMI Register | D117: % Mental Health Register
A118: Patients with SMI with QRISK recorded in the last 12m | B118: CSPMH. 01.03 QRisk Recorded (12m) | C118: Patients with SMI with QRISK recorded in the last 12m | D118: Patients with Mental Health with QRISK recorded in the last 12m
A119: % SMI Register | B119: ="%"&B118 -> %CSPMH. 01.03 QRisk Recorded (12m) | C119: % SMI Register | D119: % Mental Health Register
A120: Patients with SMI with QRISK 20% or higher in the last 12m | B120: CSPMH. 01.03.02 Qrisk>=20 (12m) | C120: Patients with SMI with QRISK 20% or higher in the last 12m | D120: Patients with Mental Health with QRISK 20% or higher in the last 12m
A121: % patients with QRISK recorded 20% or higher | B121: ="%"&B120 -> %CSPMH. 01.03.02 Qrisk>=20 (12m) | C121: % patients with QRISK recorded 20% or higher | D121: % patients with QRISK recorded
A122: Patients with SMI with BP & QRisk on the same day in the last 12m | B122: CSPMH. 01.03.01 BP recorded on same day as QRisk (12m) | C122: Patients with SMI with BP & QRisk on the same day in the last 12m | D122: Patients with Mental Health with BP & QRisk on the same day in the last 12m
A123: % Patients with SMI with BP & QRisk on the same day in the last 12m | B123: ="%"&B122 -> %CSPMH. 01.03.01 BP recorded on same day as QRisk (12m) | C123: % Patients with SMI with BP & QRisk on the same day in the last 12m | D123: % Mental Health Register
B124: CKD
A125: No. of patients on CKD register | B125: LDP.08 CKD Register | C125: No. of patients on CKD register | D125: No. of patients on CKD register
A126: % List Size | B126: ="%"&B125 -> %LDP.08 CKD Register | C126: % List Size | D126: % List Size
A127: BP Recorded (last 12m) | B127: LDP.08.03 CKD and BP Recorded (last 12 m) | C127: BP Recorded (last 12m) | D127: BP Recorded (last 12m)
A128: % CKD register | B128: ="%"&B127 -> %LDP.08.03 CKD and BP Recorded (last 12 m) | C128: % CKD register | D128: % CKD register
A129: BP ≤ 140/90 | B129: LDP.08.01 CKD and BP less than 140/90 (last 12 m) | C129: BP ≤ 140/90 | D129: BP < 140/90
A130: % CKD register | B130: ="%"&B129 -> %LDP.08.01 CKD and BP less than 140/90 (last 12 m) | C130: % CKD register | D130: % CKD register
A131: No of patients with new diagnosis of CKD (last 6m) | B131: LDP.08.02 CKD Diagnosed (Last 6m) | C131: No of patients with new diagnosis of CKD (last 6m) | D131: No of patients with new diagnosis of CKD (last 6m)
A132: % CKD register | B132: ="%"&B131 -> %LDP.08.02 CKD Diagnosed (Last 6m) | C132: % CKD register | D132: % CKD register
B133: COPD
B134: LDP.09 COPD Register | C134: No. of patients on COPD register
B135: ="%"&B134 -> %LDP.09 COPD Register | C135: % List Size
B136: LDP.09.01 Patients with severe or very severe COPD (FEV1<50) | C136: No of patients with severe or very severe COPD (FEV1<50)
B137: ="%"&B136 -> %LDP.09.01 Patients with severe or very severe COPD (FEV1<50) | C137: % COPD register
B138: LDP.09.02 Patients with smoking status recorded (last 12m) or never smoked | C138: No. of COPD Patients with smoking status recorded (last 12m) or never smoked
B139: ="%"&B138 -> %LDP.09.02 Patients with smoking status recorded (last 12m) or never smoked | C139: % COPD
B140: LDP.09.03 COPD patients recorded as a Smoker | C140: No. of COPD patients recorded as a Smoker
B141: ="%"&B140 -> %LDP.09.03 COPD patients recorded as a Smoker | C141: % COPD
B142: LDP.09.04 COPD Patients who are current smokers & referred to the Stop Smoking C | C142: No. of COPD Patients who are current smokers & referred to the Stop Smoking Clinic (12m)
B143: ="%"&B142 -> %LDP.09.04 COPD Patients who are current smokers & referred to the Stop Smoking C | C143: % of current COPD smokers
B144: LDP.09.05 No of COPD with flu vaccination (From August 2018) | C144: No of COPD with flu vaccination (From August 2023)
B145: ="%"&B144 -> %LDP.09.05 No of COPD with flu vaccination (From August 2018) | C145: % of COPD register
B146: LDP.09.06 No of COPD with pneumococcal vaccination ever | C146: No of COPD with pneumococcal vaccination ever
B147: ="%"&B146 -> %LDP.09.06 No of COPD with pneumococcal vaccination ever | C147: % of COPD register
B148: LDP.09.07 No of COPD patients referred to pulmonary rehab ever | C148: No of COPD patients referred to pulmonary rehab ever
B149: ="%"&B148 -> %LDP.09.07 No of COPD patients referred to pulmonary rehab ever | C149: % of COPD register

Sheet General Health
C1: 01. Listsize | D1: =INDEX('Control Panel'!$B$3:$B$17,COLUMN(D1)-COLUMN($C$1)+1) -> LDP.01: Aged 16yrs+ | E1: =INDEX('Control Panel'!$B$3:$B$17,COLUMN(E1)-COLUMN($C$1)+1) -> %LDP.01: Aged 16yrs+ | F1: =INDEX('Control Panel'!$B$3:$B$17,COLUMN(F1)-COLUMN($C$1)+1) -> LDP.01.01: Obesity BMI recorded (last 12m) | G1: =INDEX('Control Panel'!$B$3:$B$17,COLUMN(G1)-COLUMN($C$1)+1) -> %LDP.01.01: Obesity BMI recorded (last 12m) | H1: =INDEX('Control Panel'!$B$3:$B$17,COLUMN(H1)-COLUMN($C$1)+1) -> LDP.01.01.02: Obesity BMI between 30-35 (last 12m) | I1: =INDEX('Control Panel'!$B$3:$B$17,COLUMN(I1)-COLUMN($C$1)+1) -> %LDP.01.01.02: Obesity BMI between 30-35 (last 12m) | J1: =INDEX('Control Panel'!$B$3:$B$17,COLUMN(J1)-COLUMN($C$1)+1) -> LDP.01.01.01: Obesity BMI more than or equal to 35 less than 40 (last 12m) | K1: =INDEX('Control Panel'!$B$3:$B$17,COLUMN(K1)-COLUMN($C$1)+1) -> %LDP.01.01.01: Obesity BMI more than or equal to 35 less than 40 (last 12m) | L1: =INDEX('Control Panel'!$B$3:$B$17,COLUMN(L1)-COLUMN($C$1)+1) -> LDP.01.01.03: Obesity BMI equal to or over 40 (last 12m) | M1: =INDEX('Control Panel'!$B$3:$B$17,COLUMN(M1)-COLUMN($C$1)+1) -> %LDP.01.01.03: Obesity BMI equal to or over 40 (last 12m) | N1: =INDEX('Control Panel'!$B$3:$B$17,COLUMN(N1)-COLUMN($C$1)+1) -> LDP.01.02: Smoking Status (last 12m) or Never Smoked (25yrs+) | O1: =INDEX('Control Panel'!$B$3:$B$17,COLUMN(O1)-COLUMN($C$1)+1) -> %LDP.01.02: Smoking Status (last 12m) or Never Smoked (25yrs+) | P1: =INDEX('Control Panel'!$B$3:$B$17,COLUMN(P1)-COLUMN($C$1)+1) -> LDP.01.03: Current Smoker (last 12m) | Q1: =INDEX('Control Panel'!$B$3:$B$17,COLUMN(Q1)-COLUMN($C$1)+1) -> %LDP.01.03: Current Smoker (last 12m)
C2: Redbridge - Practice Clinical Trends (LDP) Report
B3: =VLOOKUP(C3,'Control Panel'!O16:P27,2,FALSE) -> 2023-09-01 | C3: August 2023 | D3: =VLOOKUP(C3,'Control Panel'!O16:P27,2,FALSE) -> 2023-09-01
B4: 2019-07-01 | C4: ='Control Panel'!B2 -> General Health
A5: Home | B5: 2019-10-01 | C5: =VLOOKUP(C1,'Control Panel'!$B$3:$C$132,2,FALSE) -> List Size | D5: =VLOOKUP(D1,'Control Panel'!$B$3:$D$132,3,FALSE) -> Age 16+ | E5: =VLOOKUP(E1,'Control Panel'!$B$3:$D$132,3,FALSE) -> % list size | F5: =VLOOKUP(F1,'Control Panel'!$B$3:$D$132,3,FALSE) -> 16+ and BMI (last 12m) | G5: =VLOOKUP(G1,'Control Panel'!$B$3:$D$132,3,FALSE) -> % 16+ | H5: =VLOOKUP(H1,'Control Panel'!$B$3:$D$132,3,FALSE) -> BMI ≥30 & <35 | I5: =VLOOKUP(I1,'Control Panel'!$B$3:$D$132,3,FALSE) -> % 16+ | J5: =VLOOKUP(J1,'Control Panel'!$B$3:$D$132,3,FALSE) -> BMI ≥ 35 & <40 | K5: =VLOOKUP(K1,'Control Panel'!$B$3:$D$132,3,FALSE) -> %16+ | L5: =VLOOKUP(L1,'Control Panel'!$B$3:$D$132,3,FALSE) -> BMI ≥ 40 | M5: =VLOOKUP(M1,'Control Panel'!$B$3:$D$132,3,FALSE) -> %16+ | N5: =VLOOKUP(N1,'Control Panel'!$B$3:$D$132,3,FALSE) -> Smoking status (last 12m) incl. never smoked | O5: =VLOOKUP(O1,'Control Panel'!$B$3:$D$132,3,FALSE) -> % 16+ | P5: =VLOOKUP(P1,'Control Panel'!$B$3:$D$132,3,FALSE) -> Age 16+ and current smoker (last 12m) | Q5: =VLOOKUP(Q1,'Control Panel'!$B$3:$D$132,3,FALSE) -> % 16+
A6: Practice Name | C6: =SUM(C7:C48) -> 363151 | D6: =SUM(D7:D48) -> 290098 | E6: =IFERROR(D6/C6,"N/A") -> 0.799 | F6: =SUM(F7:F48) -> 86546 | G6: =IFERROR(F6/D6,"N/A") -> 0.298 | H6: =SUM(H7:H48) -> 15431 | I6: =IFERROR(H6/D6,"N/A") -> 0.053 | J6: =SUM(J7:J48) -> 5530 | K6: =IFERROR(J6/D6,"N/A") -> 0.019 | L6: =SUM(L7:L48) -> 3061 | M6: =IFERROR(L6/D6,"N/A") -> 0.011 | N6: =SUM(N7:N48) -> 194343 | O6: =IFERROR(N6/D6,"N/A") -> 0.67 | P6: =SUM(P7:P48) -> 11623 | Q6: =IFERROR(P6/D6,"N/A") -> 0.04
A7: Drive Surgery | B7: F86652 | C7: =SUMIFS(OFFSET(REL_D,,MATCH(C$1,IND,0)-2),REL_D,$D$3,OrgID,$B7) -> 7228 | D7: 5665 | E7: =IFERROR(D7/$C7,"N/A") -> 0.784 | F7: =SUMIFS(OFFSET(REL_D,,MATCH(F$1,IND,0)-2),REL_D,$D$3,OrgID,$B7) -> 2132 | G7: =IFERROR(F7/$D7,"N/A") -> 0.376 | H7: =SUMIFS(OFFSET(REL_D,,MATCH(H$1,IND,0)-2),REL_D,$D$3,OrgID,$B7) -> 363 | I7: =IFERROR(H7/$D7,"N/A") -> 0.064 | J7: =SUMIFS(OFFSET(REL_D,,MATCH(J$1,IND,0)-2),REL_D,$D$3,OrgID,$B7) -> 153 | K7: =IFERROR(J7/$D7,"N/A") -> 0.027 | L7: =SUMIFS(OFFSET(REL_D,,MATCH(L$1,IND,0)-2),REL_D,$D$3,OrgID,$B7) -> 71 | M7: =IFERROR(L7/$D7,"N/A") -> 0.013 | N7: =SUMIFS(OFFSET(REL_D,,MATCH(N$1,IND,0)-2),REL_D,$D$3,OrgID,$B7) -> 4177 | O7: =IFERROR(N7/$D7,"N/A") -> 0.737 | P7: =SUMIFS(OFFSET(REL_D,,MATCH(P$1,IND,0)-2),REL_D,$D$3,OrgID,$B7) -> 240 | Q7: =IFERROR(P7/$D7,"N/A") -> 0.042
A8: St Clements Surgery | B8: F86702 | C8: 5048 | D8: 3936 | E8: 0.78 | F8: 1177 | G8: 0.299 | H8: 240 | I8: 0.061 | J8: 88 | K8: 0.022 | L8: 54 | M8: 0.014 | N8: 2868 | O8: 0.729 | P8: 92 | Q8: 0.023
A9: Granville Medical Centre | B9: Y00918 | C9: 6679 | D9: 5344 | E9: 0.8 | F9: 2456 | G9: 0.46 | H9: 444 | I9: 0.083 | J9: 152 | K9: 0.028 | L9: 65 | M9: 0.012 | N9: 4219 | O9: 0.789 | P9: 265 | Q9: 0.05
A10: Balfour Road Surgery | B10: F86042 | C10: 6245 | D10: 4638 | E10: 0.743 | F10: 2203 | G10: 0.475 | H10: 384 | I10: 0.083 | J10: 111 | K10: 0.024 | L10: 42 | M10: 0.009 | N10: 3642 | O10: 0.785 | P10: 180 | Q10: 0.039
A11: Cranbrook Surgery | B11: F86698 | C11: 5622 | D11: 4458 | E11: 0.793 | F11: 2001 | G11: 0.449 | H11: 310 | I11: 0.07 | J11: 115 | K11: 0.026 | L11: 57 | M11: 0.013 | N11: 3450 | O11: 0.774 | P11: 185 | Q11: 0.041
A12: Gants Hill Medical Centre | B12: F86008 | C12: 11797 | D12: 9549 | E12: 0.809 | F12: 3543 | G12: 0.371 | H12: 589 | I12: 0.062 | J12: 180 | K12: 0.019 | L12: 97 | M12: 0.01 | N12: 7035 | O12: 0.737 | P12: 399 | Q12: 0.042
A13: Redbridge Surgery | B13: F86703 | C13: 3797 | D13: 3061 | E13: 0.806 | F13: 862 | G13: 0.282 | H13: 154 | I13: 0.05 | J13: 48 | K13: 0.016 | L13: 23 | M13: 0.008 | N13: 2166 | O13: 0.708 | P13: 61 | Q13: 0.02
A14: York Road Surgery | B14: F86657 | C14: 8388 | D14: 6888 | E14: 0.821 | F14: 1496 | G14: 0.217 | H14: 303 | I14: 0.044 | J14: 106 | K14: 0.015 | L14: 53 | M14: 0.008 | N14: 4390 | O14: 0.637 | P14: 323 | Q14: 0.047
A15: Kenwood Medical Centre | B15: F86081 | C15: 6613 | D15: 5348 | E15: 0.809 | F15: 1611 | G15: 0.301 | H15: 257 | I15: 0.048 | J15: 89 | K15: 0.017 | L15: 42 | M15: 0.008 | N15: 3938 | O15: 0.736 | P15: 159 | Q15: 0.03
A16: Eastern Avenue Medical Centre | B16: F86083 | C16: 6833 | D16: 5786 | E16: 0.847 | F16: 1469 | G16: 0.254 | H16: 273 | I16: 0.047 | J16: 83 | K16: 0.014 | L16: 31 | M16: 0.005 | N16: 4020 | O16: 0.695 | P16: 117 | Q16: 0.02
A17: Fullwell Avenue Surgery | B17: F86612 | C17: 3277 | D17: 2633 | E17: 0.803 | F17: 798 | G17: 0.303 | H17: 162 | I17: 0.062 | J17: 69 | K17: 0.026 | L17: 38 | M17: 0.014 | N17: 1811 | O17: 0.688 | P17: 100 | Q17: 0.038
A18: Heathcote Primary Care Centre | B18: F86624 | C18: 3154 | D18: 2602 | E18: 0.825 | F18: 814 | G18: 0.313 | H18: 153 | I18: 0.059 | J18: 65 | K18: 0.025 | L18: 29 | M18: 0.011 | N18: 1814 | O18: 0.697 | P18: 66 | Q18: 0.025
A19: Fencepiece Road Medical Practice | B19: F86707 | C19: 6718 | D19: 5333 | E19: 0.794 | F19: 1222 | G19: 0.229 | H19: 231 | I19: 0.043 | J19: 106 | K19: 0.02 | L19: 61 | M19: 0.011 | N19: 3491 | O19: 0.655 | P19: 208 | Q19: 0.039
A20: The Willows Practice | B20: F86057 | C20: 6626 | D20: 5315 | E20: 0.802 | F20: 1564 | G20: 0.294 | H20: 284 | I20: 0.053 | J20: 128 | K20: 0.024 | L20: 77 | M20: 0.014 | N20: 3534 | O20: 0.665 | P20: 320 | Q20: 0.06
A21: Forest Edge Practice | B21: F86007 | C21: 13721 | D21: 10754 | E21: 0.784 | F21: 3454 | G21: 0.321 | H21: 709 | I21: 0.066 | J21: 264 | K21: 0.025 | L21: 182 | M21: 0.017 | N21: 7218 | O21: 0.671 | P21: 749 | Q21: 0.07
A22: The Palms Medical Centre | B22: F86009 | C22: 7584 | D22: 6394 | E22: 0.843 | F22: 1404 | G22: 0.22 | H22: 261 | I22: 0.041 | J22: 96 | K22: 0.015 | L22: 65 | M22: 0.01 | N22: 4146 | O22: 0.648 | P22: 160 | Q22: 0.025
A23: Goodmayes Medical Centre | B23: F86087 | C23: 7567 | D23: 5976 | E23: 0.79 | F23: 1324 | G23: 0.222 | H23: 254 | I23: 0.043 | J23: 77 | K23: 0.013 | L23: 55 | M23: 0.009 | N23: 3905 | O23: 0.653 | P23: 190 | Q23: 0.032
A24: Seven Kings Practice | B24: F86637 | C24: =SUMIFS(OFFSET(REL_D,,MATCH(C$1,IND,0)-2),REL_D,$D$3,OrgID,$B24) -> 4880 | D24: 4001 | E24: 0.82 | F24: 1106 | G24: 0.276 | H24: 223 | I24: 0.056 | J24: 83 | K24: 0.021 | L24: 45 | M24: 0.011 | N24: 2783 | O24: 0.696 | P24: 132 | Q24: 0.033
A25: Doctor's House | B25: Y00090 | C25: 8256 | D25: 6570 | E25: 0.796 | F25: 2101 | G25: 0.32 | H25: 392 | I25: 0.06 | J25: 134 | K25: 0.02 | L25: 76 | M25: 0.012 | N25: 4685 | O25: 0.713 | P25: 338 | Q25: 0.051
A26: Green Lane, Goodmayes Medical practice | B26: F86034 | C26: 6605 | D26: 5171 | E26: 0.783 | F26: 1188 | G26: 0.23 | H26: 227 | I26: 0.044 | J26: 76 | K26: 0.015 | L26: 58 | M26: 0.011 | N26: 3432 | O26: 0.664 | P26: 213 | Q26: 0.041
A27: Castleton Road Surgery | B27: F86642 | C27: 5268 | D27: 4082 | E27: 0.775 | F27: 1138 | G27: 0.279 | H27: 197 | I27: 0.048 | J27: 90 | K27: 0.022 | L27: 48 | M27: 0.012 | N27: 2529 | O27: 0.62 | P27: 127 | Q27: 0.031
A28: Chadwell Heath Surgery | B28: F86028 | C28: 10745 | D28: 8152 | E28: 0.759 | F28: 2435 | G28: 0.299 | H28: 443 | I28: 0.054 | J28: 182 | K28: 0.022 | L28: 104 | M28: 0.013 | N28: 5508 | O28: 0.676 | P28: 279 | Q28: 0.034
A29: Grove Surgery | B29: Y00155 | C29: 10220 | D29: 7989 | E29: 0.782 | F29: 2749 | G29: 0.344 | H29: 467 | I29: 0.058 | J29: 139 | K29: 0.017 | L29: 96 | M29: 0.012 | N29: 5298 | O29: 0.663 | P29: 367 | Q29: 0.046
A30: Broadway Surgery | B30: F86013 | C30: 7105 | D30: 5837 | E30: 0.822 | F30: 2830 | G30: 0.485 | H30: 370 | I30: 0.063 | J30: 124 | K30: 0.021 | L30: 63 | M30: 0.011 | N30: 4050 | O30: 0.694 | P30: 284 | Q30: 0.049
A31: The Evergreen Practice | B31: F86023 | C31: 10069 | D31: 8325 | E31: 0.827 | F31: 2047 | G31: 0.246 | H31: 261 | I31: 0.031 | J31: 115 | K31: 0.014 | L31: 54 | M31: 0.006 | N31: 5880 | O31: 0.706 | P31: 297 | Q31: 0.036
A32: Wanstead Place Surgery | B32: F86032 | C32: 9218 | D32: 7474 | E32: 0.811 | F32: 1940 | G32: 0.26 | H32: 289 | I32: 0.039 | J32: 112 | K32: 0.015 | L32: 50 | M32: 0.007 | N32: 5037 | O32: 0.674 | P32: 191 | Q32: 0.026
A33: Aldersbrook Medical Centre | B33: F86731 | C33: 4644 | D33: 3669 | E33: =IFERROR(D33/$C33,"N/A") -> 0.79 | F33: 1127 | G33: =IFERROR(F33/$D33,"N/A") -> 0.307 | H33: 216 | I33: =IFERROR(H33/$D33,"N/A") -> 0.059 | J33: 82 | K33: =IFERROR(J33/$D33,"N/A") -> 0.022 | L33: 49 | M33: =IFERROR(L33/$D33,"N/A") -> 0.013 | N33: 2482 | O33: =IFERROR(N33/$D33,"N/A") -> 0.676 | P33: 161 | Q33: =IFERROR(P33/$D33,"N/A") -> 0.044
A34: Southdene Surgery | B34: F86066 | C34: 7974 | D34: 6479 | E34: 0.813 | F34: 1863 | G34: 0.288 | H34: 306 | I34: 0.047 | J34: 117 | K34: 0.018 | L34: 67 | M34: 0.01 | N34: 4543 | O34: 0.701 | P34: 264 | Q34: 0.041
A35: Shrubberies Medical Centre | B35: F86641 | C35: 8029 | D35: 6248 | E35: 0.778 | F35: 2036 | G35: 0.326 | H35: 312 | I35: 0.05 | J35: 115 | K35: 0.018 | L35: 56 | M35: 0.009 | N35: 4619 | O35: 0.739 | P35: 264 | Q35: 0.042
A36: Glebelands Practice | B36: F86020 | C36: 5909 | D36: 4866 | E36: =IFERROR(D36/$C36,"N/A") -> 0.823 | F36: 1590 | G36: =IFERROR(F36/$D36,"N/A") -> 0.327 | H36: 252 | I36: =IFERROR(H36/$D36,"N/A") -> 0.052 | J36: 93 | K36: =IFERROR(J36/$D36,"N/A") -> 0.019 | L36: 45 | M36: =IFERROR(L36/$D36,"N/A") -> 0.009 | N36: 3773 | O36: =IFERROR(N36/$D36,"N/A") -> 0.775 | P36: 195 | Q36: =IFERROR(P36/$D36,"N/A") -> 0.04
A37: Elmhurst Practice | B37: F86064 | C37: 4767 | D37: 3953 | E37: =IFERROR(D37/$C37,"N/A") -> 0.829 | F37: 1012 | G37: =IFERROR(F37/$D37,"N/A") -> 0.256 | H37: 176 | I37: =IFERROR(H37/$D37,"N/A") -> 0.045 | J37: 68 | K37: =IFERROR(J37/$D37,"N/A") -> 0.017 | L37: 34 | M37: =IFERROR(L37/$D37,"N/A") -> 0.009 | N37: 2753 | O37: =IFERROR(N37/$D37,"N/A") -> 0.696 | P37: 141 | Q37: =IFERROR(P37/$D37,"N/A") -> 0.036
A38: Clayhall Clinic | B38: F86691 | C38: =SUMIFS(OFFSET(REL_D,,MATCH(C$1,IND,0)-2),REL_D,$D$3,OrgID,$B38) -> 11031 | D38: 8877 | E38: 0.805 | F38: 3088 | G38: 0.348 | H38: 587 | I38: 0.066 | J38: 190 | K38: 0.021 | L38: 91 | M38: 0.01 | N38: 6233 | O38: 0.702 | P38: 472 | Q38: 0.053
A39: Rydal Practice | B39: F86012 | C39: 9470 | D39: 8081 | E39: 0.853 | F39: 2145 | G39: 0.265 | H39: 347 | I39: 0.043 | J39: 131 | K39: 0.016 | L39: 71 | M39: 0.009 | N39: 5673 | O39: 0.702 | P39: 253 | Q39: 0.031
A40: Queen Mary Practice | B40: F86658 | C40: 5745 | D40: 4519 | E40: 0.787 | F40: 1025 | G40: 0.227 | H40: 166 | I40: 0.037 | J40: 75 | K40: 0.017 | L40: 47 | M40: 0.01 | N40: 2848 | O40: 0.63 | P40: 130 | Q40: 0.029
A41: Ilford Medical Centre | B41: F86022 | C41: 14682 | D41: 11760 | E41: 0.801 | F41: 2957 | G41: 0.251 | H41: 486 | I41: 0.041 | J41: 191 | K41: 0.016 | L41: 95 | M41: 0.008 | N41: 7989 | O41: 0.679 | P41: 472 | Q41: 0.04
A42: The Practice Loxford | B42: Y02987 | C42: 31317 | D42: 24554 | E42: 0.784 | F42: 5083 | G42: 0.207 | H42: 1043 | I42: 0.042 | J42: 380 | K42: 0.015 | L42: 246 | M42: 0.01 | N42: 12343 | O42: 0.503 | P42: 909 | Q42: 0.037
A43: Mathukias Surgery | B43: F86692 | C43: 11026 | D43: 8383 | E43: =IFERROR(D43/$C43,"N/A") -> 0.76 | F43: 2633 | G43: =IFERROR(F43/$D43,"N/A") -> 0.314 | H43: 553 | I43: =IFERROR(H43/$D43,"N/A") -> 0.066 | J43: 181 | K43: =IFERROR(J43/$D43,"N/A") -> 0.022 | L43: 106 | M43: =IFERROR(L43/$D43,"N/A") -> 0.013 | N43: 5778 | O43: =IFERROR(N43/$D43,"N/A") -> 0.689 | P43: 270 | Q43: =IFERROR(P43/$D43,"N/A") -> 0.032
A44: Ilford Lane Surgery | B44: F86082 | C44: 6171 | D44: 5045 | E44: =IFERROR(D44/$C44,"N/A") -> 0.818 | F44: 2606 | G44: =IFERROR(F44/$D44,"N/A") -> 0.517 | H44: 528 | I44: =IFERROR(H44/$D44,"N/A") -> 0.105 | J44: 180 | K44: =IFERROR(J44/$D44,"N/A") -> 0.036 | L44: 88 | M44: =IFERROR(L44/$D44,"N/A") -> 0.017 | N44: 3523 | O44: =IFERROR(N44/$D44,"N/A") -> 0.698 | P44: 289 | Q44: =IFERROR(P44/$D44,"N/A") -> 0.057
A45: Oak Tree Medical Practice | B45: F86025 | C45: 17514 | D45: 13880 | E45: 0.793 | F45: 3949 | G45: 0.285 | H45: 723 | I45: 0.052 | J45: 230 | K45: 0.017 | L45: 123 | M45: 0.009 | N45: 8815 | O45: 0.635 | P45: 570 | Q45: 0.041
A46: Hainault Surgery | B46: F86085 | C46: 3496 | D46: 2858 | E46: 0.818 | F46: 946 | G46: 0.331 | H46: 145 | I46: 0.051 | J46: 64 | K46: 0.022 | L46: 45 | M46: 0.016 | N46: 1792 | O46: 0.627 | P46: 169 | Q46: 0.059
A47: Fullwell Cross Medical Centre | B47: F86010 | C47: 16139 | D47: 13080 | E47: 0.81 | F47: 3738 | G47: 0.286 | H47: 718 | I47: 0.055 | J47: 226 | K47: 0.017 | L47: 136 | M47: 0.01 | N47: 8094 | O47: 0.619 | P47: 630 | Q47: 0.048
A48: Newbury Group Practice | B48: F86060 | C48: 15974 | D48: 12565 | E48: 0.787 | F48: 3684 | G48: 0.293 | H48: 633 | I48: 0.05 | J48: 222 | K48: 0.018 | L48: 126 | M48: 0.01 | N48: 8059 | O48: 0.641 | P48: 392 | Q48: 0.031

Sheet Hypertension
C1: 01. Listsize | D1: =INDEX('Control Panel'!$B$19:$B$24,COLUMN(D1)-COLUMN($D$1)+1) -> LDP.02: Hypertension Register | E1: =INDEX('Control Panel'!$B$19:$B$24,COLUMN(E1)-COLUMN($D$1)+1) -> %LDP.02: Hypertension Register | F1: =INDEX('Control Panel'!$B$19:$B$24,COLUMN(F1)-COLUMN($D$1)+1) -> LDP.02.02: Hypertension BP recorded (last 12m) | G1: =INDEX('Control Panel'!$B$19:$B$24,COLUMN(G1)-COLUMN($D$1)+1) -> %LDP.02.02: Hypertension BP recorded (last 12m) | H1: =INDEX('Control Panel'!$B$19:$B$24,COLUMN(H1)-COLUMN($D$1)+1) -> LDP.02.01: Hypertension and BP < 140/90 (age under 80) < 150/90 (Age 80+) | I1: =INDEX('Control Panel'!$B$19:$B$24,COLUMN(I1)-COLUMN($D$1)+1) -> %LDP.02.01: Hypertension and BP < 140/90 (age under 80) < 150/90 (Age 80+)
C2: Redbridge - Practice Clinical Trends (LDP) Report
B3: =VLOOKUP(C3,'Control Panel'!O16:P27,2,FALSE) -> 2023-09-01 | C3: August 2023 | D3: =VLOOKUP(C3,'Control Panel'!O16:P27,2,FALSE) -> 2023-09-01
B4: 2019-07-01 | C4: ='Control Panel'!B18 -> Hypertension
A5: Home | B5: 2019-10-01 | C5: =VLOOKUP(C1,'Control Panel'!$B$3:$C$132,2,FALSE) -> List Size | D5: =VLOOKUP(D1,'Control Panel'!$B$3:$D$132,3,FALSE) -> Hypertension Register | E5: =VLOOKUP(E1,'Control Panel'!$B$3:$D$132,3,FALSE) -> % list size | F5: =VLOOKUP(F1,'Control Panel'!$B$3:$D$132,3,FALSE) -> Hypertension and BP (last 12m) | G5: =VLOOKUP(G1,'Control Panel'!$B$3:$D$132,3,FALSE) -> % Hypertension Register | H5: =VLOOKUP(H1,'Control Panel'!$B$3:$D$132,3,FALSE) -> Hypertension and BP < 140/90 (Patients aged under 80) < 150/90 ( Aged 80 and over) (last 12m) | I5: =VLOOKUP(I1,'Control Panel'!$B$3:$D$132,3,FALSE) -> % Hypertension Register
A6: Practice Name | C6: =SUM(C7:C48) -> 363151 | D6: =SUM(D7:D48) -> 42521 | E6: =IFERROR(D6/C6,"N/A") -> 0.117 | F6: =SUM(F7:F48) -> 35303 | G6: =IFERROR(F6/D6,"N/A") -> 0.83 | H6: =SUM(H7:H48) -> 24073 | I6: =IFERROR(H6/D6,"N/A") -> 0.566
A7: Drive Surgery | B7: F86652 | C7: =SUMIFS(OFFSET(REL_D,,MATCH(C$1,IND,0)-2),REL_D,$D$3,OrgID,$B7) -> 7228 | D7: 914 | E7: =IFERROR(D7/C7,"N/A") -> 0.126 | F7: =SUMIFS(OFFSET(REL_D,,MATCH(F$1,IND,0)-2),REL_D,$D$3,OrgID,$B7) -> 816 | G7: =IFERROR(F7/D7,"N/A") -> 0.893 | H7: =SUMIFS(OFFSET(REL_D,,MATCH(H$1,IND,0)-2),REL_D,$D$3,OrgID,$B7) -> 558 | I7: =IFERROR(H7/D7,"N/A") -> 0.611
A8: St Clements Surgery | B8: F86702 | C8: 5048 | D8: 677 | E8: 0.134 | F8: 624 | G8: 0.922 | H8: 391 | I8: 0.578
A9: Granville Medical Centre | B9: Y00918 | C9: 6679 | D9: 847 | E9: 0.127 | F9: 698 | G9: 0.824 | H9: 494 | I9: 0.583
A10: Balfour Road Surgery | B10: F86042 | C10: 6245 | D10: 645 | E10: 0.103 | F10: 558 | G10: 0.865 | H10: 455 | I10: 0.705
A11: Cranbrook Surgery | B11: F86698 | C11: 5622 | D11: 677 | E11: 0.12 | F11: 619 | G11: 0.914 | H11: 422 | I11: 0.623
A12: Gants Hill Medical Centre | B12: F86008 | C12: 11797 | D12: 1396 | E12: 0.118 | F12: 1195 | G12: 0.856 | H12: 803 | I12: 0.575
A13: Redbridge Surgery | B13: F86703 | C13: 3797 | D13: 540 | E13: 0.142 | F13: 423 | G13: 0.783 | H13: 288 | I13: 0.533
A14: York Road Surgery | B14: F86657 | C14: 8388 | D14: 800 | E14: 0.095 | F14: 648 | G14: 0.81 | H14: 502 | I14: 0.628
A15: Kenwood Medical Centre | B15: F86081 | C15: 6613 | D15: 975 | E15: 0.147 | F15: 814 | G15: 0.835 | H15: 558 | I15: 0.572
A16: Eastern Avenue Medical Centre | B16: F86083 | C16: 6833 | D16: 1141 | E16: 0.167 | F16: 850 | G16: 0.745 | H16: 616 | I16: 0.54
A17: Fullwell Avenue Surgery | B17: F86612 | C17: 3277 | D17: 501 | E17: 0.153 | F17: 370 | G17: 0.739 | H17: 258 | I17: 0.515
A18: Heathcote Primary Care Centre | B18: F86624 | C18: 3154 | D18: 406 | E18: 0.129 | F18: 367 | G18: 0.904 | H18: 276 | I18: 0.68
A19: Fencepiece Road Medical Practice | B19: F86707 | C19: 6718 | D19: 657 | E19: 0.098 | F19: 502 | G19: 0.764 | H19: 364 | I19: 0.554
A20: The Willows Practice | B20: F86057 | C20: 6626 | D20: 874 | E20: 0.132 | F20: 725 | G20: 0.83 | H20: 479 | I20: 0.548
A21: Forest Edge Practice | B21: F86007 | C21: 13721 | D21: 1852 | E21: 0.135 | F21: 1569 | G21: 0.847 | H21: 952 | I21: 0.514
A22: The Palms Medical Centre | B22: F86009 | C22: 7584 | D22: 962 | E22: 0.127 | F22: 695 | G22: 0.722 | H22: 461 | I22: 0.479
A23: Goodmayes Medical Centre | B23: F86087 | C23: 7567 | D23: 885 | E23: 0.117 | F23: 753 | G23: 0.851 | H23: 515 | I23: 0.582
A24: Seven Kings Practice | B24: F86637 | C24: =SUMIFS(OFFSET(REL_D,,MATCH(C$1,IND,0)-2),REL_D,$D$3,OrgID,$B24) -> 4880 | D24: 630 | E24: 0.129 | F24: 536 | G24: 0.851 | H24: 375 | I24: 0.595
A25: Doctor's House | B25: Y00090 | C25: 8256 | D25: 1041 | E25: 0.126 | F25: 848 | G25: 0.815 | H25: 622 | I25: 0.598
A26: Green Lane, Goodmayes Medical practice | B26: F86034 | C26: 6605 | D26: 803 | E26: 0.122 | F26: 700 | G26: 0.872 | H26: 472 | I26: 0.588
A27: Castleton Road Surgery | B27: F86642 | C27: 5268 | D27: 544 | E27: 0.103 | F27: 494 | G27: 0.908 | H27: 362 | I27: 0.665
A28: Chadwell Heath Surgery | B28: F86028 | C28: 10745 | D28: 1181 | E28: 0.11 | F28: 970 | G28: 0.821 | H28: 589 | I28: 0.499
A29: Grove Surgery | B29: Y00155 | C29: 10220 | D29: 964 | E29: 0.094 | F29: 781 | G29: 0.81 | H29: 501 | I29: 0.52
A30: Broadway Surgery | B30: F86013 | C30: 7105 | D30: 742 | E30: 0.104 | F30: 633 | G30: 0.853 | H30: 467 | I30: 0.629
A31: The Evergreen Practice | B31: F86023 | C31: 10069 | D31: 1407 | E31: 0.14 | F31: 1064 | G31: 0.756 | H31: 686 | I31: 0.488
A32: Wanstead Place Surgery | B32: F86032 | C32: 9218 | D32: 1270 | E32: 0.138 | F32: 889 | G32: 0.7 | H32: 559 | I32: 0.44
A33: Aldersbrook Medical Centre | B33: F86731 | C33: 4644 | D33: 559 | E33: 0.12 | F33: 495 | G33: 0.886 | H33: 339 | I33: 0.606
A34: Southdene Surgery | B34: F86066 | C34: 7974 | D34: 946 | E34: 0.119 | F34: 820 | G34: 0.867 | H34: 569 | I34: 0.601
A35: Shrubberies Medical Centre | B35: F86641 | C35: 8029 | D35: 808 | E35: 0.101 | F35: 732 | G35: 0.906 | H35: 526 | I35: 0.651
A36: Glebelands Practice | B36: F86020 | C36: 5909 | D36: 858 | E36: 0.145 | F36: 749 | G36: 0.873 | H36: 494 | I36: 0.576
A37: Elmhurst Practice | B37: F86064 | C37: 4767 | D37: 681 | E37: =IFERROR(D37/C37,"N/A") -> 0.143 | F37: 570 | G37: =IFERROR(F37/D37,"N/A") -> 0.837 | H37: 366 | I37: =IFERROR(H37/D37,"N/A") -> 0.537
A38: Clayhall Clinic | B38: F86691 | C38: =SUMIFS(OFFSET(REL_D,,MATCH(C$1,IND,0)-2),REL_D,$D$3,OrgID,$B38) -> 11031 | D38: 1705 | E38: 0.155 | F38: 1343 | G38: 0.788 | H38: 929 | I38: 0.545
A39: Rydal Practice | B39: F86012 | C39: 9470 | D39: 1364 | E39: 0.144 | F39: 1199 | G39: 0.879 | H39: 715 | I39: 0.524
A40: Queen Mary Practice | B40: F86658 | C40: 5745 | D40: 628 | E40: 0.109 | F40: 460 | G40: 0.732 | H40: 310 | I40: 0.494
A41: Ilford Medical Centre | B41: F86022 | C41: 14682 | D41: 1742 | E41: =IFERROR(D41/C41,"N/A") -> 0.119 | F41: 1362 | G41: =IFERROR(F41/D41,"N/A") -> 0.782 | H41: 1017 | I41: =IFERROR(H41/D41,"N/A") -> 0.584
A42: The Practice Loxford | B42: Y02987 | C42: 31317 | D42: 2402 | E42: =IFERROR(D42/C42,"N/A") -> 0.077 | F42: 1984 | G42: =IFERROR(F42/D42,"N/A") -> 0.826 | H42: 1382 | I42: =IFERROR(H42/D42,"N/A") -> 0.575
A43: Mathukias Surgery | B43: F86692 | C43: 11026 | D43: 1221 | E43: =IFERROR(D43/C43,"N/A") -> 0.111 | F43: 1038 | G43: =IFERROR(F43/D43,"N/A") -> 0.85 | H43: 700 | I43: =IFERROR(H43/D43,"N/A") -> 0.573
A44: Ilford Lane Surgery | B44: F86082 | C44: 6171 | D44: 866 | E44: =IFERROR(D44/C44,"N/A") -> 0.14 | F44: 789 | G44: =IFERROR(F44/D44,"N/A") -> 0.911 | H44: 617 | I44: =IFERROR(H44/D44,"N/A") -> 0.712
A45: Oak Tree Medical Practice | B45: F86025 | C45: 17514 | D45: 1597 | E45: 0.091 | F45: 1302 | G45: 0.815 | H45: 833 | I45: 0.522
A46: Hainault Surgery | B46: F86085 | C46: 3496 | D46: 373 | E46: 0.107 | F46: 333 | G46: 0.893 | H46: 214 | I46: 0.574
A47: Fullwell Cross Medical Centre | B47: F86010 | C47: 16139 | D47: 1769 | E47: 0.11 | F47: 1567 | G47: 0.886 | H47: 1084 | I47: 0.613
A48: Newbury Group Practice | B48: F86060 | C48: 15974 | D48: 1671 | E48: 0.105 | F48: 1419 | G48: 0.849 | H48: 953 | I48: 0.57

Sheet CHD
C1: 01. Listsize | D1: =INDEX('Control Panel'!$B$26:$B$39,COLUMN(D1)-COLUMN($D$1)+1) -> LDP.03: CHD Register | E1: =INDEX('Control Panel'!$B$26:$B$39,COLUMN(E1)-COLUMN($D$1)+1) -> %LDP.03: CHD Register | F1: =INDEX('Control Panel'!$B$26:$B$39,COLUMN(F1)-COLUMN($D$1)+1) -> LDP.03.04: CHD Cholesterol recorded (last 12m) | G1: =INDEX('Control Panel'!$B$26:$B$39,COLUMN(G1)-COLUMN($D$1)+1) -> %LDP.03.04: CHD Cholesterol recorded (last 12m) | H1: =INDEX('Control Panel'!$B$26:$B$39,COLUMN(H1)-COLUMN($D$1)+1) -> LDP.03.01: CHD Chol less than 5mmol (last 12m) | I1: =INDEX('Control Panel'!$B$26:$B$39,COLUMN(I1)-COLUMN($D$1)+1) -> %LDP.03.01: CHD Chol less than 5mmol (last 12m) | J1: =INDEX('Control Panel'!$B$26:$B$39,COLUMN(J1)-COLUMN($D$1)+1) -> LDP.03.02: CHD BP less than or equal 150/90 (last 9m) | K1: =INDEX('Control Panel'!$B$26:$B$39,COLUMN(K1)-COLUMN($D$1)+1) -> %LDP.03.02: CHD BP less than or equal 150/90 (last 9m)
C2: Redbridge - Practice Clinical Trends (LDP) Report
B3: =VLOOKUP(C3,'Control Panel'!O16:P27,2,FALSE) -> 2023-09-01 | C3: August 2023 | D3: =VLOOKUP(C3,'Control Panel'!O16:P27,2,FALSE) -> 2023-09-01
B4: 2019-07-01 | C4: ='Control Panel'!B25 -> CHD
A5: Home | B5: 2019-10-01 | C5: =VLOOKUP(C1,'Control Panel'!$B$3:$C$132,2,FALSE) -> List Size | D5: =VLOOKUP(D1,'Control Panel'!$B$3:$D$132,3,FALSE) -> CHD register | E5: =VLOOKUP(E1,'Control Panel'!$B$3:$D$132,3,FALSE) -> % list size | F5: =VLOOKUP(F1,'Control Panel'!$B$3:$D$132,3,FALSE) -> Cholesterol (last 12m) | G5: =VLOOKUP(G1,'Control Panel'!$B$3:$D$132,3,FALSE) -> % CHD register | H5: =VLOOKUP(H1,'Control Panel'!$B$3:$D$132,3,FALSE) -> Cholesterol < 5 (last 12m) | I5: =VLOOKUP(I1,'Control Panel'!$B$3:$D$132,3,FALSE) -> % CHD register | J5: =VLOOKUP(J1,'Control Panel'!$B$3:$D$132,3,FALSE) -> BP ≤ 150/90 (last 12m) | K5: =VLOOKUP(K1,'Control Panel'!$B$3:$D$132,3,FALSE) -> % CHD register
A6: Practice Name | C6: =SUM(C7:C48) -> 363151 | D6: =SUM(D7:D48) -> 7741 | E6: =IFERROR(D6/C6,"N/A") -> 0.021 | F6: =SUM(F7:F48) -> 1245 | G6: =IFERROR(F6/D6,"N/A") -> 0.161 | H6: =SUM(H7:H48) -> 1045 | I6: =IFERROR(H6/D6,"N/A") -> 0.135 | J6: =SUM(J7:J48) -> 4560 | K6: =IFERROR(J6/D6,"N/A") -> 0.589
A7: Drive Surgery | B7: F86652 | C7: =SUMIFS(OFFSET(REL_D,,MATCH(C$1,IND,0)-2),REL_D,$D$3,OrgID,$B7) -> 7228 | D7: 209 | E7: =IFERROR(D7/C7,"N/A") -> 0.029 | F7: =SUMIFS(OFFSET(REL_D,,MATCH(F$1,IND,0)-2),REL_D,$D$3,OrgID,$B7) -> 11 | G7: =IFERROR(F7/$D7,"N/A") -> 0.053 | H7: =SUMIFS(OFFSET(REL_D,,MATCH(H$1,IND,0)-2),REL_D,$D$3,OrgID,$B7) -> 11 | I7: =IFERROR(H7/$D7,"N/A") -> 0.053 | J7: =SUMIFS(OFFSET(REL_D,,MATCH(J$1,IND,0)-2),REL_D,$D$3,OrgID,$B7) -> 135 | K7: =IFERROR(J7/$D7,"N/A") -> 0.646
A8: St Clements Surgery | B8: F86702 | C8: 5048 | D8: 126 | E8: 0.025 | F8: 5 | G8: 0.04 | H8: 4 | I8: 0.032 | J8: 72 | K8: 0.571
A9: Granville Medical Centre | B9: Y00918 | C9: 6679 | D9: 214 | E9: 0.032 | F9: 3 | G9: 0.014 | H9: 2 | I9: 0.009 | J9: 138 | K9: 0.645
A10: Balfour Road Surgery | B10: F86042 | C10: 6245 | D10: 84 | E10: 0.013 | F10: 1 | G10: 0.012 | H10: 1 | I10: 0.012 | J10: 63 | K10: 0.75
A11: Cranbrook Surgery | B11: F86698 | C11: 5622 | D11: 128 | E11: 0.023 | F11: 11 | G11: 0.086 | H11: 10 | I11: 0.078 | J11: 78 | K11: 0.609
A12: Gants Hill Medical Centre | B12: F86008 | C12: 11797 | D12: 275 | E12: 0.023 | F12: 19 | G12: 0.069 | H12: 16 | I12: 0.058 | J12: 164 | K12: 0.596
A13: Redbridge Surgery | B13: F86703 | C13: 3797 | D13: 90 | E13: 0.024 | F13: 1 | G13: 0.011 | H13: 1 | I13: 0.011 | J13: 55 | K13: 0.611
A14: York Road Surgery | B14: F86657 | C14: 8388 | D14: 135 | E14: 0.016 | F14: 1 | G14: 0.007 | H14: 0 | I14: 0 | J14: 79 | K14: 0.585
A15: Kenwood Medical Centre | B15: F86081 | C15: 6613 | D15: 161 | E15: 0.024 | F15: 11 | G15: 0.068 | H15: 11 | I15: 0.068 | J15: 96 | K15: 0.596
A16: Eastern Avenue Medical Centre | B16: F86083 | C16: 6833 | D16: 243 | E16: 0.036 | F16: 12 | G16: 0.049 | H16: 11 | I16: 0.045 | J16: 162 | K16: 0.667
A17: Fullwell Avenue Surgery | B17: F86612 | C17: 3277 | D17: 94 | E17: 0.029 | F17: 6 | G17: 0.064 | H17: 5 | I17: 0.053 | J17: 56 | K17: 0.596
A18: Heathcote Primary Care Centre | B18: F86624 | C18: 3154 | D18: 77 | E18: 0.024 | F18: 11 | G18: 0.143 | H18: 10 | I18: 0.13 | J18: 42 | K18: 0.545
A19: Fencepiece Road Medical Practice | B19: F86707 | C19: 6718 | D19: 142 | E19: 0.021 | F19: 9 | G19: 0.063 | H19: 6 | I19: 0.042 | J19: 90 | K19: 0.634
A20: The Willows Practice | B20: F86057 | C20: 6626 | D20: 194 | E20: 0.029 | F20: 12 | G20: 0.062 | H20: 8 | I20: 0.041 | J20: 109 | K20: 0.562
A21: Forest Edge Practice | B21: F86007 | C21: 13721 | D21: 284 | E21: 0.021 | F21: 13 | G21: 0.046 | H21: 9 | I21: 0.032 | J21: 169 | K21: 0.595
A22: The Palms Medical Centre | B22: F86009 | C22: 7584 | D22: 160 | E22: 0.021 | F22: 1 | G22: 0.006 | H22: 1 | I22: 0.006 | J22: 97 | K22: 0.606
A23: Goodmayes Medical Centre | B23: F86087 | C23: 7567 | D23: 150 | E23: 0.02 | F23: 7 | G23: 0.047 | H23: 7 | I23: 0.047 | J23: 94 | K23: 0.627
A24: Seven Kings Practice | B24: F86637 | C24: =SUMIFS(OFFSET(REL_D,,MATCH(C$1,IND,0)-2),REL_D,$D$3,OrgID,$B24) -> 4880 | D24: 132 | E24: 0.027 | F24: 4 | G24: 0.03 | H24: 4 | I24: 0.03 | J24: 88 | K24: 0.667
A25: Doctor's House | B25: Y00090 | C25: 8256 | D25: 210 | E25: 0.025 | F25: 5 | G25: 0.024 | H25: 5 | I25: 0.024 | J25: 120 | K25: 0.571
A26: Green Lane, Goodmayes Medical practice | B26: F86034 | C26: 6605 | D26: 166 | E26: 0.025 | F26: 5 | G26: 0.03 | H26: 2 | I26: 0.012 | J26: 107 | K26: 0.645
A27: Castleton Road Surgery | B27: F86642 | C27: 5268 | D27: 102 | E27: 0.019 | F27: 0 | G27: 0 | H27: 0 | I27: 0 | J27: 77 | K27: 0.755
A28: Chadwell Heath Surgery | B28: F86028 | C28: 10745 | D28: 191 | E28: 0.018 | F28: 1 | G28: 0.005 | H28: 1 | I28: 0.005 | J28: 103 | K28: 0.539
A29: Grove Surgery | B29: Y00155 | C29: 10220 | D29: 135 | E29: 0.013 | F29: 1 | G29: 0.007 | H29: 1 | I29: 0.007 | J29: 81 | K29: 0.6
A30: Broadway Surgery | B30: F86013 | C30: 7105 | D30: 133 | E30: 0.019 | F30: 78 | G30: 0.586 | H30: 67 | I30: 0.504 | J30: 64 | K30: 0.481
A31: The Evergreen Practice | B31: F86023 | C31: 10069 | D31: 205 | E31: 0.02 | F31: 134 | G31: 0.654 | H31: 114 | I31: 0.556 | J31: 92 | K31: 0.449
A32: Wanstead Place Surgery | B32: F86032 | C32: 9218 | D32: 246 | E32: 0.027 | F32: 143 | G32: 0.581 | H32: 118 | I32: 0.48 | J32: 95 | K32: 0.386
A33: Aldersbrook Medical Centre | B33: F86731 | C33: 4644 | D33: 92 | E33: 0.02 | F33: 71 | G33: 0.772 | H33: 58 | I33: 0.63 | J33: 58 | K33: 0.63
A34: Southdene Surgery | B34: F86066 | C34: 7974 | D34: 152 | E34: 0.019 | F34: 110 | G34: 0.724 | H34: 96 | I34: 0.632 | J34: 87 | K34: 0.572
A35: Shrubberies Medical Centre | B35: F86641 | C35: 8029 | D35: 130 | E35: 0.016 | F35: 102 | G35: 0.785 | H35: 77 | I35: 0.592 | J35: 89 | K35: 0.685
A36: Glebelands Practice | B36: F86020 | C36: 5909 | D36: 131 | E36: =IFERROR(D36/C36,"N/A") -> 0.022 | F36: 90 | G36: =IFERROR(F36/$D36,"N/A") -> 0.687 | H36: 77 | I36: =IFERROR(H36/$D36,"N/A") -> 0.588 | J36: 72 | K36: 0.55
A37: Elmhurst Practice | B37: F86064 | C37: 4767 | D37: 97 | E37: =IFERROR(D37/C37,"N/A") -> 0.02 | F37: 46 | G37: =IFERROR(F37/$D37,"N/A") -> 0.474 | H37: 40 | I37: =IFERROR(H37/$D37,"N/A") -> 0.412 | J37: 55 | K37: =IFERROR(J37/$D37,"N/A") -> 0.567
A38: Clayhall Clinic | B38: F86691 | C38: =SUMIFS(OFFSET(REL_D,,MATCH(C$1,IND,0)-2),REL_D,$D$3,OrgID,$B38) -> 11031 | D38: 300 | E38: 0.027 | F38: 87 | G38: 0.29 | H38: 72 | I38: 0.24 | J38: 155 | K38: 0.517
A39: Rydal Practice | B39: F86012 | C39: 9470 | D39: 253 | E39: 0.027 | F39: 126 | G39: 0.498 | H39: 111 | I39: 0.439 | J39: 128 | K39: 0.506
A40: Queen Mary Practice | B40: F86658 | C40: 5745 | D40: 98 | E40: 0.017 | F40: 6 | G40: 0.061 | H40: 5 | I40: 0.051 | J40: 45 | K40: 0.459
A41: Ilford Medical Centre | B41: F86022 | C41: 14682 | D41: 324 | E41: 0.022 | F41: 5 | G41: 0.015 | H41: 4 | I41: 0.012 | J41: 182 | K41: 0.562
A42: The Practice Loxford | B42: Y02987 | C42: 31317 | D42: 344 | E42: =IFERROR(D42/C42,"N/A") -> 0.011 | F42: 18 | G42: =IFERROR(F42/$D42,"N/A") -> 0.052 | H42: 16 | I42: =IFERROR(H42/$D42,"N/A") -> 0.047 | J42: 203 | K42: =IFERROR(J42/$D42,"N/A") -> 0.59
A43: Mathukias Surgery | B43: F86692 | C43: 11026 | D43: 248 | E43: =IFERROR(D43/C43,"N/A") -> 0.022 | F43: 46 | G43: =IFERROR(F43/$D43,"N/A") -> 0.185 | H43: 38 | I43: =IFERROR(H43/$D43,"N/A") -> 0.153 | J43: 170 | K43: =IFERROR(J43/$D43,"N/A") -> 0.685
A44: Ilford Lane Surgery | B44: F86082 | C44: 6171 | D44: 169 | E44: =IFERROR(D44/C44,"N/A") -> 0.027 | F44: 0 | G44: =IFERROR(F44/$D44,"N/A") -> 0 | H44: 0 | I44: =IFERROR(H44/$D44,"N/A") -> 0 | J44: 117 | K44: =IFERROR(J44/$D44,"N/A") -> 0.692
A45: Oak Tree Medical Practice | B45: F86025 | C45: 17514 | D45: 338 | E45: 0.019 | F45: 12 | G45: 0.036 | H45: 9 | I45: 0.027 | J45: 207 | K45: 0.612
A46: Hainault Surgery | B46: F86085 | C46: 3496 | D46: 79 | E46: 0.023 | F46: 5 | G46: 0.063 | H46: 5 | I46: 0.063 | J46: 53 | K46: 0.671
A47: Fullwell Cross Medical Centre | B47: F86010 | C47: 16139 | D47: 373 | E47: 0.023 | F47: 8 | G47: 0.021 | H47: 5 | I47: 0.013 | J47: 219 | K47: 0.587
A48: Newbury Group Practice | B48: F86060 | C48: 15974 | D48: 327 | E48: 0.02 | F48: 8 | G48: 0.024 | H48: 7 | I48: 0.021 | J48: 194 | K48: 0.593

Sheet Stroke
C1: 01. Listsize | D1: LDP.10 Stroke or TIA register | E1: %LDP.10 Stroke or TIA register | F1: LDP.10.01: Stroke/TIA BP recorded (last 12m) | G1: %LDP.10.01: Stroke/TIA BP recorded (last 12m) | H1: LDP.10.02 Patients on Stroke/TIA register with BP <140/90 (12m) | I1: %LDP.10.02 Patients on Stroke/TIA register with BP <140/90 (12m)
C2: Redbridge - Practice Clinical Trends (LDP) Report
B3: =VLOOKUP(C3,'Control Panel'!O16:P27,2,FALSE) -> 2023-09-01 | C3: August 2023 | D3: =VLOOKUP(C3,'Control Panel'!O16:P27,2,FALSE) -> 2023-09-01
B4: 2019-07-01 | C4: ='Control Panel'!B41 -> Stroke/TIA
A5: Home | B5: 2019-10-01 | C5: =VLOOKUP(C1,'Control Panel'!$B$3:$C$132,2,FALSE) -> List Size | D5: =VLOOKUP(D1,'Control Panel'!$B$3:$D$132,3,FALSE) -> Stroke/TIA register | E5: =VLOOKUP(E1,'Control Panel'!$B$3:$D$132,3,FALSE) -> % list size | F5: =VLOOKUP(F1,'Control Panel'!$B$3:$D$132,3,FALSE) -> Patients on Stroke/TIA register with BP recorded | G5: =VLOOKUP(G1,'Control Panel'!$B$3:$D$132,3,FALSE) -> % of stroke register | H5: =VLOOKUP(H1,'Control Panel'!$B$3:$D$132,3,FALSE) -> Patients on Stroke/TIA register with BP <140/90 (12m) | I5: =VLOOKUP(I1,'Control Panel'!$B$3:$D$132,3,FALSE) -> % of stroke register
A6: Practice Name | C6: =SUM(C7:C48) -> 363151 | D6: =SUM(D7:D48) -> 3839 | E6: =IFERROR(D6/C6,"N/A") -> 0.011 | F6: =SUM(F7:F48) -> 3262 | G6: =IFERROR(F6/D6,"N/A") -> 0.85 | H6: =SUM(H7:H48) -> 2423 | I6: =IFERROR(H6/D6,"N/A") -> 0.631
A7: Drive Surgery | B7: F86652 | C7: =SUMIFS(OFFSET(REL_D,,MATCH(C$1,IND,0)-2),REL_D,$D$3,OrgID,$B7) -> 7228 | D7: 86 | E7: =IFERROR(D7/C7,"N/A") -> 0.012 | F7: =SUMIFS(OFFSET(REL_D,,MATCH(F$1,IND,0)-2),REL_D,$D$3,OrgID,$B7) -> 81 | G7: =IFERROR(F7/D7,"N/A") -> 0.942 | H7: =SUMIFS(OFFSET(REL_D,,MATCH(H$1,IND,0)-2),REL_D,$D$3,OrgID,$B7) -> 58 | I7: =IFERROR(H7/D7,"N/A") -> 0.674
A8: St Clements Surgery | B8: F86702 | C8: 5048 | D8: 64 | E8: 0.013 | F8: 60 | G8: 0.938 | H8: 44 | I8: 0.688
A9: Granville Medical Centre | B9: Y00918 | C9: 6679 | D9: 80 | E9: 0.012 | F9: 72 | G9: 0.9 | H9: 52 | I9: 0.65
A10: Balfour Road Surgery | B10: F86042 | C10: 6245 | D10: 38 | E10: 0.006 | F10: 35 | G10: 0.921 | H10: 32 | I10: 0.842
A11: Cranbrook Surgery | B11: F86698 | C11: 5622 | D11: 43 | E11: 0.008 | F11: 40 | G11: 0.93 | H11: 36 | I11: 0.837
A12: Gants Hill Medical Centre | B12: F86008 | C12: 11797 | D12: 118 | E12: 0.01 | F12: 111 | G12: 0.941 | H12: 85 | I12: 0.72
A13: Redbridge Surgery | B13: F86703 | C13: 3797 | D13: 46 | E13: 0.012 | F13: 44 | G13: 0.957 | H13: 26 | I13: 0.565
A14: York Road Surgery | B14: F86657 | C14: 8388 | D14: 55 | E14: 0.007 | F14: 50 | G14: 0.909 | H14: 35 | I14: 0.636
A15: Kenwood Medical Centre | B15: F86081 | C15: 6613 | D15: 64 | E15: 0.01 | F15: 56 | G15: 0.875 | H15: 44 | I15: 0.688
A16: Eastern Avenue Medical Centre | B16: F86083 | C16: 6833 | D16: 81 | E16: 0.012 | F16: 72 | G16: 0.889 | H16: 52 | I16: 0.642
A17: Fullwell Avenue Surgery | B17: F86612 | C17: 3277 | D17: 52 | E17: 0.016 | F17: 38 | G17: 0.731 | H17: 29 | I17: 0.558
A18: Heathcote Primary Care Centre | B18: F86624 | C18: 3154 | D18: 36 | E18: 0.011 | F18: 30 | G18: 0.833 | H18: 29 | I18: 0.806
A19: Fencepiece Road Medical Practice | B19: F86707 | C19: 6718 | D19: 41 | E19: 0.006 | F19: 32 | G19: 0.78 | H19: 27 | I19: 0.659
A20: The Willows Practice | B20: F86057 | C20: 6626 | D20: 82 | E20: 0.012 | F20: 67 | G20: 0.817 | H20: 47 | I20: 0.573
A21: Forest Edge Practice | B21: F86007 | C21: 13721 | D21: 178 | E21: 0.013 | F21: 161 | G21: 0.904 | H21: 112 | I21: 0.629
A22: The Palms Medical Centre | B22: F86009 | C22: 7584 | D22: 71 | E22: 0.009 | F22: 55 | G22: 0.775 | H22: 43 | I22: 0.606
A23: Goodmayes Medical Centre | B23: F86087 | C23: 7567 | D23: 55 | E23: 0.007 | F23: 48 | G23: 0.873 | H23: 33 | I23: 0.6
A24: Seven Kings Practice | B24: F86637 | C24: =SUMIFS(OFFSET(REL_D,,MATCH(C$1,IND,0)-2),REL_D,$D$3,OrgID,$B24) -> 4880 | D24: 91 | E24: 0.019 | F24: 74 | G24: 0.813 | H24: 63 | I24: 0.692
A25: Doctor's House | B25: Y00090 | C25: 8256 | D25: 110 | E25: 0.013 | F25: 92 | G25: 0.836 | H25: 72 | I25: 0.655
A26: Green Lane, Goodmayes Medical practice | B26: F86034 | C26: 6605 | D26: 64 | E26: 0.01 | F26: 55 | G26: 0.859 | H26: 39 | I26: 0.609
A27: Castleton Road Surgery | B27: F86642 | C27: 5268 | D27: 44 | E27: 0.008 | F27: 41 | G27: 0.932 | H27: 30 | I27: 0.682
A28: Chadwell Heath Surgery | B28: F86028 | C28: 10745 | D28: 111 | E28: 0.01 | F28: 82 | G28: 0.739 | H28: 57 | I28: 0.514
A29: Grove Surgery | B29: Y00155 | C29: 10220 | D29: 88 | E29: 0.009 | F29: 68 | G29: 0.773 | H29: 45 | I29: 0.511
A30: Broadway Surgery | B30: F86013 | C30: 7105 | D30: 91 | E30: 0.013 | F30: 70 | G30: 0.769 | H30: 51 | I30: 0.56
A31: The Evergreen Practice | B31: F86023 | C31: 10069 | D31: 163 | E31: 0.016 | F31: 129 | G31: 0.791 | H31: 104 | I31: 0.638
A32: Wanstead Place Surgery | B32: F86032 | C32: 9218 | D32: 139 | E32: 0.015 | F32: 107 | G32: 0.77 | H32: 82 | I32: 0.59
A33: Aldersbrook Medical Centre | B33: F86731 | C33: 4644 | D33: 68 | E33: 0.015 | F33: 63 | G33: 0.926 | H33: 51 | I33: 0.75
A34: Southdene Surgery | B34: F86066 | C34: 7974 | D34: 101 | E34: 0.013 | F34: 84 | G34: 0.832 | H34: 68 | I34: 0.673
A35: Shrubberies Medical Centre | B35: F86641 | C35: 8029 | D35: 85 | E35: 0.011 | F35: 76 | G35: 0.894 | H35: 64 | I35: 0.753
A36: Glebelands Practice | B36: F86020 | C36: 5909 | D36: 74 | E36: 0.013 | F36: 64 | G36: 0.865 | H36: 51 | I36: 0.689
A37: Elmhurst Practice | B37: F86064 | C37: 4767 | D37: 54 | E37: =IFERROR(D37/C37,"N/A") -> 0.011 | F37: 47 | G37: =IFERROR(F37/D37,"N/A") -> 0.87 | H37: 33 | I37: =IFERROR(H37/D37,"N/A") -> 0.611
A38: Clayhall Clinic | B38: F86691 | C38: =SUMIFS(OFFSET(REL_D,,MATCH(C$1,IND,0)-2),REL_D,$D$3,OrgID,$B38) -> 11031 | D38: 140 | E38: 0.013 | F38: 109 | G38: 0.779 | H38: 85 | I38: 0.607
A39: Rydal Practice | B39: F86012 | C39: 9470 | D39: 137 | E39: 0.014 | F39: 127 | G39: 0.927 | H39: 88 | I39: 0.642
A40: Queen Mary Practice | B40: F86658 | C40: 5745 | D40: 54 | E40: 0.009 | F40: 41 | G40: 0.759 | H40: 31 | I40: 0.574
A41: Ilford Medical Centre | B41: F86022 | C41: 14682 | D41: 183 | E41: 0.012 | F41: 141 | G41: 0.77 | H41: 110 | I41: 0.601
A42: The Practice Loxford | B42: Y02987 | C42: 31317 | D42: 189 | E42: 0.006 | F42: 162 | G42: 0.857 | H42: 119 | I42: 0.63
A43: Mathukias Surgery | B43: F86692 | C43: 11026 | D43: 85 | E43: =IFERROR(D43/C43,"N/A") -> 0.008 | F43: 80 | G43: =IFERROR(F43/D43,"N/A") -> 0.941 | H43: 40 | I43: =IFERROR(H43/D43,"N/A") -> 0.471
A44: Ilford Lane Surgery | B44: F86082 | C44: 6171 | D44: 73 | E44: =IFERROR(D44/C44,"N/A") -> 0.012 | F44: 67 | G44: =IFERROR(F44/D44,"N/A") -> 0.918 | H44: 59 | I44: =IFERROR(H44/D44,"N/A") -> 0.808
A45: Oak Tree Medical Practice | B45: F86025 | C45: 17514 | D45: 161 | E45: 0.009 | F45: 137 | G45: 0.851 | H45: 81 | I45: 0.503
A46: Hainault Surgery | B46: F86085 | C46: 3496 | D46: 33 | E46: 0.009 | F46: 28 | G46: 0.848 | H46: 19 | I46: 0.576
A47: Fullwell Cross Medical Centre | B47: F86010 | C47: 16139 | D47: 167 | E47: 0.01 | F47: 145 | G47: 0.868 | H47: 112 | I47: 0.671
A48: Newbury Group Practice | B48: F86060 | C48: 15974 | D48: 144 | E48: 0.009 | F48: 121 | G48: 0.84 | H48: 85 | I48: 0.59

Sheet CVD Risk
C1: 01. Listsize | D1: =INDEX('Control Panel'!$B$49:$B$55,COLUMN(D1)-COLUMN($D$1)+1) -> LDP.05: CVD 25-84yrs (excl CVD) | E1: =INDEX('Control Panel'!$B$49:$B$55,COLUMN(E1)-COLUMN($D$1)+1) -> LDP.05.02: Cardiovascular Risk Score Done (5y) | F1: =INDEX('Control Panel'!$B$49:$B$55,COLUMN(F1)-COLUMN($D$1)+1) -> %LDP.05.02: Cardiovascular Risk Score Done (5y) | G1: =INDEX('Control Panel'!$B$49:$B$55,COLUMN(G1)-COLUMN($D$1)+1) -> LDP.05.01: CVD QRISK greater than or equal 20% | H1: =INDEX('Control Panel'!$B$49:$B$55,COLUMN(H1)-COLUMN($D$1)+1) -> %LDP.05.01: CVD QRISK greater than or equal 20% | I1: =INDEX('Control Panel'!$B$49:$B$55,COLUMN(I1)-COLUMN($D$1)+1) -> LDP.05.01.01: CVD Proxy Annual Review (last 12m) | J1: =INDEX('Control Panel'!$B$49:$B$55,COLUMN(J1)-COLUMN($D$1)+1) -> %LDP.05.01.01: CVD Proxy Annual Review (last 12m) | K1: LDP.05.03: CVD QRISK >=10 & <20 | L1: =INDEX('Control Panel'!$B$49:$B$55,COLUMN(L1)-COLUMN($D$1)+1) -> 
C2: Redbridge - Practice Clinical Trends (LDP) Report
B3: =VLOOKUP(C3,'Control Panel'!O16:P27,2,FALSE) -> 2023-09-01 | C3: August 2023 | D3: =VLOOKUP(C3,'Control Panel'!O16:P27,2,FALSE) -> 2023-09-01
B4: 2019-07-01 | C4: ='Control Panel'!B48 -> CVD Risk
A5: Home | B5: 2019-10-01 | C5: =VLOOKUP(C1,'Control Panel'!$B$3:$C$132,2,FALSE) -> List Size | D5: =VLOOKUP(D1,'Control Panel'!$B$3:$D$132,3,FALSE) -> Aged 25 to 84 (exc CVD) | E5: =VLOOKUP(E1,'Control Panel'!$B$3:$D$132,3,FALSE) -> QRISK recorded (5 years) | F5: =VLOOKUP(F1,'Control Panel'!$B$3:$D$132,3,FALSE) -> % of patients aged 25 to 84 (exc CVD) | G5: =VLOOKUP(G1,'Control Panel'!$B$3:$D$132,3,FALSE) -> QRISK ≥ 20% | H5: =VLOOKUP(H1,'Control Panel'!$B$3:$D$132,3,FALSE) -> % QRISK Score recorded | I5: =VLOOKUP(I1,'Control Panel'!$B$3:$D$132,3,FALSE) -> QRISK ≥ 20% and proxy review (BP and Chol last 12m) | J5: =VLOOKUP(J1,'Control Panel'!$B$3:$D$132,3,FALSE) -> % Patients with QRISK ≥ 20% | K5: QRISK >=10 & <20 | L5: % QRISK >=10 & <20
A6: Practice Name | C6: =SUM(C7:C48) -> 363151 | D6: =SUM(D7:D48) -> 203300 | E6: =SUM(E7:E48) -> 73125 | F6: =IFERROR(E6/D6,"N/A") -> 0.36 | G6: =SUM(G7:G48) -> 13579 | H6: =IFERROR(G6/E6,"N/A") -> 0.186 | I6: =SUM(I7:I48) -> 1881 | J6: =IFERROR(I6/G6,"N/A") -> 0.139 | K6: =SUM(K7:K48) -> 18492 | L6: =IFERROR(K6/E6,"N/A") -> 0.253
A7: Drive Surgery | B7: F86652 | C7: =SUMIFS(OFFSET(REL_D,,MATCH(C$1,IND,0)-2),REL_D,$D$3,OrgID,$B7) -> 7228 | D7: 4442 | E7: 1668 | F7: =IFERROR(E7/$D7,"N/A") -> 0.376 | G7: =SUMIFS(OFFSET(REL_D,,MATCH(G$1,IND,0)-2),REL_D,$D$3,OrgID,$B7) -> 458 | H7: =IFERROR(G7/$E7,"N/A") -> 0.275 | I7: =SUMIFS(OFFSET(REL_D,,MATCH(I$1,IND,0)-2),REL_D,$D$3,OrgID,$B7) -> 9 | J7: =IFERROR(I7/$G7,"N/A") -> 0.02 | K7: 457 | L7: =IFERROR(K7/E7,"N/A") -> 0.274
A8: St Clements Surgery | B8: F86702 | C8: 5048 | D8: 3169 | E8: 994 | F8: 0.314 | G8: 249 | H8: 0.251 | I8: 8 | J8: 0.032 | K8: 275 | L8: 0.277
A9: Granville Medical Centre | B9: Y00918 | C9: 6679 | D9: 4330 | E9: 1458 | F9: 0.337 | G9: 338 | H9: 0.232 | I9: 4 | J9: 0.012 | K9: 482 | L9: 0.331
A10: Balfour Road Surgery | B10: F86042 | C10: 6245 | D10: 3801 | E10: 2021 | F10: 0.532 | G10: 405 | H10: 0.2 | I10: 9 | J10: 0.022 | K10: 408 | L10: 0.202
A11: Cranbrook Surgery | B11: F86698 | C11: 5622 | D11: 3588 | E11: 1316 | F11: 0.367 | G11: 270 | H11: 0.205 | I11: 8 | J11: 0.03 | K11: 354 | L11: 0.269
A12: Gants Hill Medical Centre | B12: F86008 | C12: 11797 | D12: 7683 | E12: 2504 | F12: 0.326 | G12: 547 | H12: 0.218 | I12: 23 | J12: 0.042 | K12: 600 | L12: 0.24
A13: Redbridge Surgery | B13: F86703 | C13: 3797 | D13: 2330 | E13: 490 | F13: 0.21 | G13: 130 | H13: 0.265 | I13: 7 | J13: 0.054 | K13: 193 | L13: 0.394
A14: York Road Surgery | B14: F86657 | C14: 8388 | D14: 161 | E14: 14 | F14: 0.087 | G14: 5 | H14: 0.357 | I14: 1 | J14: 0.2 | K14: 5 | L14: =IFERROR(K14/E14,"N/A") -> 0.357
A15: Kenwood Medical Centre | B15: F86081 | C15: 6613 | D15: 4296 | E15: 1825 | F15: 0.425 | G15: 362 | H15: 0.198 | I15: 12 | J15: 0.033 | K15: 460 | L15: 0.252
A16: Eastern Avenue Medical Centre | B16: F86083 | C16: 6833 | D16: 4619 | E16: 841 | F16: 0.182 | G16: 236 | H16: 0.281 | I16: 10 | J16: 0.042 | K16: 371 | L16: 0.441
A17: Fullwell Avenue Surgery | B17: F86612 | C17: 3277 | D17: 2108 | E17: 649 | F17: 0.308 | G17: 200 | H17: 0.308 | I17: 5 | J17: 0.025 | K17: 240 | L17: 0.37
A18: Heathcote Primary Care Centre | B18: F86624 | C18: 3154 | D18: 2082 | E18: 285 | F18: 0.137 | G18: 93 | H18: 0.326 | I18: 4 | J18: 0.043 | K18: 153 | L18: 0.537
A19: Fencepiece Road Medical Practice | B19: F86707 | C19: 6718 | D19: 4309 | E19: 842 | F19: 0.195 | G19: 241 | H19: 0.286 | I19: 9 | J19: 0.037 | K19: 317 | L19: 0.376
A20: The Willows Practice | B20: F86057 | C20: 6626 | D20: 4308 | E20: 1035 | F20: 0.24 | G20: 201 | H20: 0.194 | I20: 5 | J20: 0.025 | K20: 259 | L20: 0.25
A21: Forest Edge Practice | B21: F86007 | C21: 13721 | D21: 8855 | E21: 2601 | F21: 0.294 | G21: 516 | H21: 0.198 | I21: 8 | J21: 0.016 | K21: 771 | L21: 0.296
A22: The Palms Medical Centre | B22: F86009 | C22: 7584 | D22: 5146 | E22: 1750 | F22: 0.34 | G22: 319 | H22: 0.182 | I22: 5 | J22: 0.016 | K22: 539 | L22: 0.308
A23: Goodmayes Medical Centre | B23: F86087 | C23: 7567 | D23: 4784 | E23: 1029 | F23: 0.215 | G23: 296 | H23: 0.288 | I23: 6 | J23: 0.02 | K23: 316 | L23: 0.307
A24: Seven Kings Practice | B24: F86637 | C24: =SUMIFS(OFFSET(REL_D,,MATCH(C$1,IND,0)-2),REL_D,$D$3,OrgID,$B24) -> 4880 | D24: 3217 | E24: 905 | F24: 0.281 | G24: 219 | H24: 0.242 | I24: 2 | J24: 0.009 | K24: 350 | L24: 0.387
A25: Doctor's House | B25: Y00090 | C25: 8256 | D25: 5132 | E25: 1779 | F25: 0.347 | G25: 343 | H25: 0.193 | I25: 5 | J25: 0.015 | K25: 540 | L25: 0.304
A26: Green Lane, Goodmayes Medical practice | B26: F86034 | C26: 6605 | D26: 4042 | E26: 901 | F26: 0.223 | G26: 253 | H26: 0.281 | I26: 10 | J26: 0.04 | K26: 281 | L26: 0.312
A27: Castleton Road Surgery | B27: F86642 | C27: 5268 | D27: 3311 | E27: 1174 | F27: 0.355 | G27: 238 | H27: 0.203 | I27: 3 | J27: 0.013 | K27: 242 | L27: 0.206
A28: Chadwell Heath Surgery | B28: F86028 | C28: 10745 | D28: 6434 | E28: 5411 | F28: 0.841 | G28: 488 | H28: 0.09 | I28: 7 | J28: 0.014 | K28: 676 | L28: 0.125
A29: Grove Surgery | B29: Y00155 | C29: 10220 | D29: 185 | E29: 37 | F29: 0.2 | G29: 27 | H29: 0.73 | I29: 1 | J29: 0.037 | K29: 11 | L29: 0.297
A30: Broadway Surgery | B30: F86013 | C30: 7105 | D30: 187 | E30: 37 | F30: 0.198 | G30: 21 | H30: 0.568 | I30: 14 | J30: 0.667 | K30: 16 | L30: 0.432
A31: The Evergreen Practice | B31: F86023 | C31: 10069 | D31: 6966 | E31: 1755 | F31: 0.252 | G31: 377 | H31: 0.215 | I31: 180 | J31: 0.477 | K31: 598 | L31: 0.341
A32: Wanstead Place Surgery | B32: F86032 | C32: 9218 | D32: 6279 | E32: 1581 | F32: 0.252 | G32: 252 | H32: 0.159 | I32: 140 | J32: 0.556 | K32: 566 | L32: 0.358
A33: Aldersbrook Medical Centre | B33: F86731 | C33: 4644 | D33: 3069 | E33: 1554 | F33: 0.506 | G33: 206 | H33: 0.133 | I33: 154 | J33: 0.748 | K33: 362 | L33: 0.233
A34: Southdene Surgery | B34: F86066 | C34: 7974 | D34: 5404 | E34: 1923 | F34: 0.356 | G34: 320 | H34: 0.166 | I34: 212 | J34: 0.663 | K34: 565 | L34: 0.294
A35: Shrubberies Medical Centre | B35: F86641 | C35: 8029 | D35: 5433 | E35: 1923 | F35: 0.354 | G35: 199 | H35: 0.103 | I35: 145 | J35: 0.729 | K35: 443 | L35: 0.23
A36: Glebelands Practice | B36: F86020 | C36: 5909 | D36: 4147 | E36: 1545 | F36: =IFERROR(E36/$D36,"N/A") -> 0.373 | G36: 307 | H36: =IFERROR(G36/$E36,"N/A") -> 0.199 | I36: 205 | J36: =IFERROR(I36/$G36,"N/A") -> 0.668 | K36: 422 | L36: 0.273
A37: Elmhurst Practice | B37: F86064 | C37: 4767 | D37: 3228 | E37: 1389 | F37: =IFERROR(E37/$D37,"N/A") -> 0.43 | G37: 217 | H37: =IFERROR(G37/$E37,"N/A") -> 0.156 | I37: 92 | J37: =IFERROR(I37/$G37,"N/A") -> 0.424 | K37: 346 | L37: 0.249
A38: Clayhall Clinic | B38: F86691 | C38: =SUMIFS(OFFSET(REL_D,,MATCH(C$1,IND,0)-2),REL_D,$D$3,OrgID,$B38) -> 11031 | D38: 6952 | E38: 3051 | F38: 0.439 | G38: 554 | H38: 0.182 | I38: 129 | J38: 0.233 | K38: 803 | L38: 0.263
A39: Rydal Practice | B39: F86012 | C39: 9470 | D39: 6488 | E39: 1929 | F39: 0.297 | G39: 384 | H39: 0.199 | I39: 180 | J39: 0.469 | K39: 704 | L39: 0.365
A40: Queen Mary Practice | B40: F86658 | C40: 5745 | D40: 3825 | E40: 1120 | F40: 0.293 | G40: 217 | H40: 0.194 | I40: 9 | J40: 0.041 | K40: 270 | L40: 0.241
A41: Ilford Medical Centre | B41: F86022 | C41: 14682 | D41: 9385 | E41: 3401 | F41: 0.362 | G41: 669 | H41: 0.197 | I41: 7 | J41: 0.01 | K41: 874 | L41: 0.257
A42: The Practice Loxford | B42: Y02987 | C42: 31317 | D42: 19468 | E42: 5745 | F42: 0.295 | G42: 884 | H42: 0.154 | I42: 49 | J42: 0.055 | K42: 1134 | L42: 0.197
A43: Mathukias Surgery | B43: F86692 | C43: 11026 | D43: 6541 | E43: 2629 | F43: =IFERROR(E43/$D43,"N/A") -> 0.402 | G43: 718 | H43: =IFERROR(G43/$E43,"N/A") -> 0.273 | I43: 164 | J43: =IFERROR(I43/$G43,"N/A") -> 0.228 | K43: 611 | L43: 0.232
A44: Ilford Lane Surgery | B44: F86082 | C44: 6171 | D44: 217 | E44: 49 | F44: =IFERROR(E44/$D44,"N/A") -> 0.226 | G44: 27 | H44: =IFERROR(G44/$E44,"N/A") -> 0.551 | I44: 0 | J44: =IFERROR(I44/$G44,"N/A") -> 0 | K44: 22 | L44: 0.449
A45: Oak Tree Medical Practice | B45: F86025 | C45: 17514 | D45: 436 | E45: 57 | F45: 0.131 | G45: 28 | H45: 0.491 | I45: 0 | J45: 0 | K45: 17 | L45: 0.298
A46: Hainault Surgery | B46: F86085 | C46: 3496 | D46: 2313 | E46: 516 | F46: 0.223 | G46: 114 | H46: 0.221 | I46: 5 | J46: 0.044 | K46: 175 | L46: 0.339
A47: Fullwell Cross Medical Centre | B47: F86010 | C47: 16139 | D47: 10571 | E47: 7429 | F47: 0.703 | G47: 858 | H47: 0.115 | I47: 19 | J47: 0.022 | K47: 1150 | L47: 0.155
A48: Newbury Group Practice | B48: F86060 | C48: 15974 | D48: 10059 | E48: 3963 | F48: 0.394 | G48: 793 | H48: 0.2 | I48: 16 | J48: 0.02 | K48: 1114 | L48: 0.281

Sheet Diabetes
C1: 01. Listsize | D1: ='Control Panel'!B57 -> LDP.04: Diabetes Register | E1: =INDEX('Control Panel'!$B$57:$B$106,COLUMN(E1)-COLUMN($D$1)+1) -> %LDP.04: Diabetes Register | F1: ='Control Panel'!B61 -> LDP.04.11: Diabetes and BP in last 12 months | G1: ='Control Panel'!B62 -> %LDP.04.11: Diabetes and BP in last 12 months | H1: ='Control Panel'!B63 -> LDP.04.09: Diabetes BP less than 145/85 (last 12m) | I1: ='Control Panel'!B64 -> %LDP.04.09: Diabetes BP less than 145/85 (last 12m) | J1: ='Control Panel'!B67 -> LDP.04.08: Diabetes Chol less than 5mmol (last 12m) | K1: ='Control Panel'!B68 -> %LDP.04.08: Diabetes Chol less than 5mmol (last 12m) | L1: ='Control Panel'!B69 -> LDP.04.01: Diabetes HbA1c <7.5% OR <59mmol (last 12m) | M1: ='Control Panel'!B70 -> %LDP.04.01: Diabetes HbA1c <7.5% OR <59mmol (last 12m) | N1: ='Control Panel'!B81 -> LDP.04.07: Diabetes Influenza Vaccinations (From August 2018) | O1: ='Control Panel'!B82 -> %LDP.04.07: Diabetes Influenza Vaccinations (From August 2018)
C2: Redbridge - Practice Clinical Trends (LDP) Report
B3: =VLOOKUP(C3,'Control Panel'!O16:P27,2,FALSE) -> 2023-09-01 | C3: August 2023 | D3: =VLOOKUP(C3,'Control Panel'!O16:P27,2,FALSE) -> 2023-09-01
B4: 2019-07-01 | C4: ='Control Panel'!B56 -> Diabetes
A5: Home | B5: 2019-10-01 | C5: =VLOOKUP(C1,'Control Panel'!$B$3:$C$132,2,FALSE) -> List Size | D5: Diabetes register | E5: % List size | F5: BP (last 12m) | G5: % Diabetes Register | H5: BP < 145/85 (last 12m) | I5: % Diabetes Register | J5: Cholesterol < 5mmols (last 12m) | K5: % Diabetes Register | L5: HbA1c < 59 (last 12m) | M5: % Diabetes register | N5: Flu jab (From August 2023) | O5: % Diabetes Register
A6: Practice Name | C6: =SUM(C7:C48) -> 363151 | D6: =SUM(D7:D48) -> 27344 | E6: =IFERROR(D6/C6,"N/A") -> 0.075 | F6: =SUM(F7:F48) -> 23866 | G6: =IFERROR(F6/D6,"N/A") -> 0.873 | H6: =SUM(H7:H48) -> 19360 | I6: =IFERROR(H6/D6,"N/A") -> 0.708 | J6: =SUM(J7:J48) -> 2601 | K6: =IFERROR(J6/D6,"N/A") -> 0.095 | L6: =SUM(L7:L48) -> 14026 | M6: =IFERROR(L6/D6,"N/A") -> 0.513 | N6: =SUM(N7:N48) -> 2 | O6: =IFERROR(N6/D6,"N/A") -> 0
A7: Drive Surgery | B7: F86652 | C7: =SUMIFS(OFFSET(REL_D,,MATCH(C$1,IND,0)-2),REL_D,$D$3,OrgID,$B7) -> 7228 | D7: 707 | E7: =IFERROR(D7/C7,"N/A") -> 0.098 | F7: =SUMIFS(OFFSET(REL_D,,MATCH(F$1,IND,0)-2),REL_D,$D$3,OrgID,$B7) -> 655 | G7: =IFERROR(F7/$D7,"N/A") -> 0.926 | H7: =SUMIFS(OFFSET(REL_D,,MATCH(H$1,IND,0)-2),REL_D,$D$3,OrgID,$B7) -> 536 | I7: =IFERROR(H7/$D7,"N/A") -> 0.758 | J7: =SUMIFS(OFFSET(REL_D,,MATCH(J$1,IND,0)-2),REL_D,$D$3,OrgID,$B7) -> 20 | K7: =IFERROR(J7/$D7,"N/A") -> 0.028 | L7: =SUMIFS(OFFSET(REL_D,,MATCH(L$1,IND,0)-2),REL_D,$D$3,OrgID,$B7) -> 393 | M7: =IFERROR(L7/$D7,"N/A") -> 0.556 | N7: =SUMIFS(OFFSET(REL_D,,MATCH(N$1,IND,0)-2),REL_D,$D$3,OrgID,$B7) -> 0 | O7: =IFERROR(N7/$D7,"N/A") -> 0
A8: St Clements Surgery | B8: F86702 | C8: 5048 | D8: 479 | E8: 0.095 | F8: 421 | G8: 0.879 | H8: 338 | I8: 0.706 | J8: 7 | K8: 0.015 | L8: 257 | M8: 0.537 | N8: 0 | O8: 0
A9: Granville Medical Centre | B9: Y00918 | C9: 6679 | D9: 718 | E9: 0.108 | F9: 645 | G9: 0.898 | H9: 559 | I9: 0.779 | J9: 4 | K9: 0.006 | L9: 367 | M9: 0.511 | N9: 0 | O9: 0
A10: Balfour Road Surgery | B10: F86042 | C10: 6245 | D10: 562 | E10: 0.09 | F10: 517 | G10: 0.92 | H10: 496 | I10: 0.883 | J10: 11 | K10: 0.02 | L10: 298 | M10: 0.53 | N10: 0 | O10: 0
A11: Cranbrook Surgery | B11: F86698 | C11: 5622 | D11: 661 | E11: 0.118 | F11: 628 | G11: 0.95 | H11: 515 | I11: 0.779 | J11: 17 | K11: 0.026 | L11: 417 | M11: 0.631 | N11: 0 | O11: 0
A12: Gants Hill Medical Centre | B12: F86008 | C12: 11797 | D12: 881 | E12: 0.075 | F12: 798 | G12: 0.906 | H12: 686 | I12: 0.779 | J12: 22 | K12: 0.025 | L12: 461 | M12: 0.523 | N12: 0 | O12: 0
A13: Redbridge Surgery | B13: F86703 | C13: 3797 | D13: 356 | E13: 0.094 | F13: 301 | G13: 0.846 | H13: 226 | I13: 0.635 | J13: 11 | K13: 0.031 | L13: 163 | M13: 0.458 | N13: 0 | O13: 0
A14: York Road Surgery | B14: F86657 | C14: 8388 | D14: 685 | E14: 0.082 | F14: 587 | G14: 0.857 | H14: 482 | I14: 0.704 | J14: 3 | K14: 0.004 | L14: 383 | M14: 0.559 | N14: 0 | O14: 0
A15: Kenwood Medical Centre | B15: F86081 | C15: 6613 | D15: 656 | E15: 0.099 | F15: 561 | G15: 0.855 | H15: 448 | I15: 0.683 | J15: 26 | K15: 0.04 | L15: 359 | M15: 0.547 | N15: 1 | O15: 0.002
A16: Eastern Avenue Medical Centre | B16: F86083 | C16: 6833 | D16: 761 | E16: 0.111 | F16: 650 | G16: 0.854 | H16: 538 | I16: 0.707 | J16: 31 | K16: 0.041 | L16: 354 | M16: 0.465 | N16: 0 | O16: 0
A17: Fullwell Avenue Surgery | B17: F86612 | C17: 3277 | D17: 299 | E17: 0.091 | F17: 260 | G17: 0.87 | H17: 209 | I17: 0.699 | J17: 14 | K17: 0.047 | L17: 173 | M17: 0.579 | N17: 0 | O17: 0
A18: Heathcote Primary Care Centre | B18: F86624 | C18: 3154 | D18: 277 | E18: 0.088 | F18: 256 | G18: 0.924 | H18: 235 | I18: 0.848 | J18: 15 | K18: 0.054 | L18: 164 | M18: 0.592 | N18: 0 | O18: 0
A19: Fencepiece Road Medical Practice | B19: F86707 | C19: 6718 | D19: 452 | E19: 0.067 | F19: 393 | G19: 0.869 | H19: 339 | I19: 0.75 | J19: 18 | K19: 0.04 | L19: 199 | M19: 0.44 | N19: 0 | O19: 0
A20: The Willows Practice | B20: F86057 | C20: 6626 | D20: 453 | E20: 0.068 | F20: 388 | G20: 0.857 | H20: 273 | I20: 0.603 | J20: 6 | K20: 0.013 | L20: 241 | M20: 0.532 | N20: 0 | O20: 0
A21: Forest Edge Practice | B21: F86007 | C21: 13721 | D21: 792 | E21: 0.058 | F21: 688 | G21: 0.869 | H21: 540 | I21: 0.682 | J21: 14 | K21: 0.018 | L21: 380 | M21: 0.48 | N21: 0 | O21: 0
A22: The Palms Medical Centre | B22: F86009 | C22: 7584 | D22: 672 | E22: 0.089 | F22: 537 | G22: 0.799 | H22: 406 | I22: 0.604 | J22: 7 | K22: 0.01 | L22: 335 | M22: 0.499 | N22: 0 | O22: 0
A23: Goodmayes Medical Centre | B23: F86087 | C23: 7567 | D23: 696 | E23: 0.092 | F23: 577 | G23: 0.829 | H23: 427 | I23: 0.614 | J23: 11 | K23: 0.016 | L23: 367 | M23: 0.527 | N23: 0 | O23: 0
A24: Seven Kings Practice | B24: F86637 | C24: =SUMIFS(OFFSET(REL_D,,MATCH(C$1,IND,0)-2),REL_D,$D$3,OrgID,$B24) -> 4880 | D24: 470 | E24: 0.096 | F24: 414 | G24: 0.881 | H24: 350 | I24: 0.745 | J24: 5 | K24: 0.011 | L24: 219 | M24: 0.466 | N24: 0 | O24: 0
A25: Doctor's House | B25: Y00090 | C25: 8256 | D25: 720 | E25: 0.087 | F25: 651 | G25: 0.904 | H25: 602 | I25: 0.836 | J25: 11 | K25: 0.015 | L25: 373 | M25: 0.518 | N25: 0 | O25: 0
A26: Green Lane, Goodmayes Medical practice | B26: F86034 | C26: 6605 | D26: 518 | E26: 0.078 | F26: 439 | G26: 0.847 | H26: 342 | I26: 0.66 | J26: 4 | K26: 0.008 | L26: 250 | M26: 0.483 | N26: 0 | O26: 0
A27: Castleton Road Surgery | B27: F86642 | C27: 5268 | D27: 465 | E27: 0.088 | F27: 439 | G27: 0.944 | H27: 328 | I27: 0.705 | J27: 4 | K27: 0.009 | L27: 222 | M27: 0.477 | N27: 0 | O27: 0
A28: Chadwell Heath Surgery | B28: F86028 | C28: 10745 | D28: 878 | E28: 0.082 | F28: 771 | G28: 0.878 | H28: 558 | I28: 0.636 | J28: 14 | K28: 0.016 | L28: 405 | M28: 0.461 | N28: 0 | O28: 0
A29: Grove Surgery | B29: Y00155 | C29: 10220 | D29: 688 | E29: 0.067 | F29: 596 | G29: 0.866 | H29: 532 | I29: 0.773 | J29: 4 | K29: 0.006 | L29: 352 | M29: 0.512 | N29: 0 | O29: 0
A30: Broadway Surgery | B30: F86013 | C30: 7105 | D30: 306 | E30: 0.043 | F30: 258 | G30: 0.843 | H30: 187 | I30: 0.611 | J30: 165 | K30: 0.539 | L30: 154 | M30: 0.503 | N30: 0 | O30: 0
A31: The Evergreen Practice | B31: F86023 | C31: 10069 | D31: 432 | E31: 0.043 | F31: 372 | G31: 0.861 | H31: 299 | I31: 0.692 | J31: 255 | K31: 0.59 | L31: 258 | M31: 0.597 | N31: 0 | O31: 0
A32: Wanstead Place Surgery | B32: F86032 | C32: 9218 | D32: 437 | E32: 0.047 | F32: 324 | G32: 0.741 | H32: 261 | I32: 0.597 | J32: 229 | K32: 0.524 | L32: 212 | M32: 0.485 | N32: 0 | O32: 0
A33: Aldersbrook Medical Centre | B33: F86731 | C33: 4644 | D33: 238 | E33: 0.051 | F33: 221 | G33: 0.929 | H33: 191 | I33: 0.803 | J33: 165 | K33: 0.693 | L33: 143 | M33: 0.601 | N33: 0 | O33: 0
A34: Southdene Surgery | B34: F86066 | C34: 7974 | D34: 372 | E34: 0.047 | F34: 326 | G34: 0.876 | H34: 249 | I34: 0.669 | J34: 201 | K34: 0.54 | L34: 201 | M34: 0.54 | N34: 0 | O34: 0
A35: Shrubberies Medical Centre | B35: F86641 | C35: 8029 | D35: 320 | E35: 0.04 | F35: 298 | G35: 0.931 | H35: 239 | I35: 0.747 | J35: 200 | K35: 0.625 | L35: 188 | M35: 0.588 | N35: 0 | O35: 0
A36: Glebelands Practice | B36: F86020 | C36: 5909 | D36: 252 | E36: 0.043 | F36: 231 | G36: 0.917 | H36: 186 | I36: 0.738 | J36: 174 | K36: 0.69 | L36: 137 | M36: 0.544 | N36: 0 | O36: 0
A37: Elmhurst Practice | B37: F86064 | C37: 4767 | D37: 243 | E37: =IFERROR(D37/C37,"N/A") -> 0.051 | F37: 218 | G37: =IFERROR(F37/$D37,"N/A") -> 0.897 | H37: 162 | I37: =IFERROR(H37/$D37,"N/A") -> 0.667 | J37: 92 | K37: =IFERROR(J37/$D37,"N/A") -> 0.379 | L37: 125 | M37: =IFERROR(L37/$D37,"N/A") -> 0.514 | N37: 0 | O37: =IFERROR(N37/$D37,"N/A") -> 0
A38: Clayhall Clinic | B38: F86691 | C38: =SUMIFS(OFFSET(REL_D,,MATCH(C$1,IND,0)-2),REL_D,$D$3,OrgID,$B38) -> 11031 | D38: 950 | E38: 0.086 | F38: 778 | G38: 0.819 | H38: 671 | I38: 0.706 | J38: 177 | K38: 0.186 | L38: 465 | M38: 0.489 | N38: 0 | O38: 0
A39: Rydal Practice | B39: F86012 | C39: 9470 | D39: 479 | E39: 0.051 | F39: 437 | G39: 0.912 | H39: 380 | I39: 0.793 | J39: 271 | K39: 0.566 | L39: 278 | M39: 0.58 | N39: 0 | O39: 0
A40: Queen Mary Practice | B40: F86658 | C40: 5745 | D40: 345 | E40: 0.06 | F40: 251 | G40: 0.728 | H40: 221 | I40: 0.641 | J40: 23 | K40: 0.067 | L40: 180 | M40: 0.522 | N40: 0 | O40: 0
A41: Ilford Medical Centre | B41: F86022 | C41: 14682 | D41: 1345 | E41: 0.092 | F41: 1139 | G41: 0.847 | H41: 955 | I41: 0.71 | J41: 11 | K41: 0.008 | L41: 652 | M41: 0.485 | N41: 1 | O41: 0.001
A42: The Practice Loxford | B42: Y02987 | C42: 31317 | D42: 1751 | E42: 0.056 | F42: 1553 | G42: 0.887 | H42: 1278 | I42: 0.73 | J42: 43 | K42: 0.025 | L42: 826 | M42: 0.472 | N42: 0 | O42: 0
